Workbook

Sheet Sommario
B4: SISTEMI TARIFFARI AUTOSTRADALI
B6: Tool di costruzione tariffaria
C9: Contenuti | I9: Legenda
C11: Y0 - Modulo di acquisizione dati | I11: Input del concessionario | J11: 1000
D13: Y0.1 Dati generali | E13: Termini e scadenze concessioni; principali input esogeni ed endogeni | I13: Campo calcolato:
D14: Y0.2.a CoReg DatiTecnici | E14: Informazioni tecniche da fascicolo di contabilità regolatoria relativo all’Anno base | I14: Livello 1 | J14: 1000
D15: Y0.2.b CoReg SchemiCont AB | E15: Informazioni economico-finanziarie da fascicolo di contabilità regolatoria relativo all’Anno base | I15: Livello 2 | J15: 1000
D16: Y0.3 PrevisioniTraffico | E16: Dati previsionali relativi ai volumi di traffico | I16: Livello 3 | J16: 1000
D17: Y0.4.a DiscontinuitaCosto Tg | E17: Input importi annuali afferenti alle discontinuità di costo per componente tariffaria di gestione | I17: Livello 4 | J17: 1000
D18: Y0.4.b PEF DettaglioFondi | E18: Assunzioni del concessionario per la modellazione delle variazioni annue dei fondi di accantonamento | I18: Macro | J18: 1000
D19: Y0.4.c PEF DettaglioCCN | E19: Assunzioni del concessionario per la modellazione delle variazioni annue deicapitale circolante netto
D20: Y0.4.d PEF DettaglioDebito | E20: Assunzioni del concessionario per la modellazione delle variazioni annue delle linee di debito | I20: Campo desunto da altro foglio di lavoro:
D21: Y0.4.e Qualita | E21: Valori di riferimento per il calcolo dell’indicatore sintetico di qualità | I21: Livello 1 | J21: 1000
D22: Y0.4.f Toi Input | E22: Informazioni afferenti alla modellizzazione della componente tariffaria per oneri integrativi | I22: Livello 2 | J22: 1000
D23: Y0.5 PR Pregressi | E23: Informazioni afferenti ai periodi regolatori pregressi rispetto a quello di riferimento per la costruzione tariffaria
I24: Campo di controllo (check):
C25: Y1 Programma degli investimenti | I25: Livello 1 | J25: 1000
I26: Livello 2 | J26: 1000
C27: Interventi riconosciuti in tariffa
D28: Y1.1 ProgrammaInvest_Spesa | E28: Informazioni anagrafiche e regolatorie sui singoli interventi e programmazione della spesa annua complessiva | I28: Campo non compilabile o nullo
D29: Y1.2 ProgrammaInvest_Contrib | E29: Programmazione di eventuali contributi in conto impianti o in conto capitale
D30: Y1.3 ProgrammaInvest_Dismiss | E30: Programmazione di eventuali dismissioni | I30: Campo con valore stabilito da ART | J30: 1000
C31: Interventi non riconosciuti in tariffa
D32: Y1.4 InvestNoTar_Spesa | E32: Informazioni anagrafiche e regolatorie sui singoli interventi e programmazione della spesa annua complessiva
D33: Y1.5 InvestNoTar_Contrib | E33: Programmazione di eventuali contributi in conto impianti o in conto capitale
D34: Y1.6 InvestNoTar_Dismiss | E34: Programmazione di eventuali dismissioni
C36: Moduli di calcolo
D38: C1 RevenueSharing | E38: Calcoli afferenti all'applicazione del meccanismo di Revenue sharing
D39: C2 Tg Input | E39: Calcolo automatico delle grandezze da inserire nel PFR per la determinazione della componente tariffaria di gestione
D40: C3 Tk Supporto | E40: Dati di supporto per i moduli di programmazione degli investimenti e per il calcolo della componente tariffaria di costruzione
D41: C4 Tk Input | E41: Calcolo automatico dei costi di capitale afferenti alla componente tariffaria di costruzione
D42: C5 Tk CalcoloPF | E42: Calcolo automatico delle poste figurative da applicare ai fini della determinazione della componente tariffaria di costruzione
C44: Y2 Piano Finanziario Regolatorio (PFR)
D46: Y2 PFR | E46: Piano finanziario regolatorio, nel formato definito dall'Autorità
D47: Y2.a ModulazioneTariffaria | E47: Calcolo dei livelli tariffari annualmente applicabili alle differenti tipologie di rete e classi veicolari
C49: Y3 Piano Economico Finanziario (PEF)
D51: Y3 PEF | E51: Piano Economico-Finanziario, nel formato definito dall'Autorità
C53: Y4 Calcolo degli indicatori di equilibrio economico-finanziario
D55: Y4 IndicatoriEquilibrioEF | E55: Schemi di calcolo degli indicatori di equilibrio economico-finanziario della concessione
D56: Y5 FondoRecupero | E56: Modellizzazione della dinamica del fondo di accantonamento per il recupero di eventuali sovra-rendimenti

Sheet Y0.1 Dati generali
C2: Concessione - Informazioni generali
C4: Termini e scadenze
C6: Data di prima applicazione Sistema tariffario ART | D6: 2020-01-01
C7: Ultimo anno di applicazione regime tariffario previgente | D7: =YEAR(DataAvvioSTART)-1 -> 2019
C8: Data di scadenza primo periodo regolatorio di applicazione Sistema tariffario ART | D8: 2024-12-31
C9: Durata standard periodo regolatorio | D9: 5 | F9: Ultima generazione schema: 31/10/2025 17:44:15
C11: Esiste un periodo regolatorio precedente, con regolazione ART? | D11: TRUE
C12: Data di inizio nuovo periodo regolatorio | D12: =IF(D11,D8+1,DataAvvioSTART) -> 2025-01-01
C13: Data di inizio applicazione nuova disciplina ART | D13: 2026-01-01
C14: Primo anno applicazione nuova disciplina ART | D14: =YEAR(D13) -> 2026
C15: Ultimo anno nuovo periodo regolatorio | D15: =YEAR(D12)+DurataPR-1 -> 2029
C16: Anno base nuovo periodo regolatorio | D16: =AnnoPonte-1 -> 2024 | F16: Ultima copia schemi: 03/11/2025 15:39:37
C17: Anno ponte nuovo periodo regolatorio | D17: =PrimoAnnoPR1-1 -> 2025
C19: Data di scadenza della concessione | D19: 2038-08-31
C20: Anno di scadenza della concessione | D20: =YEAR(D19) -> 2038
C21: Numero periodi regolatori residui, a partire dal nuovo | D21: =1+CEILING((ScadenzaConcessione-UltimoAnnoPR1)/DurataPR,1) -> 3
C24: Anno | F24: =D16 -> 2024 | G24: =F24+1 -> 2025 | H24: 2026 | I24: 2027 | J24: 2028 | K24: 2029 | L24: 2030 | M24: 2031 | N24: 2032 | O24: 2033 | P24: 2034 | Q24: 2035 | R24: 2036 | S24: 2037 | T24: 2038
C26: Anno base | F26: 1 | G26: 0 | H26: 0 | I26: 0 | J26: 1 | K26: 0 | L26: 0 | M26: 0 | N26: 0 | O26: 1 | P26: 0 | Q26: 0 | R26: 0 | S26: 0 | T26: 0
C27: Anno ponte | F27: 0 | G27: 1 | H27: 0 | I27: 0 | J27: 0 | K27: 1 | L27: 0 | M27: 0 | N27: 0 | O27: 0 | P27: 1 | Q27: 0 | R27: 0 | S27: 0 | T27: 0
C28: Periodo regolatorio | F28: 0 | G28: 0 | H28: 1 | I28: 1 | J28: 1 | K28: 1 | L28: 2 | M28: 2 | N28: 2 | O28: 2 | P28: 2 | Q28: 3 | R28: 3 | S28: 3 | T28: 3
C29: Anno del periodo regolatorio | F29: 0 | G29: 0 | H29: 1 | I29: 2 | J29: 3 | K29: 4 | L29: 1 | M29: 2 | N29: 3 | O29: 4 | P29: 5 | Q29: 1 | R29: 2 | S29: 3 | T29: 4
C30: Frazione di anno significativa | H30: 1 | I30: 1 | J30: 1 | K30: 1 | L30: 1 | M30: 1 | N30: 1 | O30: 1 | P30: 1 | Q30: 1 | R30: 1 | S30: 1 | T30: 1
F32: Ultimo adattamento schema: 31/10/2025 17:44:54
C35: Input esogeni
C37: Inflazione programmata
C39: Tasso di inflazione programmata | G39: 0.021 | H39: 0.019 | I39: 0.018 | J39: 0.02 | K39: 0.02 | L39: 0.02 | M39: 0.02 | N39: 0.02 | O39: 0.02 | P39: 0.02 | Q39: 0.02 | R39: 0.02 | S39: 0.02 | T39: 0.02
C41: Recupero di produttività da efficientamento ART
C43: Percentuale complessiva di recupero di efficienza produttiva X* (fornito da ART) | E43: -0.03
C44: Numero di annualità per conseguimento X* | E44: 5
C45: Calcolo indicatore di produttività annuale Xt (se costante) | E45: =IFERROR(((1+E43)^(1/E44))-1,0) -> -0.006073323852
C47: Applicazione efficientamento | H47: =IF(SUM($G47:G47)<$E$44,1,0) -> 1 | I47: =IF(SUM($G47:H47)<$E$44,1,0) -> 1 | J47: =IF(SUM($G47:I47)<$E$44,1,0) -> 1 | K47: =IF(SUM($G47:J47)<$E$44,1,0) -> 1 | L47: =IF(SUM($G47:K47)<$E$44,1,0) -> 1 | M47: =IF(SUM($G47:L47)<$E$44,1,0) -> 0 | N47: =IF(SUM($G47:M47)<$E$44,1,0) -> 0 | O47: =IF(SUM($G47:N47)<$E$44,1,0) -> 0 | P47: =IF(SUM($G47:O47)<$E$44,1,0) -> 0 | Q47: =IF(SUM($G47:P47)<$E$44,1,0) -> 0 | R47: =IF(SUM($G47:Q47)<$E$44,1,0) -> 0 | S47: =IF(SUM($G47:R47)<$E$44,1,0) -> 0 | T47: =IF(SUM($G47:S47)<$E$44,1,0) -> 0
C48: Xt | H48: =IF(H47,$E$45,0) -> -0.006073323852 | I48: =IF(I47,$E$45,0) -> -0.006073323852 | J48: -0.006073323852 | K48: -0.006073323852 | L48: -0.006073323852 | M48: 0 | N48: 0 | O48: 0 | P48: 0 | Q48: 0 | R48: 0 | S48: 0 | T48: 0
C49: Fattore di efficientamento | G49: 1000 | H49: =G49*(1+H48) -> 993.9266761 | I49: 987.8902376 | J49: 981.8904602 | K49: 975.9271215 | L49: 970 | M49: 970 | N49: 970 | O49: 970 | P49: 970 | Q49: 970 | R49: 970 | S49: 970 | T49: 970
C50: Xt cumulato | H50: =($G$49-H49)/$G$49 -> 0.006073323852 | I50: =($G$49-I49)/$G$49 -> 0.01210976244 | J50: 0.01810953978 | K50: 0.02407287854 | L50: 0.03 | M50: 0.03 | N50: 0.03 | O50: 0.03 | P50: 0.03 | Q50: 0.03 | R50: 0.03 | S50: 0.03 | T50: 0.03
D51: check X* | E51: =IF(ROUND(MAX(50:50)+E43,10)=0,"ok","errore") -> ok
C53: Tassi di remunerazione del capitale investito
C55: TIR previgente | E55: 0.1387 | G55: =E55 -> 0.1387 | H55: =G55 -> 0.1387 | I55: =H55 -> 0.1387 | J55: =I55 -> 0.1387 | K55: =J55 -> 0.1387 | L55: =K55 -> 0.1387 | M55: =L55 -> 0.1387 | N55: =M55 -> 0.1387 | O55: =N55 -> 0.1387 | P55: =O55 -> 0.1387 | Q55: =P55 -> 0.1387 | R55: =Q55 -> 0.1387 | S55: =R55 -> 0.1387 | T55: =S55 -> 0.1387
C56: WACC ART | E56: =7.51% -> 0.0751 | G56: =E56 -> 0.0751 | H56: =G56 -> 0.0751 | I56: 0.0751 | J56: 0.0751 | K56: 0.0751 | L56: 0.0751 | M56: 0.0751 | N56: 0.0751 | O56: 0.0751 | P56: 0.0751 | Q56: 0.0751 | R56: 0.0751 | S56: 0.0751 | T56: 0.0751
C57: Costo ammesso sul capitale di debito (Rd) da WACC ART | E57: 0.0435 | G57: 0.0435 | H57: 0.0435 | I57: 0.0435 | J57: 0.0435 | K57: 0.0435 | L57: 0.0435 | M57: 0.0435 | N57: 0.0435 | O57: 0.0435 | P57: 0.0435 | Q57: 0.0435 | R57: 0.0435 | S57: 0.0435 | T57: 0.0435
C58: Costo ammesso sul capitale di rischio (Re) da WACC ART | E58: 0.1066 | G58: 0.1066 | H58: 0.1066 | I58: 0.1066 | J58: 0.1066 | K58: 0.1066 | L58: 0.1066 | M58: 0.1066 | N58: 0.1066 | O58: 0.1066 | P58: 0.1066 | Q58: 0.1066 | R58: 0.1066 | S58: 0.1066 | T58: 0.1066
C61: Tasso di remunerazione del CIN ante (TIR previgente) | G61: =TIR -> 0.1387 | H61: =G61 -> 0.1387 | I61: 0.1387 | J61: 0.1387 | K61: 0.1387 | L61: 0.1387 | M61: 0.1387 | N61: 0.1387 | O61: 0.1387 | P61: 0.1387 | Q61: 0.1387 | R61: 0.1387 | S61: 0.1387 | T61: 0.1387
C62: Tasso di remunerazione del CIN pre2026 e post2026 (WACC) | G62: =WACC -> 0.0751 | H62: =G62 -> 0.0751 | I62: 0.0751 | J62: 0.0751 | K62: 0.0751 | L62: 0.0751 | M62: 0.0751 | N62: 0.0751 | O62: 0.0751 | P62: 0.0751 | Q62: 0.0751 | R62: 0.0751 | S62: 0.0751 | T62: 0.0751
C63: Tasso di remunerazione del valore di subentro (Rtv) per CIN ante | G63: =G61 -> 0.1387 | H63: =G63 -> 0.1387 | I63: 0.1387 | J63: 0.1387 | K63: 0.1387 | L63: 0.1387 | M63: 0.1387 | N63: 0.1387 | O63: 0.1387 | P63: 0.1387 | Q63: 0.1387 | R63: 0.1387 | S63: 0.1387 | T63: 0.1387
C64: Tasso di remunerazione del valore di subentro (Rtv) per CIN pre2026 e post2026 | G64: =G62 -> 0.0751 | H64: =G64 -> 0.0751 | I64: =H64 -> 0.0751 | J64: =I64 -> 0.0751 | K64: =J64 -> 0.0751 | L64: =K64 -> 0.0751 | M64: =L64 -> 0.0751 | N64: =M64 -> 0.0751 | O64: =N64 -> 0.0751 | P64: =O64 -> 0.0751 | Q64: =P64 -> 0.0751 | R64: =Q64 -> 0.0751 | S64: =R64 -> 0.0751 | T64: =S64 -> 0.0751
C65: Tasso di remunerazione delle lavorazioni in corso di secondo livello (vite utili) | E65: FALSE | G65: =IF(E65,Kd,WACC) -> 0.0751 | H65: =G65 -> 0.0751 | I65: 0.0751 | J65: 0.0751 | K65: 0.0751 | L65: 0.0751 | M65: 0.0751 | N65: 0.0751 | O65: 0.0751 | P65: 0.0751 | Q65: 0.0751 | R65: 0.0751 | S65: 0.0751 | T65: 0.0751
C67: Canoni
C69: Canone annuo L. 296/2006 | E69: 0.024
C70: Integrazione canone d.l. 78/2009 s.m.i. (A,B) | E70: 0.006
C71: Integrazione canone d.l. 78/2009 s.m.i. (3,4,5) | E71: 0.018
C72: Canone annuo subconcessioni | E72: 0.2
C75: Input concessione
C77: Parametri per l'avviamento
C79: Ammissibilità tariffaria dell'avviamento | E79: TRUE
C81: Parametri per ammortamento finanziario
C83: Priorità: ammortamento anticipato | E83: TRUE
C85: CIN ante
C87: Tasso di remunerazione del CIN ante (TIR previgente) | E87: =TIR -> 0.1387
C88: Tasso di remunerazione del CIN post (WACC delibera n. 240/2025 e 241/2025) | E88: =7.51% -> 0.0751
C89: Annualità di durata residua della concessione, dal 1° gennaio 2026 | E89: =ScadenzaConcessione-2026 -> 12
C90: Fattore Theta (del. 241/2025, Misura 35) | E90: =IF(ScadenzaConcessione<=2026+5,1,IF(E87/E88<=1.5,1,E87/E88)) -> 1.846870839
C91: Numero di annualità per il completo consguimento dell'ammortamento del CIN ante dal 2026 | E91: =ROUNDUP(E89/E90,0) -> 7
C92: Annualità di completo recupero del capitale investito in caso di ammortamento anticipato | E92: =2026+(E91) -> 2033
C94: Parametro di riferimento annuo per ammortamento finanziario CIN ante (se quote costanti: inserire per ciascuna annualità lo stesso valore) | H94: 1 | I94: 1 | J94: 1 | K94: 1 | L94: 1 | M94: 1 | N94: 1 | O94: 1 | P94: 1 | Q94: 1 | R94: 1 | S94: 1 | T94: 1
C95: Aliquota di ammortamento annua da applicare al CIN ante residuo per ammortamento finanziario | H95: =IF($E$83,IF(H$24>$E$92,0,H94/SUM(OFFSET(H94,0,0,1,$E$92-H$24+1))),H94/SUM(OFFSET(H94,0,0,1,ScadenzaConcessione-H$24+1))) -> 0.125 | I95: 0.1428571429 | J95: 0.1666666667 | K95: 0.2 | L95: 0.25 | M95: 0.3333333333 | N95: 0.5 | O95: 1 | P95: 0 | Q95: 0 | R95: 0 | S95: 0 | T95: 0
C97: CIN post
C99: Selezione manuale dell'annualità di avvio del recupero del capitale investito | D99: FALSE | E99: 2026
C100: Annualità di avvio del recupero del capitale investito in caso di ammortamento ritardato | E100: =IF(D99,E99,E92+1) -> 2034
C102: Parametro di riferimento annuo per ammortamento finanziario CIN post (se quote costanti: inserire per ciascuna annualità lo stesso valore) | H102: 1 | I102: 1 | J102: 1 | K102: 1 | L102: 1 | M102: 1 | N102: 1 | O102: 1 | P102: 1 | Q102: 1 | R102: 1 | S102: 1 | T102: 1
C103: Aliquota di ammortamento annua da applicare al CIN post residuo per ammortamento finanziario | H103: =IF($E$83,IF(H$24<$E$100,0,H102/SUM(OFFSET(H102,0,0,1,ScadenzaConcessione-H$24+1))),H102/SUM(OFFSET(H102,0,0,1,ScadenzaConcessione-H$24+1))) -> 0 | I103: 0 | J103: 0 | K103: 0 | L103: 0 | M103: 0 | N103: 0 | O103: 0 | P103: 0.2 | Q103: 0.25 | R103: 0.3333333333 | S103: 0.5 | T103: 1
C105: Parametri per dinamica poste figurative
C107: Attivazione deroga su annualità per il completamento del ciclo di recupero CIN ante e CIN pre2026 | E107: FALSE
C108: Numero annualità per il completamento del ciclo di recupero CIN ante e CIN pre2026 | D108: 10 | E108: =IF($E$107,ScadenzaConcessione-AnnoPonte,D108) -> 10
C110: Attivazione deroga su annualità per il completamento del ciclo di recupero CIN post2026 | E110: FALSE
C111: Numero annualità per il completamento del ciclo di recupero CIN post2026 | D111: 15 | E111: =IF($E$110,ScadenzaConcessione-AnnoPonte,D111) -> 15
C113: Fattore di riduzione nel tempo dell’incremento annuo (compreso fra 1,3 e 1,7) | D113: μ | E113: 1.3
C114: Quota di inflazione programmata da utilizzare nel calcolo (compresa fra 50% e 100%) | D114: τ | E114: 1
C116: Eventuale variazione tariffaria nominale bloccata, per ciascuna annualità | H116: 0.015
C118: Tasso di attualizzazione CIN ante | H118: =(H61) -> 0.1387 | I118: 0.1387 | J118: 0.1387 | K118: 0.1387 | L118: 0.1387 | M118: 0.1387 | N118: 0.1387 | O118: 0.1387 | P118: 0.1387 | Q118: 0.1387 | R118: 0.1387 | S118: 0.1387 | T118: 0.1387
C119: Tasso di attualizzazione CIN pre 2026 | H119: =(H62) -> 0.0751 | I119: 0.0751 | J119: 0.0751 | K119: 0.0751 | L119: 0.0751 | M119: 0.0751 | N119: 0.0751 | O119: 0.0751 | P119: 0.0751 | Q119: 0.0751 | R119: 0.0751 | S119: 0.0751 | T119: 0.0751
C120: Tasso di attualizzazione componente ammortamenti CIN post 2026 | H120: =(H62) -> 0.0751 | I120: 0.0751 | J120: 0.0751 | K120: 0.0751 | L120: 0.0751 | M120: 0.0751 | N120: 0.0751 | O120: 0.0751 | P120: 0.0751 | Q120: 0.0751 | R120: 0.0751 | S120: 0.0751 | T120: 0.0751
C121: Tasso di attualizzazione componente remunerazioni CIN post 2026 | H121: =H65 -> 0.0751 | I121: =I65 -> 0.0751 | J121: 0.0751 | K121: 0.0751 | L121: 0.0751 | M121: 0.0751 | N121: 0.0751 | O121: 0.0751 | P121: 0.0751 | Q121: 0.0751 | R121: 0.0751 | S121: 0.0751 | T121: 0.0751
C126: termine foglio di lavoro
E183: 0

Sheet Y0.2.a CoReg DatiTecnici
C2: Contabilità regolatoria - dati tecnici e di traffico
C7: Aree di servizio
C9: Aree di servizio
C10: N. aree di servizio o aree interessate da affidamenti
C11: N. aree di sosta
C12: Carburanti erogati con misurazione a lt (litri/000)
C13: Carburanti erogati con misurazione a kg (kg/000)
C14: Carburanti erogati con misurazione a mc (mc/000)
C15: Erogato ricarica elettrica (Kwh/000)
C16: Fatturato netto carburanti (Euro/000)
C17: Fatturato netto ricarica elettrica (Euro/000)
C18: Fatturato netto ristorazione/bar/market (Euro/000)
C19: Altro fatturato netto (Euro/000)
C21: Personale
C23: Numerosità del personale | D23: I trimestre | E23: II trimestre | F23: III trimestre | G23: IV trimestre
C24: Addetti riscossione
C25: Addetti manutenzione
C26: Addetti sicurezza
C27: Altri addetti operativi
C28: Personale commerciale
C29: Personale amministrativo
C31: Traffico
D33: Ricavi netti da pedaggio per classi tariffarie (in migliaia) | J33: Veicoli-km per classi tariffarie (migliaia)
D34: A | E34: B | F34: 3 | G34: 4 | H34: 5 | I34: Totale | J34: A | K34: B | L34: 3 | M34: 4 | N34: 5 | O34: Totale
C35: Gennaio | I35: =SUM(D35:H35) -> 0 | O35: =SUM(J35:N35) -> 0
C36: Febbraio | I36: =SUM(D36:H36) -> 0 | O36: =SUM(J36:N36) -> 0
C37: Marzo | I37: 0 | O37: 0
C38: Aprile | I38: 0 | O38: 0
C39: Maggio | I39: 0 | O39: 0
C40: Giugno | I40: 0 | O40: 0
C41: Luglio | I41: 0 | O41: 0
C42: Agosto | I42: 0 | O42: 0
C43: Settembre | I43: 0 | O43: 0
C44: Ottobre | I44: 0 | O44: 0
C45: Novembre | I45: 0 | O45: 0
C46: Dicembre | I46: 0 | O46: 0
C47: Totale traffico pagante | D47: =SUM(D35:D46) -> 0 | E47: =SUM(E35:E46) -> 0 | F47: 0 | G47: 0 | H47: 0 | I47: 0 | J47: 0 | K47: 0 | L47: 0 | M47: 0 | N47: 0 | O47: 0
C48: di cui: transiti eccezionali | I48: 0 | O48: =SUM(J48:N48) -> 0
C49: Traffico annuale non pagante
C50: Totale traffico | D50: =D47+D49 -> 0 | E50: =E47+E49 -> 0 | F50: 0 | G50: 0 | H50: 0 | I50: 0
C51: Proventi/indennizzi da transiti eccezionali | O51: =SUM(J51:N51) -> 0
C53: DATI TECNICI
C55: Dati tecnici
C56: Estesa chilometrica a tariffa di pianura
C57: Estesa chilometrica a tariffa di montagna
C58: Km di gallerie (> 100 mt)
C59: Km di ponti e viadotti (>100 mt)
C60: Km di rete a 2 corsie
C61: Km di rete a 3 corsie
C62: Km di rete a 4 o più corsie
C63: Km di corsia di emergenza
C64: Km pedaggiati - sistema aperto
C65: Km pedaggiati - sistema semichiuso
C66: Km pedaggiati - sistema chiuso
C67: IPAV
C68: IS
C69: N. di stazioni di esazione
C70: N. di porte
C71: N. porte manuali
C72: N. di portali free flow
C77: termine foglio di lavoro

Sheet Y0.2.b CoReg SchemiCont AB
C2: Contabilità regolatoria all'Anno base
G4: Allocazione
C5: Voce | D5: Codice Dicoter | E5: Codice | G5: Attività autostradali | H5: di cui: afferenti al CMD | I5: di cui: non ammissibili | J5: di cui: con parti correlate | K5: Attività accessorie | L5: di cui: non ammissibili | M5: di cui: con parti correlate | N5: Attività non pertinenti | P5: Codifica per riconciliazione bilancio regolatorio
C7: Tabella 1 - Conto Finanziario
C9: AREA OPERATIVA
C11: Utile (perdita) d'esercizio | D11: 1.1 | E11: 1.1 | G11: =+G489 -> -37350 | K11: =+K489 -> 635 | N11: =+N489 -> 0
C12: Accantonamenti, ammortamenti e svalutazione delle immobilizzazioni | D12: 1.2 | E12: 1.2 | G12: =SUM(G13:G21) -> 210 | K12: =SUM(K13:K21) -> 50 | N12: =SUM(N13:N21) -> 0
C13: di cui ammortamenti Immobilizzazioni immateriali in beni reversibili | G13: =-SUM(G413:G416) -> 0 | K13: =-SUM(K413:K416) -> 0 | N13: =-SUM(N413:N416) -> 0
C14: di cui ammortamenti Immobilizzazioni immateriali in beni non reversibili | G14: =-G433 -> 0 | K14: =-K433 -> 0 | N14: =-N433 -> 0
C15: di cui ammortamenti Immobilizzazioni materiali in beni reversibili | G15: =-SUM(G421:G424) -> 0 | K15: =-SUM(K421:K424) -> 0 | N15: =-SUM(N421:N424) -> 0
C16: di cui ammortamenti Immobilizzazioni materiali in beni non reversibili | G16: =-G429 -> 210 | K16: =-K429 -> 50 | N16: =-N429 -> 0
C17: di cui accantonamenti al Fondo rinnovo beni reversibili | G17: =-G392 -> 0 | K17: =-K392 -> 0 | N17: =-N392 -> 0
C18: di cui accantonamenti al Fondo per riequilibrio della concessione ex l. 193/2024 | G18: =-G394 -> 0 | K18: =-K394 -> 0 | N18: =-N394 -> 0
C19: di cui accantonamenti al Fondo per impegni previsti in concessione | G19: =-G396 -> 0 | K19: =-K396 -> 0
C20: di cui accantonamenti a Fondi diversi per rischi ed oneri (distintamente documentati) | G20: =-G395 -> 0 | K20: =-K395 -> 0 | N20: =-N395 -> 0
C21: di cui svalutazioni immobilizzazioni | G21: =-SUM(G437:G439) -> 0 | K21: =-SUM(K437:K439) -> 0 | N21: =-SUM(N437:N439) -> 0
C22: Accantonamento Fondo trattamento fine rapporto (TFR) | D22: 1.3 | E22: 1.3
C23: Utilizzo Fondo trattamento fine rapporto | E23: 1.3 bis
C24: Imposte sul reddito d'esercizio | E24: 1.3 ter | G24: =-G482 -> 0 | K24: =-K482 -> 0 | N24: =-N482 -> 0
C25: Imposte effettivamente versate | E25: 1.3 quater
C26: Oneri e proventi finanziari | E26: 1.3 quinquies | G26: =-G476 -> 0 | K26: =-K476 -> 0 | N26: =-N476 -> 0
C27: Svalutazioni / Ripristini | E27: 1.3 sexies | G27: =-G401 -> 0 | K27: =-K401 -> 0 | N27: =-N401 -> 0
C28: Autofinanziamento | D28: 1.4 | E28: 1.4 | G28: =+G11+G12+SUM(G22:G27) -> -37140 | K28: =+K11+K12+SUM(K22:K27) -> 685 | N28: =+N11+N12+SUM(N22:N27) -> 0
C30: Variazioni capitale circolante netto operativo | D30: 1.5 | E30: 1.5 | G30: =SUM(G31:G41) -> 0 | K30: =SUM(K31:K41) -> 0 | N30: =SUM(N31:N41) -> 0
C31: di cui variazione crediti su ricavi tariffari da pedaggio
C32: di cui variazione crediti da interconnessione
C33: di cui variazione altri crediti operativi
C34: di cui variazione rimanenze
C35: di cui variazione ratei e risconti attivi/passivi operativi
C36: di cui variazione debiti verso fornitori
C37: di cui variazione debiti da interconnessione
C38: di cui variazione altri debiti operativi
C39: di cui crediti/debiti tributari
C40: di cui crediti/debiti per imposte anticipate/differite
C41: di cui altre variazioni del CCN operativo (distintamente documentate)
C42: Flusso di liquidità della gestione corrente | D42: 1.6 | E42: 1.6 | G42: =+G28+G30 -> -37140 | K42: =+K28+K30 -> 685 | N42: =+N28+N30 -> 0
C44: Costi capitalizzati | D44: 1.7 | E44: 1.7 | G44: =+G380+G382+G385+G474+G383+G384 -> 0 | K44: =+K380+K382+K385+K474+K383+K384 -> 0 | N44: =+N380+N382+N385+N474+N383+N384 -> 0
C45: Investimenti in beni reversibili (immobilizzazioni immateriali) | D45: 1.8 | E45: 1.8
C46: Investimenti in beni reversibili (immobilizzazioni materiali) | E46: 1.8bis
C47: Disinvestimenti su beni reversibili (immobilizzazioni immateriali) | E47: 1.8 ter
C48: Disinvestimenti su beni reversibili (immobilizzazioni materiali) | E48: 1.8 quater
C49: Contributi relativi a beni reversibili | D49: 1.9 | E49: 1.9
C50: Variazione risconti pluriennali su contributi in conto capitale - conto impianti | E50: 1.9 bis
C51: Investimenti in beni non reversibili (immobilizzazioni materiali) | D51: 1.10 | E51: 1.10
C52: Investimenti in beni non reversibili (immmobilizzazioni immateriali) | D52: 1.11 | E52: 1.11
C53: Incasso valore di subentro | E53: 1.11 bis
C54: Saldo altri flussi gestione operativa | D54: 1.12 | E54: 1.12
C55: di cui utilizzo Fondo rinnovo beni reversibili
C56: di cui utilizzo Fondo per il riequilibrio ex l.193/2024
C57: di cui utilizzo Fondo per impegni previsti in concessione
C58: di cui utilizzo Fondi diversi per rischi ed oneri (distintamente documentati)
C59: Flusso di liquidità della gestione operativa | D59: 1.13 | E59: 1.13 | G59: =+SUM(G42:G54) -> -37140 | K59: =+SUM(K42:K54) -> 685 | N59: =+SUM(N42:N54) -> 0
C61: AREA FINANZIARIA
C63: Apporto degli azionisti a titolo di capitale di rischio | D63: 1.14 | E63: 1.14
C64: Apporto degli azionisti a titolo di debito subordinato | E64: 1.14 bis
C65: Erogazione finanziamenti | D65: 1.15+(1.16+1.17) | E65: 1.15 | G65: =SUM(G66:G78) -> 0 | K65: =SUM(K66:K78) -> 0 | N65: =SUM(N66:N78) -> 0
C66: Obbligazioni
C67: Obbligazioni convertibili
C68: Debiti verso soci per finanziamenti (non subordinati)
C69: Debiti per interessi su finanziamenti soci (non subordinati)
C70: Debiti verso banche
C71: Debiti verso altri finanziatori
C72: Debiti finanziari verso parti correlate
C73: Debiti infruttiferi (escluso FCG)
C74: Debiti infruttiferi verso FCG e simili
C75: Debiti finanziari verso ANAS
C76: Prestiti IVA
C77: Debiti finanziari a breve termine
C78: Altri debiti (distintamente documentati)
C79: Rimborso finanziamenti | D79: 1.20+1.21+(1.16+1.17) | E79: 1.16 | G79: =SUM(G80:G92) -> 0 | K79: =SUM(K80:K92) -> 0 | N79: =SUM(N80:N92) -> 0
C80: Obbligazioni
C81: Obbligazioni convertibili
C82: Debiti verso soci per finanziamenti (non subordinati)
C83: Debiti per interessi su finanziamenti soci (non subordinati)
C84: Debiti verso banche
C85: Debiti verso altri finanziatori
C86: Debiti finanziari verso parti correlate
C87: Debiti infruttiferi (escluso FCG)
C88: Debiti infruttiferi verso FCG e simili
C89: Debiti finanziari verso ANAS
C90: Prestiti IVA
C91: Debiti finanziari a breve termine
C92: Altri debiti (distintamente documentati)
C93: Saldo proventi (oneri) finanziari netti da finanziamenti | E93: 1.17
C94: Variazione delle immob. finanziarie | D94: 1.18 | E94: 1.18 | G94: =+G95+G96 -> 0 | K94: =+K95+K96 -> 0 | N94: =+N95+N96 -> 0
C95: Investimenti in immobilizzazioni finanziarie
C96: Disinvestimenti in immobilizzazioni finanziarie
C97: Saldo proventi (oneri) netti da immobilizzazioni finanziarie | E97: 1.18 bis
C98: Altri proventi (oneri) finanziari netti | E98: 1.18 ter
C99: Rimborso debito subordinato azionisti | E99: 1.18 quater
C100: Utili distribuiti | D100: 1.19 | E100: 1.19
C101: Altre variazioni relative al Patrimonio Netto (distintamente documentate) | E101: 1.19 bis
C102: Flusso di liquidità della gestione finanziaria | D102: 1.22 | E102: 1.22 | G102: =G101+G100+G99+G98+G97+G94+G93+G79+G65+G64+G63 -> 0 | K102: =K101+K100+K99+K98+K97+K94+K93+K79+K65+K64+K63 -> 0 | N102: =N101+N100+N99+N98+N97+N94+N93+N79+N65+N64+N63 -> 0
C104: Variazione delle disponibilità liquide | D104: 1.23 | E104: 1.23 | G104: =+G59+G102 -> -37140 | K104: =+K59+K102 -> 685 | N104: =+N59+N102 -> 0
C108: Tabella 2 - Conto Economico
C110: RICAVI
C112: Ricavi da pedaggio | D112: 2.1 | E112: 2.1 | G112: =+G113 -> 0
C113: Proventi lordi da transiti ordinari | G113: =+G114+G140 -> 0
C114: di cui: annualità in corso | G114: =+G115+G120+G125+G130+G135 -> 0
C115: di cui: classe A | P115: A1 - Ricavi delle vendite e delle prestazioni
C116: di cui: canone concessionale (2.4%) - classe A
C117: di cui: quota tariffaria retrocessa per sovracanone ANAS
C118: di cui: mancati pagamenti annualità in corso
C119: di cui: quota tariffaria retrocessa per sconti
C120: di cui: classe B | P120: A1 - Ricavi delle vendite e delle prestazioni
C121: di cui: canone concessionale (2.4%) - classe B
C122: di cui: quota tariffaria retrocessa per sovracanone ANAS
C123: di cui: mancati pagamenti annualità in corso
C124: di cui: quota tariffaria retrocessa per sconti
C125: di cui: classe 3 | P125: A1 - Ricavi delle vendite e delle prestazioni
C126: di cui: canone concessionale (2.4%) - classe 3
C127: di cui: quota tariffaria retrocessa per sovracanone ANAS
C128: di cui: mancati pagamenti annualità in corso
C129: di cui: quota tariffaria retrocessa per sconti
C130: di cui: classe 4 | P130: A1 - Ricavi delle vendite e delle prestazioni
C131: di cui: canone concessionale (2.4%) - classe 4
C132: di cui: quota tariffaria retrocessa per sovracanone ANAS
C133: di cui: mancati pagamenti annualità in corso
C134: di cui: quota tariffaria retrocessa per sconti
C135: di cui: classe 5 | P135: A1 - Ricavi delle vendite e delle prestazioni
C136: di cui: canone concessionale (2.4%) - classe 5
C137: di cui: quota tariffaria retrocessa per sovracanone ANAS
C138: di cui: mancati pagamenti annualità in corso
C139: di cui: quota tariffaria retrocessa per sconti
C140: di cui: recupero di mancati pagameni annualità precedenti | G140: =+G141+G144+G147+G150+G153+G156 -> 0
C141: di cui: classe A | P141: A1 - Ricavi delle vendite e delle prestazioni
C142: di cui: canone concessionale (2.4%) - classe A
C143: di cui: quota tariffaria retrocessa per sovracanone ANAS
C144: di cui: classe B | P144: A1 - Ricavi delle vendite e delle prestazioni
C145: di cui: canone concessionale (2.4%) - classe A
C146: di cui: quota tariffaria retrocessa per sovracanone ANAS
C147: di cui: classe 3 | P147: A1 - Ricavi delle vendite e delle prestazioni
C148: di cui: canone concessionale (2.4%) - classe A
C149: di cui: quota tariffaria retrocessa per sovracanone ANAS
C150: di cui: classe 4 | P150: A1 - Ricavi delle vendite e delle prestazioni
C151: di cui: canone concessionale (2.4%) - classe A
C152: di cui: quota tariffaria retrocessa per sovracanone ANAS
C153: di cui: classe 5 | P153: A1 - Ricavi delle vendite e delle prestazioni
C154: di cui: canone concessionale (2.4%) - classe A
C155: di cui: quota tariffaria retrocessa per sovracanone ANAS
C156: di cui: quota tariffaria retrocessa per sconti
C157: Proventi da subconcessioni e attività collaterali | D157: 2.2 | E157: 2.2 | K157: =+K158+K167 -> 850
C158: Aree di servizio | K158: =+SUM(K159:K166) -> 850 | P158: A5 - Altri ricavi e proventi (escluse le plusvalenze da alienazioni e/o realizzi)
C159: Royalties nette carburanti | K159: 850
C160: Royalties nette ricarica elettrica
C161: Royalties nette ristorazione
C162: Royalties nette bar
C163: Royalties nette market
C164: Royalties nette attività ricezione
C165: Royalties nette altri
C166: Canone di subconcessione aree di servizio
C167: Altri (distinatmente documentati) | P167: A5 - Altri ricavi e proventi (escluse le plusvalenze da alienazioni e/o realizzi)
C168: di cui: canone di subconcessione
C169: Altri proventi | D169: 2.3 | E169: 2.3 | G169: =SUM(G170:G181) -> 0 | H169: 0 | I169: 0 | J169: 0 | K169: 0 | L169: 0 | M169: 0 | N169: 0
C170: Recupero oneri di esazione | P170: A5 - Altri ricavi e proventi (escluse le plusvalenze da alienazioni e/o realizzi)
C171: Proventi da interconnessione | P171: A5 - Altri ricavi e proventi (escluse le plusvalenze da alienazioni e/o realizzi)
C172: Proventi/Indennizzi da transiti eccezionali | P172: A5 - Altri ricavi e proventi (escluse le plusvalenze da alienazioni e/o realizzi)
C173: Rilasci Fondi (distintamente documentati) | P173: A5 - Altri ricavi e proventi (escluse le plusvalenze da alienazioni e/o realizzi)
C174: Rimborsi diversi | P174: A5 - Altri ricavi e proventi (escluse le plusvalenze da alienazioni e/o realizzi)
C175: Contributi in conto esercizio | P175: A5 - Altri ricavi e proventi (escluse le plusvalenze da alienazioni e/o realizzi)
C176: Rilascio risconti contributi in c/capitale e c/impianti | P176: A5 - Altri ricavi e proventi (escluse le plusvalenze da alienazioni e/o realizzi)
C177: Risarcimento danni | P177: A5 - Altri ricavi e proventi (escluse le plusvalenze da alienazioni e/o realizzi)
C178: Variazione dei lavori in corso su ordinazione | P178: A3 - Variazione dei lavori in corso su ordinazione
C179: Incrementi di immobilizzazioni per lavori interni | P179: A4 - Incrementi di immobilizzazioni per lavori interni
C180: Defiscalizzazioni IVA | P180: A5 - Altri ricavi e proventi (escluse le plusvalenze da alienazioni e/o realizzi)
C181: Altri proventi (distinatmente documentati) | P181: A5 - Altri ricavi e proventi (escluse le plusvalenze da alienazioni e/o realizzi)
C182: Variazione delle rimanenze di prodotti in corso di lavorazione, semilavorati e finiti | E182: 2.3 bis | P182: A2 - Variazione delle rimanenze in corso di lavorazione, semilavorati e finiti
C183: Ricavi lavori conto terzi | D183: 2.4 | E183: 2.4 | P183: A5 - Altri ricavi e proventi (escluse le plusvalenze da alienazioni e/o realizzi)
C185: Totale Ricavi | D185: 2.5 | E185: 2.5 | G185: =+G112+G157+G169++G182+G183 -> 0 | H185: 0 | I185: 0 | J185: 0 | K185: 850 | L185: 0 | M185: 0 | N185: 0
C187: COSTI OPERATIVI
C189: Costo di produzione
C191: Costo personale addetto alla riscossione | D191: 2.6.1 | E191: 2.6.1 | G191: =SUM(G192:G197) -> -37640 | H191: =SUM(H192:H197) -> 0 | I191: =SUM(I192:I197) -> 0 | J191: =SUM(J192:J197) -> 0 | P191: B9 - Per il Personale
C192: Salari e stipendi | G192: -37640
C193: Oneri sociali
C194: Trattamento di fine rapporto
C195: Trattamento di quiescenza e simili
C196: Indennità di prepensionamento, incentivazione all'esodo e simili
C197: Altri costi
C198: Costo personale addetto alla sicurezza | D198: 2.6.2 | E198: 2.6.2 | G198: =SUM(G199:G204) -> 0 | H198: =SUM(H199:H204) -> 0 | I198: =SUM(I199:I204) -> 0 | J198: =SUM(J199:J204) -> 0 | P198: B9 - Per il Personale
C199: Salari e stipendi
C200: Oneri sociali
C201: Trattamento di fine rapporto
C202: Trattamento di quiescenza e simili
C203: Indennità di prepensionamento, incentivazione all'esodo e simili
C204: Altri costi
C205: Costo personale addetto alla manutenzione | D205: 2.6.3 | E205: 2.6.3 | G205: =SUM(G206:G211) -> 0 | H205: =SUM(H206:H211) -> 0 | I205: =SUM(I206:I211) -> 0 | J205: =SUM(J206:J211) -> 0 | P205: B9 - Per il Personale
C206: Salari e stipendi
C207: Oneri sociali
C208: Trattamento di fine rapporto
C209: Trattamento di quiescenza e simili
C210: Indennità di prepensionamento, incentivazione all'esodo e simili
C211: Altri costi
C212: Costo personale addetto ad altro | D212: 2.6.4 | E212: 2.6.4 | G212: =SUM(G213:G218) -> 0 | H212: =SUM(H213:H218) -> 0 | I212: =SUM(I213:I218) -> 0 | J212: =SUM(J213:J218) -> 0 | K212: -165 | P212: B9 - Per il Personale
C213: Salari e stipendi
C214: Oneri sociali
C215: Trattamento di fine rapporto
C216: Trattamento di quiescenza e simili
C217: Indennità di prepensionamento, incentivazione all'esodo e simili
C218: Altri costi
C219: Manutenzione ordinaria beni reversibili | D219: 2.7 | E219: 2.7 | G219: =+G220+G226+G232+G238+G244+G250+G256+G262+G268+G274 -> 0 | H219: =+H220+H226+H232+H238+H244+H250+H256+H262+H268+H274 -> 0 | I219: 0 | J219: 0
... 371 more rows

Sheet Y0.3 PrevisioniTraffico
C2: Previsioni di traffico
C4: Anno | E4: 2024 | F4: 2025 | G4: 2026 | H4: 2027 | I4: 2028 | J4: 2029 | K4: 2030 | L4: 2031 | M4: 2032 | N4: 2033 | O4: 2034 | P4: 2035 | Q4: 2036 | R4: 2037 | S4: 2038
C6: Anno base | E6: 1 | F6: 0 | G6: 0 | H6: 0 | I6: 1 | J6: 0 | K6: 0 | L6: 0 | M6: 0 | N6: 1 | O6: 0 | P6: 0 | Q6: 0 | R6: 0 | S6: 0
C7: Anno ponte | E7: 0 | F7: 1 | G7: 0 | H7: 0 | I7: 0 | J7: 1 | K7: 0 | L7: 0 | M7: 0 | N7: 0 | O7: 1 | P7: 0 | Q7: 0 | R7: 0 | S7: 0
C8: Periodo regolatorio | E8: 0 | F8: 0 | G8: 1 | H8: 1 | I8: 1 | J8: 1 | K8: 2 | L8: 2 | M8: 2 | N8: 2 | O8: 2 | P8: 3 | Q8: 3 | R8: 3 | S8: 3
C9: Anno del periodo regolatorio | E9: 0 | F9: 0 | G9: 1 | H9: 2 | I9: 3 | J9: 4 | K9: 1 | L9: 2 | M9: 3 | N9: 4 | O9: 5 | P9: 1 | Q9: 2 | R9: 3 | S9: 4
C10: Frazione di anno significativa | G10: 1 | H10: 1 | I10: 1 | J10: 1 | K10: 1 | L10: 1 | M10: 1 | N10: 1 | O10: 1 | P10: 1 | Q10: 1 | R10: 1 | S10: 1
F12: Ultimo adattamento schema: 31/10/2025 17:44:57
C14: Previsioni di traffico
C16: (nel caso di ulteriore o differente disaggregazione, si prega di documentare distintamente i valori assunti, mediante specifici fogli di lavoro di supporto)
E18: =IF(E$4=AnnoPonte,"Preconsuntivo",IF(E$4>AnnoPonte,"Preventivo","Consuntivo")) -> Consuntivo | F18: Preconsuntivo | G18: Preventivo | H18: Preventivo | I18: Preventivo | J18: Preventivo | K18: Preventivo | L18: Preventivo | M18: Preventivo | N18: Preventivo | O18: Preventivo | P18: Preventivo | Q18: Preventivo | R18: Preventivo | S18: Preventivo
C20: Volumi di traffico annui
C22: (tipologia di rete #1)
C23: Classe
C24: A | E24: =IFERROR(INDEX('Y0.5 PR Pregressi'!118:118,MATCH(E$4,'Y0.5 PR Pregressi'!$4:$4,0)),"") -> 652286.2923 | F24: =IFERROR(INDEX('Y0.5 PR Pregressi'!118:118,MATCH(F$4,'Y0.5 PR Pregressi'!$4:$4,0)),"") -> 655547.7237 | G24: =F24*1.005 -> 658825.4624 | H24: =G24*1.005 -> 662119.5897 | I24: 665430.1876 | J24: 668757.3386 | K24: 672101.1252 | L24: 675461.6309 | M24: 678838.939 | N24: 682233.1337 | O24: 685644.2994 | P24: 689072.5209 | Q24: 692517.8835 | R24: 695980.4729 | S24: 699460.3753
C25: B | E25: =IFERROR(INDEX('Y0.5 PR Pregressi'!119:119,MATCH(E$4,'Y0.5 PR Pregressi'!$4:$4,0)),"") -> 104693.4538 | F25: =IFERROR(INDEX('Y0.5 PR Pregressi'!119:119,MATCH(F$4,'Y0.5 PR Pregressi'!$4:$4,0)),"") -> 105216.9211 | G25: =F25*1.005 -> 105743.0057 | H25: 106271.7207 | I25: 106803.0793 | J25: 107337.0947 | K25: 107873.7802 | L25: 108413.1491 | M25: 108955.2148 | N25: 109499.9909 | O25: 110047.4908 | P25: 110597.7283 | Q25: 111150.7169 | R25: 111706.4705 | S25: 112265.0029
C26: 3 | E26: =IFERROR(INDEX('Y0.5 PR Pregressi'!120:120,MATCH(E$4,'Y0.5 PR Pregressi'!$4:$4,0)),"") -> 20337.46545 | F26: =IFERROR(INDEX('Y0.5 PR Pregressi'!120:120,MATCH(F$4,'Y0.5 PR Pregressi'!$4:$4,0)),"") -> 20439.15278 | G26: =F26*1.005 -> 20541.34854 | H26: 20644.05529 | I26: 20747.27556 | J26: 20851.01194 | K26: 20955.267 | L26: 21060.04334 | M26: 21165.34355 | N26: 21271.17027 | O26: 21377.52612 | P26: 21484.41375 | Q26: 21591.83582 | R26: 21699.795 | S26: 21808.29398
C27: 4 | E27: =IFERROR(INDEX('Y0.5 PR Pregressi'!121:121,MATCH(E$4,'Y0.5 PR Pregressi'!$4:$4,0)),"") -> 16141.15227 | F27: =IFERROR(INDEX('Y0.5 PR Pregressi'!121:121,MATCH(F$4,'Y0.5 PR Pregressi'!$4:$4,0)),"") -> 16221.85803 | G27: =F27*1.005 -> 16302.96732 | H27: 16384.48215 | I27: 16466.40457 | J27: 16548.73659 | K27: 16631.48027 | L27: 16714.63767 | M27: 16798.21086 | N27: 16882.20191 | O27: 16966.61292 | P27: 17051.44599 | Q27: 17136.70322 | R27: 17222.38674 | S27: 17308.49867
C28: 5 | E28: =IFERROR(INDEX('Y0.5 PR Pregressi'!122:122,MATCH(E$4,'Y0.5 PR Pregressi'!$4:$4,0)),"") -> 230156.0547 | F28: =IFERROR(INDEX('Y0.5 PR Pregressi'!122:122,MATCH(F$4,'Y0.5 PR Pregressi'!$4:$4,0)),"") -> 231306.8349 | G28: =F28*1.005 -> 232463.3691 | H28: 233625.686 | I28: 234793.8144 | J28: 235967.7835 | K28: 237147.6224 | L28: 238333.3605 | M28: 239525.0273 | N28: 240722.6524 | O28: 241926.2657 | P28: 243135.897 | Q28: 244351.5765 | R28: 245573.3344 | S28: 246801.2011
C29: Sub totale leggeri | E29: =SUM(E24) -> 652286.2923 | F29: =SUM(F24) -> 655547.7237 | G29: 658825.4624 | H29: =SUM(H24) -> 662119.5897 | I29: 665430.1876 | J29: 668757.3386 | K29: 672101.1252 | L29: 675461.6309 | M29: 678838.939 | N29: 682233.1337 | O29: 685644.2994 | P29: 689072.5209 | Q29: 692517.8835 | R29: 695980.4729 | S29: 699460.3753
C30: Sub totale pesanti | E30: =+SUM(E25:E28) -> 371328.1262 | F30: 373184.7668 | G30: 375050.6906 | H30: =+SUM(H25:H28) -> 376925.9441 | I30: 378810.5738 | J30: 380704.6267 | K30: 382608.1498 | L30: 384521.1906 | M30: 386443.7965 | N30: 388376.0155 | O30: 390317.8956 | P30: 392269.485 | Q30: 394230.8325 | R30: 396201.9866 | S30: 398182.9966
C31: Totale | E31: =SUM(E24:E28) -> 1023614.418 | F31: 1028732.491 | G31: 1033876.153 | H31: =SUM(H24:H28) -> 1039045.534 | I31: 1044240.761 | J31: 1049461.965 | K31: 1054709.275 | L31: 1059982.821 | M31: 1065282.736 | N31: 1070609.149 | O31: 1075962.195 | P31: 1081342.006 | Q31: 1086748.716 | R31: 1092182.46 | S31: 1097643.372
C33: (tipologia di rete #2)
C34: Classe
C35: A | E35: =IFERROR(INDEX('Y0.5 PR Pregressi'!129:129,MATCH(E$4,'Y0.5 PR Pregressi'!$4:$4,0)),"") -> 9606.958087 | F35: =IFERROR(INDEX('Y0.5 PR Pregressi'!129:129,MATCH(F$4,'Y0.5 PR Pregressi'!$4:$4,0)),"") -> 9654.992878 | G35: =F35*1.005 -> 9703.267842 | H35: =G35*1.005 -> 9751.784181 | I35: 9800.543102 | J35: 9849.545818 | K35: 9898.793547 | L35: 9948.287514 | M35: 9998.028952 | N35: 10048.0191 | O35: 10098.25919 | P35: 10148.75049 | Q35: 10199.49424 | R35: 10250.49171 | S35: 10301.74417
C36: B | E36: =IFERROR(INDEX('Y0.5 PR Pregressi'!130:130,MATCH(E$4,'Y0.5 PR Pregressi'!$4:$4,0)),"") -> 2200.923061 | F36: =IFERROR(INDEX('Y0.5 PR Pregressi'!130:130,MATCH(F$4,'Y0.5 PR Pregressi'!$4:$4,0)),"") -> 2211.927676 | G36: =F36*1.005 -> 2222.987315 | H36: 2234.102251 | I36: 2245.272762 | J36: 2256.499126 | K36: 2267.781622 | L36: 2279.12053 | M36: 2290.516133 | N36: 2301.968713 | O36: 2313.478557 | P36: 2325.04595 | Q36: 2336.671179 | R36: 2348.354535 | S36: 2360.096308
C37: 3 | E37: =IFERROR(INDEX('Y0.5 PR Pregressi'!131:131,MATCH(E$4,'Y0.5 PR Pregressi'!$4:$4,0)),"") -> 368.6398106 | F37: =IFERROR(INDEX('Y0.5 PR Pregressi'!131:131,MATCH(F$4,'Y0.5 PR Pregressi'!$4:$4,0)),"") -> 370.4830097 | G37: =F37*1.005 -> 372.3354247 | H37: 374.1971018 | I37: 376.0680874 | J37: 377.9484278 | K37: 379.8381699 | L37: 381.7373608 | M37: 383.6460476 | N37: 385.5642778 | O37: 387.4920992 | P37: 389.4295597 | Q37: 391.3767075 | R37: 393.333591 | S37: 395.300259
C38: 4 | E38: =IFERROR(INDEX('Y0.5 PR Pregressi'!132:132,MATCH(E$4,'Y0.5 PR Pregressi'!$4:$4,0)),"") -> 247.8760679 | F38: =IFERROR(INDEX('Y0.5 PR Pregressi'!132:132,MATCH(F$4,'Y0.5 PR Pregressi'!$4:$4,0)),"") -> 249.1154482 | G38: =F38*1.005 -> 250.3610254 | H38: 251.6128306 | I38: 252.8708947 | J38: 254.1352492 | K38: 255.4059254 | L38: 256.6829551 | M38: 257.9663698 | N38: 259.2562017 | O38: 260.5524827 | P38: 261.8552451 | Q38: 263.1645213 | R38: 264.4803439 | S38: 265.8027457
C39: 5 | E39: =IFERROR(INDEX('Y0.5 PR Pregressi'!133:133,MATCH(E$4,'Y0.5 PR Pregressi'!$4:$4,0)),"") -> 3109.881463 | F39: =IFERROR(INDEX('Y0.5 PR Pregressi'!133:133,MATCH(F$4,'Y0.5 PR Pregressi'!$4:$4,0)),"") -> 3125.43087 | G39: =F39*1.005 -> 3141.058025 | H39: 3156.763315 | I39: 3172.547132 | J39: 3188.409867 | K39: 3204.351917 | L39: 3220.373676 | M39: 3236.475544 | N39: 3252.657922 | O39: 3268.921212 | P39: 3285.265818 | Q39: 3301.692147 | R39: 3318.200608 | S39: 3334.791611
C40: Sub totale leggeri | E40: =SUM(E35) -> 9606.958087 | F40: =SUM(F35) -> 9654.992878 | G40: 9703.267842 | H40: =SUM(H35) -> 9751.784181 | I40: 9800.543102 | J40: 9849.545818 | K40: 9898.793547 | L40: 9948.287514 | M40: 9998.028952 | N40: 10048.0191 | O40: 10098.25919 | P40: 10148.75049 | Q40: 10199.49424 | R40: 10250.49171 | S40: 10301.74417
C41: Sub totale pesanti | E41: =+SUM(E36:E39) -> 5927.320403 | F41: 5956.957005 | G41: 5986.74179 | H41: =+SUM(H36:H39) -> 6016.675499 | I41: 6046.758876 | J41: 6076.99267 | K41: 6107.377634 | L41: 6137.914522 | M41: 6168.604095 | N41: 6199.447115 | O41: 6230.444351 | P41: 6261.596572 | Q41: 6292.904555 | R41: 6324.369078 | S41: 6355.990923
C42: Totale | E42: =SUM(E35:E39) -> 15534.27849 | F42: 15611.94988 | G42: 15690.00963 | H42: =SUM(H35:H39) -> 15768.45968 | I42: 15847.30198 | J42: 15926.53849 | K42: 16006.17118 | L42: 16086.20204 | M42: 16166.63305 | N42: 16247.46621 | O42: 16328.70354 | P42: 16410.34706 | Q42: 16492.3988 | R42: 16574.86079 | S42: 16657.73509
C44: (tipologia di rete #3)
C45: Classe
C46: A | E46: =IFERROR(INDEX('Y0.5 PR Pregressi'!140:140,MATCH(E$4,'Y0.5 PR Pregressi'!$4:$4,0)),"") -> 0 | F46: =IFERROR(INDEX('Y0.5 PR Pregressi'!140:140,MATCH(F$4,'Y0.5 PR Pregressi'!$4:$4,0)),"") -> 0 | G46: 0 | H46: 0 | I46: 0 | J46: 0 | K46: 0 | L46: 0 | M46: 0 | N46: 0 | O46: 0 | P46: 0 | Q46: 0 | R46: 0 | S46: 0
C47: B | E47: =IFERROR(INDEX('Y0.5 PR Pregressi'!141:141,MATCH(E$4,'Y0.5 PR Pregressi'!$4:$4,0)),"") -> 0 | F47: =IFERROR(INDEX('Y0.5 PR Pregressi'!141:141,MATCH(F$4,'Y0.5 PR Pregressi'!$4:$4,0)),"") -> 0 | G47: 0 | H47: 0 | I47: 0 | J47: 0 | K47: 0 | L47: 0 | M47: 0 | N47: 0 | O47: 0 | P47: 0 | Q47: 0 | R47: 0 | S47: 0
C48: 3 | E48: =IFERROR(INDEX('Y0.5 PR Pregressi'!142:142,MATCH(E$4,'Y0.5 PR Pregressi'!$4:$4,0)),"") -> 0 | F48: =IFERROR(INDEX('Y0.5 PR Pregressi'!142:142,MATCH(F$4,'Y0.5 PR Pregressi'!$4:$4,0)),"") -> 0 | G48: 0 | H48: 0 | I48: 0 | J48: 0 | K48: 0 | L48: 0 | M48: 0 | N48: 0 | O48: 0 | P48: 0 | Q48: 0 | R48: 0 | S48: 0
C49: 4 | E49: =IFERROR(INDEX('Y0.5 PR Pregressi'!143:143,MATCH(E$4,'Y0.5 PR Pregressi'!$4:$4,0)),"") -> 0 | F49: =IFERROR(INDEX('Y0.5 PR Pregressi'!143:143,MATCH(F$4,'Y0.5 PR Pregressi'!$4:$4,0)),"") -> 0 | G49: 0 | H49: 0 | I49: 0 | J49: 0 | K49: 0 | L49: 0 | M49: 0 | N49: 0 | O49: 0 | P49: 0 | Q49: 0 | R49: 0 | S49: 0
C50: 5 | E50: =IFERROR(INDEX('Y0.5 PR Pregressi'!144:144,MATCH(E$4,'Y0.5 PR Pregressi'!$4:$4,0)),"") -> 0 | F50: =IFERROR(INDEX('Y0.5 PR Pregressi'!144:144,MATCH(F$4,'Y0.5 PR Pregressi'!$4:$4,0)),"") -> 0 | G50: 0 | H50: 0 | I50: 0 | J50: 0 | K50: 0 | L50: 0 | M50: 0 | N50: 0 | O50: 0 | P50: 0 | Q50: 0 | R50: 0 | S50: 0
C51: Sub totale leggeri | E51: =SUM(E46) -> 0 | F51: =SUM(F46) -> 0 | G51: 0 | H51: =SUM(H46) -> 0 | I51: 0 | J51: 0 | K51: 0 | L51: 0 | M51: 0 | N51: 0 | O51: 0 | P51: 0 | Q51: 0 | R51: 0 | S51: 0
C52: Sub totale pesanti | E52: =+SUM(E47:E50) -> 0 | F52: 0 | G52: 0 | H52: =+SUM(H47:H50) -> 0 | I52: 0 | J52: 0 | K52: 0 | L52: 0 | M52: 0 | N52: 0 | O52: 0 | P52: 0 | Q52: 0 | R52: 0 | S52: 0
C53: Totale | E53: =SUM(E46:E50) -> 0 | F53: 0 | G53: 0 | H53: =SUM(H46:H50) -> 0 | I53: 0 | J53: 0 | K53: 0 | L53: 0 | M53: 0 | N53: 0 | O53: 0 | P53: 0 | Q53: 0 | R53: 0 | S53: 0
C55: (tipologia di rete #4)
C56: Classe
C57: A | E57: =IFERROR(INDEX('Y0.5 PR Pregressi'!151:151,MATCH(E$4,'Y0.5 PR Pregressi'!$4:$4,0)),"") -> 0 | F57: =IFERROR(INDEX('Y0.5 PR Pregressi'!151:151,MATCH(F$4,'Y0.5 PR Pregressi'!$4:$4,0)),"") -> 0 | G57: 0 | H57: 0 | I57: 0 | J57: 0 | K57: 0 | L57: 0 | M57: 0 | N57: 0 | O57: 0 | P57: 0 | Q57: 0 | R57: 0 | S57: 0
C58: B | E58: =IFERROR(INDEX('Y0.5 PR Pregressi'!152:152,MATCH(E$4,'Y0.5 PR Pregressi'!$4:$4,0)),"") -> 0 | F58: =IFERROR(INDEX('Y0.5 PR Pregressi'!152:152,MATCH(F$4,'Y0.5 PR Pregressi'!$4:$4,0)),"") -> 0 | G58: 0 | H58: 0 | I58: 0 | J58: 0 | K58: 0 | L58: 0 | M58: 0 | N58: 0 | O58: 0 | P58: 0 | Q58: 0 | R58: 0 | S58: 0
C59: 3 | E59: =IFERROR(INDEX('Y0.5 PR Pregressi'!153:153,MATCH(E$4,'Y0.5 PR Pregressi'!$4:$4,0)),"") -> 0 | F59: =IFERROR(INDEX('Y0.5 PR Pregressi'!153:153,MATCH(F$4,'Y0.5 PR Pregressi'!$4:$4,0)),"") -> 0 | G59: 0 | H59: 0 | I59: 0 | J59: 0 | K59: 0 | L59: 0 | M59: 0 | N59: 0 | O59: 0 | P59: 0 | Q59: 0 | R59: 0 | S59: 0
C60: 4 | E60: =IFERROR(INDEX('Y0.5 PR Pregressi'!154:154,MATCH(E$4,'Y0.5 PR Pregressi'!$4:$4,0)),"") -> 0 | F60: =IFERROR(INDEX('Y0.5 PR Pregressi'!154:154,MATCH(F$4,'Y0.5 PR Pregressi'!$4:$4,0)),"") -> 0 | G60: 0 | H60: 0 | I60: 0 | J60: 0 | K60: 0 | L60: 0 | M60: 0 | N60: 0 | O60: 0 | P60: 0 | Q60: 0 | R60: 0 | S60: 0
C61: 5 | E61: =IFERROR(INDEX('Y0.5 PR Pregressi'!155:155,MATCH(E$4,'Y0.5 PR Pregressi'!$4:$4,0)),"") -> 0 | F61: =IFERROR(INDEX('Y0.5 PR Pregressi'!155:155,MATCH(F$4,'Y0.5 PR Pregressi'!$4:$4,0)),"") -> 0 | G61: 0 | H61: 0 | I61: 0 | J61: 0 | K61: 0 | L61: 0 | M61: 0 | N61: 0 | O61: 0 | P61: 0 | Q61: 0 | R61: 0 | S61: 0
C62: Sub totale leggeri | E62: =SUM(E57) -> 0 | F62: =SUM(F57) -> 0 | G62: 0 | H62: =SUM(H57) -> 0 | I62: 0 | J62: 0 | K62: 0 | L62: 0 | M62: 0 | N62: 0 | O62: 0 | P62: 0 | Q62: 0 | R62: 0 | S62: 0
C63: Sub totale pesanti | E63: =+SUM(E58:E61) -> 0 | F63: 0 | G63: 0 | H63: =+SUM(H58:H61) -> 0 | I63: 0 | J63: 0 | K63: 0 | L63: 0 | M63: 0 | N63: 0 | O63: 0 | P63: 0 | Q63: 0 | R63: 0 | S63: 0
C64: Totale | E64: =SUM(E57:E61) -> 0 | F64: 0 | G64: 0 | H64: =SUM(H57:H61) -> 0 | I64: 0 | J64: 0 | K64: 0 | L64: 0 | M64: 0 | N64: 0 | O64: 0 | P64: 0 | Q64: 0 | R64: 0 | S64: 0
C66: Previsione volumi di traffico Totali (mln di veicoli km)
C67: Classe
C68: A | E68: =IFERROR(+E24+E35+E46+E57,0) -> 661893.2504 | F68: =IFERROR(+F24+F35+F46+F57,0) -> 665202.7166 | G68: =IFERROR(+G24+G35+G46+G57,0) -> 668528.7302 | H68: =IFERROR(+H24+H35+H46+H57,0) -> 671871.3738 | I68: 675230.7307 | J68: 678606.8844 | K68: 681999.9188 | L68: 685409.9184 | M68: 688836.968 | N68: 692281.1528 | O68: 695742.5586 | P68: 699221.2714 | Q68: 702717.3777 | R68: 706230.9646 | S68: 709762.1194
C69: B | E69: =IFERROR(+E25+E36+E47+E58,0) -> 106894.3768 | F69: 107428.8487 | G69: =IFERROR(+G25+G36+G47+G58,0) -> 107965.993 | H69: =IFERROR(+H25+H36+H47+H58,0) -> 108505.8229 | I69: 109048.3521 | J69: 109593.5938 | K69: 110141.5618 | L69: 110692.2696 | M69: 111245.7309 | N69: 111801.9596 | O69: 112360.9694 | P69: 112922.7742 | Q69: 113487.3881 | R69: 114054.8251 | S69: 114625.0992
C70: 3 | E70: =IFERROR(+E26+E37+E48+E59,0) -> 20706.10526 | F70: 20809.63579 | G70: =IFERROR(+G26+G37+G48+G59,0) -> 20913.68397 | H70: =IFERROR(+H26+H37+H48+H59,0) -> 21018.25239 | I70: 21123.34365 | J70: 21228.96037 | K70: 21335.10517 | L70: 21441.7807 | M70: 21548.9896 | N70: 21656.73455 | O70: 21765.01822 | P70: 21873.84331 | Q70: 21983.21253 | R70: 22093.12859 | S70: 22203.59423
C71: 4 | E71: =IFERROR(+E27+E38+E49+E60,0) -> 16389.02833 | F71: 16470.97348 | G71: =IFERROR(+G27+G38+G49+G60,0) -> 16553.32834 | H71: =IFERROR(+H27+H38+H49+H60,0) -> 16636.09498 | I71: 16719.27546 | J71: 16802.87184 | K71: 16886.8862 | L71: 16971.32063 | M71: 17056.17723 | N71: 17141.45812 | O71: 17227.16541 | P71: 17313.30123 | Q71: 17399.86774 | R71: 17486.86708 | S71: 17574.30141
C72: 5 | E72: =IFERROR(+E28+E39+E50+E61,0) -> 233265.9361 | F72: 234432.2658 | G72: =IFERROR(+G28+G39+G50+G61,0) -> 235604.4271 | H72: =IFERROR(+H28+H39+H50+H61,0) -> 236782.4493 | I72: 237966.3615 | J72: 239156.1933 | K72: 240351.9743 | L72: 241553.7342 | M72: 242761.5028 | N72: 243975.3103 | O72: 245195.1869 | P72: 246421.1628 | Q72: 247653.2686 | R72: 248891.535 | S72: 250135.9927
C73: Sub totale leggeri | E73: =SUM(E68) -> 661893.2504 | F73: =SUM(F68) -> 665202.7166 | G73: 668528.7302 | H73: =SUM(H68) -> 671871.3738 | I73: 675230.7307 | J73: 678606.8844 | K73: 681999.9188 | L73: 685409.9184 | M73: 688836.968 | N73: 692281.1528 | O73: 695742.5586 | P73: 699221.2714 | Q73: 702717.3777 | R73: 706230.9646 | S73: 709762.1194
C74: Sub totale pesanti | E74: =+SUM(E69:E72) -> 377255.4466 | F74: 379141.7238 | G74: 381037.4324 | H74: =+SUM(H69:H72) -> 382942.6196 | I74: 384857.3327 | J74: 386781.6193 | K74: 388715.5274 | L74: 390659.1051 | M74: 392612.4006 | N74: 394575.4626 | O74: 396548.3399 | P74: 398531.0816 | Q74: 400523.737 | R74: 402526.3557 | S74: 404538.9875
C75: Totale complessivo | E75: =SUM(E68:E72) -> 1039148.697 | F75: 1044344.44 | G75: 1049566.163 | H75: =SUM(H68:H72) -> 1054813.993 | I75: 1060088.063 | J75: 1065388.504 | K75: 1070715.446 | L75: 1076069.023 | M75: 1081449.369 | N75: 1086856.615 | O75: 1092290.899 | P75: 1097752.353 | Q75: 1103241.115 | R75: 1108757.32 | S75: 1114301.107
C76: Check CoReg Anno base | E76: =E75-'Y0.2.a CoReg DatiTecnici'!O54 -> 1039148.697
C79: Variazioni annue
C81: Previsione volumi di traffico (variazione % annua)
C82: Classe
C83: A | F83: =IFERROR(+F68/E68-1,0) -> 0.005 | G83: 0.005 | H83: 0.005 | I83: 0.005 | J83: 0.005 | K83: 0.005 | L83: 0.005 | M83: 0.005 | N83: 0.005 | O83: 0.005 | P83: 0.005 | Q83: 0.005 | R83: 0.005 | S83: 0.005
C84: B | F84: =IFERROR(+F69/E69-1,0) -> 0.005 | G84: 0.005 | H84: 0.005 | I84: 0.005 | J84: 0.005 | K84: 0.005 | L84: 0.005 | M84: 0.005 | N84: 0.005 | O84: 0.005 | P84: 0.005 | Q84: 0.005 | R84: 0.005 | S84: 0.005
C85: 3 | F85: =IFERROR(+F70/E70-1,0) -> 0.005 | G85: 0.005 | H85: 0.005 | I85: 0.005 | J85: 0.005 | K85: 0.005 | L85: 0.005 | M85: 0.005 | N85: 0.005 | O85: 0.005 | P85: 0.005 | Q85: 0.005 | R85: 0.005 | S85: 0.005
C86: 4 | F86: =IFERROR(+F71/E71-1,0) -> 0.005 | G86: 0.005 | H86: 0.005 | I86: 0.005 | J86: 0.005 | K86: 0.005 | L86: 0.005 | M86: 0.005 | N86: 0.005 | O86: 0.005 | P86: 0.005 | Q86: 0.005 | R86: 0.005 | S86: 0.005
C87: 5 | F87: =IFERROR(+F72/E72-1,0) -> 0.005 | G87: 0.005 | H87: 0.005 | I87: 0.005 | J87: 0.005 | K87: 0.005 | L87: 0.005 | M87: 0.005 | N87: 0.005 | O87: 0.005 | P87: 0.005 | Q87: 0.005 | R87: 0.005 | S87: 0.005
C88: Sub totale leggeri | F88: =IFERROR(+F73/E73-1,0) -> 0.005 | G88: 0.005 | H88: 0.005 | I88: 0.005 | J88: 0.005 | K88: 0.005 | L88: 0.005 | M88: 0.005 | N88: 0.005 | O88: 0.005 | P88: 0.005 | Q88: 0.005 | R88: 0.005 | S88: 0.005
C89: Sub totale pesanti | F89: =IFERROR(+F74/E74-1,0) -> 0.005 | G89: 0.005 | H89: 0.005 | I89: 0.005 | J89: 0.005 | K89: 0.005 | L89: 0.005 | M89: 0.005 | N89: 0.005 | O89: 0.005 | P89: 0.005 | Q89: 0.005 | R89: 0.005 | S89: 0.005
C90: Totale | F90: =IFERROR(+F75/E75-1,0) -> 0.005 | G90: 0.005 | H90: 0.005 | I90: 0.005 | J90: 0.005 | K90: 0.005 | L90: 0.005 | M90: 0.005 | N90: 0.005 | O90: 0.005 | P90: 0.005 | Q90: 0.005 | R90: 0.005 | S90: 0.005
C92: Tasso di variazione complessivo da Anno Ponte a scadenza della concessione (CAGR)
C93: Classe
C94: A | F94: =((OFFSET(F68,0,ScadenzaConcessione-PrimoAnnoPR1+1,1,1)/F68)^(1/(ScadenzaConcessione-PrimoAnnoPR1+1))-1) -> 0.005
C95: B | F95: 0.005
C96: 3 | F96: 0.005
C97: 4 | F97: 0.005
C98: 5 | F98: 0.005
C99: Sub totale leggeri | F99: 0.005
C100: Sub totale pesanti | F100: 0.005
C101: Totale | F101: 0.005
C104: Informazioni di riepilogo
C106: Volumi di traffico previsti (000 veicoli/km) | D106: V | E106: =E75 -> 1039148.697 | F106: 1044344.44 | G106: 1049566.163 | H106: =H75 -> 1054813.993 | I106: 1060088.063 | J106: 1065388.504 | K106: 1070715.446 | L106: 1076069.023 | M106: 1081449.369 | N106: 1086856.615 | O106: 1092290.899 | P106: 1097752.353 | Q106: 1103241.115 | R106: 1108757.32 | S106: 1114301.107
C107: Volumi di traffico medi annui per periodo regolatorio (000 veicoli/km) | D107: V' | F107: =IF(F$7,SUMIF(8:8,G8,106:106)/COUNTIF(8:8,G8),"") -> 1057464.181 | J107: 1081476.27 | O107: 1106012.974
C108: Volumi di traffico medi annui per discontinuità di costo (000 veicoli/km) | D108: V'' | F108: =IF(F8=0,F107,SUM(OFFSET(F106,,,,IF(F7,1,_xlfn.MAXIFS(9:9,8:8,F8)+1-F9))/IF(F7,1,_xlfn.MAXIFS(9:9,8:8,F8)+1-F9))) -> 1057464.181 | G108: =IF(G8=0,G107,SUM(OFFSET(G106,,,,IF(G7,1,_xlfn.MAXIFS(9:9,8:8,G8)+1-G9))/IF(G7,1,_xlfn.MAXIFS(9:9,8:8,G8)+1-G9))) -> 1057464.181 | H108: =IF(H8=0,H107,SUM(OFFSET(H106,,,,IF(H7,1,_xlfn.MAXIFS(9:9,8:8,H8)+1-H9))/IF(H7,1,_xlfn.MAXIFS(9:9,8:8,H8)+1-H9))) -> 1060096.854 | I108: =IF(I8=0,I107,SUM(OFFSET(I106,,,,IF(I7,1,_xlfn.MAXIFS(9:9,8:8,I8)+1-I9))/IF(I7,1,_xlfn.MAXIFS(9:9,8:8,I8)+1-I9))) -> 1062738.284 | J108: =IF(J8=0,J107,SUM(OFFSET(J106,,,,IF(J7,1,_xlfn.MAXIFS(9:9,8:8,J8)+1-J9))/IF(J7,1,_xlfn.MAXIFS(9:9,8:8,J8)+1-J9))) -> 1065388.504 | K108: =IF(K8=0,K107,SUM(OFFSET(K106,,,,IF(K7,1,_xlfn.MAXIFS(9:9,8:8,K8)+1-K9))/IF(K7,1,_xlfn.MAXIFS(9:9,8:8,K8)+1-K9))) -> 1081476.27 | L108: =IF(L8=0,L107,SUM(OFFSET(L106,,,,IF(L7,1,_xlfn.MAXIFS(9:9,8:8,L8)+1-L9))/IF(L7,1,_xlfn.MAXIFS(9:9,8:8,L8)+1-L9))) -> 1084166.476 | M108: =IF(M8=0,M107,SUM(OFFSET(M106,,,,IF(M7,1,_xlfn.MAXIFS(9:9,8:8,M8)+1-M9))/IF(M7,1,_xlfn.MAXIFS(9:9,8:8,M8)+1-M9))) -> 1086865.628 | N108: =IF(N8=0,N107,SUM(OFFSET(N106,,,,IF(N7,1,_xlfn.MAXIFS(9:9,8:8,N8)+1-N9))/IF(N7,1,_xlfn.MAXIFS(9:9,8:8,N8)+1-N9))) -> 1089573.757 | O108: =IF(O8=0,O107,SUM(OFFSET(O106,,,,IF(O7,1,_xlfn.MAXIFS(9:9,8:8,O8)+1-O9))/IF(O7,1,_xlfn.MAXIFS(9:9,8:8,O8)+1-O9))) -> 1092290.899 | P108: =IF(P8=0,P107,SUM(OFFSET(P106,,,,IF(P7,1,_xlfn.MAXIFS(9:9,8:8,P8)+1-P9))/IF(P7,1,_xlfn.MAXIFS(9:9,8:8,P8)+1-P9))) -> 1106012.974 | Q108: =IF(Q8=0,Q107,SUM(OFFSET(Q106,,,,IF(Q7,1,_xlfn.MAXIFS(9:9,8:8,Q8)+1-Q9))/IF(Q7,1,_xlfn.MAXIFS(9:9,8:8,Q8)+1-Q9))) -> 1108766.514 | R108: =IF(R8=0,R107,SUM(OFFSET(R106,,,,IF(R7,1,_xlfn.MAXIFS(9:9,8:8,R8)+1-R9))/IF(R7,1,_xlfn.MAXIFS(9:9,8:8,R8)+1-R9))) -> 1111529.214 | S108: =IF(S8=0,S107,SUM(OFFSET(S106,,,,IF(S7,1,_xlfn.MAXIFS(9:9,8:8,S8)+1-S9))/IF(S7,1,_xlfn.MAXIFS(9:9,8:8,S8)+1-S9))) -> 1114301.107
C114: termine foglio di lavoro

Sheet Y0.4.a DiscontinuitaCosto Tg
C2: Discontinuità di costo per nuovi investimenti e sopravvenienze normative
C4: Anno | E4: 2024 | F4: 2025 | G4: 2026 | H4: 2027 | I4: 2028 | J4: 2029 | K4: 2030 | L4: 2031 | M4: 2032 | N4: 2033 | O4: 2034 | P4: 2035 | Q4: 2036 | R4: 2037 | S4: 2038
C6: Anno base | E6: 1 | F6: 0 | G6: 0 | H6: 0 | I6: 1 | J6: 0 | K6: 0 | L6: 0 | M6: 0 | N6: 1 | O6: 0 | P6: 0 | Q6: 0 | R6: 0 | S6: 0
C7: Anno ponte | E7: 0 | F7: 1 | G7: 0 | H7: 0 | I7: 0 | J7: 1 | K7: 0 | L7: 0 | M7: 0 | N7: 0 | O7: 1 | P7: 0 | Q7: 0 | R7: 0 | S7: 0
C8: Periodo regolatorio | E8: 0 | F8: 0 | G8: 1 | H8: 1 | I8: 1 | J8: 1 | K8: 2 | L8: 2 | M8: 2 | N8: 2 | O8: 2 | P8: 3 | Q8: 3 | R8: 3 | S8: 3
C9: Anno del periodo regolatorio | E9: 0 | F9: 0 | G9: 1 | H9: 2 | I9: 3 | J9: 4 | K9: 1 | L9: 2 | M9: 3 | N9: 4 | O9: 5 | P9: 1 | Q9: 2 | R9: 3 | S9: 4
C10: Frazione di anno significativa | G10: 1 | H10: 1 | I10: 1 | J10: 1 | K10: 1 | L10: 1 | M10: 1 | N10: 1 | O10: 1 | P10: 1 | Q10: 1 | R10: 1 | S10: 1
F12: Ultimo adattamento schema: 31/10/2025 17:45:05
C14: Discontinuità di costo
C16: NB: per ogni annualità va inserito il valore incrementale/decrementale rispetto all'annualità precedente.
C17: (per ciascuna specifica discontinuità di costo, si prega di documentare distintamente i valori assunti, mediante specifici fogli di lavoro di supporto)
C19: Discontinuità di costi operativi da nuovi investimenti
B23: t | C23: (specificare) | F23: 10 | G23: 10 | H23: 10 | I23: 10 | J23: 10 | K23: 10 | L23: 10 | M23: 10 | N23: 10 | O23: 10 | P23: 10 | Q23: 10 | R23: 10 | S23: 10
B24: t
B25: t
B26: t
B27: t
B28: t
C30: Totale discontinuità di costi operativi da nuovi investimenti | F30: =SUM(F23:F29) -> 10 | G30: 10 | H30: =SUM(H23:H29) -> 10 | I30: 10 | J30: 10 | K30: 10 | L30: 10 | M30: 10 | N30: 10 | O30: 10 | P30: 10 | Q30: 10 | R30: 10 | S30: 10
C33: Discontinuità di costi operativi da sopravvenienze normative
B37: t | C37: (specificare) | F37: 100 | G37: 100 | H37: 100 | I37: 100 | J37: 100 | K37: 100 | L37: 100 | M37: 100 | N37: 100 | O37: 100 | P37: 100 | Q37: 100 | R37: 100 | S37: 100
B38: t
B39: t
B40: t
B41: t
B42: t
C44: Totale discontinuità di costi operativi da sopravvenienze normative | F44: =SUM(F37:F43) -> 100 | G44: 100 | H44: =SUM(H37:H43) -> 100 | I44: 100 | J44: 100 | K44: 100 | L44: 100 | M44: 100 | N44: 100 | O44: 100 | P44: 100 | Q44: 100 | R44: 100 | S44: 100
C49: termine foglio di lavoro

Sheet Y0.4.b PEF DettaglioFondi
C2: Dettaglio di pianificazione della movimentazione fondi di accantonamento del concessionario per PEF
C4: Anno | E4: 2024 | F4: 2025 | G4: 2026 | H4: 2027 | I4: 2028 | J4: 2029 | K4: 2030 | L4: 2031 | M4: 2032 | N4: 2033 | O4: 2034 | P4: 2035 | Q4: 2036 | R4: 2037 | S4: 2038
C6: Anno base | E6: 1 | F6: 0 | G6: 0 | H6: 0 | I6: 1 | J6: 0 | K6: 0 | L6: 0 | M6: 0 | N6: 1 | O6: 0 | P6: 0 | Q6: 0 | R6: 0 | S6: 0
C7: Anno ponte | E7: 0 | F7: 1 | G7: 0 | H7: 0 | I7: 0 | J7: 1 | K7: 0 | L7: 0 | M7: 0 | N7: 0 | O7: 1 | P7: 0 | Q7: 0 | R7: 0 | S7: 0
C8: Periodo regolatorio | E8: 0 | F8: 0 | G8: 1 | H8: 1 | I8: 1 | J8: 1 | K8: 2 | L8: 2 | M8: 2 | N8: 2 | O8: 2 | P8: 3 | Q8: 3 | R8: 3 | S8: 3
C9: Anno del periodo regolatorio | E9: 0 | F9: 0 | G9: 1 | H9: 2 | I9: 3 | J9: 4 | K9: 1 | L9: 2 | M9: 3 | N9: 4 | O9: 5 | P9: 1 | Q9: 2 | R9: 3 | S9: 4
C10: Frazione di anno significativa | G10: 1 | H10: 1 | I10: 1 | J10: 1 | K10: 1 | L10: 1 | M10: 1 | N10: 1 | O10: 1 | P10: 1 | Q10: 1 | R10: 1 | S10: 1
F12: Ultimo adattamento schema: 31/10/2025 17:44:58
C15: Fondo rinnovi beni reversibili
C17: Consistenza del fondo BOP | F17: =E21 -> 0 | G17: =F21 -> 0 | H17: 0 | I17: 0 | J17: 0 | K17: 0 | L17: 0 | M17: 0 | N17: 0 | O17: 0 | P17: 0 | Q17: 0 | R17: 0 | S17: 0
C18: Accantonamento
C19: Utilizzo
C20: Eventuali oneri da attualizzazione
C21: Consistenza del fondo EOP | E21: 0 | F21: =F17+F18-F19+F20 -> 0 | G21: =G17+G18-G19+G20 -> 0 | H21: 0 | I21: =I17+I18-I19+I20 -> 0 | J21: 0 | K21: 0 | L21: 0 | M21: 0 | N21: 0 | O21: 0 | P21: 0 | Q21: 0 | R21: 0 | S21: 0
C24: Fondo impegni previsti in concessione
C26: Fondo per il completamento degli interventi recuperabili in tariffa e non realizzati per responsabilità del concessionario
C28: Consistenza del fondo BOP | F28: =E32 -> 0 | G28: =F32 -> 0 | H28: 0 | I28: 0 | J28: 0 | K28: 0 | L28: 0 | M28: 0 | N28: 0 | O28: 0 | P28: 0 | Q28: 0 | R28: 0 | S28: 0
C29: Accantonamento
C30: Utilizzo
C31: Eventuali oneri da attualizzazione
C32: Consistenza del fondo EOP | E32: 0 | F32: =F28+F29-F30+F31 -> 0 | G32: =G28+G29-G30+G31 -> 0 | H32: 0 | I32: =I28+I29-I30+I31 -> 0 | J32: 0 | K32: 0 | L32: 0 | M32: 0 | N32: 0 | O32: 0 | P32: 0 | Q32: 0 | R32: 0 | S32: 0
C34: Fondo per il completamento degli interventi non recuperabili in tariffa e non realizzati
C36: Consistenza del fondo BOP | F36: =E40 -> 0 | G36: =F40 -> 0 | H36: =G40 -> 0 | I36: 0 | J36: 0 | K36: 0 | L36: 0 | M36: 0 | N36: 0 | O36: 0 | P36: 0 | Q36: 0 | R36: 0 | S36: 0
C37: Accantonamento
C38: Utilizzo
C39: Eventuali oneri da attualizzazione
C40: Consistenza del fondo EOP | E40: 0 | F40: =F36+F37-F38+F39 -> 0 | G40: =G36+G37-G38+G39 -> 0 | H40: 0 | I40: =I36+I37-I38+I39 -> 0 | J40: 0 | K40: 0 | L40: 0 | M40: 0 | N40: 0 | O40: 0 | P40: 0 | Q40: 0 | R40: 0 | S40: 0
C42: Fondo per altri impegni del concessionario
C44: Consistenza del fondo BOP | F44: =E48 -> 0 | G44: =F48 -> 0 | H44: =G48 -> 0 | I44: 0 | J44: 0 | K44: 0 | L44: 0 | M44: 0 | N44: 0 | O44: 0 | P44: 0 | Q44: 0 | R44: 0 | S44: 0
C45: Accantonamento
C46: Utilizzo
C47: Eventuali oneri da attualizzazione
C48: Consistenza del fondo EOP | E48: 0 | F48: =F44+F45-F46+F47 -> 0 | G48: =G44+G45-G46+G47 -> 0 | H48: 0 | I48: =I44+I45-I46+I47 -> 0 | J48: 0 | K48: 0 | L48: 0 | M48: 0 | N48: 0 | O48: 0 | P48: 0 | Q48: 0 | R48: 0 | S48: 0
C51: Fondo per riequilibrio della concessione ex l. 193/2024
C53: Consistenza del fondo BOP | F53: =E57 -> 0 | G53: =F57 -> 0 | H53: 0 | I53: 0 | J53: 0 | K53: 0 | L53: 0 | M53: 0 | N53: 0 | O53: 0 | P53: 0 | Q53: 0 | R53: 0 | S53: 0
C54: Accantonamento
C55: Utilizzo
C56: Eventuali oneri da attualizzazione
C57: Consistenza del fondo EOP | E57: 0 | F57: =F53+F54-F55+F56 -> 0 | G57: =G53+G54-G55+G56 -> 0 | H57: 0 | I57: =I53+I54-I55+I56 -> 0 | J57: 0 | K57: 0 | L57: 0 | M57: 0 | N57: 0 | O57: 0 | P57: 0 | Q57: 0 | R57: 0 | S57: 0
C60: Fondo per il trattamento di fine rapporto del personale
C62: Consistenza del fondo BOP | F62: =E66 -> 0 | G62: =F66 -> 0 | H62: 0 | I62: 0 | J62: 0 | K62: 0 | L62: 0 | M62: 0 | N62: 0 | O62: 0 | P62: 0 | Q62: 0 | R62: 0 | S62: 0
C63: Accantonamento/rivalutazione
C64: Utilizzo
C65: Eventuali oneri da attualizzazione
C66: Consistenza del fondo EOP | E66: 0 | F66: =F62+F63-F64+F65 -> 0 | G66: 0 | H66: 0 | I66: =I62+I63-I64+I65 -> 0 | J66: 0 | K66: 0 | L66: 0 | M66: 0 | N66: 0 | O66: 0 | P66: 0 | Q66: 0 | R66: 0 | S66: 0
C69: Altri fondi per rischi e oneri
C71: Consistenza del fondo BOP | F71: =E75 -> 0 | G71: =F75 -> 0 | H71: 0 | I71: 0 | J71: 0 | K71: 0 | L71: 0 | M71: 0 | N71: 0 | O71: 0 | P71: 0 | Q71: 0 | R71: 0 | S71: 0
C72: Accantonamento
C73: Utilizzo
C74: Eventuali oneri da attualizzazione
C75: Consistenza del fondo EOP | E75: 0 | F75: =F71+F72-F73+F74 -> 0 | G75: =G71+G72-G73+G74 -> 0 | H75: 0 | I75: =I71+I72-I73+I74 -> 0 | J75: 0 | K75: 0 | L75: 0 | M75: 0 | N75: 0 | O75: 0 | P75: 0 | Q75: 0 | R75: 0 | S75: 0
C79: termine foglio di lavoro

Sheet Y0.4.c PEF DettaglioCCN
C2: Dettaglio di pianificazione del capitale circolante netto del concessionario per PEF
C4: Anno | E4: 2024 | F4: 2025 | G4: 2026 | H4: 2027 | I4: 2028 | J4: 2029 | K4: 2030 | L4: 2031 | M4: 2032 | N4: 2033 | O4: 2034 | P4: 2035 | Q4: 2036 | R4: 2037 | S4: 2038
C6: Anno base | E6: 1 | F6: 0 | G6: 0 | H6: 0 | I6: 1 | J6: 0 | K6: 0 | L6: 0 | M6: 0 | N6: 1 | O6: 0 | P6: 0 | Q6: 0 | R6: 0 | S6: 0
C7: Anno ponte | E7: 0 | F7: 1 | G7: 0 | H7: 0 | I7: 0 | J7: 1 | K7: 0 | L7: 0 | M7: 0 | N7: 0 | O7: 1 | P7: 0 | Q7: 0 | R7: 0 | S7: 0
C8: Periodo regolatorio | E8: 0 | F8: 0 | G8: 1 | H8: 1 | I8: 1 | J8: 1 | K8: 2 | L8: 2 | M8: 2 | N8: 2 | O8: 2 | P8: 3 | Q8: 3 | R8: 3 | S8: 3
C9: Anno del periodo regolatorio | E9: 0 | F9: 0 | G9: 1 | H9: 2 | I9: 3 | J9: 4 | K9: 1 | L9: 2 | M9: 3 | N9: 4 | O9: 5 | P9: 1 | Q9: 2 | R9: 3 | S9: 4
C10: Frazione di anno significativa | G10: 1 | H10: 1 | I10: 1 | J10: 1 | K10: 1 | L10: 1 | M10: 1 | N10: 1 | O10: 1 | P10: 1 | Q10: 1 | R10: 1 | S10: 1
F12: Ultimo adattamento schema: 31/10/2025 17:45:00
C15: Crediti operativi
C17: Crediti su ricavi tariffari da pedaggio
C19: Consistenza BOP | F19: =E33 -> 0 | G19: =F33 -> 0 | H19: 0 | I19: 0 | J19: 0 | K19: 0 | L19: 0 | M19: 0 | N19: 0 | O19: 0 | P19: 0 | Q19: 0 | R19: 0 | S19: 0
C20: Ricavi da PEF | F20: =+'Y3 PEF'!M123 -> 0 | G20: =+'Y3 PEF'!N123 -> 0 | H20: =+'Y3 PEF'!O123 -> 0 | I20: =+'Y3 PEF'!P123 -> 0 | J20: =+'Y3 PEF'!Q123 -> 0 | K20: =+'Y3 PEF'!R123 -> 0 | L20: =+'Y3 PEF'!S123 -> 0 | M20: =+'Y3 PEF'!T123 -> 0 | N20: =+'Y3 PEF'!U123 -> 0 | O20: =+'Y3 PEF'!V123 -> 0 | P20: =+'Y3 PEF'!W123 -> 0 | Q20: =+'Y3 PEF'!X123 -> 0 | R20: =+'Y3 PEF'!Y123 -> 0 | S20: =+'Y3 PEF'!Z123 -> 0
C21: Rettifiche (motivare in Documento di metodologia e rendicontazione)
C22: Ricavi rettificati | F22: =+F20+F21 -> 0 | G22: 0 | H22: 0 | I22: =+I20+I21 -> 0 | J22: 0 | K22: 0 | L22: 0 | M22: 0 | N22: 0 | O22: 0 | P22: 0 | Q22: 0 | R22: 0 | S22: 0
C23: Aliquota IVA media | F23: 0 | G23: 0 | H23: 0 | I23: 0 | J23: 0 | K23: 0 | L23: 0 | M23: 0 | N23: 0 | O23: 0 | P23: 0 | Q23: 0 | R23: 0 | S23: 0
C24: Iva su ricavi rettificati | F24: =+F23*F22 -> 0 | G24: 0 | H24: 0 | I24: =+I23*I22 -> 0 | J24: 0 | K24: 0 | L24: 0 | M24: 0 | N24: 0 | O24: 0 | P24: 0 | Q24: 0 | R24: 0 | S24: 0
C25: Ricavi comprensivi di IVA | F25: =+F24+F22 -> 0 | G25: 0 | H25: 0 | I25: =+I24+I22 -> 0 | J25: 0 | K25: 0 | L25: 0 | M25: 0 | N25: 0 | O25: 0 | P25: 0 | Q25: 0 | R25: 0 | S25: 0
C26: Dilazioni di pagamento (giorni) | F26: 0 | G26: 0 | H26: 0 | I26: 0 | J26: 0 | K26: 0 | L26: 0 | M26: 0 | N26: 0 | O26: 0 | P26: 0 | Q26: 0 | R26: 0 | S26: 0
C27: Incremento stock crediti | F27: =+F25*F26/365 -> 0 | G27: 0 | H27: 0 | I27: =+I25*I26/365 -> 0 | J27: 0 | K27: 0 | L27: 0 | M27: 0 | N27: 0 | O27: 0 | P27: 0 | Q27: 0 | R27: 0 | S27: 0
C28: Incasso ricavi di competenza | F28: =+F25-F27 -> 0 | G28: 0 | H28: 0 | I28: =+I25-I27 -> 0 | J28: 0 | K28: 0 | L28: 0 | M28: 0 | N28: 0 | O28: 0 | P28: 0 | Q28: 0 | R28: 0 | S28: 0
C29: Incasso crediti anni precedenti
C30: Rettifiche monetarie su incassi
C31: Totale incassi | F31: =+F28+F29+F30 -> 0 | G31: 0 | H31: 0 | I31: =+I28+I29+I30 -> 0 | J31: 0 | K31: 0 | L31: 0 | M31: 0 | N31: 0 | O31: 0 | P31: 0 | Q31: 0 | R31: 0 | S31: 0
C32: Altre rettifiche su crediti
C33: Consistenza EOP | F33: =+E33+F27-F29+F32 -> 0 | G33: 0 | H33: 0 | I33: 0 | J33: 0 | K33: 0 | L33: 0 | M33: 0 | N33: 0 | O33: 0 | P33: 0 | Q33: 0 | R33: 0 | S33: 0
C35: Altri crediti da interconnessione
C37: Consistenza BOP | F37: =E40 -> 0 | G37: =F40 -> 0 | H37: 0 | I37: 0 | J37: 0 | K37: 0 | L37: 0 | M37: 0 | N37: 0 | O37: 0 | P37: 0 | Q37: 0 | R37: 0 | S37: 0
C38: Variazioni in incremento
C39: Variazioni in riduzione
C40: Consistenza EOP | F40: =F37+F38-F39 -> 0 | G40: =G37+G38-G39 -> 0 | H40: 0 | I40: =I37+I38-I39 -> 0 | J40: 0 | K40: 0 | L40: 0 | M40: 0 | N40: 0 | O40: 0 | P40: 0 | Q40: 0 | R40: 0 | S40: 0
C42: Altri crediti operativi - Crediti da proventi netti da subconcessioni e attività collaterali
C44: Consistenza BOP | F44: =E58 -> 0 | G44: 0 | H44: 0 | I44: 0 | J44: 0 | K44: 0 | L44: 0 | M44: 0 | N44: 0 | O44: 0 | P44: 0 | Q44: 0 | R44: 0 | S44: 0
C45: Ricavi da PEF | F45: =+'Y3 PEF'!M168 -> 0 | G45: =+'Y3 PEF'!N168 -> 0 | H45: =+'Y3 PEF'!O168 -> 0 | I45: =+'Y3 PEF'!P168 -> 0 | J45: =+'Y3 PEF'!Q168 -> 0 | K45: =+'Y3 PEF'!R168 -> 0 | L45: =+'Y3 PEF'!S168 -> 0 | M45: =+'Y3 PEF'!T168 -> 0 | N45: =+'Y3 PEF'!U168 -> 0 | O45: =+'Y3 PEF'!V168 -> 0 | P45: =+'Y3 PEF'!W168 -> 0 | Q45: =+'Y3 PEF'!X168 -> 0 | R45: =+'Y3 PEF'!Y168 -> 0 | S45: =+'Y3 PEF'!Z168 -> 0
C46: Rettifiche (motivare in Documento di metodologia e rendicontazione)
C47: Ricavi rettificati | F47: =+F45+F46 -> 0 | G47: 0 | H47: 0 | I47: =+I45+I46 -> 0 | J47: 0 | K47: 0 | L47: 0 | M47: 0 | N47: 0 | O47: 0 | P47: 0 | Q47: 0 | R47: 0 | S47: 0
C48: Aliquota IVA media | F48: 0 | G48: 0 | H48: 0 | I48: 0 | J48: 0 | K48: 0 | L48: 0 | M48: 0 | N48: 0 | O48: 0 | P48: 0 | Q48: 0 | R48: 0 | S48: 0
C49: Iva su ricavi rettificati | F49: =+F48*F47 -> 0 | G49: 0 | H49: 0 | I49: =+I48*I47 -> 0 | J49: 0 | K49: 0 | L49: 0 | M49: 0 | N49: 0 | O49: 0 | P49: 0 | Q49: 0 | R49: 0 | S49: 0
C50: Ricavi comprensivi di IVA | F50: =+F49+F47 -> 0 | G50: 0 | H50: 0 | I50: =+I49+I47 -> 0 | J50: 0 | K50: 0 | L50: 0 | M50: 0 | N50: 0 | O50: 0 | P50: 0 | Q50: 0 | R50: 0 | S50: 0
C51: Dilazioni di pagamento (giorni) | F51: 0 | G51: 0 | H51: 0 | I51: 0 | J51: 0 | K51: 0 | L51: 0 | M51: 0 | N51: 0 | O51: 0 | P51: 0 | Q51: 0 | R51: 0 | S51: 0
C52: Incremento stock crediti | F52: =+F50*F51/365 -> 0 | G52: 0 | H52: 0 | I52: =+I50*I51/365 -> 0 | J52: 0 | K52: 0 | L52: 0 | M52: 0 | N52: 0 | O52: 0 | P52: 0 | Q52: 0 | R52: 0 | S52: 0
C53: Incasso ricavi di competenza | F53: =+F50-F52 -> 0 | G53: 0 | H53: 0 | I53: =+I50-I52 -> 0 | J53: 0 | K53: 0 | L53: 0 | M53: 0 | N53: 0 | O53: 0 | P53: 0 | Q53: 0 | R53: 0 | S53: 0
C54: Incasso crediti anni precedenti
C55: Rettifiche monetarie su incassi
C56: Totale incassi | F56: =+F53+F54+F55 -> 0 | G56: 0 | H56: 0 | I56: =+I53+I54+I55 -> 0 | J56: 0 | K56: 0 | L56: 0 | M56: 0 | N56: 0 | O56: 0 | P56: 0 | Q56: 0 | R56: 0 | S56: 0
C57: Altre rettifiche su crediti
C58: Consistenza EOP | F58: =+E58+F52-F54+F57 -> 0 | G58: 0 | H58: 0 | I58: 0 | J58: 0 | K58: 0 | L58: 0 | M58: 0 | N58: 0 | O58: 0 | P58: 0 | Q58: 0 | R58: 0 | S58: 0
C60: Altri crediti operativi - Altro
C62: Consistenza BOP | F62: =E76 -> 0 | G62: 0 | H62: 0 | I62: 0 | J62: 0 | K62: 0 | L62: 0 | M62: 0 | N62: 0 | O62: 0 | P62: 0 | Q62: 0 | R62: 0 | S62: 0
C63: Ricavi da PEF | F63: =+'Y3 PEF'!M190+'Y3 PEF'!M206+'Y3 PEF'!M207 -> 0 | G63: =+'Y3 PEF'!N190+'Y3 PEF'!N206+'Y3 PEF'!N207 -> 0 | H63: =+'Y3 PEF'!O190+'Y3 PEF'!O206+'Y3 PEF'!O207 -> 0 | I63: =+'Y3 PEF'!P190+'Y3 PEF'!P206+'Y3 PEF'!P207 -> 0 | J63: =+'Y3 PEF'!Q190+'Y3 PEF'!Q206+'Y3 PEF'!Q207 -> 0 | K63: =+'Y3 PEF'!R190+'Y3 PEF'!R206+'Y3 PEF'!R207 -> 0 | L63: =+'Y3 PEF'!S190+'Y3 PEF'!S206+'Y3 PEF'!S207 -> 0 | M63: =+'Y3 PEF'!T190+'Y3 PEF'!T206+'Y3 PEF'!T207 -> 0 | N63: =+'Y3 PEF'!U190+'Y3 PEF'!U206+'Y3 PEF'!U207 -> 0 | O63: =+'Y3 PEF'!V190+'Y3 PEF'!V206+'Y3 PEF'!V207 -> 0 | P63: =+'Y3 PEF'!W190+'Y3 PEF'!W206+'Y3 PEF'!W207 -> 0 | Q63: =+'Y3 PEF'!X190+'Y3 PEF'!X206+'Y3 PEF'!X207 -> 0 | R63: =+'Y3 PEF'!Y190+'Y3 PEF'!Y206+'Y3 PEF'!Y207 -> 0 | S63: =+'Y3 PEF'!Z190+'Y3 PEF'!Z206+'Y3 PEF'!Z207 -> 0
C64: Rettifiche (motivare in Documento di metodologia e rendicontazione)
C65: Ricavi rettificati | F65: =+F63+F64 -> 0 | G65: 0 | H65: 0 | I65: =+I63+I64 -> 0 | J65: 0 | K65: 0 | L65: 0 | M65: 0 | N65: 0 | O65: 0 | P65: 0 | Q65: 0 | R65: 0 | S65: 0
C66: Aliquota IVA media | F66: 0 | G66: 0 | H66: 0 | I66: 0 | J66: 0 | K66: 0 | L66: 0 | M66: 0 | N66: 0 | O66: 0 | P66: 0 | Q66: 0 | R66: 0 | S66: 0
C67: Iva su ricavi rettificati | F67: =+F66*F65 -> 0 | G67: 0 | H67: 0 | I67: =+I66*I65 -> 0 | J67: 0 | K67: 0 | L67: 0 | M67: 0 | N67: 0 | O67: 0 | P67: 0 | Q67: 0 | R67: 0 | S67: 0
C68: Ricavi comprensivi di IVA | F68: =+F67+F65 -> 0 | G68: 0 | H68: 0 | I68: =+I67+I65 -> 0 | J68: 0 | K68: 0 | L68: 0 | M68: 0 | N68: 0 | O68: 0 | P68: 0 | Q68: 0 | R68: 0 | S68: 0
C69: Dilazioni di pagamento (giorni) | F69: 0 | G69: 0 | H69: 0 | I69: 0 | J69: 0 | K69: 0 | L69: 0 | M69: 0 | N69: 0 | O69: 0 | P69: 0 | Q69: 0 | R69: 0 | S69: 0
C70: Incremento stock crediti | F70: =+F68*F69/365 -> 0 | G70: 0 | H70: 0 | I70: =+I68*I69/365 -> 0 | J70: 0 | K70: 0 | L70: 0 | M70: 0 | N70: 0 | O70: 0 | P70: 0 | Q70: 0 | R70: 0 | S70: 0
C71: Incasso ricavi di competenza | F71: =+F68-F70 -> 0 | G71: 0 | H71: 0 | I71: =+I68-I70 -> 0 | J71: 0 | K71: 0 | L71: 0 | M71: 0 | N71: 0 | O71: 0 | P71: 0 | Q71: 0 | R71: 0 | S71: 0
C72: Incasso crediti anni precedenti
C73: Rettifiche monetarie su incassi
C74: Totale incassi | F74: =+F71+F72+F73 -> 0 | G74: 0 | H74: 0 | I74: =+I71+I72+I73 -> 0 | J74: 0 | K74: 0 | L74: 0 | M74: 0 | N74: 0 | O74: 0 | P74: 0 | Q74: 0 | R74: 0 | S74: 0
C75: Altre rettifiche su crediti
C76: Consistenza EOP | F76: =+E76+F70-F72+F75 -> 0 | G76: 0 | H76: 0 | I76: 0 | J76: 0 | K76: 0 | L76: 0 | M76: 0 | N76: 0 | O76: 0 | P76: 0 | Q76: 0 | R76: 0 | S76: 0
C80: Debiti operativi
C82: Debiti verso fornitori
C84: Debiti per costi di manutenzione ordinaria beni reversibili
C85: Consistenza BOP | F85: =E99 -> 0 | G85: 0 | H85: 0 | I85: 0 | J85: 0 | K85: 0 | L85: 0 | M85: 0 | N85: 0 | O85: 0 | P85: 0 | Q85: 0 | R85: 0 | S85: 0
C86: Costi da PEF | F86: =+'Y3 PEF'!M217 -> 0 | G86: =+'Y3 PEF'!N217 -> 0 | H86: =+'Y3 PEF'!O217 -> 0 | I86: =+'Y3 PEF'!P217 -> 0 | J86: =+'Y3 PEF'!Q217 -> 0 | K86: =+'Y3 PEF'!R217 -> 0 | L86: =+'Y3 PEF'!S217 -> 0 | M86: =+'Y3 PEF'!T217 -> 0 | N86: =+'Y3 PEF'!U217 -> 0 | O86: =+'Y3 PEF'!V217 -> 0 | P86: =+'Y3 PEF'!W217 -> 0 | Q86: =+'Y3 PEF'!X217 -> 0 | R86: =+'Y3 PEF'!Y217 -> 0 | S86: =+'Y3 PEF'!Z217 -> 0
C87: Rettifiche (motivare in Documento di metodologia e rendicontazione)
C88: Costi rettificati | F88: =+F86+F87 -> 0 | G88: 0 | H88: 0 | I88: =+I86+I87 -> 0 | J88: 0 | K88: 0 | L88: 0 | M88: 0 | N88: 0 | O88: 0 | P88: 0 | Q88: 0 | R88: 0 | S88: 0
C89: Aliquota IVA media | F89: 0 | G89: 0 | H89: 0 | I89: 0 | J89: 0 | K89: 0 | L89: 0 | M89: 0 | N89: 0 | O89: 0 | P89: 0 | Q89: 0 | R89: 0 | S89: 0
C90: Iva su costi rettificati | F90: =+F89*F88 -> 0 | G90: 0 | H90: 0 | I90: =+I89*I88 -> 0 | J90: 0 | K90: 0 | L90: 0 | M90: 0 | N90: 0 | O90: 0 | P90: 0 | Q90: 0 | R90: 0 | S90: 0
C91: Costi comprensivi di IVA | F91: =+F90+F88 -> 0 | G91: 0 | H91: 0 | I91: =+I90+I88 -> 0 | J91: 0 | K91: 0 | L91: 0 | M91: 0 | N91: 0 | O91: 0 | P91: 0 | Q91: 0 | R91: 0 | S91: 0
C92: Dilazioni di pagamento (giorni) | F92: 0 | G92: 0 | H92: 0 | I92: 0 | J92: 0 | K92: 0 | L92: 0 | M92: 0 | N92: 0 | O92: 0 | P92: 0 | Q92: 0 | R92: 0 | S92: 0
C93: Incremento stock debiti | F93: =+F91*F92/365 -> 0 | G93: 0 | H93: 0 | I93: =+I91*I92/365 -> 0 | J93: 0 | K93: 0 | L93: 0 | M93: 0 | N93: 0 | O93: 0 | P93: 0 | Q93: 0 | R93: 0 | S93: 0
C94: Pagamento debiti di competenza | F94: =+F91-F93 -> 0 | G94: 0 | H94: 0 | I94: =+I91-I93 -> 0 | J94: 0 | K94: 0 | L94: 0 | M94: 0 | N94: 0 | O94: 0 | P94: 0 | Q94: 0 | R94: 0 | S94: 0
C95: Pagamento debiti anni precedenti
C96: Rettifiche monetarie su pagamenti
C97: Totale pagamenti | F97: =+F94+F95+F96 -> 0 | G97: 0 | H97: 0 | I97: =+I94+I95+I96 -> 0 | J97: 0 | K97: 0 | L97: 0 | M97: 0 | N97: 0 | O97: 0 | P97: 0 | Q97: 0 | R97: 0 | S97: 0
C98: Altre rettifiche su debiti
C99: Consistenza EOP | F99: =+E99+F93-F95+F98 -> 0 | G99: 0 | H99: 0 | I99: 0 | J99: 0 | K99: 0 | L99: 0 | M99: 0 | N99: 0 | O99: 0 | P99: 0 | Q99: 0 | R99: 0 | S99: 0
C101: Debiti per servizi
C102: Consistenza BOP | F102: =E116 -> 0 | G102: 0 | H102: 0 | I102: 0 | J102: 0 | K102: 0 | L102: 0 | M102: 0 | N102: 0 | O102: 0 | P102: 0 | Q102: 0 | R102: 0 | S102: 0
C103: Costi da PEF | F103: =+'Y3 PEF'!M277+'Y3 PEF'!M316+'Y3 PEF'!M326 -> 0 | G103: =+'Y3 PEF'!N277+'Y3 PEF'!N316+'Y3 PEF'!N326 -> 0 | H103: =+'Y3 PEF'!O277+'Y3 PEF'!O316+'Y3 PEF'!O326 -> 0 | I103: =+'Y3 PEF'!P277+'Y3 PEF'!P316+'Y3 PEF'!P326 -> 0 | J103: =+'Y3 PEF'!Q277+'Y3 PEF'!Q316+'Y3 PEF'!Q326 -> 0 | K103: =+'Y3 PEF'!R277+'Y3 PEF'!R316+'Y3 PEF'!R326 -> 0 | L103: =+'Y3 PEF'!S277+'Y3 PEF'!S316+'Y3 PEF'!S326 -> 0 | M103: =+'Y3 PEF'!T277+'Y3 PEF'!T316+'Y3 PEF'!T326 -> 0 | N103: =+'Y3 PEF'!U277+'Y3 PEF'!U316+'Y3 PEF'!U326 -> 0 | O103: =+'Y3 PEF'!V277+'Y3 PEF'!V316+'Y3 PEF'!V326 -> 0 | P103: =+'Y3 PEF'!W277+'Y3 PEF'!W316+'Y3 PEF'!W326 -> 0 | Q103: =+'Y3 PEF'!X277+'Y3 PEF'!X316+'Y3 PEF'!X326 -> 0 | R103: =+'Y3 PEF'!Y277+'Y3 PEF'!Y316+'Y3 PEF'!Y326 -> 0 | S103: =+'Y3 PEF'!Z277+'Y3 PEF'!Z316+'Y3 PEF'!Z326 -> 0
C104: Rettifiche (motivare in Documento di metodologia e rendicontazione)
C105: Costi rettificati | F105: =+F103+F104 -> 0 | G105: 0 | H105: 0 | I105: =+I103+I104 -> 0 | J105: 0 | K105: 0 | L105: 0 | M105: 0 | N105: 0 | O105: 0 | P105: 0 | Q105: 0 | R105: 0 | S105: 0
C106: Aliquota IVA media | F106: 0 | G106: 0 | H106: 0 | I106: 0 | J106: 0 | K106: 0 | L106: 0 | M106: 0 | N106: 0 | O106: 0 | P106: 0 | Q106: 0 | R106: 0 | S106: 0
C107: Iva su costi rettificati | F107: =+F106*F105 -> 0 | G107: 0 | H107: 0 | I107: =+I106*I105 -> 0 | J107: 0 | K107: 0 | L107: 0 | M107: 0 | N107: 0 | O107: 0 | P107: 0 | Q107: 0 | R107: 0 | S107: 0
C108: Costi comprensivi di IVA | F108: =+F107+F105 -> 0 | G108: 0 | H108: 0 | I108: =+I107+I105 -> 0 | J108: 0 | K108: 0 | L108: 0 | M108: 0 | N108: 0 | O108: 0 | P108: 0 | Q108: 0 | R108: 0 | S108: 0
C109: Dilazioni di pagamento (giorni) | F109: 0 | G109: 0 | H109: 0 | I109: 0 | J109: 0 | K109: 0 | L109: 0 | M109: 0 | N109: 0 | O109: 0 | P109: 0 | Q109: 0 | R109: 0 | S109: 0
C110: Incremento stock debiti | F110: =+F108*F109/365 -> 0 | G110: 0 | H110: 0 | I110: =+I108*I109/365 -> 0 | J110: 0 | K110: 0 | L110: 0 | M110: 0 | N110: 0 | O110: 0 | P110: 0 | Q110: 0 | R110: 0 | S110: 0
C111: Pagamento debiti di competenza | F111: =+F108-F110 -> 0 | G111: 0 | H111: 0 | I111: =+I108-I110 -> 0 | J111: 0 | K111: 0 | L111: 0 | M111: 0 | N111: 0 | O111: 0 | P111: 0 | Q111: 0 | R111: 0 | S111: 0
C112: Pagamento debiti anni precedenti
C113: Rettifiche monetarie su pagamenti
C114: Totale pagamenti | F114: =+F111+F112+F113 -> 0 | G114: 0 | H114: 0 | I114: =+I111+I112+I113 -> 0 | J114: 0 | K114: 0 | L114: 0 | M114: 0 | N114: 0 | O114: 0 | P114: 0 | Q114: 0 | R114: 0 | S114: 0
C115: Altre rettifiche su debiti
C116: Consistenza EOP | F116: =+E116+F110-F112+F115 -> 0 | G116: 0 | H116: 0 | I116: 0 | J116: 0 | K116: 0 | L116: 0 | M116: 0 | N116: 0 | O116: 0 | P116: 0 | Q116: 0 | R116: 0 | S116: 0
C118: Debiti per canone di concessione
C119: Consistenza BOP | F119: =E133 -> 0 | G119: 0 | H119: 0 | I119: 0 | J119: 0 | K119: 0 | L119: 0 | M119: 0 | N119: 0 | O119: 0 | P119: 0 | Q119: 0 | R119: 0 | S119: 0
C120: Costi da PEF | F120: =+'Y3 PEF'!M288 -> 0 | G120: =+'Y3 PEF'!N288 -> 0 | H120: =+'Y3 PEF'!O288 -> 0 | I120: =+'Y3 PEF'!P288 -> 0 | J120: =+'Y3 PEF'!Q288 -> 0 | K120: =+'Y3 PEF'!R288 -> 0 | L120: =+'Y3 PEF'!S288 -> 0 | M120: =+'Y3 PEF'!T288 -> 0 | N120: =+'Y3 PEF'!U288 -> 0 | O120: =+'Y3 PEF'!V288 -> 0 | P120: =+'Y3 PEF'!W288 -> 0 | Q120: =+'Y3 PEF'!X288 -> 0 | R120: =+'Y3 PEF'!Y288 -> 0 | S120: =+'Y3 PEF'!Z288 -> 0
C121: Rettifiche (motivare in Documento di metodologia e rendicontazione)
C122: Costi rettificati | F122: =+F120+F121 -> 0 | G122: 0 | H122: 0 | I122: =+I120+I121 -> 0 | J122: 0 | K122: 0 | L122: 0 | M122: 0 | N122: 0 | O122: 0 | P122: 0 | Q122: 0 | R122: 0 | S122: 0
C123: Aliquota IVA media | F123: 0 | G123: 0 | H123: 0 | I123: 0 | J123: 0 | K123: 0 | L123: 0 | M123: 0 | N123: 0 | O123: 0 | P123: 0 | Q123: 0 | R123: 0 | S123: 0
C124: Iva su costi rettificati | F124: =+F123*F122 -> 0 | G124: 0 | H124: 0 | I124: =+I123*I122 -> 0 | J124: 0 | K124: 0 | L124: 0 | M124: 0 | N124: 0 | O124: 0 | P124: 0 | Q124: 0 | R124: 0 | S124: 0
C125: Costi comprensivi di IVA | F125: =+F124+F122 -> 0 | G125: 0 | H125: 0 | I125: =+I124+I122 -> 0 | J125: 0 | K125: 0 | L125: 0 | M125: 0 | N125: 0 | O125: 0 | P125: 0 | Q125: 0 | R125: 0 | S125: 0
C126: Dilazioni di pagamento (giorni) | F126: 0 | G126: 0 | H126: 0 | I126: 0 | J126: 0 | K126: 0 | L126: 0 | M126: 0 | N126: 0 | O126: 0 | P126: 0 | Q126: 0 | R126: 0 | S126: 0
C127: Incremento stock debiti | F127: =+F125*F126/365 -> 0 | G127: 0 | H127: 0 | I127: =+I125*I126/365 -> 0 | J127: 0 | K127: 0 | L127: 0 | M127: 0 | N127: 0 | O127: 0 | P127: 0 | Q127: 0 | R127: 0 | S127: 0
C128: Pagamento debiti di competenza | F128: =+F125-F127 -> 0 | G128: 0 | H128: 0 | I128: =+I125-I127 -> 0 | J128: 0 | K128: 0 | L128: 0 | M128: 0 | N128: 0 | O128: 0 | P128: 0 | Q128: 0 | R128: 0 | S128: 0
C129: Pagamento debiti anni precedenti
C130: Rettifiche monetarie su pagamenti
C131: Totale pagamenti | F131: =+F128+F129+F130 -> 0 | G131: 0 | H131: 0 | I131: =+I128+I129+I130 -> 0 | J131: 0 | K131: 0 | L131: 0 | M131: 0 | N131: 0 | O131: 0 | P131: 0 | Q131: 0 | R131: 0 | S131: 0
C132: Altre rettifiche su debiti
C133: Consistenza EOP | F133: =+E133+F127-F129+F132 -> 0 | G133: 0 | H133: 0 | I133: 0 | J133: 0 | K133: 0 | L133: 0 | M133: 0 | N133: 0 | O133: 0 | P133: 0 | Q133: 0 | R133: 0 | S133: 0
C135: Debiti per altri costi operativi
C136: Consistenza BOP | F136: =E150 -> 0 | G136: 0 | H136: 0 | I136: 0 | J136: 0 | K136: 0 | L136: 0 | M136: 0 | N136: 0 | O136: 0 | P136: 0 | Q136: 0 | R136: 0 | S136: 0
C137: Costi da PEF | F137: =+'Y3 PEF'!M276+'Y3 PEF'!M293+'Y3 PEF'!M301+'Y3 PEF'!M302+'Y3 PEF'!M317+'Y3 PEF'!M340 -> 0 | G137: =+'Y3 PEF'!N276+'Y3 PEF'!N293+'Y3 PEF'!N301+'Y3 PEF'!N302+'Y3 PEF'!N317+'Y3 PEF'!N340 -> 0 | H137: =+'Y3 PEF'!O276+'Y3 PEF'!O293+'Y3 PEF'!O301+'Y3 PEF'!O302+'Y3 PEF'!O317+'Y3 PEF'!O340 -> 0 | I137: =+'Y3 PEF'!P276+'Y3 PEF'!P293+'Y3 PEF'!P301+'Y3 PEF'!P302+'Y3 PEF'!P317+'Y3 PEF'!P340 -> 0 | J137: =+'Y3 PEF'!Q276+'Y3 PEF'!Q293+'Y3 PEF'!Q301+'Y3 PEF'!Q302+'Y3 PEF'!Q317+'Y3 PEF'!Q340 -> 0 | K137: =+'Y3 PEF'!R276+'Y3 PEF'!R293+'Y3 PEF'!R301+'Y3 PEF'!R302+'Y3 PEF'!R317+'Y3 PEF'!R340 -> 0 | L137: =+'Y3 PEF'!S276+'Y3 PEF'!S293+'Y3 PEF'!S301+'Y3 PEF'!S302+'Y3 PEF'!S317+'Y3 PEF'!S340 -> 0 | M137: =+'Y3 PEF'!T276+'Y3 PEF'!T293+'Y3 PEF'!T301+'Y3 PEF'!T302+'Y3 PEF'!T317+'Y3 PEF'!T340 -> 0 | N137: =+'Y3 PEF'!U276+'Y3 PEF'!U293+'Y3 PEF'!U301+'Y3 PEF'!U302+'Y3 PEF'!U317+'Y3 PEF'!U340 -> 0 | O137: =+'Y3 PEF'!V276+'Y3 PEF'!V293+'Y3 PEF'!V301+'Y3 PEF'!V302+'Y3 PEF'!V317+'Y3 PEF'!V340 -> 0 | P137: =+'Y3 PEF'!W276+'Y3 PEF'!W293+'Y3 PEF'!W301+'Y3 PEF'!W302+'Y3 PEF'!W317+'Y3 PEF'!W340 -> 0 | Q137: =+'Y3 PEF'!X276+'Y3 PEF'!X293+'Y3 PEF'!X301+'Y3 PEF'!X302+'Y3 PEF'!X317+'Y3 PEF'!X340 -> 0 | R137: =+'Y3 PEF'!Y276+'Y3 PEF'!Y293+'Y3 PEF'!Y301+'Y3 PEF'!Y302+'Y3 PEF'!Y317+'Y3 PEF'!Y340 -> 0 | S137: =+'Y3 PEF'!Z276+'Y3 PEF'!Z293+'Y3 PEF'!Z301+'Y3 PEF'!Z302+'Y3 PEF'!Z317+'Y3 PEF'!Z340 -> 0
C138: Rettifiche (motivare in Documento di metodologia e rendicontazione)
C139: Costi rettificati | F139: =+F137+F138 -> 0 | G139: 0 | H139: 0 | I139: =+I137+I138 -> 0 | J139: 0 | K139: 0 | L139: 0 | M139: 0 | N139: 0 | O139: 0 | P139: 0 | Q139: 0 | R139: 0 | S139: 0
C140: Aliquota IVA media | F140: 0 | G140: 0 | H140: 0 | I140: 0 | J140: 0 | K140: 0 | L140: 0 | M140: 0 | N140: 0 | O140: 0 | P140: 0 | Q140: 0 | R140: 0 | S140: 0
C141: Iva su costi rettificati | F141: =+F140*F139 -> 0 | G141: 0 | H141: 0 | I141: =+I140*I139 -> 0 | J141: 0 | K141: 0 | L141: 0 | M141: 0 | N141: 0 | O141: 0 | P141: 0 | Q141: 0 | R141: 0 | S141: 0
C142: Costi comprensivi di IVA | F142: =+F141+F139 -> 0 | G142: 0 | H142: 0 | I142: =+I141+I139 -> 0 | J142: 0 | K142: 0 | L142: 0 | M142: 0 | N142: 0 | O142: 0 | P142: 0 | Q142: 0 | R142: 0 | S142: 0
C143: Dilazioni di pagamento (giorni) | F143: 0 | G143: 0 | H143: 0 | I143: 0 | J143: 0 | K143: 0 | L143: 0 | M143: 0 | N143: 0 | O143: 0 | P143: 0 | Q143: 0 | R143: 0 | S143: 0
C144: Incremento stock debiti | F144: =+F142*F143/365 -> 0 | G144: 0 | H144: 0 | I144: =+I142*I143/365 -> 0 | J144: 0 | K144: 0 | L144: 0 | M144: 0 | N144: 0 | O144: 0 | P144: 0 | Q144: 0 | R144: 0 | S144: 0
C145: Pagamento debiti di competenza | F145: =+F142-F144 -> 0 | G145: 0 | H145: 0 | I145: =+I142-I144 -> 0 | J145: 0 | K145: 0 | L145: 0 | M145: 0 | N145: 0 | O145: 0 | P145: 0 | Q145: 0 | R145: 0 | S145: 0
C146: Pagamento debiti anni precedenti
C147: Rettifiche monetarie su pagamenti
C148: Totale pagamenti | F148: =+F145+F146+F147 -> 0 | G148: 0 | H148: 0 | I148: =+I145+I146+I147 -> 0 | J148: 0 | K148: 0 | L148: 0 | M148: 0 | N148: 0 | O148: 0 | P148: 0 | Q148: 0 | R148: 0 | S148: 0
C149: Altre rettifiche su debiti
C150: Consistenza EOP | F150: =+E150+F144-F146+F149 -> 0 | G150: 0 | H150: 0 | I150: 0 | J150: 0 | K150: 0 | L150: 0 | M150: 0 | N150: 0 | O150: 0 | P150: 0 | Q150: 0 | R150: 0 | S150: 0
C152: Debiti per investimenti in beni reversibili
C153: Consistenza BOP | F153: =E167 -> 0 | G153: 0 | H153: 0 | I153: 0 | J153: 0 | K153: 0 | L153: 0 | M153: 0 | N153: 0 | O153: 0 | P153: 0 | Q153: 0 | R153: 0 | S153: 0
C154: Costi da PEF | F154: =+'Y3 PEF'!M57 -> 0 | G154: =+'Y3 PEF'!N57 -> 0 | H154: =+'Y3 PEF'!O57 -> 0 | I154: =+'Y3 PEF'!P57 -> 0 | J154: =+'Y3 PEF'!Q57 -> 0 | K154: =+'Y3 PEF'!R57 -> 0 | L154: =+'Y3 PEF'!S57 -> 0 | M154: =+'Y3 PEF'!T57 -> 0 | N154: =+'Y3 PEF'!U57 -> 0 | O154: =+'Y3 PEF'!V57 -> 0 | P154: =+'Y3 PEF'!W57 -> 0 | Q154: =+'Y3 PEF'!X57 -> 0 | R154: =+'Y3 PEF'!Y57 -> 0 | S154: =+'Y3 PEF'!Z57 -> 0
C155: Rettifiche (motivare in Documento di metodologia e rendicontazione)
C156: Costi rettificati | F156: =+F154+F155 -> 0 | G156: 0 | H156: 0 | I156: =+I154+I155 -> 0 | J156: 0 | K156: 0 | L156: 0 | M156: 0 | N156: 0 | O156: 0 | P156: 0 | Q156: 0 | R156: 0 | S156: 0
C157: Aliquota IVA media | F157: 0 | G157: 0 | H157: 0 | I157: 0 | J157: 0 | K157: 0 | L157: 0 | M157: 0 | N157: 0 | O157: 0 | P157: 0 | Q157: 0 | R157: 0 | S157: 0
C158: Iva su costi rettificati | F158: =+F157*F156 -> 0 | G158: 0 | H158: 0 | I158: =+I157*I156 -> 0 | J158: 0 | K158: 0 | L158: 0 | M158: 0 | N158: 0 | O158: 0 | P158: 0 | Q158: 0 | R158: 0 | S158: 0
C159: Costi comprensivi di IVA | F159: =+F158+F156 -> 0 | G159: 0 | H159: 0 | I159: =+I158+I156 -> 0 | J159: 0 | K159: 0 | L159: 0 | M159: 0 | N159: 0 | O159: 0 | P159: 0 | Q159: 0 | R159: 0 | S159: 0
C160: Dilazioni di pagamento (giorni) | F160: 0 | G160: 0 | H160: 0 | I160: 0 | J160: 0 | K160: 0 | L160: 0 | M160: 0 | N160: 0 | O160: 0 | P160: 0 | Q160: 0 | R160: 0 | S160: 0
C161: Incremento stock debiti | F161: =+F159*F160/365 -> 0 | G161: 0 | H161: 0 | I161: =+I159*I160/365 -> 0 | J161: 0 | K161: 0 | L161: 0 | M161: 0 | N161: 0 | O161: 0 | P161: 0 | Q161: 0 | R161: 0 | S161: 0
C162: Pagamento debiti di competenza | F162: =+F159-F161 -> 0 | G162: 0 | H162: 0 | I162: =+I159-I161 -> 0 | J162: 0 | K162: 0 | L162: 0 | M162: 0 | N162: 0 | O162: 0 | P162: 0 | Q162: 0 | R162: 0 | S162: 0
C163: Pagamento debiti anni precedenti
C164: Rettifiche monetarie su pagamenti (es. per disinvestimenti)
C165: Totale pagamenti | F165: =+F162+F163+F164 -> 0 | G165: 0 | H165: 0 | I165: =+I162+I163+I164 -> 0 | J165: 0 | K165: 0 | L165: 0 | M165: 0 | N165: 0 | O165: 0 | P165: 0 | Q165: 0 | R165: 0 | S165: 0
C166: Altre rettifiche su debiti
C167: Consistenza EOP | F167: =+E167+F161-F163+F166 -> 0 | G167: 0 | H167: 0 | I167: 0 | J167: 0 | K167: 0 | L167: 0 | M167: 0 | N167: 0 | O167: 0 | P167: 0 | Q167: 0 | R167: 0 | S167: 0
C169: Debiti per investimenti in beni non reversibili
C170: Consistenza BOP | F170: =E184 -> 0 | G170: 0 | H170: 0 | I170: 0 | J170: 0 | K170: 0 | L170: 0 | M170: 0 | N170: 0 | O170: 0 | P170: 0 | Q170: 0 | R170: 0 | S170: 0
C171: Costi da PEF | F171: =+'Y3 PEF'!M63+'Y3 PEF'!M64 -> 0 | G171: =+'Y3 PEF'!N63+'Y3 PEF'!N64 -> 0 | H171: =+'Y3 PEF'!O63+'Y3 PEF'!O64 -> 0 | I171: =+'Y3 PEF'!P63+'Y3 PEF'!P64 -> 0 | J171: =+'Y3 PEF'!Q63+'Y3 PEF'!Q64 -> 0 | K171: =+'Y3 PEF'!R63+'Y3 PEF'!R64 -> 0 | L171: =+'Y3 PEF'!S63+'Y3 PEF'!S64 -> 0 | M171: =+'Y3 PEF'!T63+'Y3 PEF'!T64 -> 0 | N171: =+'Y3 PEF'!U63+'Y3 PEF'!U64 -> 0 | O171: =+'Y3 PEF'!V63+'Y3 PEF'!V64 -> 0 | P171: =+'Y3 PEF'!W63+'Y3 PEF'!W64 -> 0 | Q171: =+'Y3 PEF'!X63+'Y3 PEF'!X64 -> 0 | R171: =+'Y3 PEF'!Y63+'Y3 PEF'!Y64 -> 0 | S171: =+'Y3 PEF'!Z63+'Y3 PEF'!Z64 -> 0
C172: Rettifiche (motivare in Documento di metodologia e rendicontazione)
C173: Costi rettificati | F173: =+F171+F172 -> 0 | G173: 0 | H173: 0 | I173: =+I171+I172 -> 0 | J173: 0 | K173: 0 | L173: 0 | M173: 0 | N173: 0 | O173: 0 | P173: 0 | Q173: 0 | R173: 0 | S173: 0
C174: Aliquota IVA media | F174: 0 | G174: 0 | H174: 0 | I174: 0 | J174: 0 | K174: 0 | L174: 0 | M174: 0 | N174: 0 | O174: 0 | P174: 0 | Q174: 0 | R174: 0 | S174: 0
C175: Iva su costi rettificati | F175: =+F174*F173 -> 0 | G175: 0 | H175: 0 | I175: =+I174*I173 -> 0 | J175: 0 | K175: 0 | L175: 0 | M175: 0 | N175: 0 | O175: 0 | P175: 0 | Q175: 0 | R175: 0 | S175: 0
C176: Costi comprensivi di IVA | F176: =+F175+F173 -> 0 | G176: 0 | H176: 0 | I176: =+I175+I173 -> 0 | J176: 0 | K176: 0 | L176: 0 | M176: 0 | N176: 0 | O176: 0 | P176: 0 | Q176: 0 | R176: 0 | S176: 0
C177: Dilazioni di pagamento (giorni) | F177: 0 | G177: 0 | H177: 0 | I177: 0 | J177: 0 | K177: 0 | L177: 0 | M177: 0 | N177: 0 | O177: 0 | P177: 0 | Q177: 0 | R177: 0 | S177: 0
C178: Incremento stock debiti | F178: =+F176*F177/365 -> 0 | G178: 0 | H178: 0 | I178: =+I176*I177/365 -> 0 | J178: 0 | K178: 0 | L178: 0 | M178: 0 | N178: 0 | O178: 0 | P178: 0 | Q178: 0 | R178: 0 | S178: 0
C179: Pagamento debiti di competenza | F179: =+F176-F178 -> 0 | G179: 0 | H179: 0 | I179: =+I176-I178 -> 0 | J179: 0 | K179: 0 | L179: 0 | M179: 0 | N179: 0 | O179: 0 | P179: 0 | Q179: 0 | R179: 0 | S179: 0
C180: Pagamento debiti anni precedenti
C181: Rettifiche monetarie su pagamenti (es. per disinvestimenti)
C182: Totale pagamenti | F182: =+F179+F180+F181 -> 0 | G182: 0 | H182: 0 | I182: =+I179+I180+I181 -> 0 | J182: 0 | K182: 0 | L182: 0 | M182: 0 | N182: 0 | O182: 0 | P182: 0 | Q182: 0 | R182: 0 | S182: 0
C183: Altre rettifiche
C184: Consistenza EOP | F184: =+E184+F178-F180+F183 -> 0 | G184: 0 | H184: 0 | I184: 0 | J184: 0 | K184: 0 | L184: 0 | M184: 0 | N184: 0 | O184: 0 | P184: 0 | Q184: 0 | R184: 0 | S184: 0
C186: Debiti da interconnessione
C188: Consistenza BOP | F188: =E191 -> 0 | G188: =F191 -> 0 | H188: 0 | I188: 0 | J188: 0 | K188: 0 | L188: 0 | M188: 0 | N188: 0 | O188: 0 | P188: 0 | Q188: 0 | R188: 0 | S188: 0
C189: Variazioni in incremento
C190: Variazioni in riduzione
C191: Consistenza EOP | F191: =F188+F189-F190 -> 0 | G191: =G188+G189-G190 -> 0 | H191: 0 | I191: =I188+I189-I190 -> 0 | J191: 0 | K191: 0 | L191: 0 | M191: 0 | N191: 0 | O191: 0 | P191: 0 | Q191: 0 | R191: 0 | S191: 0
C193: Altri debiti operativi
C195: Consistenza BOP | F195: =E198 -> 0 | G195: =F198 -> 0 | H195: 0 | I195: 0 | J195: 0 | K195: 0 | L195: 0 | M195: 0 | N195: 0 | O195: 0 | P195: 0 | Q195: 0 | R195: 0 | S195: 0
C196: Variazioni in incremento
C197: Variazioni in riduzione
C198: Consistenza EOP | F198: =F195+F196-F197 -> 0 | G198: =G195+G196-G197 -> 0 | H198: 0 | I198: =I195+I196-I197 -> 0 | J198: 0 | K198: 0 | L198: 0 | M198: 0 | N198: 0 | O198: 0 | P198: 0 | Q198: 0 | R198: 0 | S198: 0
C202: Rimanenze, ratei e risconti
C204: Rimanenze
C206: Consistenza BOP | F206: =E209 -> 0 | G206: =F209 -> 0 | H206: 0 | I206: 0 | J206: 0 | K206: 0 | L206: 0 | M206: 0 | N206: 0 | O206: 0 | P206: 0 | Q206: 0 | R206: 0 | S206: 0
C207: Variazioni in incremento
C208: Variazioni in riduzione
C209: Consistenza EOP | F209: =F206+F207-F208 -> 0 | G209: =G206+G207-G208 -> 0 | H209: 0 | I209: =I206+I207-I208 -> 0 | J209: 0 | K209: 0 | L209: 0 | M209: 0 | N209: 0 | O209: 0 | P209: 0 | Q209: 0 | R209: 0 | S209: 0
C211: Ratei e risconti attivi operativi
C213: Consistenza BOP | F213: =E216 -> 0 | G213: =F216 -> 0 | H213: 0 | I213: 0 | J213: 0 | K213: 0 | L213: 0 | M213: 0 | N213: 0 | O213: 0 | P213: 0 | Q213: 0 | R213: 0 | S213: 0
C214: Variazioni in incremento
C215: Variazioni in riduzione
C216: Consistenza EOP | F216: =F213+F214-F215 -> 0 | G216: =G213+G214-G215 -> 0 | H216: 0 | I216: =I213+I214-I215 -> 0 | J216: 0 | K216: 0 | L216: 0 | M216: 0 | N216: 0 | O216: 0 | P216: 0 | Q216: 0 | R216: 0 | S216: 0
C218: Ratei e risconti passivi operativi
C220: Consistenza BOP | F220: =E223 -> 0 | G220: =F223 -> 0 | H220: 0 | I220: 0 | J220: 0 | K220: 0 | L220: 0 | M220: 0 | N220: 0 | O220: 0 | P220: 0 | Q220: 0 | R220: 0 | S220: 0
C221: Variazioni in incremento
C222: Variazioni in riduzione
C223: Consistenza EOP | F223: =F220+F221-F222 -> 0 | G223: =G220+G221-G222 -> 0 | H223: 0 | I223: =I220+I221-I222 -> 0 | J223: 0 | K223: 0 | L223: 0 | M223: 0 | N223: 0 | O223: 0 | P223: 0 | Q223: 0 | R223: 0 | S223: 0
C227: Crediti/debiti tributari e per imposte
C229: IRES
C231: Risultato ante imposte | F231: =+'Y3 PEF'!M464 -> 0 | G231: =+'Y3 PEF'!N464 -> 0 | H231: =+'Y3 PEF'!O464 -> 0 | I231: =+'Y3 PEF'!P464 -> 0 | J231: =+'Y3 PEF'!Q464 -> 0 | K231: =+'Y3 PEF'!R464 -> 0 | L231: =+'Y3 PEF'!S464 -> 0 | M231: =+'Y3 PEF'!T464 -> 0 | N231: =+'Y3 PEF'!U464 -> 0 | O231: =+'Y3 PEF'!V464 -> 0 | P231: =+'Y3 PEF'!W464 -> 0 | Q231: =+'Y3 PEF'!X464 -> 0 | R231: =+'Y3 PEF'!Y464 -> 0 | S231: =+'Y3 PEF'!Z464 -> 0
C232: Variazioni in aumento
C233: Variazione in diminuzione
C234: Riduzione base imponibile per utilizzo fiscale perdite
C235: Base imponibile fiscale | F235: =SUM(F231:F234) -> 0 | G235: 0 | H235: 0 | I235: =SUM(I231:I234) -> 0 | J235: 0 | K235: 0 | L235: 0 | M235: 0 | N235: 0 | O235: 0 | P235: 0 | Q235: 0 | R235: 0 | S235: 0
C236: Aliquota tassazione | F236: 0.3 | G236: =+F236 -> 0.3 | H236: 0.3 | I236: 0.3 | J236: 0.3 | K236: 0.3 | L236: 0.3 | M236: 0.3 | N236: 0.3 | O236: 0.3 | P236: 0.3 | Q236: 0.3 | R236: 0.3 | S236: 0.3
C237: IRES di competenza | F237: =+F236*F235 -> 0 | G237: 0 | H237: 0 | I237: =+I236*I235 -> 0 | J237: 0 | K237: 0 | L237: 0 | M237: 0 | N237: 0 | O237: 0 | P237: 0 | Q237: 0 | R237: 0 | S237: 0
C238: Versamento acconto | G238: =+F237 -> 0 | H238: 0 | I238: 0 | J238: 0 | K238: 0 | L238: 0 | M238: 0 | N238: 0 | O238: 0 | P238: 0 | Q238: 0 | R238: 0 | S238: 0
C239: Saldo a (credito)/debito | F239: =+F237-F238 -> 0 | G239: 0 | H239: 0 | I239: =+I237-I238 -> 0 | J239: 0 | K239: 0 | L239: 0 | M239: 0 | N239: 0 | O239: 0 | P239: 0 | Q239: 0 | R239: 0 | S239: 0
C240: Versamento saldo | G240: =+F239 -> 0 | H240: 0 | I240: 0 | J240: 0 | K240: 0 | L240: 0 | M240: 0 | N240: 0 | O240: 0 | P240: 0 | Q240: 0 | R240: 0 | S240: 0
C241: Ulteriori versamenti
C243: (Crediti)/debiti tributari BoP | F243: =+E245 -> 0 | G243: 0 | H243: 0 | I243: 0 | J243: 0 | K243: 0 | L243: 0 | M243: 0 | N243: 0 | O243: 0 | P243: 0 | Q243: 0 | R243: 0 | S243: 0
... 54 more rows

Sheet Y0.4.d PEF DettaglioDebito
E2: Dettaglio di pianificazione dell'indebitamento del concessionario per PEF
E4: Anno | J4: 2024 | K4: 2025 | L4: 2026 | M4: 2027 | N4: 2028 | O4: 2029 | P4: 2030 | Q4: 2031 | R4: 2032 | S4: 2033 | T4: 2034 | U4: 2035 | V4: 2036 | W4: 2037 | X4: 2038
E6: Anno base | J6: 1 | K6: 0 | L6: 0 | M6: 0 | N6: 1 | O6: 0 | P6: 0 | Q6: 0 | R6: 0 | S6: 1 | T6: 0 | U6: 0 | V6: 0 | W6: 0 | X6: 0
E7: Anno ponte | J7: 0 | K7: 1 | L7: 0 | M7: 0 | N7: 0 | O7: 1 | P7: 0 | Q7: 0 | R7: 0 | S7: 0 | T7: 1 | U7: 0 | V7: 0 | W7: 0 | X7: 0
E8: Periodo regolatorio | J8: 0 | K8: 0 | L8: 1 | M8: 1 | N8: 1 | O8: 1 | P8: 2 | Q8: 2 | R8: 2 | S8: 2 | T8: 2 | U8: 3 | V8: 3 | W8: 3 | X8: 3
E9: Anno del periodo regolatorio | J9: 0 | K9: 0 | L9: 1 | M9: 2 | N9: 3 | O9: 4 | P9: 1 | Q9: 2 | R9: 3 | S9: 4 | T9: 5 | U9: 1 | V9: 2 | W9: 3 | X9: 4
E10: Frazione di anno significativa | L10: 1 | M10: 1 | N10: 1 | O10: 1 | P10: 1 | Q10: 1 | R10: 1 | S10: 1 | T10: 1 | U10: 1 | V10: 1 | W10: 1 | X10: 1
K12: Ultimo adattamento schema: 31/10/2025 17:45:02
D15: Riepilogo per PEF
E17: Conto economico
E18: Costi per Debiti finanziari verso ANAS | K18: =SUMPRODUCT(($I$93:$I$142=$E18)*K$93:K$142) -> 0 | L18: =SUMPRODUCT(($I$93:$I$142=$E18)*L$93:L$142) -> 0 | M18: =SUMPRODUCT(($I$93:$I$142=$E18)*M$93:M$142) -> 0 | N18: =SUMPRODUCT(($I$93:$I$142=$E18)*N$93:N$142) -> 0 | O18: =SUMPRODUCT(($I$93:$I$142=$E18)*O$93:O$142) -> 0 | P18: =SUMPRODUCT(($I$93:$I$142=$E18)*P$93:P$142) -> 0 | Q18: =SUMPRODUCT(($I$93:$I$142=$E18)*Q$93:Q$142) -> 0 | R18: =SUMPRODUCT(($I$93:$I$142=$E18)*R$93:R$142) -> 0 | S18: =SUMPRODUCT(($I$93:$I$142=$E18)*S$93:S$142) -> 0 | T18: =SUMPRODUCT(($I$93:$I$142=$E18)*T$93:T$142) -> 0 | U18: =SUMPRODUCT(($I$93:$I$142=$E18)*U$93:U$142) -> 0 | V18: =SUMPRODUCT(($I$93:$I$142=$E18)*V$93:V$142) -> 0 | W18: =SUMPRODUCT(($I$93:$I$142=$E18)*W$93:W$142) -> 0 | X18: =SUMPRODUCT(($I$93:$I$142=$E18)*X$93:X$142) -> 0
E19: Costi per Obbligazioni | K19: =SUMPRODUCT(($I$93:$I$142=$E19)*K$93:K$142) -> 0 | L19: =SUMPRODUCT(($I$93:$I$142=$E19)*L$93:L$142) -> 12000 | M19: =SUMPRODUCT(($I$93:$I$142=$E19)*M$93:M$142) -> 12000 | N19: =SUMPRODUCT(($I$93:$I$142=$E19)*N$93:N$142) -> 6000 | O19: =SUMPRODUCT(($I$93:$I$142=$E19)*O$93:O$142) -> 0 | P19: =SUMPRODUCT(($I$93:$I$142=$E19)*P$93:P$142) -> -6000 | Q19: =SUMPRODUCT(($I$93:$I$142=$E19)*Q$93:Q$142) -> -12000 | R19: =SUMPRODUCT(($I$93:$I$142=$E19)*R$93:R$142) -> -18000 | S19: =SUMPRODUCT(($I$93:$I$142=$E19)*S$93:S$142) -> -24000 | T19: =SUMPRODUCT(($I$93:$I$142=$E19)*T$93:T$142) -> -30000 | U19: =SUMPRODUCT(($I$93:$I$142=$E19)*U$93:U$142) -> -36000 | V19: =SUMPRODUCT(($I$93:$I$142=$E19)*V$93:V$142) -> -42000 | W19: =SUMPRODUCT(($I$93:$I$142=$E19)*W$93:W$142) -> -48000 | X19: =SUMPRODUCT(($I$93:$I$142=$E19)*X$93:X$142) -> -54000
E20: Costi per Obbligazioni convertibili | K20: =SUMPRODUCT(($I$93:$I$142=$E20)*K$93:K$142) -> 0 | L20: =SUMPRODUCT(($I$93:$I$142=$E20)*L$93:L$142) -> 0 | M20: =SUMPRODUCT(($I$93:$I$142=$E20)*M$93:M$142) -> 0 | N20: =SUMPRODUCT(($I$93:$I$142=$E20)*N$93:N$142) -> 0 | O20: =SUMPRODUCT(($I$93:$I$142=$E20)*O$93:O$142) -> 0 | P20: =SUMPRODUCT(($I$93:$I$142=$E20)*P$93:P$142) -> 0 | Q20: =SUMPRODUCT(($I$93:$I$142=$E20)*Q$93:Q$142) -> 0 | R20: =SUMPRODUCT(($I$93:$I$142=$E20)*R$93:R$142) -> 0 | S20: =SUMPRODUCT(($I$93:$I$142=$E20)*S$93:S$142) -> 0 | T20: =SUMPRODUCT(($I$93:$I$142=$E20)*T$93:T$142) -> 0 | U20: =SUMPRODUCT(($I$93:$I$142=$E20)*U$93:U$142) -> 0 | V20: =SUMPRODUCT(($I$93:$I$142=$E20)*V$93:V$142) -> 0 | W20: =SUMPRODUCT(($I$93:$I$142=$E20)*W$93:W$142) -> 0 | X20: =SUMPRODUCT(($I$93:$I$142=$E20)*X$93:X$142) -> 0
E21: Costi per Debiti verso soci per finanziamenti | K21: =SUMPRODUCT(($I$93:$I$142=$E21)*K$93:K$142) -> 0 | L21: =SUMPRODUCT(($I$93:$I$142=$E21)*L$93:L$142) -> 0 | M21: =SUMPRODUCT(($I$93:$I$142=$E21)*M$93:M$142) -> 0 | N21: =SUMPRODUCT(($I$93:$I$142=$E21)*N$93:N$142) -> 0 | O21: =SUMPRODUCT(($I$93:$I$142=$E21)*O$93:O$142) -> 0 | P21: =SUMPRODUCT(($I$93:$I$142=$E21)*P$93:P$142) -> 0 | Q21: =SUMPRODUCT(($I$93:$I$142=$E21)*Q$93:Q$142) -> 0 | R21: =SUMPRODUCT(($I$93:$I$142=$E21)*R$93:R$142) -> 0 | S21: =SUMPRODUCT(($I$93:$I$142=$E21)*S$93:S$142) -> 0 | T21: =SUMPRODUCT(($I$93:$I$142=$E21)*T$93:T$142) -> 0 | U21: =SUMPRODUCT(($I$93:$I$142=$E21)*U$93:U$142) -> 0 | V21: =SUMPRODUCT(($I$93:$I$142=$E21)*V$93:V$142) -> 0 | W21: =SUMPRODUCT(($I$93:$I$142=$E21)*W$93:W$142) -> 0 | X21: =SUMPRODUCT(($I$93:$I$142=$E21)*X$93:X$142) -> 0
E22: Costi per Debiti per interessi su prestito soci | K22: =SUMPRODUCT(($I$93:$I$142=$E22)*K$93:K$142) -> 0 | L22: =SUMPRODUCT(($I$93:$I$142=$E22)*L$93:L$142) -> 0 | M22: =SUMPRODUCT(($I$93:$I$142=$E22)*M$93:M$142) -> 0 | N22: =SUMPRODUCT(($I$93:$I$142=$E22)*N$93:N$142) -> 0 | O22: =SUMPRODUCT(($I$93:$I$142=$E22)*O$93:O$142) -> 0 | P22: =SUMPRODUCT(($I$93:$I$142=$E22)*P$93:P$142) -> 0 | Q22: =SUMPRODUCT(($I$93:$I$142=$E22)*Q$93:Q$142) -> 0 | R22: =SUMPRODUCT(($I$93:$I$142=$E22)*R$93:R$142) -> 0 | S22: =SUMPRODUCT(($I$93:$I$142=$E22)*S$93:S$142) -> 0 | T22: =SUMPRODUCT(($I$93:$I$142=$E22)*T$93:T$142) -> 0 | U22: =SUMPRODUCT(($I$93:$I$142=$E22)*U$93:U$142) -> 0 | V22: =SUMPRODUCT(($I$93:$I$142=$E22)*V$93:V$142) -> 0 | W22: =SUMPRODUCT(($I$93:$I$142=$E22)*W$93:W$142) -> 0 | X22: =SUMPRODUCT(($I$93:$I$142=$E22)*X$93:X$142) -> 0
E23: Costi per Debiti verso banche | K23: =SUMPRODUCT(($I$93:$I$142=$E23)*K$93:K$142) -> 0 | L23: =SUMPRODUCT(($I$93:$I$142=$E23)*L$93:L$142) -> 0 | M23: =SUMPRODUCT(($I$93:$I$142=$E23)*M$93:M$142) -> 0 | N23: =SUMPRODUCT(($I$93:$I$142=$E23)*N$93:N$142) -> 0 | O23: =SUMPRODUCT(($I$93:$I$142=$E23)*O$93:O$142) -> 0 | P23: =SUMPRODUCT(($I$93:$I$142=$E23)*P$93:P$142) -> 0 | Q23: =SUMPRODUCT(($I$93:$I$142=$E23)*Q$93:Q$142) -> 0 | R23: =SUMPRODUCT(($I$93:$I$142=$E23)*R$93:R$142) -> 0 | S23: =SUMPRODUCT(($I$93:$I$142=$E23)*S$93:S$142) -> 0 | T23: =SUMPRODUCT(($I$93:$I$142=$E23)*T$93:T$142) -> 0 | U23: =SUMPRODUCT(($I$93:$I$142=$E23)*U$93:U$142) -> 0 | V23: =SUMPRODUCT(($I$93:$I$142=$E23)*V$93:V$142) -> 0 | W23: =SUMPRODUCT(($I$93:$I$142=$E23)*W$93:W$142) -> 0 | X23: =SUMPRODUCT(($I$93:$I$142=$E23)*X$93:X$142) -> 0
E24: Costi per Debiti verso altri finanziatori | K24: =SUMPRODUCT(($I$93:$I$142=$E24)*K$93:K$142) -> 0 | L24: =SUMPRODUCT(($I$93:$I$142=$E24)*L$93:L$142) -> 0 | M24: =SUMPRODUCT(($I$93:$I$142=$E24)*M$93:M$142) -> 0 | N24: =SUMPRODUCT(($I$93:$I$142=$E24)*N$93:N$142) -> 0 | O24: =SUMPRODUCT(($I$93:$I$142=$E24)*O$93:O$142) -> 0 | P24: =SUMPRODUCT(($I$93:$I$142=$E24)*P$93:P$142) -> 0 | Q24: =SUMPRODUCT(($I$93:$I$142=$E24)*Q$93:Q$142) -> 0 | R24: =SUMPRODUCT(($I$93:$I$142=$E24)*R$93:R$142) -> 0 | S24: =SUMPRODUCT(($I$93:$I$142=$E24)*S$93:S$142) -> 0 | T24: =SUMPRODUCT(($I$93:$I$142=$E24)*T$93:T$142) -> 0 | U24: =SUMPRODUCT(($I$93:$I$142=$E24)*U$93:U$142) -> 0 | V24: =SUMPRODUCT(($I$93:$I$142=$E24)*V$93:V$142) -> 0 | W24: =SUMPRODUCT(($I$93:$I$142=$E24)*W$93:W$142) -> 0 | X24: =SUMPRODUCT(($I$93:$I$142=$E24)*X$93:X$142) -> 0
E25: Costi per Debiti finanziari verso parti correlate | K25: =SUMPRODUCT(($I$93:$I$142=$E25)*K$93:K$142) -> 0 | L25: =SUMPRODUCT(($I$93:$I$142=$E25)*L$93:L$142) -> 0 | M25: =SUMPRODUCT(($I$93:$I$142=$E25)*M$93:M$142) -> 0 | N25: =SUMPRODUCT(($I$93:$I$142=$E25)*N$93:N$142) -> 0 | O25: =SUMPRODUCT(($I$93:$I$142=$E25)*O$93:O$142) -> 0 | P25: =SUMPRODUCT(($I$93:$I$142=$E25)*P$93:P$142) -> 0 | Q25: =SUMPRODUCT(($I$93:$I$142=$E25)*Q$93:Q$142) -> 0 | R25: =SUMPRODUCT(($I$93:$I$142=$E25)*R$93:R$142) -> 0 | S25: =SUMPRODUCT(($I$93:$I$142=$E25)*S$93:S$142) -> 0 | T25: =SUMPRODUCT(($I$93:$I$142=$E25)*T$93:T$142) -> 0 | U25: =SUMPRODUCT(($I$93:$I$142=$E25)*U$93:U$142) -> 0 | V25: =SUMPRODUCT(($I$93:$I$142=$E25)*V$93:V$142) -> 0 | W25: =SUMPRODUCT(($I$93:$I$142=$E25)*W$93:W$142) -> 0 | X25: =SUMPRODUCT(($I$93:$I$142=$E25)*X$93:X$142) -> 0
E26: Costi per Debiti infruttiferi (escluso FGC) | K26: =SUMPRODUCT(($I$93:$I$142=$E26)*K$93:K$142) -> 0 | L26: =SUMPRODUCT(($I$93:$I$142=$E26)*L$93:L$142) -> 0 | M26: =SUMPRODUCT(($I$93:$I$142=$E26)*M$93:M$142) -> 0 | N26: =SUMPRODUCT(($I$93:$I$142=$E26)*N$93:N$142) -> 0 | O26: =SUMPRODUCT(($I$93:$I$142=$E26)*O$93:O$142) -> 0 | P26: =SUMPRODUCT(($I$93:$I$142=$E26)*P$93:P$142) -> 0 | Q26: =SUMPRODUCT(($I$93:$I$142=$E26)*Q$93:Q$142) -> 0 | R26: =SUMPRODUCT(($I$93:$I$142=$E26)*R$93:R$142) -> 0 | S26: =SUMPRODUCT(($I$93:$I$142=$E26)*S$93:S$142) -> 0 | T26: =SUMPRODUCT(($I$93:$I$142=$E26)*T$93:T$142) -> 0 | U26: =SUMPRODUCT(($I$93:$I$142=$E26)*U$93:U$142) -> 0 | V26: =SUMPRODUCT(($I$93:$I$142=$E26)*V$93:V$142) -> 0 | W26: =SUMPRODUCT(($I$93:$I$142=$E26)*W$93:W$142) -> 0 | X26: =SUMPRODUCT(($I$93:$I$142=$E26)*X$93:X$142) -> 0
E27: Costi per Debiti infruttireri verso FCG e simili | K27: =SUMPRODUCT(($I$93:$I$142=$E27)*K$93:K$142) -> 0 | L27: =SUMPRODUCT(($I$93:$I$142=$E27)*L$93:L$142) -> 0 | M27: =SUMPRODUCT(($I$93:$I$142=$E27)*M$93:M$142) -> 0 | N27: =SUMPRODUCT(($I$93:$I$142=$E27)*N$93:N$142) -> 0 | O27: =SUMPRODUCT(($I$93:$I$142=$E27)*O$93:O$142) -> 0 | P27: =SUMPRODUCT(($I$93:$I$142=$E27)*P$93:P$142) -> 0 | Q27: =SUMPRODUCT(($I$93:$I$142=$E27)*Q$93:Q$142) -> 0 | R27: =SUMPRODUCT(($I$93:$I$142=$E27)*R$93:R$142) -> 0 | S27: =SUMPRODUCT(($I$93:$I$142=$E27)*S$93:S$142) -> 0 | T27: =SUMPRODUCT(($I$93:$I$142=$E27)*T$93:T$142) -> 0 | U27: =SUMPRODUCT(($I$93:$I$142=$E27)*U$93:U$142) -> 0 | V27: =SUMPRODUCT(($I$93:$I$142=$E27)*V$93:V$142) -> 0 | W27: =SUMPRODUCT(($I$93:$I$142=$E27)*W$93:W$142) -> 0 | X27: =SUMPRODUCT(($I$93:$I$142=$E27)*X$93:X$142) -> 0
E28: Costi per Prestiti IVA | K28: =SUMPRODUCT(($I$93:$I$142=$E28)*K$93:K$142) -> 0 | L28: =SUMPRODUCT(($I$93:$I$142=$E28)*L$93:L$142) -> 0 | M28: =SUMPRODUCT(($I$93:$I$142=$E28)*M$93:M$142) -> 0 | N28: =SUMPRODUCT(($I$93:$I$142=$E28)*N$93:N$142) -> 0 | O28: =SUMPRODUCT(($I$93:$I$142=$E28)*O$93:O$142) -> 0 | P28: =SUMPRODUCT(($I$93:$I$142=$E28)*P$93:P$142) -> 0 | Q28: =SUMPRODUCT(($I$93:$I$142=$E28)*Q$93:Q$142) -> 0 | R28: =SUMPRODUCT(($I$93:$I$142=$E28)*R$93:R$142) -> 0 | S28: =SUMPRODUCT(($I$93:$I$142=$E28)*S$93:S$142) -> 0 | T28: =SUMPRODUCT(($I$93:$I$142=$E28)*T$93:T$142) -> 0 | U28: =SUMPRODUCT(($I$93:$I$142=$E28)*U$93:U$142) -> 0 | V28: =SUMPRODUCT(($I$93:$I$142=$E28)*V$93:V$142) -> 0 | W28: =SUMPRODUCT(($I$93:$I$142=$E28)*W$93:W$142) -> 0 | X28: =SUMPRODUCT(($I$93:$I$142=$E28)*X$93:X$142) -> 0
E29: Costi per Prestiti a breve termine | K29: =SUMPRODUCT(($I$93:$I$142=$E29)*K$93:K$142) -> 0 | L29: =SUMPRODUCT(($I$93:$I$142=$E29)*L$93:L$142) -> 0 | M29: =SUMPRODUCT(($I$93:$I$142=$E29)*M$93:M$142) -> 0 | N29: =SUMPRODUCT(($I$93:$I$142=$E29)*N$93:N$142) -> 0 | O29: =SUMPRODUCT(($I$93:$I$142=$E29)*O$93:O$142) -> 0 | P29: =SUMPRODUCT(($I$93:$I$142=$E29)*P$93:P$142) -> 0 | Q29: =SUMPRODUCT(($I$93:$I$142=$E29)*Q$93:Q$142) -> 0 | R29: =SUMPRODUCT(($I$93:$I$142=$E29)*R$93:R$142) -> 0 | S29: =SUMPRODUCT(($I$93:$I$142=$E29)*S$93:S$142) -> 0 | T29: =SUMPRODUCT(($I$93:$I$142=$E29)*T$93:T$142) -> 0 | U29: =SUMPRODUCT(($I$93:$I$142=$E29)*U$93:U$142) -> 0 | V29: =SUMPRODUCT(($I$93:$I$142=$E29)*V$93:V$142) -> 0 | W29: =SUMPRODUCT(($I$93:$I$142=$E29)*W$93:W$142) -> 0 | X29: =SUMPRODUCT(($I$93:$I$142=$E29)*X$93:X$142) -> 0
E30: Costi per Altro | K30: =SUMPRODUCT(($I$93:$I$142=$E30)*K$93:K$142) -> 0 | L30: =SUMPRODUCT(($I$93:$I$142=$E30)*L$93:L$142) -> 0 | M30: =SUMPRODUCT(($I$93:$I$142=$E30)*M$93:M$142) -> 0 | N30: =SUMPRODUCT(($I$93:$I$142=$E30)*N$93:N$142) -> 0 | O30: =SUMPRODUCT(($I$93:$I$142=$E30)*O$93:O$142) -> 0 | P30: =SUMPRODUCT(($I$93:$I$142=$E30)*P$93:P$142) -> 0 | Q30: =SUMPRODUCT(($I$93:$I$142=$E30)*Q$93:Q$142) -> 0 | R30: =SUMPRODUCT(($I$93:$I$142=$E30)*R$93:R$142) -> 0 | S30: =SUMPRODUCT(($I$93:$I$142=$E30)*S$93:S$142) -> 0 | T30: =SUMPRODUCT(($I$93:$I$142=$E30)*T$93:T$142) -> 0 | U30: =SUMPRODUCT(($I$93:$I$142=$E30)*U$93:U$142) -> 0 | V30: =SUMPRODUCT(($I$93:$I$142=$E30)*V$93:V$142) -> 0 | W30: =SUMPRODUCT(($I$93:$I$142=$E30)*W$93:W$142) -> 0 | X30: =SUMPRODUCT(($I$93:$I$142=$E30)*X$93:X$142) -> 0
E31: Oneri finanziari capitalizzati | K31: =SUMPRODUCT(($I$93:$I$142=$E31)*K$93:K$142) -> 0 | L31: =SUMPRODUCT(($I$93:$I$142=$E31)*L$93:L$142) -> 0 | M31: =SUMPRODUCT(($I$93:$I$142=$E31)*M$93:M$142) -> 0 | N31: =SUMPRODUCT(($I$93:$I$142=$E31)*N$93:N$142) -> 0 | O31: =SUMPRODUCT(($I$93:$I$142=$E31)*O$93:O$142) -> 0 | P31: =SUMPRODUCT(($I$93:$I$142=$E31)*P$93:P$142) -> 0 | Q31: =SUMPRODUCT(($I$93:$I$142=$E31)*Q$93:Q$142) -> 0 | R31: =SUMPRODUCT(($I$93:$I$142=$E31)*R$93:R$142) -> 0 | S31: =SUMPRODUCT(($I$93:$I$142=$E31)*S$93:S$142) -> 0 | T31: =SUMPRODUCT(($I$93:$I$142=$E31)*T$93:T$142) -> 0 | U31: =SUMPRODUCT(($I$93:$I$142=$E31)*U$93:U$142) -> 0 | V31: =SUMPRODUCT(($I$93:$I$142=$E31)*V$93:V$142) -> 0 | W31: =SUMPRODUCT(($I$93:$I$142=$E31)*W$93:W$142) -> 0 | X31: =SUMPRODUCT(($I$93:$I$142=$E31)*X$93:X$142) -> 0
E33: Conto finanziamenti
E34: Debiti finanziari verso ANAS | K34: =SUMPRODUCT(($I$93:$I$142=$E34)*K$93:K$142) -> 0 | L34: =SUMPRODUCT(($I$93:$I$142=$E34)*L$93:L$142) -> 0 | M34: =SUMPRODUCT(($I$93:$I$142=$E34)*M$93:M$142) -> 0 | N34: =SUMPRODUCT(($I$93:$I$142=$E34)*N$93:N$142) -> 0 | O34: =SUMPRODUCT(($I$93:$I$142=$E34)*O$93:O$142) -> 0 | P34: =SUMPRODUCT(($I$93:$I$142=$E34)*P$93:P$142) -> 0 | Q34: =SUMPRODUCT(($I$93:$I$142=$E34)*Q$93:Q$142) -> 0 | R34: =SUMPRODUCT(($I$93:$I$142=$E34)*R$93:R$142) -> 0 | S34: =SUMPRODUCT(($I$93:$I$142=$E34)*S$93:S$142) -> 0 | T34: =SUMPRODUCT(($I$93:$I$142=$E34)*T$93:T$142) -> 0 | U34: =SUMPRODUCT(($I$93:$I$142=$E34)*U$93:U$142) -> 0 | V34: =SUMPRODUCT(($I$93:$I$142=$E34)*V$93:V$142) -> 0 | W34: =SUMPRODUCT(($I$93:$I$142=$E34)*W$93:W$142) -> 0 | X34: =SUMPRODUCT(($I$93:$I$142=$E34)*X$93:X$142) -> 0
E35: Obbligazioni | K35: =SUMPRODUCT(($I$93:$I$142=$E35)*K$93:K$142) -> 100000 | L35: =SUMPRODUCT(($I$93:$I$142=$E35)*L$93:L$142) -> 100000 | M35: =SUMPRODUCT(($I$93:$I$142=$E35)*M$93:M$142) -> 50000 | N35: =SUMPRODUCT(($I$93:$I$142=$E35)*N$93:N$142) -> 0 | O35: =SUMPRODUCT(($I$93:$I$142=$E35)*O$93:O$142) -> -50000 | P35: =SUMPRODUCT(($I$93:$I$142=$E35)*P$93:P$142) -> -100000 | Q35: =SUMPRODUCT(($I$93:$I$142=$E35)*Q$93:Q$142) -> -150000 | R35: =SUMPRODUCT(($I$93:$I$142=$E35)*R$93:R$142) -> -200000 | S35: =SUMPRODUCT(($I$93:$I$142=$E35)*S$93:S$142) -> -250000 | T35: =SUMPRODUCT(($I$93:$I$142=$E35)*T$93:T$142) -> -300000 | U35: =SUMPRODUCT(($I$93:$I$142=$E35)*U$93:U$142) -> -350000 | V35: =SUMPRODUCT(($I$93:$I$142=$E35)*V$93:V$142) -> -400000 | W35: =SUMPRODUCT(($I$93:$I$142=$E35)*W$93:W$142) -> -450000 | X35: =SUMPRODUCT(($I$93:$I$142=$E35)*X$93:X$142) -> -500000
E36: Obbligazioni convertibili | K36: =SUMPRODUCT(($I$93:$I$142=$E36)*K$93:K$142) -> 0 | L36: =SUMPRODUCT(($I$93:$I$142=$E36)*L$93:L$142) -> 0 | M36: =SUMPRODUCT(($I$93:$I$142=$E36)*M$93:M$142) -> 0 | N36: =SUMPRODUCT(($I$93:$I$142=$E36)*N$93:N$142) -> 0 | O36: =SUMPRODUCT(($I$93:$I$142=$E36)*O$93:O$142) -> 0 | P36: =SUMPRODUCT(($I$93:$I$142=$E36)*P$93:P$142) -> 0 | Q36: =SUMPRODUCT(($I$93:$I$142=$E36)*Q$93:Q$142) -> 0 | R36: =SUMPRODUCT(($I$93:$I$142=$E36)*R$93:R$142) -> 0 | S36: =SUMPRODUCT(($I$93:$I$142=$E36)*S$93:S$142) -> 0 | T36: =SUMPRODUCT(($I$93:$I$142=$E36)*T$93:T$142) -> 0 | U36: =SUMPRODUCT(($I$93:$I$142=$E36)*U$93:U$142) -> 0 | V36: =SUMPRODUCT(($I$93:$I$142=$E36)*V$93:V$142) -> 0 | W36: =SUMPRODUCT(($I$93:$I$142=$E36)*W$93:W$142) -> 0 | X36: =SUMPRODUCT(($I$93:$I$142=$E36)*X$93:X$142) -> 0
E37: Debiti verso soci per finanziamenti | K37: =SUMPRODUCT(($I$93:$I$142=$E37)*K$93:K$142) -> 0 | L37: =SUMPRODUCT(($I$93:$I$142=$E37)*L$93:L$142) -> 0 | M37: =SUMPRODUCT(($I$93:$I$142=$E37)*M$93:M$142) -> 0 | N37: =SUMPRODUCT(($I$93:$I$142=$E37)*N$93:N$142) -> 0 | O37: =SUMPRODUCT(($I$93:$I$142=$E37)*O$93:O$142) -> 0 | P37: =SUMPRODUCT(($I$93:$I$142=$E37)*P$93:P$142) -> 0 | Q37: =SUMPRODUCT(($I$93:$I$142=$E37)*Q$93:Q$142) -> 0 | R37: =SUMPRODUCT(($I$93:$I$142=$E37)*R$93:R$142) -> 0 | S37: =SUMPRODUCT(($I$93:$I$142=$E37)*S$93:S$142) -> 0 | T37: =SUMPRODUCT(($I$93:$I$142=$E37)*T$93:T$142) -> 0 | U37: =SUMPRODUCT(($I$93:$I$142=$E37)*U$93:U$142) -> 0 | V37: =SUMPRODUCT(($I$93:$I$142=$E37)*V$93:V$142) -> 0 | W37: =SUMPRODUCT(($I$93:$I$142=$E37)*W$93:W$142) -> 0 | X37: =SUMPRODUCT(($I$93:$I$142=$E37)*X$93:X$142) -> 0
E38: Debiti per interessi su prestito soci | K38: =SUMPRODUCT(($I$93:$I$142=$E38)*K$93:K$142) -> 0 | L38: =SUMPRODUCT(($I$93:$I$142=$E38)*L$93:L$142) -> 0 | M38: =SUMPRODUCT(($I$93:$I$142=$E38)*M$93:M$142) -> 0 | N38: =SUMPRODUCT(($I$93:$I$142=$E38)*N$93:N$142) -> 0 | O38: =SUMPRODUCT(($I$93:$I$142=$E38)*O$93:O$142) -> 0 | P38: =SUMPRODUCT(($I$93:$I$142=$E38)*P$93:P$142) -> 0 | Q38: =SUMPRODUCT(($I$93:$I$142=$E38)*Q$93:Q$142) -> 0 | R38: =SUMPRODUCT(($I$93:$I$142=$E38)*R$93:R$142) -> 0 | S38: =SUMPRODUCT(($I$93:$I$142=$E38)*S$93:S$142) -> 0 | T38: =SUMPRODUCT(($I$93:$I$142=$E38)*T$93:T$142) -> 0 | U38: =SUMPRODUCT(($I$93:$I$142=$E38)*U$93:U$142) -> 0 | V38: =SUMPRODUCT(($I$93:$I$142=$E38)*V$93:V$142) -> 0 | W38: =SUMPRODUCT(($I$93:$I$142=$E38)*W$93:W$142) -> 0 | X38: =SUMPRODUCT(($I$93:$I$142=$E38)*X$93:X$142) -> 0
E39: Debiti verso banche | K39: =SUMPRODUCT(($I$93:$I$142=$E39)*K$93:K$142) -> 0 | L39: =SUMPRODUCT(($I$93:$I$142=$E39)*L$93:L$142) -> 0 | M39: =SUMPRODUCT(($I$93:$I$142=$E39)*M$93:M$142) -> 0 | N39: =SUMPRODUCT(($I$93:$I$142=$E39)*N$93:N$142) -> 0 | O39: =SUMPRODUCT(($I$93:$I$142=$E39)*O$93:O$142) -> 0 | P39: =SUMPRODUCT(($I$93:$I$142=$E39)*P$93:P$142) -> 0 | Q39: =SUMPRODUCT(($I$93:$I$142=$E39)*Q$93:Q$142) -> 0 | R39: =SUMPRODUCT(($I$93:$I$142=$E39)*R$93:R$142) -> 0 | S39: =SUMPRODUCT(($I$93:$I$142=$E39)*S$93:S$142) -> 0 | T39: =SUMPRODUCT(($I$93:$I$142=$E39)*T$93:T$142) -> 0 | U39: =SUMPRODUCT(($I$93:$I$142=$E39)*U$93:U$142) -> 0 | V39: =SUMPRODUCT(($I$93:$I$142=$E39)*V$93:V$142) -> 0 | W39: =SUMPRODUCT(($I$93:$I$142=$E39)*W$93:W$142) -> 0 | X39: =SUMPRODUCT(($I$93:$I$142=$E39)*X$93:X$142) -> 0
E40: Debiti verso altri finanziatori | K40: =SUMPRODUCT(($I$93:$I$142=$E40)*K$93:K$142) -> 0 | L40: =SUMPRODUCT(($I$93:$I$142=$E40)*L$93:L$142) -> 0 | M40: =SUMPRODUCT(($I$93:$I$142=$E40)*M$93:M$142) -> 0 | N40: =SUMPRODUCT(($I$93:$I$142=$E40)*N$93:N$142) -> 0 | O40: =SUMPRODUCT(($I$93:$I$142=$E40)*O$93:O$142) -> 0 | P40: =SUMPRODUCT(($I$93:$I$142=$E40)*P$93:P$142) -> 0 | Q40: =SUMPRODUCT(($I$93:$I$142=$E40)*Q$93:Q$142) -> 0 | R40: =SUMPRODUCT(($I$93:$I$142=$E40)*R$93:R$142) -> 0 | S40: =SUMPRODUCT(($I$93:$I$142=$E40)*S$93:S$142) -> 0 | T40: =SUMPRODUCT(($I$93:$I$142=$E40)*T$93:T$142) -> 0 | U40: =SUMPRODUCT(($I$93:$I$142=$E40)*U$93:U$142) -> 0 | V40: =SUMPRODUCT(($I$93:$I$142=$E40)*V$93:V$142) -> 0 | W40: =SUMPRODUCT(($I$93:$I$142=$E40)*W$93:W$142) -> 0 | X40: =SUMPRODUCT(($I$93:$I$142=$E40)*X$93:X$142) -> 0
E41: Debiti finanziari verso parti correlate | K41: =SUMPRODUCT(($I$93:$I$142=$E41)*K$93:K$142) -> 0 | L41: =SUMPRODUCT(($I$93:$I$142=$E41)*L$93:L$142) -> 0 | M41: =SUMPRODUCT(($I$93:$I$142=$E41)*M$93:M$142) -> 0 | N41: =SUMPRODUCT(($I$93:$I$142=$E41)*N$93:N$142) -> 0 | O41: =SUMPRODUCT(($I$93:$I$142=$E41)*O$93:O$142) -> 0 | P41: =SUMPRODUCT(($I$93:$I$142=$E41)*P$93:P$142) -> 0 | Q41: =SUMPRODUCT(($I$93:$I$142=$E41)*Q$93:Q$142) -> 0 | R41: =SUMPRODUCT(($I$93:$I$142=$E41)*R$93:R$142) -> 0 | S41: =SUMPRODUCT(($I$93:$I$142=$E41)*S$93:S$142) -> 0 | T41: =SUMPRODUCT(($I$93:$I$142=$E41)*T$93:T$142) -> 0 | U41: =SUMPRODUCT(($I$93:$I$142=$E41)*U$93:U$142) -> 0 | V41: =SUMPRODUCT(($I$93:$I$142=$E41)*V$93:V$142) -> 0 | W41: =SUMPRODUCT(($I$93:$I$142=$E41)*W$93:W$142) -> 0 | X41: =SUMPRODUCT(($I$93:$I$142=$E41)*X$93:X$142) -> 0
E42: Debiti infruttiferi (escluso FCG) | K42: =SUMPRODUCT(($I$93:$I$142=$E42)*K$93:K$142) -> 0 | L42: =SUMPRODUCT(($I$93:$I$142=$E42)*L$93:L$142) -> 0 | M42: =SUMPRODUCT(($I$93:$I$142=$E42)*M$93:M$142) -> 0 | N42: =SUMPRODUCT(($I$93:$I$142=$E42)*N$93:N$142) -> 0 | O42: =SUMPRODUCT(($I$93:$I$142=$E42)*O$93:O$142) -> 0 | P42: =SUMPRODUCT(($I$93:$I$142=$E42)*P$93:P$142) -> 0 | Q42: =SUMPRODUCT(($I$93:$I$142=$E42)*Q$93:Q$142) -> 0 | R42: =SUMPRODUCT(($I$93:$I$142=$E42)*R$93:R$142) -> 0 | S42: =SUMPRODUCT(($I$93:$I$142=$E42)*S$93:S$142) -> 0 | T42: =SUMPRODUCT(($I$93:$I$142=$E42)*T$93:T$142) -> 0 | U42: =SUMPRODUCT(($I$93:$I$142=$E42)*U$93:U$142) -> 0 | V42: =SUMPRODUCT(($I$93:$I$142=$E42)*V$93:V$142) -> 0 | W42: =SUMPRODUCT(($I$93:$I$142=$E42)*W$93:W$142) -> 0 | X42: =SUMPRODUCT(($I$93:$I$142=$E42)*X$93:X$142) -> 0
E43: Debiti infruttireri verso FCG e simili | K43: =SUMPRODUCT(($I$93:$I$142=$E43)*K$93:K$142) -> 0 | L43: =SUMPRODUCT(($I$93:$I$142=$E43)*L$93:L$142) -> 0 | M43: =SUMPRODUCT(($I$93:$I$142=$E43)*M$93:M$142) -> 0 | N43: =SUMPRODUCT(($I$93:$I$142=$E43)*N$93:N$142) -> 0 | O43: =SUMPRODUCT(($I$93:$I$142=$E43)*O$93:O$142) -> 0 | P43: =SUMPRODUCT(($I$93:$I$142=$E43)*P$93:P$142) -> 0 | Q43: =SUMPRODUCT(($I$93:$I$142=$E43)*Q$93:Q$142) -> 0 | R43: =SUMPRODUCT(($I$93:$I$142=$E43)*R$93:R$142) -> 0 | S43: =SUMPRODUCT(($I$93:$I$142=$E43)*S$93:S$142) -> 0 | T43: =SUMPRODUCT(($I$93:$I$142=$E43)*T$93:T$142) -> 0 | U43: =SUMPRODUCT(($I$93:$I$142=$E43)*U$93:U$142) -> 0 | V43: =SUMPRODUCT(($I$93:$I$142=$E43)*V$93:V$142) -> 0 | W43: =SUMPRODUCT(($I$93:$I$142=$E43)*W$93:W$142) -> 0 | X43: =SUMPRODUCT(($I$93:$I$142=$E43)*X$93:X$142) -> 0
E44: Prestiti IVA | K44: =SUMPRODUCT(($I$93:$I$142=$E44)*K$93:K$142) -> 0 | L44: =SUMPRODUCT(($I$93:$I$142=$E44)*L$93:L$142) -> 0 | M44: =SUMPRODUCT(($I$93:$I$142=$E44)*M$93:M$142) -> 0 | N44: =SUMPRODUCT(($I$93:$I$142=$E44)*N$93:N$142) -> 0 | O44: =SUMPRODUCT(($I$93:$I$142=$E44)*O$93:O$142) -> 0 | P44: =SUMPRODUCT(($I$93:$I$142=$E44)*P$93:P$142) -> 0 | Q44: =SUMPRODUCT(($I$93:$I$142=$E44)*Q$93:Q$142) -> 0 | R44: =SUMPRODUCT(($I$93:$I$142=$E44)*R$93:R$142) -> 0 | S44: =SUMPRODUCT(($I$93:$I$142=$E44)*S$93:S$142) -> 0 | T44: =SUMPRODUCT(($I$93:$I$142=$E44)*T$93:T$142) -> 0 | U44: =SUMPRODUCT(($I$93:$I$142=$E44)*U$93:U$142) -> 0 | V44: =SUMPRODUCT(($I$93:$I$142=$E44)*V$93:V$142) -> 0 | W44: =SUMPRODUCT(($I$93:$I$142=$E44)*W$93:W$142) -> 0 | X44: =SUMPRODUCT(($I$93:$I$142=$E44)*X$93:X$142) -> 0
E45: Prestiti a breve termine | K45: =SUMPRODUCT(($I$93:$I$142=$E45)*K$93:K$142) -> 0 | L45: =SUMPRODUCT(($I$93:$I$142=$E45)*L$93:L$142) -> 0 | M45: =SUMPRODUCT(($I$93:$I$142=$E45)*M$93:M$142) -> 0 | N45: =SUMPRODUCT(($I$93:$I$142=$E45)*N$93:N$142) -> 0 | O45: =SUMPRODUCT(($I$93:$I$142=$E45)*O$93:O$142) -> 0 | P45: =SUMPRODUCT(($I$93:$I$142=$E45)*P$93:P$142) -> 0 | Q45: =SUMPRODUCT(($I$93:$I$142=$E45)*Q$93:Q$142) -> 0 | R45: =SUMPRODUCT(($I$93:$I$142=$E45)*R$93:R$142) -> 0 | S45: =SUMPRODUCT(($I$93:$I$142=$E45)*S$93:S$142) -> 0 | T45: =SUMPRODUCT(($I$93:$I$142=$E45)*T$93:T$142) -> 0 | U45: =SUMPRODUCT(($I$93:$I$142=$E45)*U$93:U$142) -> 0 | V45: =SUMPRODUCT(($I$93:$I$142=$E45)*V$93:V$142) -> 0 | W45: =SUMPRODUCT(($I$93:$I$142=$E45)*W$93:W$142) -> 0 | X45: =SUMPRODUCT(($I$93:$I$142=$E45)*X$93:X$142) -> 0
E46: Altro | K46: =SUMPRODUCT(($I$93:$I$142=$E46)*K$93:K$142) -> 0 | L46: =SUMPRODUCT(($I$93:$I$142=$E46)*L$93:L$142) -> 0 | M46: =SUMPRODUCT(($I$93:$I$142=$E46)*M$93:M$142) -> 0 | N46: =SUMPRODUCT(($I$93:$I$142=$E46)*N$93:N$142) -> 0 | O46: =SUMPRODUCT(($I$93:$I$142=$E46)*O$93:O$142) -> 0 | P46: =SUMPRODUCT(($I$93:$I$142=$E46)*P$93:P$142) -> 0 | Q46: =SUMPRODUCT(($I$93:$I$142=$E46)*Q$93:Q$142) -> 0 | R46: =SUMPRODUCT(($I$93:$I$142=$E46)*R$93:R$142) -> 0 | S46: =SUMPRODUCT(($I$93:$I$142=$E46)*S$93:S$142) -> 0 | T46: =SUMPRODUCT(($I$93:$I$142=$E46)*T$93:T$142) -> 0 | U46: =SUMPRODUCT(($I$93:$I$142=$E46)*U$93:U$142) -> 0 | V46: =SUMPRODUCT(($I$93:$I$142=$E46)*V$93:V$142) -> 0 | W46: =SUMPRODUCT(($I$93:$I$142=$E46)*W$93:W$142) -> 0 | X46: =SUMPRODUCT(($I$93:$I$142=$E46)*X$93:X$142) -> 0
E48: Conto finanziario
E50: Erogazione finanziamenti | K50: =SUM(K51:K63) -> 100000 | L50: =SUM(L51:L63) -> 0 | M50: 0 | N50: =SUM(N51:N63) -> 0 | O50: 0 | P50: 0 | Q50: 0 | R50: 0 | S50: 0 | T50: 0 | U50: 0 | V50: 0 | W50: 0 | X50: 0
C51: E | E51: Debiti finanziari verso ANAS | K51: =SUMPRODUCT(($H$93:$H$142=$E51)*($C$93:$C$142=$C51)*K$93:K$142) -> 0 | L51: =SUMPRODUCT(($H$93:$H$142=$E51)*($C$93:$C$142=$C51)*L$93:L$142) -> 0 | M51: =SUMPRODUCT(($H$93:$H$142=$E51)*($C$93:$C$142=$C51)*M$93:M$142) -> 0 | N51: =SUMPRODUCT(($H$93:$H$142=$E51)*($C$93:$C$142=$C51)*N$93:N$142) -> 0 | O51: =SUMPRODUCT(($H$93:$H$142=$E51)*($C$93:$C$142=$C51)*O$93:O$142) -> 0 | P51: =SUMPRODUCT(($H$93:$H$142=$E51)*($C$93:$C$142=$C51)*P$93:P$142) -> 0 | Q51: =SUMPRODUCT(($H$93:$H$142=$E51)*($C$93:$C$142=$C51)*Q$93:Q$142) -> 0 | R51: =SUMPRODUCT(($H$93:$H$142=$E51)*($C$93:$C$142=$C51)*R$93:R$142) -> 0 | S51: =SUMPRODUCT(($H$93:$H$142=$E51)*($C$93:$C$142=$C51)*S$93:S$142) -> 0 | T51: =SUMPRODUCT(($H$93:$H$142=$E51)*($C$93:$C$142=$C51)*T$93:T$142) -> 0 | U51: =SUMPRODUCT(($H$93:$H$142=$E51)*($C$93:$C$142=$C51)*U$93:U$142) -> 0 | V51: =SUMPRODUCT(($H$93:$H$142=$E51)*($C$93:$C$142=$C51)*V$93:V$142) -> 0 | W51: =SUMPRODUCT(($H$93:$H$142=$E51)*($C$93:$C$142=$C51)*W$93:W$142) -> 0 | X51: =SUMPRODUCT(($H$93:$H$142=$E51)*($C$93:$C$142=$C51)*X$93:X$142) -> 0
C52: E | E52: Obbligazioni | K52: =SUMPRODUCT(($H$93:$H$142=$E52)*($C$93:$C$142=$C52)*K$93:K$142) -> 100000 | L52: =SUMPRODUCT(($H$93:$H$142=$E52)*($C$93:$C$142=$C52)*L$93:L$142) -> 0 | M52: =SUMPRODUCT(($H$93:$H$142=$E52)*($C$93:$C$142=$C52)*M$93:M$142) -> 0 | N52: =SUMPRODUCT(($H$93:$H$142=$E52)*($C$93:$C$142=$C52)*N$93:N$142) -> 0 | O52: =SUMPRODUCT(($H$93:$H$142=$E52)*($C$93:$C$142=$C52)*O$93:O$142) -> 0 | P52: =SUMPRODUCT(($H$93:$H$142=$E52)*($C$93:$C$142=$C52)*P$93:P$142) -> 0 | Q52: =SUMPRODUCT(($H$93:$H$142=$E52)*($C$93:$C$142=$C52)*Q$93:Q$142) -> 0 | R52: =SUMPRODUCT(($H$93:$H$142=$E52)*($C$93:$C$142=$C52)*R$93:R$142) -> 0 | S52: =SUMPRODUCT(($H$93:$H$142=$E52)*($C$93:$C$142=$C52)*S$93:S$142) -> 0 | T52: =SUMPRODUCT(($H$93:$H$142=$E52)*($C$93:$C$142=$C52)*T$93:T$142) -> 0 | U52: =SUMPRODUCT(($H$93:$H$142=$E52)*($C$93:$C$142=$C52)*U$93:U$142) -> 0 | V52: =SUMPRODUCT(($H$93:$H$142=$E52)*($C$93:$C$142=$C52)*V$93:V$142) -> 0 | W52: =SUMPRODUCT(($H$93:$H$142=$E52)*($C$93:$C$142=$C52)*W$93:W$142) -> 0 | X52: =SUMPRODUCT(($H$93:$H$142=$E52)*($C$93:$C$142=$C52)*X$93:X$142) -> 0
C53: E | E53: Obbligazioni convertibili | K53: =SUMPRODUCT(($H$93:$H$142=$E53)*($C$93:$C$142=$C53)*K$93:K$142) -> 0 | L53: =SUMPRODUCT(($H$93:$H$142=$E53)*($C$93:$C$142=$C53)*L$93:L$142) -> 0 | M53: =SUMPRODUCT(($H$93:$H$142=$E53)*($C$93:$C$142=$C53)*M$93:M$142) -> 0 | N53: =SUMPRODUCT(($H$93:$H$142=$E53)*($C$93:$C$142=$C53)*N$93:N$142) -> 0 | O53: =SUMPRODUCT(($H$93:$H$142=$E53)*($C$93:$C$142=$C53)*O$93:O$142) -> 0 | P53: =SUMPRODUCT(($H$93:$H$142=$E53)*($C$93:$C$142=$C53)*P$93:P$142) -> 0 | Q53: =SUMPRODUCT(($H$93:$H$142=$E53)*($C$93:$C$142=$C53)*Q$93:Q$142) -> 0 | R53: =SUMPRODUCT(($H$93:$H$142=$E53)*($C$93:$C$142=$C53)*R$93:R$142) -> 0 | S53: =SUMPRODUCT(($H$93:$H$142=$E53)*($C$93:$C$142=$C53)*S$93:S$142) -> 0 | T53: =SUMPRODUCT(($H$93:$H$142=$E53)*($C$93:$C$142=$C53)*T$93:T$142) -> 0 | U53: =SUMPRODUCT(($H$93:$H$142=$E53)*($C$93:$C$142=$C53)*U$93:U$142) -> 0 | V53: =SUMPRODUCT(($H$93:$H$142=$E53)*($C$93:$C$142=$C53)*V$93:V$142) -> 0 | W53: =SUMPRODUCT(($H$93:$H$142=$E53)*($C$93:$C$142=$C53)*W$93:W$142) -> 0 | X53: =SUMPRODUCT(($H$93:$H$142=$E53)*($C$93:$C$142=$C53)*X$93:X$142) -> 0
C54: E | E54: Debiti verso soci per finanziamenti | K54: =SUMPRODUCT(($H$93:$H$142=$E54)*($C$93:$C$142=$C54)*K$93:K$142) -> 0 | L54: =SUMPRODUCT(($H$93:$H$142=$E54)*($C$93:$C$142=$C54)*L$93:L$142) -> 0 | M54: =SUMPRODUCT(($H$93:$H$142=$E54)*($C$93:$C$142=$C54)*M$93:M$142) -> 0 | N54: =SUMPRODUCT(($H$93:$H$142=$E54)*($C$93:$C$142=$C54)*N$93:N$142) -> 0 | O54: =SUMPRODUCT(($H$93:$H$142=$E54)*($C$93:$C$142=$C54)*O$93:O$142) -> 0 | P54: =SUMPRODUCT(($H$93:$H$142=$E54)*($C$93:$C$142=$C54)*P$93:P$142) -> 0 | Q54: =SUMPRODUCT(($H$93:$H$142=$E54)*($C$93:$C$142=$C54)*Q$93:Q$142) -> 0 | R54: =SUMPRODUCT(($H$93:$H$142=$E54)*($C$93:$C$142=$C54)*R$93:R$142) -> 0 | S54: =SUMPRODUCT(($H$93:$H$142=$E54)*($C$93:$C$142=$C54)*S$93:S$142) -> 0 | T54: =SUMPRODUCT(($H$93:$H$142=$E54)*($C$93:$C$142=$C54)*T$93:T$142) -> 0 | U54: =SUMPRODUCT(($H$93:$H$142=$E54)*($C$93:$C$142=$C54)*U$93:U$142) -> 0 | V54: =SUMPRODUCT(($H$93:$H$142=$E54)*($C$93:$C$142=$C54)*V$93:V$142) -> 0 | W54: =SUMPRODUCT(($H$93:$H$142=$E54)*($C$93:$C$142=$C54)*W$93:W$142) -> 0 | X54: =SUMPRODUCT(($H$93:$H$142=$E54)*($C$93:$C$142=$C54)*X$93:X$142) -> 0
C55: E | E55: Debiti per interessi su prestito soci | K55: =SUMPRODUCT(($H$93:$H$142=$E55)*($C$93:$C$142=$C55)*K$93:K$142) -> 0 | L55: =SUMPRODUCT(($H$93:$H$142=$E55)*($C$93:$C$142=$C55)*L$93:L$142) -> 0 | M55: =SUMPRODUCT(($H$93:$H$142=$E55)*($C$93:$C$142=$C55)*M$93:M$142) -> 0 | N55: =SUMPRODUCT(($H$93:$H$142=$E55)*($C$93:$C$142=$C55)*N$93:N$142) -> 0 | O55: =SUMPRODUCT(($H$93:$H$142=$E55)*($C$93:$C$142=$C55)*O$93:O$142) -> 0 | P55: =SUMPRODUCT(($H$93:$H$142=$E55)*($C$93:$C$142=$C55)*P$93:P$142) -> 0 | Q55: =SUMPRODUCT(($H$93:$H$142=$E55)*($C$93:$C$142=$C55)*Q$93:Q$142) -> 0 | R55: =SUMPRODUCT(($H$93:$H$142=$E55)*($C$93:$C$142=$C55)*R$93:R$142) -> 0 | S55: =SUMPRODUCT(($H$93:$H$142=$E55)*($C$93:$C$142=$C55)*S$93:S$142) -> 0 | T55: =SUMPRODUCT(($H$93:$H$142=$E55)*($C$93:$C$142=$C55)*T$93:T$142) -> 0 | U55: =SUMPRODUCT(($H$93:$H$142=$E55)*($C$93:$C$142=$C55)*U$93:U$142) -> 0 | V55: =SUMPRODUCT(($H$93:$H$142=$E55)*($C$93:$C$142=$C55)*V$93:V$142) -> 0 | W55: =SUMPRODUCT(($H$93:$H$142=$E55)*($C$93:$C$142=$C55)*W$93:W$142) -> 0 | X55: =SUMPRODUCT(($H$93:$H$142=$E55)*($C$93:$C$142=$C55)*X$93:X$142) -> 0
C56: E | E56: Debiti verso banche | K56: =SUMPRODUCT(($H$93:$H$142=$E56)*($C$93:$C$142=$C56)*K$93:K$142) -> 0 | L56: =SUMPRODUCT(($H$93:$H$142=$E56)*($C$93:$C$142=$C56)*L$93:L$142) -> 0 | M56: =SUMPRODUCT(($H$93:$H$142=$E56)*($C$93:$C$142=$C56)*M$93:M$142) -> 0 | N56: =SUMPRODUCT(($H$93:$H$142=$E56)*($C$93:$C$142=$C56)*N$93:N$142) -> 0 | O56: =SUMPRODUCT(($H$93:$H$142=$E56)*($C$93:$C$142=$C56)*O$93:O$142) -> 0 | P56: =SUMPRODUCT(($H$93:$H$142=$E56)*($C$93:$C$142=$C56)*P$93:P$142) -> 0 | Q56: =SUMPRODUCT(($H$93:$H$142=$E56)*($C$93:$C$142=$C56)*Q$93:Q$142) -> 0 | R56: =SUMPRODUCT(($H$93:$H$142=$E56)*($C$93:$C$142=$C56)*R$93:R$142) -> 0 | S56: =SUMPRODUCT(($H$93:$H$142=$E56)*($C$93:$C$142=$C56)*S$93:S$142) -> 0 | T56: =SUMPRODUCT(($H$93:$H$142=$E56)*($C$93:$C$142=$C56)*T$93:T$142) -> 0 | U56: =SUMPRODUCT(($H$93:$H$142=$E56)*($C$93:$C$142=$C56)*U$93:U$142) -> 0 | V56: =SUMPRODUCT(($H$93:$H$142=$E56)*($C$93:$C$142=$C56)*V$93:V$142) -> 0 | W56: =SUMPRODUCT(($H$93:$H$142=$E56)*($C$93:$C$142=$C56)*W$93:W$142) -> 0 | X56: =SUMPRODUCT(($H$93:$H$142=$E56)*($C$93:$C$142=$C56)*X$93:X$142) -> 0
C57: E | E57: Debiti verso altri finanziatori | K57: =SUMPRODUCT(($H$93:$H$142=$E57)*($C$93:$C$142=$C57)*K$93:K$142) -> 0 | L57: =SUMPRODUCT(($H$93:$H$142=$E57)*($C$93:$C$142=$C57)*L$93:L$142) -> 0 | M57: =SUMPRODUCT(($H$93:$H$142=$E57)*($C$93:$C$142=$C57)*M$93:M$142) -> 0 | N57: =SUMPRODUCT(($H$93:$H$142=$E57)*($C$93:$C$142=$C57)*N$93:N$142) -> 0 | O57: =SUMPRODUCT(($H$93:$H$142=$E57)*($C$93:$C$142=$C57)*O$93:O$142) -> 0 | P57: =SUMPRODUCT(($H$93:$H$142=$E57)*($C$93:$C$142=$C57)*P$93:P$142) -> 0 | Q57: =SUMPRODUCT(($H$93:$H$142=$E57)*($C$93:$C$142=$C57)*Q$93:Q$142) -> 0 | R57: =SUMPRODUCT(($H$93:$H$142=$E57)*($C$93:$C$142=$C57)*R$93:R$142) -> 0 | S57: =SUMPRODUCT(($H$93:$H$142=$E57)*($C$93:$C$142=$C57)*S$93:S$142) -> 0 | T57: =SUMPRODUCT(($H$93:$H$142=$E57)*($C$93:$C$142=$C57)*T$93:T$142) -> 0 | U57: =SUMPRODUCT(($H$93:$H$142=$E57)*($C$93:$C$142=$C57)*U$93:U$142) -> 0 | V57: =SUMPRODUCT(($H$93:$H$142=$E57)*($C$93:$C$142=$C57)*V$93:V$142) -> 0 | W57: =SUMPRODUCT(($H$93:$H$142=$E57)*($C$93:$C$142=$C57)*W$93:W$142) -> 0 | X57: =SUMPRODUCT(($H$93:$H$142=$E57)*($C$93:$C$142=$C57)*X$93:X$142) -> 0
C58: E | E58: Debiti finanziari verso parti correlate | K58: =SUMPRODUCT(($H$93:$H$142=$E58)*($C$93:$C$142=$C58)*K$93:K$142) -> 0 | L58: =SUMPRODUCT(($H$93:$H$142=$E58)*($C$93:$C$142=$C58)*L$93:L$142) -> 0 | M58: =SUMPRODUCT(($H$93:$H$142=$E58)*($C$93:$C$142=$C58)*M$93:M$142) -> 0 | N58: =SUMPRODUCT(($H$93:$H$142=$E58)*($C$93:$C$142=$C58)*N$93:N$142) -> 0 | O58: =SUMPRODUCT(($H$93:$H$142=$E58)*($C$93:$C$142=$C58)*O$93:O$142) -> 0 | P58: =SUMPRODUCT(($H$93:$H$142=$E58)*($C$93:$C$142=$C58)*P$93:P$142) -> 0 | Q58: =SUMPRODUCT(($H$93:$H$142=$E58)*($C$93:$C$142=$C58)*Q$93:Q$142) -> 0 | R58: =SUMPRODUCT(($H$93:$H$142=$E58)*($C$93:$C$142=$C58)*R$93:R$142) -> 0 | S58: =SUMPRODUCT(($H$93:$H$142=$E58)*($C$93:$C$142=$C58)*S$93:S$142) -> 0 | T58: =SUMPRODUCT(($H$93:$H$142=$E58)*($C$93:$C$142=$C58)*T$93:T$142) -> 0 | U58: =SUMPRODUCT(($H$93:$H$142=$E58)*($C$93:$C$142=$C58)*U$93:U$142) -> 0 | V58: =SUMPRODUCT(($H$93:$H$142=$E58)*($C$93:$C$142=$C58)*V$93:V$142) -> 0 | W58: =SUMPRODUCT(($H$93:$H$142=$E58)*($C$93:$C$142=$C58)*W$93:W$142) -> 0 | X58: =SUMPRODUCT(($H$93:$H$142=$E58)*($C$93:$C$142=$C58)*X$93:X$142) -> 0
C59: E | E59: Debiti infruttiferi (escluso FCG) | K59: =SUMPRODUCT(($H$93:$H$142=$E59)*($C$93:$C$142=$C59)*K$93:K$142) -> 0 | L59: =SUMPRODUCT(($H$93:$H$142=$E59)*($C$93:$C$142=$C59)*L$93:L$142) -> 0 | M59: =SUMPRODUCT(($H$93:$H$142=$E59)*($C$93:$C$142=$C59)*M$93:M$142) -> 0 | N59: =SUMPRODUCT(($H$93:$H$142=$E59)*($C$93:$C$142=$C59)*N$93:N$142) -> 0 | O59: =SUMPRODUCT(($H$93:$H$142=$E59)*($C$93:$C$142=$C59)*O$93:O$142) -> 0 | P59: =SUMPRODUCT(($H$93:$H$142=$E59)*($C$93:$C$142=$C59)*P$93:P$142) -> 0 | Q59: =SUMPRODUCT(($H$93:$H$142=$E59)*($C$93:$C$142=$C59)*Q$93:Q$142) -> 0 | R59: =SUMPRODUCT(($H$93:$H$142=$E59)*($C$93:$C$142=$C59)*R$93:R$142) -> 0 | S59: =SUMPRODUCT(($H$93:$H$142=$E59)*($C$93:$C$142=$C59)*S$93:S$142) -> 0 | T59: =SUMPRODUCT(($H$93:$H$142=$E59)*($C$93:$C$142=$C59)*T$93:T$142) -> 0 | U59: =SUMPRODUCT(($H$93:$H$142=$E59)*($C$93:$C$142=$C59)*U$93:U$142) -> 0 | V59: =SUMPRODUCT(($H$93:$H$142=$E59)*($C$93:$C$142=$C59)*V$93:V$142) -> 0 | W59: =SUMPRODUCT(($H$93:$H$142=$E59)*($C$93:$C$142=$C59)*W$93:W$142) -> 0 | X59: =SUMPRODUCT(($H$93:$H$142=$E59)*($C$93:$C$142=$C59)*X$93:X$142) -> 0
C60: E | E60: Debiti infruttireri verso FCG e simili | K60: =SUMPRODUCT(($H$93:$H$142=$E60)*($C$93:$C$142=$C60)*K$93:K$142) -> 0 | L60: =SUMPRODUCT(($H$93:$H$142=$E60)*($C$93:$C$142=$C60)*L$93:L$142) -> 0 | M60: =SUMPRODUCT(($H$93:$H$142=$E60)*($C$93:$C$142=$C60)*M$93:M$142) -> 0 | N60: =SUMPRODUCT(($H$93:$H$142=$E60)*($C$93:$C$142=$C60)*N$93:N$142) -> 0 | O60: =SUMPRODUCT(($H$93:$H$142=$E60)*($C$93:$C$142=$C60)*O$93:O$142) -> 0 | P60: =SUMPRODUCT(($H$93:$H$142=$E60)*($C$93:$C$142=$C60)*P$93:P$142) -> 0 | Q60: =SUMPRODUCT(($H$93:$H$142=$E60)*($C$93:$C$142=$C60)*Q$93:Q$142) -> 0 | R60: =SUMPRODUCT(($H$93:$H$142=$E60)*($C$93:$C$142=$C60)*R$93:R$142) -> 0 | S60: =SUMPRODUCT(($H$93:$H$142=$E60)*($C$93:$C$142=$C60)*S$93:S$142) -> 0 | T60: =SUMPRODUCT(($H$93:$H$142=$E60)*($C$93:$C$142=$C60)*T$93:T$142) -> 0 | U60: =SUMPRODUCT(($H$93:$H$142=$E60)*($C$93:$C$142=$C60)*U$93:U$142) -> 0 | V60: =SUMPRODUCT(($H$93:$H$142=$E60)*($C$93:$C$142=$C60)*V$93:V$142) -> 0 | W60: =SUMPRODUCT(($H$93:$H$142=$E60)*($C$93:$C$142=$C60)*W$93:W$142) -> 0 | X60: =SUMPRODUCT(($H$93:$H$142=$E60)*($C$93:$C$142=$C60)*X$93:X$142) -> 0
C61: E | E61: Prestiti IVA | K61: =SUMPRODUCT(($H$93:$H$142=$E61)*($C$93:$C$142=$C61)*K$93:K$142) -> 0 | L61: =SUMPRODUCT(($H$93:$H$142=$E61)*($C$93:$C$142=$C61)*L$93:L$142) -> 0 | M61: =SUMPRODUCT(($H$93:$H$142=$E61)*($C$93:$C$142=$C61)*M$93:M$142) -> 0 | N61: =SUMPRODUCT(($H$93:$H$142=$E61)*($C$93:$C$142=$C61)*N$93:N$142) -> 0 | O61: =SUMPRODUCT(($H$93:$H$142=$E61)*($C$93:$C$142=$C61)*O$93:O$142) -> 0 | P61: =SUMPRODUCT(($H$93:$H$142=$E61)*($C$93:$C$142=$C61)*P$93:P$142) -> 0 | Q61: =SUMPRODUCT(($H$93:$H$142=$E61)*($C$93:$C$142=$C61)*Q$93:Q$142) -> 0 | R61: =SUMPRODUCT(($H$93:$H$142=$E61)*($C$93:$C$142=$C61)*R$93:R$142) -> 0 | S61: =SUMPRODUCT(($H$93:$H$142=$E61)*($C$93:$C$142=$C61)*S$93:S$142) -> 0 | T61: =SUMPRODUCT(($H$93:$H$142=$E61)*($C$93:$C$142=$C61)*T$93:T$142) -> 0 | U61: =SUMPRODUCT(($H$93:$H$142=$E61)*($C$93:$C$142=$C61)*U$93:U$142) -> 0 | V61: =SUMPRODUCT(($H$93:$H$142=$E61)*($C$93:$C$142=$C61)*V$93:V$142) -> 0 | W61: =SUMPRODUCT(($H$93:$H$142=$E61)*($C$93:$C$142=$C61)*W$93:W$142) -> 0 | X61: =SUMPRODUCT(($H$93:$H$142=$E61)*($C$93:$C$142=$C61)*X$93:X$142) -> 0
C62: E | E62: Prestiti a breve termine | K62: =SUMPRODUCT(($H$93:$H$142=$E62)*($C$93:$C$142=$C62)*K$93:K$142) -> 0 | L62: =SUMPRODUCT(($H$93:$H$142=$E62)*($C$93:$C$142=$C62)*L$93:L$142) -> 0 | M62: =SUMPRODUCT(($H$93:$H$142=$E62)*($C$93:$C$142=$C62)*M$93:M$142) -> 0 | N62: =SUMPRODUCT(($H$93:$H$142=$E62)*($C$93:$C$142=$C62)*N$93:N$142) -> 0 | O62: =SUMPRODUCT(($H$93:$H$142=$E62)*($C$93:$C$142=$C62)*O$93:O$142) -> 0 | P62: =SUMPRODUCT(($H$93:$H$142=$E62)*($C$93:$C$142=$C62)*P$93:P$142) -> 0 | Q62: =SUMPRODUCT(($H$93:$H$142=$E62)*($C$93:$C$142=$C62)*Q$93:Q$142) -> 0 | R62: =SUMPRODUCT(($H$93:$H$142=$E62)*($C$93:$C$142=$C62)*R$93:R$142) -> 0 | S62: =SUMPRODUCT(($H$93:$H$142=$E62)*($C$93:$C$142=$C62)*S$93:S$142) -> 0 | T62: =SUMPRODUCT(($H$93:$H$142=$E62)*($C$93:$C$142=$C62)*T$93:T$142) -> 0 | U62: =SUMPRODUCT(($H$93:$H$142=$E62)*($C$93:$C$142=$C62)*U$93:U$142) -> 0 | V62: =SUMPRODUCT(($H$93:$H$142=$E62)*($C$93:$C$142=$C62)*V$93:V$142) -> 0 | W62: =SUMPRODUCT(($H$93:$H$142=$E62)*($C$93:$C$142=$C62)*W$93:W$142) -> 0 | X62: =SUMPRODUCT(($H$93:$H$142=$E62)*($C$93:$C$142=$C62)*X$93:X$142) -> 0
C63: E | E63: Altro | K63: =SUMPRODUCT(($H$93:$H$142=$E63)*($C$93:$C$142=$C63)*K$93:K$142) -> 0 | L63: =SUMPRODUCT(($H$93:$H$142=$E63)*($C$93:$C$142=$C63)*L$93:L$142) -> 0 | M63: =SUMPRODUCT(($H$93:$H$142=$E63)*($C$93:$C$142=$C63)*M$93:M$142) -> 0 | N63: =SUMPRODUCT(($H$93:$H$142=$E63)*($C$93:$C$142=$C63)*N$93:N$142) -> 0 | O63: =SUMPRODUCT(($H$93:$H$142=$E63)*($C$93:$C$142=$C63)*O$93:O$142) -> 0 | P63: =SUMPRODUCT(($H$93:$H$142=$E63)*($C$93:$C$142=$C63)*P$93:P$142) -> 0 | Q63: =SUMPRODUCT(($H$93:$H$142=$E63)*($C$93:$C$142=$C63)*Q$93:Q$142) -> 0 | R63: =SUMPRODUCT(($H$93:$H$142=$E63)*($C$93:$C$142=$C63)*R$93:R$142) -> 0 | S63: =SUMPRODUCT(($H$93:$H$142=$E63)*($C$93:$C$142=$C63)*S$93:S$142) -> 0 | T63: =SUMPRODUCT(($H$93:$H$142=$E63)*($C$93:$C$142=$C63)*T$93:T$142) -> 0 | U63: =SUMPRODUCT(($H$93:$H$142=$E63)*($C$93:$C$142=$C63)*U$93:U$142) -> 0 | V63: =SUMPRODUCT(($H$93:$H$142=$E63)*($C$93:$C$142=$C63)*V$93:V$142) -> 0 | W63: =SUMPRODUCT(($H$93:$H$142=$E63)*($C$93:$C$142=$C63)*W$93:W$142) -> 0 | X63: =SUMPRODUCT(($H$93:$H$142=$E63)*($C$93:$C$142=$C63)*X$93:X$142) -> 0
E65: Rimborso finanziamenti | K65: =SUM(K66:K78) -> 0 | L65: =SUM(L66:L78) -> 0 | M65: -50000 | N65: =SUM(N66:N78) -> -50000 | O65: -50000 | P65: -50000 | Q65: -50000 | R65: -50000 | S65: -50000 | T65: -50000 | U65: -50000 | V65: -50000 | W65: -50000 | X65: -50000
C66: R | E66: Debiti finanziari verso ANAS | K66: =SUMPRODUCT(($H$93:$H$142=$E66)*($C$93:$C$142=$C66)*K$93:K$142) -> 0 | L66: =SUMPRODUCT(($H$93:$H$142=$E66)*($C$93:$C$142=$C66)*L$93:L$142) -> 0 | M66: =SUMPRODUCT(($H$93:$H$142=$E66)*($C$93:$C$142=$C66)*M$93:M$142) -> 0 | N66: =SUMPRODUCT(($H$93:$H$142=$E66)*($C$93:$C$142=$C66)*N$93:N$142) -> 0 | O66: =SUMPRODUCT(($H$93:$H$142=$E66)*($C$93:$C$142=$C66)*O$93:O$142) -> 0 | P66: =SUMPRODUCT(($H$93:$H$142=$E66)*($C$93:$C$142=$C66)*P$93:P$142) -> 0 | Q66: =SUMPRODUCT(($H$93:$H$142=$E66)*($C$93:$C$142=$C66)*Q$93:Q$142) -> 0 | R66: =SUMPRODUCT(($H$93:$H$142=$E66)*($C$93:$C$142=$C66)*R$93:R$142) -> 0 | S66: =SUMPRODUCT(($H$93:$H$142=$E66)*($C$93:$C$142=$C66)*S$93:S$142) -> 0 | T66: =SUMPRODUCT(($H$93:$H$142=$E66)*($C$93:$C$142=$C66)*T$93:T$142) -> 0 | U66: =SUMPRODUCT(($H$93:$H$142=$E66)*($C$93:$C$142=$C66)*U$93:U$142) -> 0 | V66: =SUMPRODUCT(($H$93:$H$142=$E66)*($C$93:$C$142=$C66)*V$93:V$142) -> 0 | W66: =SUMPRODUCT(($H$93:$H$142=$E66)*($C$93:$C$142=$C66)*W$93:W$142) -> 0 | X66: =SUMPRODUCT(($H$93:$H$142=$E66)*($C$93:$C$142=$C66)*X$93:X$142) -> 0
C67: R | E67: Obbligazioni | K67: =SUMPRODUCT(($H$93:$H$142=$E67)*($C$93:$C$142=$C67)*K$93:K$142) -> 0 | L67: =SUMPRODUCT(($H$93:$H$142=$E67)*($C$93:$C$142=$C67)*L$93:L$142) -> 0 | M67: =SUMPRODUCT(($H$93:$H$142=$E67)*($C$93:$C$142=$C67)*M$93:M$142) -> -50000 | N67: =SUMPRODUCT(($H$93:$H$142=$E67)*($C$93:$C$142=$C67)*N$93:N$142) -> -50000 | O67: =SUMPRODUCT(($H$93:$H$142=$E67)*($C$93:$C$142=$C67)*O$93:O$142) -> -50000 | P67: =SUMPRODUCT(($H$93:$H$142=$E67)*($C$93:$C$142=$C67)*P$93:P$142) -> -50000 | Q67: =SUMPRODUCT(($H$93:$H$142=$E67)*($C$93:$C$142=$C67)*Q$93:Q$142) -> -50000 | R67: =SUMPRODUCT(($H$93:$H$142=$E67)*($C$93:$C$142=$C67)*R$93:R$142) -> -50000 | S67: =SUMPRODUCT(($H$93:$H$142=$E67)*($C$93:$C$142=$C67)*S$93:S$142) -> -50000 | T67: =SUMPRODUCT(($H$93:$H$142=$E67)*($C$93:$C$142=$C67)*T$93:T$142) -> -50000 | U67: =SUMPRODUCT(($H$93:$H$142=$E67)*($C$93:$C$142=$C67)*U$93:U$142) -> -50000 | V67: =SUMPRODUCT(($H$93:$H$142=$E67)*($C$93:$C$142=$C67)*V$93:V$142) -> -50000 | W67: =SUMPRODUCT(($H$93:$H$142=$E67)*($C$93:$C$142=$C67)*W$93:W$142) -> -50000 | X67: =SUMPRODUCT(($H$93:$H$142=$E67)*($C$93:$C$142=$C67)*X$93:X$142) -> -50000
C68: R | E68: Obbligazioni convertibili | K68: =SUMPRODUCT(($H$93:$H$142=$E68)*($C$93:$C$142=$C68)*K$93:K$142) -> 0 | L68: =SUMPRODUCT(($H$93:$H$142=$E68)*($C$93:$C$142=$C68)*L$93:L$142) -> 0 | M68: =SUMPRODUCT(($H$93:$H$142=$E68)*($C$93:$C$142=$C68)*M$93:M$142) -> 0 | N68: =SUMPRODUCT(($H$93:$H$142=$E68)*($C$93:$C$142=$C68)*N$93:N$142) -> 0 | O68: =SUMPRODUCT(($H$93:$H$142=$E68)*($C$93:$C$142=$C68)*O$93:O$142) -> 0 | P68: =SUMPRODUCT(($H$93:$H$142=$E68)*($C$93:$C$142=$C68)*P$93:P$142) -> 0 | Q68: =SUMPRODUCT(($H$93:$H$142=$E68)*($C$93:$C$142=$C68)*Q$93:Q$142) -> 0 | R68: =SUMPRODUCT(($H$93:$H$142=$E68)*($C$93:$C$142=$C68)*R$93:R$142) -> 0 | S68: =SUMPRODUCT(($H$93:$H$142=$E68)*($C$93:$C$142=$C68)*S$93:S$142) -> 0 | T68: =SUMPRODUCT(($H$93:$H$142=$E68)*($C$93:$C$142=$C68)*T$93:T$142) -> 0 | U68: =SUMPRODUCT(($H$93:$H$142=$E68)*($C$93:$C$142=$C68)*U$93:U$142) -> 0 | V68: =SUMPRODUCT(($H$93:$H$142=$E68)*($C$93:$C$142=$C68)*V$93:V$142) -> 0 | W68: =SUMPRODUCT(($H$93:$H$142=$E68)*($C$93:$C$142=$C68)*W$93:W$142) -> 0 | X68: =SUMPRODUCT(($H$93:$H$142=$E68)*($C$93:$C$142=$C68)*X$93:X$142) -> 0
C69: R | E69: Debiti verso soci per finanziamenti | K69: =SUMPRODUCT(($H$93:$H$142=$E69)*($C$93:$C$142=$C69)*K$93:K$142) -> 0 | L69: =SUMPRODUCT(($H$93:$H$142=$E69)*($C$93:$C$142=$C69)*L$93:L$142) -> 0 | M69: =SUMPRODUCT(($H$93:$H$142=$E69)*($C$93:$C$142=$C69)*M$93:M$142) -> 0 | N69: =SUMPRODUCT(($H$93:$H$142=$E69)*($C$93:$C$142=$C69)*N$93:N$142) -> 0 | O69: =SUMPRODUCT(($H$93:$H$142=$E69)*($C$93:$C$142=$C69)*O$93:O$142) -> 0 | P69: =SUMPRODUCT(($H$93:$H$142=$E69)*($C$93:$C$142=$C69)*P$93:P$142) -> 0 | Q69: =SUMPRODUCT(($H$93:$H$142=$E69)*($C$93:$C$142=$C69)*Q$93:Q$142) -> 0 | R69: =SUMPRODUCT(($H$93:$H$142=$E69)*($C$93:$C$142=$C69)*R$93:R$142) -> 0 | S69: =SUMPRODUCT(($H$93:$H$142=$E69)*($C$93:$C$142=$C69)*S$93:S$142) -> 0 | T69: =SUMPRODUCT(($H$93:$H$142=$E69)*($C$93:$C$142=$C69)*T$93:T$142) -> 0 | U69: =SUMPRODUCT(($H$93:$H$142=$E69)*($C$93:$C$142=$C69)*U$93:U$142) -> 0 | V69: =SUMPRODUCT(($H$93:$H$142=$E69)*($C$93:$C$142=$C69)*V$93:V$142) -> 0 | W69: =SUMPRODUCT(($H$93:$H$142=$E69)*($C$93:$C$142=$C69)*W$93:W$142) -> 0 | X69: =SUMPRODUCT(($H$93:$H$142=$E69)*($C$93:$C$142=$C69)*X$93:X$142) -> 0
C70: R | E70: Debiti per interessi su prestito soci | K70: =SUMPRODUCT(($H$93:$H$142=$E70)*($C$93:$C$142=$C70)*K$93:K$142) -> 0 | L70: =SUMPRODUCT(($H$93:$H$142=$E70)*($C$93:$C$142=$C70)*L$93:L$142) -> 0 | M70: =SUMPRODUCT(($H$93:$H$142=$E70)*($C$93:$C$142=$C70)*M$93:M$142) -> 0 | N70: =SUMPRODUCT(($H$93:$H$142=$E70)*($C$93:$C$142=$C70)*N$93:N$142) -> 0 | O70: =SUMPRODUCT(($H$93:$H$142=$E70)*($C$93:$C$142=$C70)*O$93:O$142) -> 0 | P70: =SUMPRODUCT(($H$93:$H$142=$E70)*($C$93:$C$142=$C70)*P$93:P$142) -> 0 | Q70: =SUMPRODUCT(($H$93:$H$142=$E70)*($C$93:$C$142=$C70)*Q$93:Q$142) -> 0 | R70: =SUMPRODUCT(($H$93:$H$142=$E70)*($C$93:$C$142=$C70)*R$93:R$142) -> 0 | S70: =SUMPRODUCT(($H$93:$H$142=$E70)*($C$93:$C$142=$C70)*S$93:S$142) -> 0 | T70: =SUMPRODUCT(($H$93:$H$142=$E70)*($C$93:$C$142=$C70)*T$93:T$142) -> 0 | U70: =SUMPRODUCT(($H$93:$H$142=$E70)*($C$93:$C$142=$C70)*U$93:U$142) -> 0 | V70: =SUMPRODUCT(($H$93:$H$142=$E70)*($C$93:$C$142=$C70)*V$93:V$142) -> 0 | W70: =SUMPRODUCT(($H$93:$H$142=$E70)*($C$93:$C$142=$C70)*W$93:W$142) -> 0 | X70: =SUMPRODUCT(($H$93:$H$142=$E70)*($C$93:$C$142=$C70)*X$93:X$142) -> 0
C71: R | E71: Debiti verso banche | K71: =SUMPRODUCT(($H$93:$H$142=$E71)*($C$93:$C$142=$C71)*K$93:K$142) -> 0 | L71: =SUMPRODUCT(($H$93:$H$142=$E71)*($C$93:$C$142=$C71)*L$93:L$142) -> 0 | M71: =SUMPRODUCT(($H$93:$H$142=$E71)*($C$93:$C$142=$C71)*M$93:M$142) -> 0 | N71: =SUMPRODUCT(($H$93:$H$142=$E71)*($C$93:$C$142=$C71)*N$93:N$142) -> 0 | O71: =SUMPRODUCT(($H$93:$H$142=$E71)*($C$93:$C$142=$C71)*O$93:O$142) -> 0 | P71: =SUMPRODUCT(($H$93:$H$142=$E71)*($C$93:$C$142=$C71)*P$93:P$142) -> 0 | Q71: =SUMPRODUCT(($H$93:$H$142=$E71)*($C$93:$C$142=$C71)*Q$93:Q$142) -> 0 | R71: =SUMPRODUCT(($H$93:$H$142=$E71)*($C$93:$C$142=$C71)*R$93:R$142) -> 0 | S71: =SUMPRODUCT(($H$93:$H$142=$E71)*($C$93:$C$142=$C71)*S$93:S$142) -> 0 | T71: =SUMPRODUCT(($H$93:$H$142=$E71)*($C$93:$C$142=$C71)*T$93:T$142) -> 0 | U71: =SUMPRODUCT(($H$93:$H$142=$E71)*($C$93:$C$142=$C71)*U$93:U$142) -> 0 | V71: =SUMPRODUCT(($H$93:$H$142=$E71)*($C$93:$C$142=$C71)*V$93:V$142) -> 0 | W71: =SUMPRODUCT(($H$93:$H$142=$E71)*($C$93:$C$142=$C71)*W$93:W$142) -> 0 | X71: =SUMPRODUCT(($H$93:$H$142=$E71)*($C$93:$C$142=$C71)*X$93:X$142) -> 0
C72: R | E72: Debiti verso altri finanziatori | K72: =SUMPRODUCT(($H$93:$H$142=$E72)*($C$93:$C$142=$C72)*K$93:K$142) -> 0 | L72: =SUMPRODUCT(($H$93:$H$142=$E72)*($C$93:$C$142=$C72)*L$93:L$142) -> 0 | M72: =SUMPRODUCT(($H$93:$H$142=$E72)*($C$93:$C$142=$C72)*M$93:M$142) -> 0 | N72: =SUMPRODUCT(($H$93:$H$142=$E72)*($C$93:$C$142=$C72)*N$93:N$142) -> 0 | O72: =SUMPRODUCT(($H$93:$H$142=$E72)*($C$93:$C$142=$C72)*O$93:O$142) -> 0 | P72: =SUMPRODUCT(($H$93:$H$142=$E72)*($C$93:$C$142=$C72)*P$93:P$142) -> 0 | Q72: =SUMPRODUCT(($H$93:$H$142=$E72)*($C$93:$C$142=$C72)*Q$93:Q$142) -> 0 | R72: =SUMPRODUCT(($H$93:$H$142=$E72)*($C$93:$C$142=$C72)*R$93:R$142) -> 0 | S72: =SUMPRODUCT(($H$93:$H$142=$E72)*($C$93:$C$142=$C72)*S$93:S$142) -> 0 | T72: =SUMPRODUCT(($H$93:$H$142=$E72)*($C$93:$C$142=$C72)*T$93:T$142) -> 0 | U72: =SUMPRODUCT(($H$93:$H$142=$E72)*($C$93:$C$142=$C72)*U$93:U$142) -> 0 | V72: =SUMPRODUCT(($H$93:$H$142=$E72)*($C$93:$C$142=$C72)*V$93:V$142) -> 0 | W72: =SUMPRODUCT(($H$93:$H$142=$E72)*($C$93:$C$142=$C72)*W$93:W$142) -> 0 | X72: =SUMPRODUCT(($H$93:$H$142=$E72)*($C$93:$C$142=$C72)*X$93:X$142) -> 0
C73: R | E73: Debiti finanziari verso parti correlate | K73: =SUMPRODUCT(($H$93:$H$142=$E73)*($C$93:$C$142=$C73)*K$93:K$142) -> 0 | L73: =SUMPRODUCT(($H$93:$H$142=$E73)*($C$93:$C$142=$C73)*L$93:L$142) -> 0 | M73: =SUMPRODUCT(($H$93:$H$142=$E73)*($C$93:$C$142=$C73)*M$93:M$142) -> 0 | N73: =SUMPRODUCT(($H$93:$H$142=$E73)*($C$93:$C$142=$C73)*N$93:N$142) -> 0 | O73: =SUMPRODUCT(($H$93:$H$142=$E73)*($C$93:$C$142=$C73)*O$93:O$142) -> 0 | P73: =SUMPRODUCT(($H$93:$H$142=$E73)*($C$93:$C$142=$C73)*P$93:P$142) -> 0 | Q73: =SUMPRODUCT(($H$93:$H$142=$E73)*($C$93:$C$142=$C73)*Q$93:Q$142) -> 0 | R73: =SUMPRODUCT(($H$93:$H$142=$E73)*($C$93:$C$142=$C73)*R$93:R$142) -> 0 | S73: =SUMPRODUCT(($H$93:$H$142=$E73)*($C$93:$C$142=$C73)*S$93:S$142) -> 0 | T73: =SUMPRODUCT(($H$93:$H$142=$E73)*($C$93:$C$142=$C73)*T$93:T$142) -> 0 | U73: =SUMPRODUCT(($H$93:$H$142=$E73)*($C$93:$C$142=$C73)*U$93:U$142) -> 0 | V73: =SUMPRODUCT(($H$93:$H$142=$E73)*($C$93:$C$142=$C73)*V$93:V$142) -> 0 | W73: =SUMPRODUCT(($H$93:$H$142=$E73)*($C$93:$C$142=$C73)*W$93:W$142) -> 0 | X73: =SUMPRODUCT(($H$93:$H$142=$E73)*($C$93:$C$142=$C73)*X$93:X$142) -> 0
C74: R | E74: Debiti infruttiferi (escluso FCG) | K74: =SUMPRODUCT(($H$93:$H$142=$E74)*($C$93:$C$142=$C74)*K$93:K$142) -> 0 | L74: =SUMPRODUCT(($H$93:$H$142=$E74)*($C$93:$C$142=$C74)*L$93:L$142) -> 0 | M74: =SUMPRODUCT(($H$93:$H$142=$E74)*($C$93:$C$142=$C74)*M$93:M$142) -> 0 | N74: =SUMPRODUCT(($H$93:$H$142=$E74)*($C$93:$C$142=$C74)*N$93:N$142) -> 0 | O74: =SUMPRODUCT(($H$93:$H$142=$E74)*($C$93:$C$142=$C74)*O$93:O$142) -> 0 | P74: =SUMPRODUCT(($H$93:$H$142=$E74)*($C$93:$C$142=$C74)*P$93:P$142) -> 0 | Q74: =SUMPRODUCT(($H$93:$H$142=$E74)*($C$93:$C$142=$C74)*Q$93:Q$142) -> 0 | R74: =SUMPRODUCT(($H$93:$H$142=$E74)*($C$93:$C$142=$C74)*R$93:R$142) -> 0 | S74: =SUMPRODUCT(($H$93:$H$142=$E74)*($C$93:$C$142=$C74)*S$93:S$142) -> 0 | T74: =SUMPRODUCT(($H$93:$H$142=$E74)*($C$93:$C$142=$C74)*T$93:T$142) -> 0 | U74: =SUMPRODUCT(($H$93:$H$142=$E74)*($C$93:$C$142=$C74)*U$93:U$142) -> 0 | V74: =SUMPRODUCT(($H$93:$H$142=$E74)*($C$93:$C$142=$C74)*V$93:V$142) -> 0 | W74: =SUMPRODUCT(($H$93:$H$142=$E74)*($C$93:$C$142=$C74)*W$93:W$142) -> 0 | X74: =SUMPRODUCT(($H$93:$H$142=$E74)*($C$93:$C$142=$C74)*X$93:X$142) -> 0
C75: R | E75: Debiti infruttireri verso FCG e simili | K75: =SUMPRODUCT(($H$93:$H$142=$E75)*($C$93:$C$142=$C75)*K$93:K$142) -> 0 | L75: =SUMPRODUCT(($H$93:$H$142=$E75)*($C$93:$C$142=$C75)*L$93:L$142) -> 0 | M75: =SUMPRODUCT(($H$93:$H$142=$E75)*($C$93:$C$142=$C75)*M$93:M$142) -> 0 | N75: =SUMPRODUCT(($H$93:$H$142=$E75)*($C$93:$C$142=$C75)*N$93:N$142) -> 0 | O75: =SUMPRODUCT(($H$93:$H$142=$E75)*($C$93:$C$142=$C75)*O$93:O$142) -> 0 | P75: =SUMPRODUCT(($H$93:$H$142=$E75)*($C$93:$C$142=$C75)*P$93:P$142) -> 0 | Q75: =SUMPRODUCT(($H$93:$H$142=$E75)*($C$93:$C$142=$C75)*Q$93:Q$142) -> 0 | R75: =SUMPRODUCT(($H$93:$H$142=$E75)*($C$93:$C$142=$C75)*R$93:R$142) -> 0 | S75: =SUMPRODUCT(($H$93:$H$142=$E75)*($C$93:$C$142=$C75)*S$93:S$142) -> 0 | T75: =SUMPRODUCT(($H$93:$H$142=$E75)*($C$93:$C$142=$C75)*T$93:T$142) -> 0 | U75: =SUMPRODUCT(($H$93:$H$142=$E75)*($C$93:$C$142=$C75)*U$93:U$142) -> 0 | V75: =SUMPRODUCT(($H$93:$H$142=$E75)*($C$93:$C$142=$C75)*V$93:V$142) -> 0 | W75: =SUMPRODUCT(($H$93:$H$142=$E75)*($C$93:$C$142=$C75)*W$93:W$142) -> 0 | X75: =SUMPRODUCT(($H$93:$H$142=$E75)*($C$93:$C$142=$C75)*X$93:X$142) -> 0
C76: R | E76: Prestiti IVA | K76: =SUMPRODUCT(($H$93:$H$142=$E76)*($C$93:$C$142=$C76)*K$93:K$142) -> 0 | L76: =SUMPRODUCT(($H$93:$H$142=$E76)*($C$93:$C$142=$C76)*L$93:L$142) -> 0 | M76: =SUMPRODUCT(($H$93:$H$142=$E76)*($C$93:$C$142=$C76)*M$93:M$142) -> 0 | N76: =SUMPRODUCT(($H$93:$H$142=$E76)*($C$93:$C$142=$C76)*N$93:N$142) -> 0 | O76: =SUMPRODUCT(($H$93:$H$142=$E76)*($C$93:$C$142=$C76)*O$93:O$142) -> 0 | P76: =SUMPRODUCT(($H$93:$H$142=$E76)*($C$93:$C$142=$C76)*P$93:P$142) -> 0 | Q76: =SUMPRODUCT(($H$93:$H$142=$E76)*($C$93:$C$142=$C76)*Q$93:Q$142) -> 0 | R76: =SUMPRODUCT(($H$93:$H$142=$E76)*($C$93:$C$142=$C76)*R$93:R$142) -> 0 | S76: =SUMPRODUCT(($H$93:$H$142=$E76)*($C$93:$C$142=$C76)*S$93:S$142) -> 0 | T76: =SUMPRODUCT(($H$93:$H$142=$E76)*($C$93:$C$142=$C76)*T$93:T$142) -> 0 | U76: =SUMPRODUCT(($H$93:$H$142=$E76)*($C$93:$C$142=$C76)*U$93:U$142) -> 0 | V76: =SUMPRODUCT(($H$93:$H$142=$E76)*($C$93:$C$142=$C76)*V$93:V$142) -> 0 | W76: =SUMPRODUCT(($H$93:$H$142=$E76)*($C$93:$C$142=$C76)*W$93:W$142) -> 0 | X76: =SUMPRODUCT(($H$93:$H$142=$E76)*($C$93:$C$142=$C76)*X$93:X$142) -> 0
C77: R | E77: Prestiti a breve termine | K77: =SUMPRODUCT(($H$93:$H$142=$E77)*($C$93:$C$142=$C77)*K$93:K$142) -> 0 | L77: =SUMPRODUCT(($H$93:$H$142=$E77)*($C$93:$C$142=$C77)*L$93:L$142) -> 0 | M77: =SUMPRODUCT(($H$93:$H$142=$E77)*($C$93:$C$142=$C77)*M$93:M$142) -> 0 | N77: =SUMPRODUCT(($H$93:$H$142=$E77)*($C$93:$C$142=$C77)*N$93:N$142) -> 0 | O77: =SUMPRODUCT(($H$93:$H$142=$E77)*($C$93:$C$142=$C77)*O$93:O$142) -> 0 | P77: =SUMPRODUCT(($H$93:$H$142=$E77)*($C$93:$C$142=$C77)*P$93:P$142) -> 0 | Q77: =SUMPRODUCT(($H$93:$H$142=$E77)*($C$93:$C$142=$C77)*Q$93:Q$142) -> 0 | R77: =SUMPRODUCT(($H$93:$H$142=$E77)*($C$93:$C$142=$C77)*R$93:R$142) -> 0 | S77: =SUMPRODUCT(($H$93:$H$142=$E77)*($C$93:$C$142=$C77)*S$93:S$142) -> 0 | T77: =SUMPRODUCT(($H$93:$H$142=$E77)*($C$93:$C$142=$C77)*T$93:T$142) -> 0 | U77: =SUMPRODUCT(($H$93:$H$142=$E77)*($C$93:$C$142=$C77)*U$93:U$142) -> 0 | V77: =SUMPRODUCT(($H$93:$H$142=$E77)*($C$93:$C$142=$C77)*V$93:V$142) -> 0 | W77: =SUMPRODUCT(($H$93:$H$142=$E77)*($C$93:$C$142=$C77)*W$93:W$142) -> 0 | X77: =SUMPRODUCT(($H$93:$H$142=$E77)*($C$93:$C$142=$C77)*X$93:X$142) -> 0
C78: R | E78: Altro | K78: =SUMPRODUCT(($H$93:$H$142=$E78)*($C$93:$C$142=$C78)*K$93:K$142) -> 0 | L78: =SUMPRODUCT(($H$93:$H$142=$E78)*($C$93:$C$142=$C78)*L$93:L$142) -> 0 | M78: =SUMPRODUCT(($H$93:$H$142=$E78)*($C$93:$C$142=$C78)*M$93:M$142) -> 0 | N78: =SUMPRODUCT(($H$93:$H$142=$E78)*($C$93:$C$142=$C78)*N$93:N$142) -> 0 | O78: =SUMPRODUCT(($H$93:$H$142=$E78)*($C$93:$C$142=$C78)*O$93:O$142) -> 0 | P78: =SUMPRODUCT(($H$93:$H$142=$E78)*($C$93:$C$142=$C78)*P$93:P$142) -> 0 | Q78: =SUMPRODUCT(($H$93:$H$142=$E78)*($C$93:$C$142=$C78)*Q$93:Q$142) -> 0 | R78: =SUMPRODUCT(($H$93:$H$142=$E78)*($C$93:$C$142=$C78)*R$93:R$142) -> 0 | S78: =SUMPRODUCT(($H$93:$H$142=$E78)*($C$93:$C$142=$C78)*S$93:S$142) -> 0 | T78: =SUMPRODUCT(($H$93:$H$142=$E78)*($C$93:$C$142=$C78)*T$93:T$142) -> 0 | U78: =SUMPRODUCT(($H$93:$H$142=$E78)*($C$93:$C$142=$C78)*U$93:U$142) -> 0 | V78: =SUMPRODUCT(($H$93:$H$142=$E78)*($C$93:$C$142=$C78)*V$93:V$142) -> 0 | W78: =SUMPRODUCT(($H$93:$H$142=$E78)*($C$93:$C$142=$C78)*W$93:W$142) -> 0 | X78: =SUMPRODUCT(($H$93:$H$142=$E78)*($C$93:$C$142=$C78)*X$93:X$142) -> 0
C80: V | E80: Saldo proventi (oneri) finanziari netti da finanziamenti | K80: =SUMPRODUCT(($C$93:$C$142=$C80)*K$93:K$142) -> 0 | L80: =SUMPRODUCT(($C$93:$C$142=$C80)*L$93:L$142) -> 12000 | M80: =SUMPRODUCT(($C$93:$C$142=$C80)*M$93:M$142) -> 12000 | N80: =SUMPRODUCT(($C$93:$C$142=$C80)*N$93:N$142) -> 6000 | O80: =SUMPRODUCT(($C$93:$C$142=$C80)*O$93:O$142) -> 0 | P80: =SUMPRODUCT(($C$93:$C$142=$C80)*P$93:P$142) -> -6000 | Q80: =SUMPRODUCT(($C$93:$C$142=$C80)*Q$93:Q$142) -> -12000 | R80: =SUMPRODUCT(($C$93:$C$142=$C80)*R$93:R$142) -> -18000 | S80: =SUMPRODUCT(($C$93:$C$142=$C80)*S$93:S$142) -> -24000 | T80: =SUMPRODUCT(($C$93:$C$142=$C80)*T$93:T$142) -> -30000 | U80: =SUMPRODUCT(($C$93:$C$142=$C80)*U$93:U$142) -> -36000 | V80: =SUMPRODUCT(($C$93:$C$142=$C80)*V$93:V$142) -> -42000 | W80: =SUMPRODUCT(($C$93:$C$142=$C80)*W$93:W$142) -> -48000 | X80: =SUMPRODUCT(($C$93:$C$142=$C80)*X$93:X$142) -> -54000
D87: Dettaglio linee di finanziamento
E91: Numero linee di debito da inserire o eliminare, oltre alla prima (che resta fissa) | F91: numero | H91: 5
B93: x
B94: x
B95: x | E95: Tipologia finanziamento schema Dicoter | H95: Obbligazioni
B96: x | E96: Ulteriori dettagli - descrizione
B97: x | E97: Debito esistente (Anno Ponte) | J97: FALSE
B98: x | E98: Importo nominale sottoscritto | F98: 000 € | G98: + | K98: 100
B99: x | E99: Importo tirato | F99: 000 € | G99: + | K99: 100
B100: x
B101: x | E101: Tasso Base (%) | F101: % | K101: 0 | L101: =+K101 -> 0 | M101: =+L101 -> 0 | N101: 0 | O101: 0 | P101: 0 | Q101: 0 | R101: 0 | S101: 0 | T101: 0 | U101: 0 | V101: 0 | W101: 0 | X101: 0
B102: x | E102: Margine (%) | F102: % | K102: 0.12 | L102: =+K102 -> 0.12 | M102: 0.12 | N102: 0.12 | O102: 0.12 | P102: 0.12 | Q102: 0.12 | R102: 0.12 | S102: 0.12 | T102: 0.12 | U102: 0.12 | V102: 0.12 | W102: 0.12 | X102: 0.12
B103: x | E103: Tasso d'Interesse (%) | F103: % | K103: =K101+K102 -> 0.12 | L103: =L101+L102 -> 0.12 | M103: 0.12 | N103: =N101+N102 -> 0.12 | O103: 0.12 | P103: 0.12 | Q103: 0.12 | R103: 0.12 | S103: 0.12 | T103: 0.12 | U103: 0.12 | V103: 0.12 | W103: 0.12 | X103: 0.12
B104: x
B105: x | E105: Debito BoP | F105: 000 € | K105: 0 | L105: =+K113 -> 100000 | M105: =+L113 -> 100000 | N105: 50000 | O105: 0 | P105: -50000 | Q105: -100000 | R105: -150000 | S105: -200000 | T105: -250000 | U105: -300000 | V105: -350000 | W105: -400000 | X105: -450000
B106: x | C106: E | E106: Erogazione Debito | F106: 000 € | G106: + | H106: =+H95 -> Obbligazioni | I106: =CONCATENATE("Erogazione ",H95) -> Erogazione Obbligazioni | K106: 100000
B107: x | C107: E | E107: Altre variazioni del debito | F107: 000 € | G107: +/- | H107: =+H106 -> Obbligazioni | I107: =+I106 -> Erogazione Obbligazioni
B108: x | C108: R | E108: Rimborso Debito - quota capitale | F108: 000 € | G108: - | H108: =+H107 -> Obbligazioni | I108: =CONCATENATE("Rimborso ",H95) -> Rimborso Obbligazioni
B109: x | C109: R | E109: Rimborso con cash sweep | F109: 000 € | G109: - | H109: Obbligazioni | I109: =+I108 -> Rimborso Obbligazioni | M109: -50000 | N109: -50000 | O109: -50000 | P109: -50000 | Q109: -50000 | R109: -50000 | S109: -50000 | T109: -50000 | U109: -50000 | V109: -50000 | W109: -50000 | X109: -50000
B110: x | C110: R | E110: Ballon | F110: 000 € | G110: - | H110: Obbligazioni | I110: =+I109 -> Rimborso Obbligazioni
B111: x | C111: E | E111: Rifinanziamento debito | F111: 000 € | G111: + | H111: Obbligazioni | I111: =+I106 -> Erogazione Obbligazioni
B112: x | C112: E | E112: Rimborso Debito rifinanziato - quota capitale | F112: 000 € | G112: - | H112: Obbligazioni | I112: =+I110 -> Rimborso Obbligazioni
B113: x | E113: Debito EoP | F113: 000 € | H113: Obbligazioni | I113: =+H95 -> Obbligazioni | K113: =SUM(K105:K112) -> 100000 | L113: =SUM(L105:L112) -> 100000 | M113: 50000 | N113: =SUM(N105:N112) -> 0 | O113: -50000 | P113: -100000 | Q113: -150000 | R113: -200000 | S113: -250000 | T113: -300000 | U113: -350000 | V113: -400000 | W113: -450000 | X113: -500000
B114: x
B115: x
B116: x | E116: Oneri finanziari maturati | F116: 000 € | G116: + | H116: =+H113 -> Obbligazioni | I116: =CONCATENATE("Costi per ",I113) -> Costi per Obbligazioni | K116: =+K105*K103 -> 0 | L116: =+L105*L103 -> 12000 | M116: 12000 | N116: =+N105*N103 -> 6000 | O116: 0 | P116: -6000 | Q116: -12000 | R116: -18000 | S116: -24000 | T116: -30000 | U116: -36000 | V116: -42000 | W116: -48000 | X116: -54000
B117: x | E117: Altri costi maturati e corrisposti | F117: 000 € | G117: +/- | H117: =+H116 -> Obbligazioni | I117: =+I116 -> Costi per Obbligazioni
B118: x | E118: di cui oneri finanziari capitalizzati | F118: 000 € | G118: + | H118: =+H117 -> Obbligazioni | I118: Oneri finanziari capitalizzati
B119: x | C119: V | E119: Oneri finanziari versati | F119: 000 € | H119: =+H118 -> Obbligazioni | K119: =+K116+K117 -> 0 | L119: 12000 | M119: 12000 | N119: =+N116+N117 -> 6000 | O119: 0 | P119: -6000 | Q119: -12000 | R119: -18000 | S119: -24000 | T119: -30000 | U119: -36000 | V119: -42000 | W119: -48000 | X119: -54000
B120: x
B121: x | C121: V | E121: Up-front fee e simili | F121: 000 € | G121: + | H121: =+H119 -> Obbligazioni | I121: =+I116 -> Costi per Obbligazioni
B122: x | E122: di cui costi capitalizzati | F122: 000 € | G122: + | H122: =+H121 -> Obbligazioni | I122: Oneri finanziari capitalizzati
B123: x
B124: x | C124: V | E124: Commissioni di agenzia e simili | F124: 000 € | G124: + | H124: =+H122 -> Obbligazioni | I124: =+I121 -> Costi per Obbligazioni
B125: x | E125: di cui costi capitalizzati | F125: 000 € | G125: + | H125: =+H124 -> Obbligazioni | I125: Oneri finanziari capitalizzati
B126: x
B127: x | C127: V | E127: Imposta sostitutiva | F127: 000 € | G127: + | H127: =+H125 -> Obbligazioni | I127: =+I124 -> Costi per Obbligazioni
B128: x | E128: di cui costi capitalizzati | F128: 000 € | G128: + | H128: Obbligazioni | I128: Oneri finanziari capitalizzati
B129: x
B130: x | C130: V | E130: Costi per garanzia | F130: 000 € | G130: + | H130: =+H128 -> Obbligazioni | I130: =+I127 -> Costi per Obbligazioni
B131: x | E131: di cui costi capitalizzati | F131: 000 € | G131: + | H131: Obbligazioni | I131: Oneri finanziari capitalizzati
B132: x
B133: x | C133: V | E133: Commissioni di mancato utilizzo | F133: 000 € | G133: + | H133: =+H131 -> Obbligazioni | I133: =+I130 -> Costi per Obbligazioni | K133: =+K134*(K98-K99) -> 0 | L133: 0 | M133: 0 | N133: =+N134*(N98-N99) -> 0 | O133: 0 | P133: 0 | Q133: 0 | R133: 0 | S133: 0 | T133: 0 | U133: 0 | V133: 0 | W133: 0 | X133: 0
B134: x | E134: Tasso mancato utilizzo | F134: % | H134: Obbligazioni
B135: x | E135: di cui costi capitalizzati | F135: 000 € | G135: + | H135: Obbligazioni | I135: Oneri finanziari capitalizzati
B136: x
B137: x
C146: termine foglio di lavoro

Sheet Y0.4.e Qualita
C2: Meccanismo di premialità/penalità correlato alla qualità dei servizi
C5: Informazioni generali
C7: Tratte elementari
D11: Tratte elementari | E11: Lunghezza tratta elementare | F11: Veicoli leggeri: Tempo di percorrenza a flusso libero (secondi) | G11: Veicoli leggeri: volumi di traffico annui (veicoli*km anno base) | H11: Veicoli pesanti: Tempo di percorrenza a flusso libero (secondi) | I11: Veicoli pesanti: volumi di traffico annui (veicoli*km anno base) | J11: Velocità media a flusso libero (km/h) | K11: Lunghezza tratta a 1 corsia | L11: Lunghezza tratta a 2 corsie | M11: Lunghezza tratta a 3 corsie | N11: Lunghezza tratta a 4 corsie | O11: Lunghezza tratta a 5 corsie | P11: numero medio corsie | Q11: ore*km*corsie annue disponibili per la circolazione
B13: t | D13: Tratta 1 | E13: 10 | F13: 360 | G13: 1000000 | H13: 540 | I13: 200000 | J13: =IFERROR(E13/((F13*G13+H13*I13)/(G13+I13))*3600,0) -> 92.30769231 | L13: 4 | M13: 6 | P13: =IFERROR(IF(SUM(K13:O13)=E13,(K13*1+L13*2+M13*3+N13*4+O13*5)/E13,"errore"),"") -> 2.6 | Q13: =IFERROR(24*365*E13*P13,0) -> 227760
B14: t | D14: Tratta 2 | E14: 6.5 | F14: 240 | G14: 650000 | H14: 360 | I14: 195000 | J14: =IFERROR(E14/((F14*G14+H14*I14)/(G14+I14))*3600,0) -> 87.4137931 | L14: 6.5 | P14: =IFERROR(IF(SUM(K14:O14)=E14,(K14*1+L14*2+M14*3+N14*4+O14*5)/E14,"errore"),"") -> 2 | Q14: 113880
B15: t | D15: Tratta 3 | E15: 8 | F15: 300 | G15: 800000 | H15: 450 | I15: 240000 | J15: 86.06896552 | L15: 8 | P15: 2 | Q15: 140160
B16: t | D16: Tratta 4 | E16: 5.5 | F16: 216 | G16: 550000 | H16: 324 | I16: 165000 | J16: 82.18390805 | L16: 5.5 | P16: 2 | Q16: 96360
B17: t | D17: Tratta 5 | E17: 16 | F17: 600 | G17: 1600000 | H17: 900 | I17: 480000 | J17: 86.06896552 | L17: 16 | P17: 2 | Q17: 280320
B18: t | D18: Tratta 6 | E18: 21 | F18: 780 | G18: 2100000 | H18: 1170 | I18: 420000 | J18: 89.46745562 | L18: 12 | M18: 9 | P18: 2.428571429 | Q18: 446760
B19: t | D19: Tratta 7 | E19: 2.5 | F19: 120 | G19: 250000 | H19: 180 | I19: 50000 | J19: 69.23076923 | M19: 2.5 | P19: 3 | Q19: 65700
B20: t | D20: Tratta 8 | E20: 4 | F20: 180 | G20: 400000 | H20: 270 | I20: 120000 | J20: 71.72413793 | L20: 4 | P20: 2 | Q20: 70080
B21: t | D21: Tratta 9 | E21: 12.3 | F21: 432 | G21: 1230000 | H21: 648 | I21: 369000 | J21: 91.89655172 | L21: 12.3 | P21: 2 | Q21: 215496
B22: t | D22: Tratta 10 | E22: 7 | F22: 300 | G22: 700000 | H22: 450 | I22: 140000 | J22: 77.53846154 | L22: 7 | P22: 2 | Q22: 122640
B23: t | D23: Tratta 11 | E23: 4.5 | F23: 216 | G23: 450000 | H23: 324 | I23: 135000 | J23: 67.24137931 | L23: 4.5 | P23: 2 | Q23: 78840
B24: t | D24: Tratta 12 | E24: 12 | F24: 432 | G24: 1200000 | H24: 648 | I24: 360000 | J24: 89.65517241 | L24: 12 | P24: 2 | Q24: 210240
B25: t | D25: Tratta 13 | E25: 15 | F25: 600 | G25: 1500000 | H25: 900 | I25: 450000 | J25: 80.68965517 | L25: 5 | M25: 5 | N25: 5 | P25: 3 | Q25: 394200
B26: t | D26: Tratta 14 | E26: 8 | F26: 300 | G26: 800000 | H26: 500 | I26: 200000 | J26: =IFERROR(E26/((F26*G26+H26*I26)/(G26+I26))*3600,0) -> 84.70588235 | M26: 8 | P26: 3 | Q26: 210240
D28: Intera rete | E28: =SUM(E12:E27) -> 132.3 | F28: =SUM(F12:F27) -> 5076 | G28: =SUM(G12:G27) -> 13230000 | H28: =SUM(H12:H27) -> 7664 | I28: =SUM(I12:I27) -> 3524000 | J28: =SUMPRODUCT(J12:J27,E12:E27)/E28 -> 85.31564828 | P28: =SUMPRODUCT(P12:P27,E12:E27)/E28 -> 2.306122449 | Q28: =SUM(Q12:Q27) -> 2672676
C32: Stazioni di esazione
D36: Stazioni di esazione | E36: Numero piste con pagamento automatizzato del pedaggio | F36: Tasso di operatività annua delle piste con pagamento automatizzato del pedaggio | G36: Numero piste senza pagamento automatizzato del pedaggio | H36: Tasso di operatività annua delle piste senza pagamento automatizzato del pedaggio | I36: Numero piste totali | J36: Tasso di operatività annua totale | K36: ore*km annue disponibili per l'esazione
B38: e | D38: Stazione di esazione 1 | E38: 10 | F38: 0.949 | G38: 2 | H38: 0.984 | I38: =E38+G38 -> 12 | J38: =(E38*F38+G38*H38)/I38 -> 0.9548333333 | K38: =IFERROR(24*365*I38*J38,0) -> 100372.08
B39: e | D39: Stazione di esazione 2 | E39: 6 | F39: 0.917 | G39: 1 | H39: 0.939 | I39: =E39+G39 -> 7 | J39: =(E39*F39+G39*H39)/I39 -> 0.9201428571 | K39: =IFERROR(24*365*I39*J39,0) -> 56423.16
B40: e | D40: Stazione di esazione 3 | E40: 4 | F40: 0.935 | G40: 1 | H40: 0.927 | I40: 5 | J40: 0.9334 | K40: 40882.92
B41: e | D41: Stazione di esazione 4 | E41: 4 | F41: 0.978 | G41: 1 | H41: 0.969 | I41: 5 | J41: 0.9762 | K41: 42757.56
B42: e | D42: Stazione di esazione 5 | E42: 4 | F42: 0.988 | G42: 1 | H42: 0.905 | I42: 5 | J42: 0.9714 | K42: 42547.32
B43: e | D43: Stazione di esazione 6 | E43: 6 | F43: 0.939 | G43: 1 | H43: 0.974 | I43: 7 | J43: 0.944 | K43: 57886.08
B44: e | D44: Stazione di esazione 7 | E44: 8 | F44: 0.975 | G44: 2 | H44: 0.918 | I44: 10 | J44: 0.9636 | K44: 84411.36
B45: e | D45: Stazione di esazione 8 | E45: 12 | F45: 0.99 | G45: 3 | H45: 0.959 | I45: 15 | J45: 0.9838 | K45: 129271.32
B46: e | D46: Stazione di esazione 9 | E46: 12.3 | F46: 0.969 | G46: 3 | H46: 0.963 | I46: 15.3 | J46: 0.9678235294 | K46: 129715.452
B47: e | D47: Stazione di esazione 10 | E47: 6 | F47: 0.995 | G47: 1 | H47: 0.927 | I47: 7 | J47: 0.9852857143 | K47: 60417.72
B48: e | D48: Stazione di esazione 11 | E48: 6 | F48: 0.937 | G48: 1 | H48: 0.919 | I48: 7 | J48: 0.9344285714 | K48: 57299.16
B49: e | D49: Stazione di esazione 12 | E49: 6 | F49: 0.985 | G49: 1 | H49: 0.974 | I49: 7 | J49: 0.9834285714 | K49: 60303.84
B50: e | D50: Stazione di esazione 13 | E50: 6 | F50: 0.997 | G50: 1 | H50: 0.916 | I50: 7 | J50: 0.9854285714 | K50: 60426.48
D52: Intera rete | E52: =SUM(E37:E51) -> 90.3 | F52: =SUMPRODUCT(F37:F51,E37:E51)/E52 -> 0.9669180509 | G52: =SUM(G37:G51) -> 19 | H52: =SUMPRODUCT(H37:H51,G37:G51)/G52 -> 0.9484210526 | I52: =SUM(I37:I51) -> 109.3 | J52: =SUMPRODUCT(J37:J51,I37:I51)/I52 -> 0.9637026532 | K52: =SUM(K37:K51) -> 922714.452
C56: Metriche, valori-obiettivo di soglia e dati di base
D58: Anno applicazione meccanismo (t) | E58: =PrimoAnnoPR1+1 -> 2027 | F58: =IF(E58>UltimoAnnoPR1,"",E58+1) -> 2028 | G58: 2029 | H58: 2030 | S58: =IF(R58>UltimoAnnoPR1+1,"",R58+1) -> 
D59: Anno di riferimento per misurazioni (t-2) | E59: =IFERROR(E58-2,"") -> 2025 | F59: =IFERROR(F58-2,"") -> 2026 | G59: =IFERROR(G58-2,"") -> 2027 | H59: =IFERROR(H58-2,"") -> 2028 | I59: =IFERROR(I58-2,"") ->  | J59: =IFERROR(J58-2,"") ->  | K59: =IFERROR(K58-2,"") ->  | L59: =IFERROR(L58-2,"") ->  | M59: =IFERROR(M58-2,"") ->  | N59: =IFERROR(N58-2,"") ->  | O59: =IFERROR(O58-2,"") ->  | P59: =IFERROR(P58-2,"") ->  | Q59: =IFERROR(Q58-2,"") -> 
C61: 1 | D61: Velocità media di percorrenza del flusso veicolare
D63: Metrica
D64: Rapporto fra: (i) velocità media effettiva, calcolata come rapporto fra lunghezza di ciascuna tratta elementare percorsa e tempo medio di percorrenza effettivo; (ii) velocità di riferimento di ciascuna tratta elementare, determinata con la metodologia di cui alla delibera ART n. 132/2024, come modificata dalla delibera ART n. 211/2025.
D66: Valori di soglia | E66: =E$58 -> 2027 | F66: =F$58 -> 2028 | G66: 2029 | H66: 2030
D67: Soglia minima | E67: 0.75 | F67: 0.75 | G67: 0.75 | H67: 0.75
D68: Soglia equilibrio | E68: 0.9 | F68: 0.905 | G68: 0.91 | H68: 0.915
D69: Soglia eccellenza | E69: 1 | F69: 1 | G69: 1 | H69: 1
D71: Dati di base
D72: Tratte elementari | E72: Lunghezza tratta elementare | F72: Velocità media a flusso libero (km/h)
D73: Intera rete | E73: =E28 -> 132.3 | F73: =J28 -> 85.31564828
C76: 2 | D76: Disponibilità dell’infrastruttura
D78: Metrica
D79: Rapporto fra: (i) ore*km annue non impegnate da cantieri in ciascuna tratta elementare, sulla base del numero di corsie di marcia occupate e della lunghezza dello spazio occupato e (ii) ore*km disponibili per la circolazione in ciascuna tratta elementare (inclusa fascia notturna, dalle 22:00 alle 6:00), ossia 24*365=8760 ore, per numero di corsie di marcia e per lunghezza di ciascuna tratta elementare.
D81: Valori di soglia | E81: =E$58 -> 2027 | F81: =F$58 -> 2028 | G81: 2029 | H81: 2030
D82: Soglia minima | E82: 0.85 | F82: 0.85 | G82: 0.85 | H82: 0.85
D83: Soglia equilibrio | E83: 0.93 | F83: 0.935 | G83: 0.94 | H83: 0.945
D84: Soglia eccellenza | E84: 1 | F84: 1 | G84: 1 | H84: 1
D86: Dati di base
D87: Tratte elementari | E87: lunghezza tratta | F87: numero corsie | G87: ore*km annue disponibili per la circolazione
D88: Intera rete | E88: =E28 -> 132.3 | F88: =P28 -> 2.306122449 | G88: =Q28 -> 2672676
C91: 3 | D91: Fluidità ai caselli
D93: Metrica
D94: Rapporto fra: (i) ore annue effettivamente disponibili per il pagamento automatizzato del pedaggio in ciascuna stazione di esazione, per numero di piste e (ii) ore annue teoriche complessivamente disponibili per il pagamento del pedaggio in ciascuna stazione di esazione, considerato il numero di piste complessive presenti e operative.
D96: Valori di soglia | E96: =E$58 -> 2027 | F96: =F$58 -> 2028 | G96: 2029 | H96: 2030
D97: Soglia minima | E97: 0.88 | F97: 0.88 | G97: 0.88 | H97: 0.88 | I97: 0.88
D98: Soglia equilibrio | E98: 0.95 | F98: 0.955 | G98: 0.96 | H98: 0.965 | I98: 0.97
D99: Soglia eccellenza | E99: 1 | F99: 1 | G99: 1 | H99: 1 | I99: 1
D101: Dati di base
D102: Tratte elementari | E102: numero piste | F102: ore*km annue disponibili per l'esazione
D103: Intera rete | E103: =E52 -> 90.3 | F103: =K52 -> 922714.452
C106: 4a | D106: Stato della pavimentazione: aderenza
D108: Metrica
D109: Parametro CAT (Coefficiente di aderenza trasversale), misurato per ciascuna tratta elementare con apparecchiatura SUMMS o SCRIM, sulla corsia di marcia caratterizzata dal massimo degrado.
D111: Valori di soglia | E111: =E$58 -> 2027 | F111: =F$58 -> 2028 | G111: 2029 | H111: 2030
D112: Soglia minima | E112: 0.5 | F112: 0.51 | G112: 0.52 | H112: 0.53 | I112: 0.54
D113: Soglia equilibrio | E113: 0.65 | F113: 0.66 | G113: 0.67 | H113: 0.68 | I113: 0.69
D114: Soglia eccellenza | E114: 0.9 | F114: 0.9 | G114: 0.9 | H114: 0.9 | I114: 0.9
D116: Dati di base
D117: Tratte elementari | E117: lunghezza tratta
D118: Intera rete | E118: =E28 -> 132.3
C120: 4b | D120: Stato della pavimentazione: rugosità
D122: Metrica
D123: Parametro IRI (International roughness index), misurato per ciascuna tratta elementare con profilometro ARAN o similare, sulla corsia di marcia caratterizzata dal massimo degrado.
D125: Valori di soglia | E125: =E$58 -> 2027 | F125: =F$58 -> 2028 | G125: 2029 | H125: 2030
D126: Soglia minima | E126: 4 | F126: 4 | G126: 4 | H126: 4
D127: Soglia equilibrio | E127: 2 | F127: 2 | G127: 2 | H127: 2
D128: Soglia eccellenza | E128: 0 | F128: 0 | G128: 0 | H128: 0
D130: Dati di base
D131: Tratte elementari | E131: lunghezza tratta
D132: Intera rete | E132: =E28 -> 132.3
C134: 5 | D134: Aggiornamento informazioni tramite panelli a messaggio variabile
D136: Metrica
D137: Tempo medio, espresso in secondi, che intercorre tra la ricezione dell’informazione relativa ad un evento presso il centro di controllo e il successivo inoltro al PMV, sulla base di un set di eventi: incidente, evento meteo, code, ostacolo.
D139: Valori di soglia | E139: =E$58 -> 2027 | F139: =F$58 -> 2028 | G139: 2029 | H139: 2030
D140: Soglia minima | E140: 120
D141: Soglia equilibrio | E141: 90
D142: Soglia eccellenza | E142: 60
D144: Dati di base
D145: Tipologia di evento | E145: numero eventi | F145: tempo medio per evento (secondi)
D146: Incidente | E146: 50 | F146: 55
D147: Evento meteo | E147: 120 | F147: 60
D148: Code | E148: 30 | F148: 120
D149: Ostacolo | E149: 15 | F149: 200
D150: Intera rete | E150: =SUM(E146:E149) -> 215 | F150: =SUMPRODUCT(F146:F149,E146:E149)/E150 -> 76.97674419
C152: 6 | D152: Customer satisfaction rispetto ai livelli di servizio complessivo
D154: Metrica
D155: Percentuale di utenti soddisfatti del livello di servizio reso dal concessionario per le seguenti aree di interesse: sicurezza stradale (peso: 30); informazione (peso: 30); esazione pedaggio (peso: 30); aree di servizio e sosta (peso: 10).
D157: Valori di soglia | E157: =E$58 -> 2027 | F157: =F$58 -> 2028 | G157: 2029 | H157: 2030
D158: Soglia minima | E158: 0.8 | F158: 0.805 | G158: 0.81 | H158: 0.815
D159: Soglia equilibrio | E159: 0.9 | F159: 0.905 | G159: 0.91 | H159: 0.915
D160: Soglia eccellenza | E160: 1 | F160: 1 | G160: 1 | H160: 1
D162: Dati di base
D163: Settore di indagine | E163: peso
D164: Sicurezza stradale | E164: 0.3
D165: Informazione | E165: 0.3
D166: Esazione pedaggio | E166: 0.3
D167: Aree di servizio e sosta | E167: 0.1
D168: Intera rete | E168: =SUM(E164:E167) -> 1
C170: 7 | D170: Numero di reclami pervenuti in rapporto al traffico servito
D172: Metrica
D173: Rapporto fra: (i) numero di reclami pervenuti al concessionario nell’annualità di riferimento, e (ii) veicoli transitati (paganti e non paganti) registrati a consuntivo e riferibili al medesimo periodo annuo.
D175: Valori di soglia | E175: =E$58 -> 2027 | F175: =F$58 -> 2028 | G175: 2029 | H175: 2030
D176: Soglia minima | E176: 30 | F176: 30 | G176: 30 | H176: 30
D177: Soglia equilibrio | E177: 20 | F177: 20 | G177: 20 | H177: 20
D178: Soglia eccellenza | E178: 10 | F178: 10 | G178: 10 | H178: 10
D180: Dati di base
D181: Settore di indagine | E181: Transiti complessivi (milioni di veicoli)
D182: Intera rete | E182: 50
C185: termine foglio di lavoro

Sheet Y0.4.f Toi Input
C2: Calcolo componente tariffaria per oneri integrativi (Toi)
C4: Anno | E4: 2024 | F4: 2025 | G4: 2026 | H4: 2027 | I4: 2028 | J4: 2029 | K4: 2030 | L4: 2031 | M4: 2032 | N4: 2033 | O4: 2034 | P4: 2035 | Q4: 2036 | R4: 2037 | S4: 2038
C6: Anno base | E6: 1 | F6: 0 | G6: 0 | H6: 0 | I6: 1 | J6: 0 | K6: 0 | L6: 0 | M6: 0 | N6: 1 | O6: 0 | P6: 0 | Q6: 0 | R6: 0 | S6: 0
C7: Anno ponte | E7: 0 | F7: 1 | G7: 0 | H7: 0 | I7: 0 | J7: 1 | K7: 0 | L7: 0 | M7: 0 | N7: 0 | O7: 1 | P7: 0 | Q7: 0 | R7: 0 | S7: 0
C8: Periodo regolatorio | E8: 0 | F8: 0 | G8: 1 | H8: 1 | I8: 1 | J8: 1 | K8: 2 | L8: 2 | M8: 2 | N8: 2 | O8: 2 | P8: 3 | Q8: 3 | R8: 3 | S8: 3
C9: Anno del periodo regolatorio | E9: 0 | F9: 0 | G9: 1 | H9: 2 | I9: 3 | J9: 4 | K9: 1 | L9: 2 | M9: 3 | N9: 4 | O9: 5 | P9: 1 | Q9: 2 | R9: 3 | S9: 4
C10: Frazione di anno significativa | G10: 1 | H10: 1 | I10: 1 | J10: 1 | K10: 1 | L10: 1 | M10: 1 | N10: 1 | O10: 1 | P10: 1 | Q10: 1 | R10: 1 | S10: 1
F12: Ultimo adattamento schema: 31/10/2025 17:45:19
C14: Informazioni generali
C16: Tasso di remunerazione del CIN ante (TIR previgente) | D16: TIR | F16: ='Y0.1 Dati generali'!G61 -> 0.1387 | G16: ='Y0.1 Dati generali'!H61 -> 0.1387 | H16: ='Y0.1 Dati generali'!I61 -> 0.1387 | I16: ='Y0.1 Dati generali'!J61 -> 0.1387 | J16: ='Y0.1 Dati generali'!K61 -> 0.1387 | K16: ='Y0.1 Dati generali'!L61 -> 0.1387 | L16: ='Y0.1 Dati generali'!M61 -> 0.1387 | M16: ='Y0.1 Dati generali'!N61 -> 0.1387 | N16: ='Y0.1 Dati generali'!O61 -> 0.1387 | O16: ='Y0.1 Dati generali'!P61 -> 0.1387 | P16: ='Y0.1 Dati generali'!Q61 -> 0.1387 | Q16: ='Y0.1 Dati generali'!R61 -> 0.1387 | R16: ='Y0.1 Dati generali'!S61 -> 0.1387 | S16: ='Y0.1 Dati generali'!T61 -> 0.1387
C17: Tasso di remunerazione del CIN post (WACC) | D17: WACC | F17: ='Y0.1 Dati generali'!G62 -> 0.0751 | G17: ='Y0.1 Dati generali'!H62 -> 0.0751 | H17: ='Y0.1 Dati generali'!I62 -> 0.0751 | I17: ='Y0.1 Dati generali'!J62 -> 0.0751 | J17: ='Y0.1 Dati generali'!K62 -> 0.0751 | K17: ='Y0.1 Dati generali'!L62 -> 0.0751 | L17: ='Y0.1 Dati generali'!M62 -> 0.0751 | M17: ='Y0.1 Dati generali'!N62 -> 0.0751 | N17: ='Y0.1 Dati generali'!O62 -> 0.0751 | O17: ='Y0.1 Dati generali'!P62 -> 0.0751 | P17: ='Y0.1 Dati generali'!Q62 -> 0.0751 | Q17: ='Y0.1 Dati generali'!R62 -> 0.0751 | R17: ='Y0.1 Dati generali'!S62 -> 0.0751 | S17: ='Y0.1 Dati generali'!T62 -> 0.0751
C18: Tasso di remunerazione del valore di subentro (Rtv) | D18: Rtv | F18: ='Y0.1 Dati generali'!G63 -> 0.1387 | G18: ='Y0.1 Dati generali'!H63 -> 0.1387 | H18: ='Y0.1 Dati generali'!I63 -> 0.1387 | I18: ='Y0.1 Dati generali'!J63 -> 0.1387 | J18: ='Y0.1 Dati generali'!K63 -> 0.1387 | K18: ='Y0.1 Dati generali'!L63 -> 0.1387 | L18: ='Y0.1 Dati generali'!M63 -> 0.1387 | M18: ='Y0.1 Dati generali'!N63 -> 0.1387 | N18: ='Y0.1 Dati generali'!O63 -> 0.1387 | O18: ='Y0.1 Dati generali'!P63 -> 0.1387 | P18: ='Y0.1 Dati generali'!Q63 -> 0.1387 | Q18: ='Y0.1 Dati generali'!R63 -> 0.1387 | R18: ='Y0.1 Dati generali'!S63 -> 0.1387 | S18: ='Y0.1 Dati generali'!T63 -> 0.1387
C19: Tasso di remunerazione delle lavorazioni in corso (vite utili) | D19: Rlic | F19: ='Y0.1 Dati generali'!G65 -> 0.0751 | G19: ='Y0.1 Dati generali'!H65 -> 0.0751 | H19: ='Y0.1 Dati generali'!I65 -> 0.0751 | I19: ='Y0.1 Dati generali'!J65 -> 0.0751 | J19: ='Y0.1 Dati generali'!K65 -> 0.0751 | K19: ='Y0.1 Dati generali'!L65 -> 0.0751 | L19: ='Y0.1 Dati generali'!M65 -> 0.0751 | M19: ='Y0.1 Dati generali'!N65 -> 0.0751 | N19: ='Y0.1 Dati generali'!O65 -> 0.0751 | O19: ='Y0.1 Dati generali'!P65 -> 0.0751 | P19: ='Y0.1 Dati generali'!Q65 -> 0.0751 | Q19: ='Y0.1 Dati generali'!R65 -> 0.0751 | R19: ='Y0.1 Dati generali'!S65 -> 0.0751 | S19: ='Y0.1 Dati generali'!T65 -> 0.0751
C21: Tasso di inflazione | D21: P | F21: ='Y0.1 Dati generali'!G39 -> 0.021 | G21: ='Y0.1 Dati generali'!H39 -> 0.019 | H21: ='Y0.1 Dati generali'!I39 -> 0.018 | I21: ='Y0.1 Dati generali'!J39 -> 0.02 | J21: ='Y0.1 Dati generali'!K39 -> 0.02 | K21: ='Y0.1 Dati generali'!L39 -> 0.02 | L21: ='Y0.1 Dati generali'!M39 -> 0.02 | M21: ='Y0.1 Dati generali'!N39 -> 0.02 | N21: ='Y0.1 Dati generali'!O39 -> 0.02 | O21: ='Y0.1 Dati generali'!P39 -> 0.02 | P21: ='Y0.1 Dati generali'!Q39 -> 0.02 | Q21: ='Y0.1 Dati generali'!R39 -> 0.02 | R21: ='Y0.1 Dati generali'!S39 -> 0.02 | S21: ='Y0.1 Dati generali'!T39 -> 0.02
C22: Indicatore di produttività annuale | D22: X | G22: ='Y0.1 Dati generali'!H48 -> -0.006073323852 | H22: ='Y0.1 Dati generali'!I48 -> -0.006073323852 | I22: ='Y0.1 Dati generali'!J48 -> -0.006073323852 | J22: ='Y0.1 Dati generali'!K48 -> -0.006073323852 | K22: ='Y0.1 Dati generali'!L48 -> -0.006073323852 | L22: ='Y0.1 Dati generali'!M48 -> 0 | M22: ='Y0.1 Dati generali'!N48 -> 0 | N22: ='Y0.1 Dati generali'!O48 -> 0 | O22: ='Y0.1 Dati generali'!P48 -> 0 | P22: ='Y0.1 Dati generali'!Q48 -> 0 | Q22: ='Y0.1 Dati generali'!R48 -> 0 | R22: ='Y0.1 Dati generali'!S48 -> 0 | S22: ='Y0.1 Dati generali'!T48 -> 0
C24: Volumi di traffico previsti (000 veicoli/km) | D24: V | E24: ='Y0.3 PrevisioniTraffico'!E106 -> 1039148.697 | F24: ='Y0.3 PrevisioniTraffico'!F106 -> 1044344.44 | G24: ='Y0.3 PrevisioniTraffico'!G106 -> 1049566.163 | H24: ='Y0.3 PrevisioniTraffico'!H106 -> 1054813.993 | I24: ='Y0.3 PrevisioniTraffico'!I106 -> 1060088.063 | J24: ='Y0.3 PrevisioniTraffico'!J106 -> 1065388.504 | K24: ='Y0.3 PrevisioniTraffico'!K106 -> 1070715.446 | L24: ='Y0.3 PrevisioniTraffico'!L106 -> 1076069.023 | M24: ='Y0.3 PrevisioniTraffico'!M106 -> 1081449.369 | N24: ='Y0.3 PrevisioniTraffico'!N106 -> 1086856.615 | O24: ='Y0.3 PrevisioniTraffico'!O106 -> 1092290.899 | P24: ='Y0.3 PrevisioniTraffico'!P106 -> 1097752.353 | Q24: ='Y0.3 PrevisioniTraffico'!Q106 -> 1103241.115 | R24: ='Y0.3 PrevisioniTraffico'!R106 -> 1108757.32 | S24: ='Y0.3 PrevisioniTraffico'!S106 -> 1114301.107
C25: Volumi di traffico medi annui per periodo regolatorio (000 veicoli/km) | D25: V' | F25: ='Y0.3 PrevisioniTraffico'!F107 -> 1057464.181 | G25: ='Y0.3 PrevisioniTraffico'!G107 ->  | H25: ='Y0.3 PrevisioniTraffico'!H107 ->  | I25: ='Y0.3 PrevisioniTraffico'!I107 ->  | J25: ='Y0.3 PrevisioniTraffico'!J107 -> 1081476.27 | K25: ='Y0.3 PrevisioniTraffico'!K107 ->  | L25: ='Y0.3 PrevisioniTraffico'!L107 ->  | M25: ='Y0.3 PrevisioniTraffico'!M107 ->  | N25: ='Y0.3 PrevisioniTraffico'!N107 ->  | O25: ='Y0.3 PrevisioniTraffico'!O107 -> 1106012.974 | P25: ='Y0.3 PrevisioniTraffico'!P107 ->  | Q25: ='Y0.3 PrevisioniTraffico'!Q107 ->  | R25: ='Y0.3 PrevisioniTraffico'!R107 ->  | S25: ='Y0.3 PrevisioniTraffico'!S107 -> 
C26: Volumi di traffico medi annui per discontinuità di costo (000 veicoli/km) | D26: V'' | G26: ='Y0.3 PrevisioniTraffico'!G108 -> 1057464.181 | H26: ='Y0.3 PrevisioniTraffico'!H108 -> 1060096.854 | I26: ='Y0.3 PrevisioniTraffico'!I108 -> 1062738.284 | J26: ='Y0.3 PrevisioniTraffico'!J108 -> 1065388.504 | K26: ='Y0.3 PrevisioniTraffico'!K108 -> 1081476.27 | L26: ='Y0.3 PrevisioniTraffico'!L108 -> 1084166.476 | M26: ='Y0.3 PrevisioniTraffico'!M108 -> 1086865.628 | N26: ='Y0.3 PrevisioniTraffico'!N108 -> 1089573.757 | O26: ='Y0.3 PrevisioniTraffico'!O108 -> 1092290.899 | P26: ='Y0.3 PrevisioniTraffico'!P108 -> 1106012.974 | Q26: ='Y0.3 PrevisioniTraffico'!Q108 -> 1108766.514 | R26: ='Y0.3 PrevisioniTraffico'!R108 -> 1111529.214 | S26: ='Y0.3 PrevisioniTraffico'!S108 -> 1114301.107
C29: Costi afferenti la componente tariffaria per oneri integrativi
C33: Revenue sharing
C35: Eventuale importo da recuperare attraverso una componente negativa per oneri integrativi | E35: =-'C1 RevenueSharing'!I125 -> -2757.859275
C36: Fattore di proporzionalità per recupero tariffario annuo | E36: =SUM(G36:K36) -> 4 | G36: 1 | H36: 1 | I36: 1 | J36: 1
G37: =IF(G$8=1, IFERROR(IF(G$36>0,$E$35/$E$36*G$36*(1+G17)^(G4-$F4),""),"")) -> -741.2436267 | H37: -796.911023 | I37: -856.7590409 | J37: -921.1016448 | K37: FALSE | L37: FALSE | M37: FALSE | N37: FALSE | O37: FALSE | P37: FALSE | Q37: FALSE | R37: FALSE | S37: FALSE
C38: Valore attuale netto importo da recuperare attraverso Toi | E38: =NPV(WACC,G37:S37) -> -2757.859275
C40: Altri oneri
D44: Si applica?
B45: t | C45: Onere specifico #1 | D45: TRUE | G45: 250 | H45: 250 | I45: 250 | J45: 250 | K45: 250 | L45: 250 | M45: 250 | N45: 250 | O45: 250 | P45: 250 | Q45: 250 | R45: 250 | S45: 250
B46: t | C46: Onere specifico #2 | D46: TRUE | G46: 1000 | H46: 1000 | I46: 1000 | J46: 1000 | K46: 1000 | L46: 1000 | M46: 1000 | N46: 1000 | O46: 1000 | P46: 1000 | Q46: 1000 | R46: 1000 | S46: 1000
B47: t | D47: FALSE
B48: t | D48: FALSE
B49: t | D49: FALSE
C51: Totale costi afferenti alla componente tariffaria per oneri integrativi | D51: U | G51: =SUMIF($D41:$D50,TRUE,G41:G50)+G37 -> 508.7563733 | H51: =SUMIF($D41:$D50,TRUE,H41:H50)+H37 -> 453.088977 | I51: 393.2409591 | J51: 328.8983552 | K51: 1250 | L51: 1250 | M51: 1250 | N51: 1250 | O51: 1250 | P51: 1250 | Q51: 1250 | R51: 1250 | S51: 1250
C55: termine foglio di lavoro

Sheet Y0.5 PR Pregressi
C2: Periodi regolatori pregressi: Volumi di traffico, Componenti tariffarie, Saldi di Capitale Investito netto e Poste figurative
C4: Anno | E4: =YEAR(DataAvvioSTART)-1 -> 2019 | F4: =E4+1 -> 2020 | G4: 2021 | H4: 2022 | I4: 2023 | J4: 2024 | K4: 2025
C6: Anno base | E6: 0 | F6: 0 | G6: 0 | H6: 0 | I6: 0 | J6: 1 | K6: 0
C7: Anno ponte | E7: 1 | F7: 0 | G7: 0 | H7: 0 | I7: 0 | J7: 0 | K7: 1
E9: Ultimo adattamento schema: 03/11/2025 15:39:25
C12: Informazioni generali
C14: Tassi di riferimento
C16: Tasso di remunerazione del CIN ante (TIR previgente) | D16: TIR | F16: 0.1387 | G16: 0.1387 | H16: 0.1387 | I16: 0.1387 | J16: 0.1387 | K16: 0.1387
C17: Tasso di remunerazione del CIN pre2026 e post2026 (WACC) | D17: WACC | F17: 0.0709 | G17: 0.0709 | H17: 0.0709 | I17: 0.0709 | J17: 0.0709 | K17: 0.0709
C18: Tasso di remunerazione del valore di subentro (Rtv) - CIN ante | D18: Rtv - ante | F18: 0.1387 | G18: 0.1387 | H18: 0.1387 | I18: 0.1387 | J18: 0.1387 | K18: 0.1387
C19: Tasso di remunerazione del valore di subentro (Rtv) - CIN pre2026 e post2026 | D19: Rtv - post | F19: 0.0709 | G19: 0.0709 | H19: 0.0709 | I19: 0.0709 | J19: 0.0709 | K19: 0.0709
C20: Tasso di remunerazione delle lavorazioni in corso di secondo livello (vite utili) | D20: Rlic | F20: 0.0709 | G20: 0.0709 | H20: 0.0709 | I20: 0.0709 | J20: 0.0709 | K20: 0.0709
C21: Costo ammesso sul capitale di debito (Rd) | D21: Rd | F21: 0.04441697106 | G21: 0.04441697106 | H21: 0.04441697106 | I21: 0.04441697106 | J21: 0.04441697106 | K21: 0.04441697106
C22: Costo ammesso sul capitale di rischio (Re) | D22: Re | F22: 0.1263427959 | G22: 0.1263427959 | H22: 0.1263427959 | I22: 0.1263427959 | J22: 0.1263427959 | K22: 0.1263427959
C24: Tasso di inflazione | D24: P | F24: 0.008 | G24: 0.008 | H24: 0.008 | I24: 0.008 | J24: 0.008 | K24: 0.008
C26: Utilizzo fondi di accantonamento per rinnovo beni reversibili
C28: Utilizzo di fondo accantonamento per rinnovo beni reversibili | F28: 300 | G28: 300 | H28: 300 | I28: 300 | J28: 300 | K28: 300
C30: Parametri per ammortamento finanziario
C32: CIN ante
C34: Parametro di riferimento annuo per ammortamento finanziario CIN ante | F34: 1 | G34: 1 | H34: 1 | I34: 1 | J34: 1 | K34: 1
C35: (se quote costanti: inserire per ciascuna annualità sempre lo stesso valore, pari a quello inserito nel foglio 'Dati generali')
C36: Priorità: ammortamento anticipato | D36: ='Y0.1 Dati generali'!E83 -> TRUE | F36: FALSE | G36: FALSE | H36: FALSE | I36: FALSE | J36: FALSE | K36: FALSE
C37: Annualità di completo recupero del capitale investito in caso di ammortamento anticipato | D37: ='Y0.1 Dati generali'!E92 -> 2033
C38: Aliquota di ammortamento annua da applicare al CIN ante residuo per ammortamento finanziario | F38: =IF(AND($D$36,F36), IF(F$4>$D$37, 0, F34/(SUM(OFFSET(F34,0,0,1,AnnoPonte-F$4+1))+SUM(OFFSET('Y0.1 Dati generali'!$H$94,0,0,1,$D$37-'Y0.1 Dati generali'!$H$24+1)))), F34/(SUM(OFFSET(F34,0,0,1,AnnoPonte-F$4+1))+SUM('Y0.1 Dati generali'!94:94))) -> 0.05263157895 | G38: =IF(AND($D$36,G36), IF(G$4>$D$37, 0, G34/(SUM(OFFSET(G34,0,0,1,AnnoPonte-G$4+1))+SUM(OFFSET('Y0.1 Dati generali'!$H$94,0,0,1,$D$37-'Y0.1 Dati generali'!$H$24+1)))), G34/(SUM(OFFSET(G34,0,0,1,AnnoPonte-G$4+1))+SUM('Y0.1 Dati generali'!94:94))) -> 0.05555555556 | H38: =IF(AND($D$36,H36), IF(H$4>$D$37, 0, H34/(SUM(OFFSET(H34,0,0,1,AnnoPonte-H$4+1))+SUM(OFFSET('Y0.1 Dati generali'!$H$94,0,0,1,$D$37-'Y0.1 Dati generali'!$H$24+1)))), H34/(SUM(OFFSET(H34,0,0,1,AnnoPonte-H$4+1))+SUM('Y0.1 Dati generali'!94:94))) -> 0.05882352941 | I38: =IF(AND($D$36,I36), IF(I$4>$D$37, 0, I34/(SUM(OFFSET(I34,0,0,1,AnnoPonte-I$4+1))+SUM(OFFSET('Y0.1 Dati generali'!$H$94,0,0,1,$D$37-'Y0.1 Dati generali'!$H$24+1)))), I34/(SUM(OFFSET(I34,0,0,1,AnnoPonte-I$4+1))+SUM('Y0.1 Dati generali'!94:94))) -> 0.0625 | J38: =IF(AND($D$36,J36), IF(J$4>$D$37, 0, J34/(SUM(OFFSET(J34,0,0,1,AnnoPonte-J$4+1))+SUM(OFFSET('Y0.1 Dati generali'!$H$94,0,0,1,$D$37-'Y0.1 Dati generali'!$H$24+1)))), J34/(SUM(OFFSET(J34,0,0,1,AnnoPonte-J$4+1))+SUM('Y0.1 Dati generali'!94:94))) -> 0.06666666667 | K38: =IF(AND($D$36,K36), IF(K$4>$D$37, 0, K34/(SUM(OFFSET(K34,0,0,1,AnnoPonte-K$4+1))+SUM(OFFSET('Y0.1 Dati generali'!$H$94,0,0,1,$D$37-'Y0.1 Dati generali'!$H$24+1)))), K34/(SUM(OFFSET(K34,0,0,1,AnnoPonte-K$4+1))+SUM('Y0.1 Dati generali'!94:94))) -> 0.07142857143
C40: CIN post
C42: Parametro di riferimento annuo per ammortamento finanziario CIN post | F42: 1 | G42: 1 | H42: 1 | I42: 1 | J42: 1 | K42: 1
C43: (se quote costanti: inserire per ciascuna annualità sempre lo stesso valore, pari a quello inserito nel foglio 'Dati generali')
C44: Priorità: ammortamento ritardato | F44: FALSE | G44: FALSE | H44: FALSE | I44: FALSE | J44: FALSE | K44: FALSE
C45: Annualità di avvio del recupero del capitale investito in caso di ammortamento ritardato | D45: ='Y0.1 Dati generali'!E100 -> 2034
C46: Aliquota di ammortamento annua da applicare al CIN post residuo per ammortamento finanziario | F46: =IF(F44, IF(F$4<$D$45, 0, F42/(SUM(OFFSET(F42,0,0,1,AnnoPonte-F$4+1))+SUM('Y0.1 Dati generali'!102:102))), F42/(SUM(OFFSET(F42,0,0,1,AnnoPonte-F$4+1))+SUM('Y0.1 Dati generali'!102:102))) -> 0.05263157895 | G46: =IF(G44, IF(G$4<$D$45, 0, G42/(SUM(OFFSET(G42,0,0,1,AnnoPonte-G$4+1))+SUM('Y0.1 Dati generali'!102:102))), G42/(SUM(OFFSET(G42,0,0,1,AnnoPonte-G$4+1))+SUM('Y0.1 Dati generali'!102:102))) -> 0.05555555556 | H46: =IF(H44, IF(H$4<$D$45, 0, H42/(SUM(OFFSET(H42,0,0,1,AnnoPonte-H$4+1))+SUM('Y0.1 Dati generali'!102:102))), H42/(SUM(OFFSET(H42,0,0,1,AnnoPonte-H$4+1))+SUM('Y0.1 Dati generali'!102:102))) -> 0.05882352941 | I46: =IF(I44, IF(I$4<$D$45, 0, I42/(SUM(OFFSET(I42,0,0,1,AnnoPonte-I$4+1))+SUM('Y0.1 Dati generali'!102:102))), I42/(SUM(OFFSET(I42,0,0,1,AnnoPonte-I$4+1))+SUM('Y0.1 Dati generali'!102:102))) -> 0.0625 | J46: =IF(J44, IF(J$4<$D$45, 0, J42/(SUM(OFFSET(J42,0,0,1,AnnoPonte-J$4+1))+SUM('Y0.1 Dati generali'!102:102))), J42/(SUM(OFFSET(J42,0,0,1,AnnoPonte-J$4+1))+SUM('Y0.1 Dati generali'!102:102))) -> 0.06666666667 | K46: =IF(K44, IF(K$4<$D$45, 0, K42/(SUM(OFFSET(K42,0,0,1,AnnoPonte-K$4+1))+SUM('Y0.1 Dati generali'!102:102))), K42/(SUM(OFFSET(K42,0,0,1,AnnoPonte-K$4+1))+SUM('Y0.1 Dati generali'!102:102))) -> 0.07142857143
C50: Volumi di traffico
C52: Previsioni
E54: Preventivo | F54: Preventivo | G54: Preventivo | H54: Preventivo | I54: Preventivo | J54: Preventivo | K54: Preventivo
C56: (tipologia di rete #1)
C57: Classe
C58: A | E58: 617690.2105 | F58: =E58*1.005 -> 620778.6616 | G58: 623882.5549 | H58: 627001.9677 | I58: 630136.9775 | J58: 633287.6624 | K58: 636454.1007
C59: B | E59: 99140.70291 | F59: =E59*1.005 -> 99636.40642 | G59: 100134.5885 | H59: 100635.2614 | I59: 101138.4377 | J59: 101644.1299 | K59: 102152.3505
C60: 3 | E60: 19258.80318 | F60: =E60*1.005 -> 19355.09719 | G60: 19451.87268 | H60: 19549.13204 | I60: 19646.8777 | J60: 19745.11209 | K60: 19843.83765
C61: 4 | E61: 15285.05483 | F61: =E61*1.005 -> 15361.4801 | G61: 15438.2875 | H61: 15515.47894 | I61: 15593.05634 | J61: 15671.02162 | K61: 15749.37673
C62: 5 | E62: 217948.995 | F62: =E62*1.005 -> 219038.74 | G62: 220133.9337 | H62: 221234.6034 | I62: 222340.7764 | J62: 223452.4803 | K62: 224569.7427
C63: Sub totale leggeri | E63: =+E58 -> 617690.2105 | F63: =+F58 -> 620778.6616 | G63: =+G58 -> 623882.5549 | H63: 627001.9677 | I63: 630136.9775 | J63: 633287.6624 | K63: =+K58 -> 636454.1007
C64: Sub totale pesanti | E64: =+SUM(E59:E62) -> 351633.5559 | F64: =+SUM(F59:F62) -> 353391.7237 | G64: =+SUM(G59:G62) -> 355158.6823 | H64: 356934.4757 | I64: 358719.1481 | J64: 360512.7438 | K64: =+SUM(K59:K62) -> 362315.3076
C65: Totale | E65: =SUM(E58:E62) -> 969323.7665 | F65: =SUM(F58:F62) -> 974170.3853 | G65: =SUM(G58:G62) -> 979041.2372 | H65: 983936.4434 | I65: 988856.1256 | J65: 993800.4063 | K65: =SUM(K58:K62) -> 998769.4083
C67: (tipologia di rete #2)
C68: Classe
C69: A | E69: 9097.422457 | F69: =E69*1.005 -> 9142.909569 | G69: 9188.624117 | H69: 9234.567237 | I69: 9280.740074 | J69: 9327.143774 | K69: 9373.779493
C70: B | E70: 2084.190094 | F70: =E70*1.005 -> 2094.611045 | G70: 2105.0841 | H70: 2115.60952 | I70: 2126.187568 | J70: 2136.818506 | K70: 2147.502598
C71: 3 | E71: 349.0878238 | F71: =E71*1.005 -> 350.8332629 | G71: 352.5874292 | H71: 354.3503663 | I71: 356.1221182 | J71: 357.9027288 | K71: 359.6922424
C72: 4 | E72: 234.7291709 | F72: =E72*1.005 -> 235.9028167 | G72: 237.0823308 | H72: 238.2677424 | I72: 239.4590812 | J72: 240.6563766 | K72: 241.8596584
C73: 5 | E73: 2944.938991 | F73: =E73*1.005 -> 2959.663686 | G73: 2974.462005 | H73: 2989.334315 | I73: 3004.280986 | J73: 3019.302391 | K73: 3034.398903
C74: Sub totale leggeri | E74: =+E69 -> 9097.422457 | F74: =+F69 -> 9142.909569 | G74: =+G69 -> 9188.624117 | H74: 9234.567237 | I74: 9280.740074 | J74: 9327.143774 | K74: =+K69 -> 9373.779493
C75: Sub totale pesanti | E75: =+SUM(E70:E73) -> 5612.94608 | F75: =+SUM(F70:F73) -> 5641.010811 | G75: =+SUM(G70:G73) -> 5669.215865 | H75: 5697.561944 | I75: 5726.049754 | J75: 5754.680003 | K75: =+SUM(K70:K73) -> 5783.453403
C76: Totale | E76: =SUM(E69:E73) -> 14710.36854 | F76: =SUM(F69:F73) -> 14783.92038 | G76: =SUM(G69:G73) -> 14857.83998 | H76: 14932.12918 | I76: 15006.78983 | J76: 15081.82378 | K76: =SUM(K69:K73) -> 15157.2329
C78: (tipologia di rete #3)
C79: Classe
C80: A | E80: 0 | F80: =E80*1.005 -> 0 | G80: 0 | H80: 0 | I80: 0 | J80: 0 | K80: 0
C81: B | E81: 0 | F81: =E81*1.005 -> 0 | G81: 0 | H81: 0 | I81: 0 | J81: 0 | K81: 0
C82: 3 | E82: 0 | F82: =E82*1.005 -> 0 | G82: 0 | H82: 0 | I82: 0 | J82: 0 | K82: 0
C83: 4 | E83: 0 | F83: =E83*1.005 -> 0 | G83: 0 | H83: 0 | I83: 0 | J83: 0 | K83: 0
C84: 5 | E84: 0 | F84: =E84*1.005 -> 0 | G84: 0 | H84: 0 | I84: 0 | J84: 0 | K84: 0
C85: Sub totale leggeri | E85: =+E80 -> 0 | F85: =+F80 -> 0 | G85: =+G80 -> 0 | H85: 0 | I85: 0 | J85: 0 | K85: =+K80 -> 0
C86: Sub totale pesanti | E86: =+SUM(E81:E84) -> 0 | F86: =+SUM(F81:F84) -> 0 | G86: =+SUM(G81:G84) -> 0 | H86: 0 | I86: 0 | J86: 0 | K86: =+SUM(K81:K84) -> 0
C87: Totale | E87: =SUM(E80:E84) -> 0 | F87: =SUM(F80:F84) -> 0 | G87: =SUM(G80:G84) -> 0 | H87: 0 | I87: 0 | J87: 0 | K87: =SUM(K80:K84) -> 0
C89: (tipologia di rete #4)
C90: Classe
C91: A | E91: 0 | F91: =E91*1.005 -> 0 | G91: 0 | H91: 0 | I91: 0 | J91: 0 | K91: 0
C92: B | E92: 0 | F92: =E92*1.005 -> 0 | G92: 0 | H92: 0 | I92: 0 | J92: 0 | K92: 0
C93: 3 | E93: 0 | F93: =E93*1.005 -> 0 | G93: 0 | H93: 0 | I93: 0 | J93: 0 | K93: 0
C94: 4 | E94: 0 | F94: =E94*1.005 -> 0 | G94: 0 | H94: 0 | I94: 0 | J94: 0 | K94: 0
C95: 5 | E95: 0 | F95: =E95*1.005 -> 0 | G95: 0 | H95: 0 | I95: 0 | J95: 0 | K95: 0
C96: Sub totale leggeri | E96: =+E91 -> 0 | F96: =+F91 -> 0 | G96: =+G91 -> 0 | H96: 0 | I96: 0 | J96: 0 | K96: =+K91 -> 0
C97: Sub totale pesanti | E97: =+SUM(E92:E95) -> 0 | F97: =+SUM(F92:F95) -> 0 | G97: =+SUM(G92:G95) -> 0 | H97: 0 | I97: 0 | J97: 0 | K97: =+SUM(K92:K95) -> 0
C98: Totale | E98: =SUM(E91:E95) -> 0 | F98: =SUM(F91:F95) -> 0 | G98: =SUM(G91:G95) -> 0 | H98: 0 | I98: 0 | J98: 0 | K98: =SUM(K91:K95) -> 0
C100: Volumi di traffico Totali (mln di veicoli km)
C101: Classe
C102: A | E102: =+E58+E69+E80+E91 -> 626787.633 | F102: =+F58+F69+F80+F91 -> 629921.5712 | G102: =+G58+G69+G80+G91 -> 633071.179 | H102: 636236.5349 | I102: 639417.7176 | J102: 642614.8062 | K102: =+K58+K69+K80+K91 -> 645827.8802
C103: B | E103: =+E59+E70+E81+E92 -> 101224.893 | F103: 101731.0175 | G103: =+G59+G70+G81+G92 -> 102239.6726 | H103: 102750.8709 | I103: 103264.6253 | J103: 103780.9484 | K103: =+K59+K70+K81+K92 -> 104299.8531
C104: 3 | E104: =+E60+E71+E82+E93 -> 19607.891 | F104: 19705.93045 | G104: =+G60+G71+G82+G93 -> 19804.46011 | H104: 19903.48241 | I104: 20002.99982 | J104: 20103.01482 | K104: =+K60+K71+K82+K93 -> 20203.52989
C105: 4 | E105: =+E61+E72+E83+E94 -> 15519.784 | F105: 15597.38292 | G105: =+G61+G72+G83+G94 -> 15675.36983 | H105: 15753.74668 | I105: 15832.51542 | J105: 15911.67799 | K105: =+K61+K72+K83+K94 -> 15991.23638
C106: 5 | E106: =+E62+E73+E84+E95 -> 220893.934 | F106: 221998.4037 | G106: =+G62+G73+G84+G95 -> 223108.3957 | H106: 224223.9377 | I106: 225345.0574 | J106: 226471.7826 | K106: =+K62+K73+K84+K95 -> 227604.1416
C107: Sub totale leggeri | E107: =+E102 -> 626787.633 | F107: =+F102 -> 629921.5712 | G107: =+G102 -> 633071.179 | H107: 636236.5349 | I107: 639417.7176 | J107: 642614.8062 | K107: =+K102 -> 645827.8802
C108: Sub totale pesanti | E108: =+SUM(E103:E106) -> 357246.502 | F108: =+SUM(F103:F106) -> 359032.7345 | G108: =+SUM(G103:G106) -> 360827.8982 | H108: 362632.0377 | I108: 364445.1979 | J108: 366267.4239 | K108: =+SUM(K103:K106) -> 368098.761
C109: Totale complessivo | E109: =E107+E108 -> 984034.135 | F109: =F107+F108 -> 988954.3057 | G109: =G107+G108 -> 993899.0772 | H109: 998868.5726 | I109: 1003862.915 | J109: 1008882.23 | K109: =K107+K108 -> 1013926.641
C112: Dati a consuntivo
E114: =IF(E4<AnnoPonte,"Consuntivo",IF(E4=AnnoPonte,"Preconsuntivo","Preventivo")) -> Consuntivo | F114: Consuntivo | G114: Consuntivo | H114: Consuntivo | I114: Consuntivo | J114: Consuntivo | K114: Preconsuntivo
C116: (tipologia di rete #1)
C117: Classe
C118: A | E118: =E58*1.03 -> 636220.9169 | F118: =F58*1.03 -> 639402.0214 | G118: =G58*1.03 -> 642599.0316 | H118: 645812.0267 | I118: 649041.0868 | J118: 652286.2923 | K118: =K58*1.03 -> 655547.7237
C119: B | E119: =E59*1.03 -> 102114.924 | F119: 102625.4986 | G119: =G59*1.03 -> 103138.6261 | H119: 103654.3192 | I119: 104172.5908 | J119: 104693.4538 | K119: =K59*1.03 -> 105216.9211
C120: 3 | E120: =E60*1.03 -> 19836.56727 | F120: 19935.75011 | G120: =G60*1.03 -> 20035.42886 | H120: 20135.606 | I120: 20236.28403 | J120: 20337.46545 | K120: =K60*1.03 -> 20439.15278
C121: 4 | E121: =E61*1.03 -> 15743.60647 | F121: 15822.32451 | G121: =G61*1.03 -> 15901.43613 | H121: 15980.94331 | I121: 16060.84803 | J121: 16141.15227 | K121: =K61*1.03 -> 16221.85803
C122: 5 | E122: =E62*1.03 -> 224487.4649 | F122: 225609.9022 | G122: =G62*1.03 -> 226737.9517 | H122: 227871.6415 | I122: 229010.9997 | J122: 230156.0547 | K122: =K62*1.03 -> 231306.8349
C123: Sub totale leggeri | E123: =+E118 -> 636220.9169 | F123: =+F118 -> 639402.0214 | G123: =+G118 -> 642599.0316 | H123: 645812.0267 | I123: 649041.0868 | J123: 652286.2923 | K123: =+K118 -> 655547.7237
C124: Sub totale pesanti | E124: =+SUM(E119:E122) -> 362182.5626 | F124: =+SUM(F119:F122) -> 363993.4754 | G124: =+SUM(G119:G122) -> 365813.4428 | H124: 367642.51 | I124: 369480.7226 | J124: 371328.1262 | K124: =+SUM(K119:K122) -> 373184.7668
C125: Totale | E125: =SUM(E118:E122) -> 998403.4795 | F125: =SUM(F118:F122) -> 1003395.497 | G125: =SUM(G118:G122) -> 1008412.474 | H125: 1013454.537 | I125: 1018521.809 | J125: 1023614.418 | K125: =SUM(K118:K122) -> 1028732.491
C127: (tipologia di rete #2)
C128: Classe
C129: A | E129: =E69*1.03 -> 9370.34513 | F129: 9417.196856 | G129: =G69*1.03 -> 9464.28284 | H129: 9511.604255 | I129: 9559.162276 | J129: 9606.958087 | K129: =K69*1.03 -> 9654.992878
C130: B | E130: =E70*1.03 -> 2146.715797 | F130: 2157.449376 | G130: =G70*1.03 -> 2168.236623 | H130: 2179.077806 | I130: 2189.973195 | J130: 2200.923061 | K130: =K70*1.03 -> 2211.927676
C131: 3 | E131: =E71*1.03 -> 359.5604585 | F131: 361.3582608 | G131: =G71*1.03 -> 363.1650521 | H131: 364.9808773 | I131: 366.8057817 | J131: 368.6398106 | K131: =K71*1.03 -> 370.4830097
C132: 4 | E132: =E72*1.03 -> 241.771046 | F132: 242.9799012 | G132: =G72*1.03 -> 244.1948007 | H132: 245.4157747 | I132: 246.6428536 | J132: 247.8760679 | K132: =K72*1.03 -> 249.1154482
C133: 5 | E133: =E73*1.03 -> 3033.287161 | F133: 3048.453597 | G133: =G73*1.03 -> 3063.695865 | H133: 3079.014344 | I133: 3094.409416 | J133: 3109.881463 | K133: =K73*1.03 -> 3125.43087
C134: Sub totale leggeri | E134: =+E129 -> 9370.34513 | F134: =+F129 -> 9417.196856 | G134: =+G129 -> 9464.28284 | H134: 9511.604255 | I134: 9559.162276 | J134: 9606.958087 | K134: =+K129 -> 9654.992878
C135: Sub totale pesanti | E135: =+SUM(E130:E133) -> 5781.334463 | F135: =+SUM(F130:F133) -> 5810.241135 | G135: =+SUM(G130:G133) -> 5839.292341 | H135: 5868.488802 | I135: 5897.831246 | J135: 5927.320403 | K135: =+SUM(K130:K133) -> 5956.957005
C136: Totale | E136: =SUM(E129:E133) -> 15151.67959 | F136: =SUM(F129:F133) -> 15227.43799 | G136: =SUM(G129:G133) -> 15303.57518 | H136: 15380.09306 | I136: 15456.99352 | J136: 15534.27849 | K136: =SUM(K129:K133) -> 15611.94988
C138: (tipologia di rete #3)
C139: Classe
C140: A | E140: =E80*1.03 -> 0 | F140: 0 | G140: =G80*1.03 -> 0 | H140: 0 | I140: 0 | J140: 0 | K140: =K80*1.03 -> 0
C141: B | E141: =E81*1.03 -> 0 | F141: 0 | G141: =G81*1.03 -> 0 | H141: 0 | I141: 0 | J141: 0 | K141: =K81*1.03 -> 0
C142: 3 | E142: =E82*1.03 -> 0 | F142: 0 | G142: =G82*1.03 -> 0 | H142: 0 | I142: 0 | J142: 0 | K142: =K82*1.03 -> 0
C143: 4 | E143: =E83*1.03 -> 0 | F143: 0 | G143: =G83*1.03 -> 0 | H143: 0 | I143: 0 | J143: 0 | K143: =K83*1.03 -> 0
C144: 5 | E144: =E84*1.03 -> 0 | F144: 0 | G144: =G84*1.03 -> 0 | H144: 0 | I144: 0 | J144: 0 | K144: =K84*1.03 -> 0
C145: Sub totale leggeri | E145: =+E140 -> 0 | F145: =+F140 -> 0 | G145: =+G140 -> 0 | H145: 0 | I145: 0 | J145: 0 | K145: =+K140 -> 0
C146: Sub totale pesanti | E146: =+SUM(E141:E144) -> 0 | F146: =+SUM(F141:F144) -> 0 | G146: =+SUM(G141:G144) -> 0 | H146: 0 | I146: 0 | J146: 0 | K146: =+SUM(K141:K144) -> 0
C147: Totale | E147: =SUM(E140:E144) -> 0 | F147: =SUM(F140:F144) -> 0 | G147: =SUM(G140:G144) -> 0 | H147: 0 | I147: 0 | J147: 0 | K147: =SUM(K140:K144) -> 0
C149: (tipologia di rete #4)
C150: Classe
C151: A | E151: =E91*1.03 -> 0 | F151: 0 | G151: =G91*1.03 -> 0 | H151: 0 | I151: 0 | J151: 0 | K151: =K91*1.03 -> 0
C152: B | E152: =E92*1.03 -> 0 | F152: 0 | G152: =G92*1.03 -> 0 | H152: 0 | I152: 0 | J152: 0 | K152: =K92*1.03 -> 0
C153: 3 | E153: =E93*1.03 -> 0 | F153: 0 | G153: =G93*1.03 -> 0 | H153: 0 | I153: 0 | J153: 0 | K153: =K93*1.03 -> 0
C154: 4 | E154: =E94*1.03 -> 0 | F154: 0 | G154: =G94*1.03 -> 0 | H154: 0 | I154: 0 | J154: 0 | K154: =K94*1.03 -> 0
C155: 5 | E155: =E95*1.03 -> 0 | F155: 0 | G155: =G95*1.03 -> 0 | H155: 0 | I155: 0 | J155: 0 | K155: =K95*1.03 -> 0
C156: Sub totale leggeri | E156: =+E151 -> 0 | F156: =+F151 -> 0 | G156: =+G151 -> 0 | H156: 0 | I156: 0 | J156: 0 | K156: =+K151 -> 0
C157: Sub totale pesanti | E157: =+SUM(E152:E155) -> 0 | F157: =+SUM(F152:F155) -> 0 | G157: =+SUM(G152:G155) -> 0 | H157: 0 | I157: 0 | J157: 0 | K157: =+SUM(K152:K155) -> 0
C158: Totale | E158: =SUM(E151:E155) -> 0 | F158: =SUM(F151:F155) -> 0 | G158: =SUM(G151:G155) -> 0 | H158: 0 | I158: 0 | J158: 0 | K158: =SUM(K151:K155) -> 0
C160: Volumi di traffico Totali (mln di veicoli km)
C161: Classe
C162: A | E162: =+E118+E129+E140+E151 -> 645591.262 | F162: =+F118+F129+F140+F151 -> 648819.2183 | G162: =+G118+G129+G140+G151 -> 652063.3144 | H162: 655323.631 | I162: 658600.2491 | J162: 661893.2504 | K162: =+K118+K129+K140+K151 -> 665202.7166
C163: B | E163: =+E119+E130+E141+E152 -> 104261.6398 | F163: 104782.948 | G163: =+G119+G130+G141+G152 -> 105306.8627 | H163: 105833.397 | I163: 106362.564 | J163: 106894.3768 | K163: =+K119+K130+K141+K152 -> 107428.8487
C164: 3 | E164: =+E120+E131+E142+E153 -> 20196.12773 | F164: 20297.10837 | G164: =+G120+G131+G142+G153 -> 20398.59391 | H164: 20500.58688 | I164: 20603.08981 | J164: 20706.10526 | K164: =+K120+K131+K142+K153 -> 20809.63579
C165: 4 | E165: =+E121+E132+E143+E154 -> 15985.37752 | F165: 16065.30441 | G165: =+G121+G132+G143+G154 -> 16145.63093 | H165: 16226.35908 | I165: 16307.49088 | J165: 16389.02833 | K165: =+K121+K132+K143+K154 -> 16470.97348
C166: 5 | E166: =+E122+E133+E144+E155 -> 227520.752 | F166: 228658.3558 | G166: =+G122+G133+G144+G155 -> 229801.6476 | H166: 230950.6558 | I166: 232105.4091 | J166: 233265.9361 | K166: =+K122+K133+K144+K155 -> 234432.2658
C167: Sub totale leggeri | E167: =+E162 -> 645591.262 | F167: =+F162 -> 648819.2183 | G167: =+G162 -> 652063.3144 | H167: 655323.631 | I167: 658600.2491 | J167: 661893.2504 | K167: =+K162 -> 665202.7166
C168: Sub totale pesanti | E168: =+SUM(E163:E166) -> 367963.8971 | F168: =+SUM(F163:F166) -> 369803.7165 | G168: =+SUM(G163:G166) -> 371652.7351 | H168: 373510.9988 | I168: 375378.5538 | J168: 377255.4466 | K168: =+SUM(K163:K166) -> 379141.7238
C169: Totale complessivo | E169: =E167+E168 -> 1013555.159 | F169: =F167+F168 -> 1018622.935 | G169: =G167+G168 -> 1023716.05 | H169: 1028834.63 | I169: 1033978.803 | J169: 1039148.697 | K169: =K167+K168 -> 1044344.44
C171: Check preventivo-consuntivo | E171: =E169-E109 -> 29521.02405 | F171: =F169-F109 -> 29668.62917 | G171: =G169-G109 -> 29816.97232 | H171: 29966.05718 | I171: 30115.88746 | J171: 30266.4669 | K171: =K169-K109 -> 30417.79924
C172: Check Previsioni di traffico nuovo periodo regolatorio | E172: =IFERROR(_xlfn.IFS(E4=AnnoBase,E$169-'Y0.3 PrevisioniTraffico'!$E$75,E4=AnnoPonte,E$169-'Y0.3 PrevisioniTraffico'!$F$75),"") ->  | F172: =IFERROR(_xlfn.IFS(F4=AnnoBase,F$169-'Y0.3 PrevisioniTraffico'!$E$75,F4=AnnoPonte,F$169-'Y0.3 PrevisioniTraffico'!$F$75),"") ->  | G172: =IFERROR(_xlfn.IFS(G4=AnnoBase,G$169-'Y0.3 PrevisioniTraffico'!$E$75,G4=AnnoPonte,G$169-'Y0.3 PrevisioniTraffico'!$F$75),"") ->  | H172: =IFERROR(_xlfn.IFS(H4=AnnoBase,H$169-'Y0.3 PrevisioniTraffico'!$E$75,H4=AnnoPonte,H$169-'Y0.3 PrevisioniTraffico'!$F$75),"") ->  | I172: =IFERROR(_xlfn.IFS(I4=AnnoBase,I$169-'Y0.3 PrevisioniTraffico'!$E$75,I4=AnnoPonte,I$169-'Y0.3 PrevisioniTraffico'!$F$75),"") ->  | J172: =IFERROR(_xlfn.IFS(J4=AnnoBase,J$169-'Y0.3 PrevisioniTraffico'!$E$75,J4=AnnoPonte,J$169-'Y0.3 PrevisioniTraffico'!$F$75),"") -> -1.164153218e-10 | K172: =IFERROR(_xlfn.IFS(K4=AnnoBase,K$169-'Y0.3 PrevisioniTraffico'!$E$75,K4=AnnoPonte,K$169-'Y0.3 PrevisioniTraffico'!$F$75),"") -> 0
E173: =IFERROR(_xlfn.IFS(E5=AnnoBase,E$169-'Y0.3 PrevisioniTraffico'!$E$75,E5=AnnoPonte,E169-'Y0.3 PrevisioniTraffico'!$F$75),"") -> 
C176: Componenti tariffarie effettivamente assunte (da ultimo adeguamento tariffario annuale approvato)
C178: Tariffa unitaria media integrata (TUMI)
C180: Componente tariffaria di gestione (Tg) | E180: 0.03541625819 | F180: =E180*1.01 -> 0.03577042077 | G180: 0.03612812498 | H180: 0.03648940623 | I180: 0.03685430029 | J180: 0.0372228433 | K180: 0.03759507173
C181: Componente tariffaria di costruzione con poste figurative (Tk) | E181: 0.045 | F181: =E181*1.01 -> 0.04545 | G181: =F181*1.01 -> 0.0459045 | H181: =G181*1.01 -> 0.046363545 | I181: =H181*1.01 -> 0.04682718045 | J181: =I181*1.01 -> 0.04729545225 | K181: =J181*1.01 -> 0.04776840678
C182: Componente tariffaria per oneri integrativi (Toi) | E182: 0.0012 | F182: =E182*1.01 -> 0.001212 | G182: =F182*1.01 -> 0.00122412 | H182: =G182*1.01 -> 0.0012363612 | I182: =H182*1.01 -> 0.001248724812 | J182: =I182*1.01 -> 0.00126121206 | K182: =J182*1.01 -> 0.001273824181
C183: Tariffa unitaria media integrata (TUMI) | E183: =SUM(E180:E182) -> 0.08161625819 | F183: 0.08243242077 | G183: =SUM(G180:G182) -> 0.08325674498 | H183: 0.08408931243 | I183: 0.08493020555 | J183: 0.08577950761 | K183: =SUM(K180:K182) -> 0.08663730269
C185: Modulazione tariffaria
C187: =C116 -> (tipologia di rete #1)
C188: Classe
C189: A | E189: =-E$218+$E$183*'Y2.a ModulazioneTariffaria'!$E$85*'Y2.a ModulazioneTariffaria'!$E94 -> 0.05115263837 | F189: =-F$218+$E$183*'Y2.a ModulazioneTariffaria'!$E$85*'Y2.a ModulazioneTariffaria'!$E94 -> 0.05196880095 | G189: =-G$218+$E$183*'Y2.a ModulazioneTariffaria'!$E$85*'Y2.a ModulazioneTariffaria'!$E94 -> 0.05279312516 | H189: =-H$218+$E$183*'Y2.a ModulazioneTariffaria'!$E$85*'Y2.a ModulazioneTariffaria'!$E94 -> 0.05362569261 | I189: =-I$218+$E$183*'Y2.a ModulazioneTariffaria'!$E$85*'Y2.a ModulazioneTariffaria'!$E94 -> 0.05446658574 | J189: =-J$218+$E$183*'Y2.a ModulazioneTariffaria'!$E$85*'Y2.a ModulazioneTariffaria'!$E94 -> 0.05531588779 | K189: =-K$218+$E$183*'Y2.a ModulazioneTariffaria'!$E$85*'Y2.a ModulazioneTariffaria'!$E94 -> 0.05617368287
C190: B | E190: =-E$218+$E$183*'Y2.a ModulazioneTariffaria'!$E$85*'Y2.a ModulazioneTariffaria'!$E95 -> 0.08505615613 | F190: =-F$218+$E$183*'Y2.a ModulazioneTariffaria'!$E$85*'Y2.a ModulazioneTariffaria'!$E95 -> 0.08587231871 | G190: =-G$218+$E$183*'Y2.a ModulazioneTariffaria'!$E$85*'Y2.a ModulazioneTariffaria'!$E95 -> 0.08669664292 | H190: =-H$218+$E$183*'Y2.a ModulazioneTariffaria'!$E$85*'Y2.a ModulazioneTariffaria'!$E95 -> 0.08752921037 | I190: =-I$218+$E$183*'Y2.a ModulazioneTariffaria'!$E$85*'Y2.a ModulazioneTariffaria'!$E95 -> 0.08837010349 | J190: =-J$218+$E$183*'Y2.a ModulazioneTariffaria'!$E$85*'Y2.a ModulazioneTariffaria'!$E95 -> 0.08921940555 | K190: =-K$218+$E$183*'Y2.a ModulazioneTariffaria'!$E$85*'Y2.a ModulazioneTariffaria'!$E95 -> 0.09007720062
C191: 3 | E191: =-E$218+$E$183*'Y2.a ModulazioneTariffaria'!$E$85*'Y2.a ModulazioneTariffaria'!$E96 -> 0.08910600402 | F191: =-F$218+$E$183*'Y2.a ModulazioneTariffaria'!$E$85*'Y2.a ModulazioneTariffaria'!$E96 -> 0.0899221666 | G191: =-G$218+$E$183*'Y2.a ModulazioneTariffaria'!$E$85*'Y2.a ModulazioneTariffaria'!$E96 -> 0.09074649081 | H191: =-H$218+$E$183*'Y2.a ModulazioneTariffaria'!$E$85*'Y2.a ModulazioneTariffaria'!$E96 -> 0.09157905826 | I191: =-I$218+$E$183*'Y2.a ModulazioneTariffaria'!$E$85*'Y2.a ModulazioneTariffaria'!$E96 -> 0.09241995138 | J191: =-J$218+$E$183*'Y2.a ModulazioneTariffaria'!$E$85*'Y2.a ModulazioneTariffaria'!$E96 -> 0.09326925344 | K191: =-K$218+$E$183*'Y2.a ModulazioneTariffaria'!$E$85*'Y2.a ModulazioneTariffaria'!$E96 -> 0.09412704851
C192: 4 | E192: =-E$218+$E$183*'Y2.a ModulazioneTariffaria'!$E$85*'Y2.a ModulazioneTariffaria'!$E97 -> 0.09720569979 | F192: =-F$218+$E$183*'Y2.a ModulazioneTariffaria'!$E$85*'Y2.a ModulazioneTariffaria'!$E97 -> 0.09802186237 | G192: =-G$218+$E$183*'Y2.a ModulazioneTariffaria'!$E$85*'Y2.a ModulazioneTariffaria'!$E97 -> 0.09884618658 | H192: =-H$218+$E$183*'Y2.a ModulazioneTariffaria'!$E$85*'Y2.a ModulazioneTariffaria'!$E97 -> 0.09967875403 | I192: =-I$218+$E$183*'Y2.a ModulazioneTariffaria'!$E$85*'Y2.a ModulazioneTariffaria'!$E97 -> 0.1005196472 | J192: =-J$218+$E$183*'Y2.a ModulazioneTariffaria'!$E$85*'Y2.a ModulazioneTariffaria'!$E97 -> 0.1013689492 | K192: =-K$218+$E$183*'Y2.a ModulazioneTariffaria'!$E$85*'Y2.a ModulazioneTariffaria'!$E97 -> 0.1022267443
C193: 5 | E193: =-E$218+$E$183*'Y2.a ModulazioneTariffaria'!$E$85*'Y2.a ModulazioneTariffaria'!$E98 -> 0.162003266 | F193: =-F$218+$E$183*'Y2.a ModulazioneTariffaria'!$E$85*'Y2.a ModulazioneTariffaria'!$E98 -> 0.1628194286 | G193: =-G$218+$E$183*'Y2.a ModulazioneTariffaria'!$E$85*'Y2.a ModulazioneTariffaria'!$E98 -> 0.1636437528 | H193: =-H$218+$E$183*'Y2.a ModulazioneTariffaria'!$E$85*'Y2.a ModulazioneTariffaria'!$E98 -> 0.1644763202 | I193: =-I$218+$E$183*'Y2.a ModulazioneTariffaria'!$E$85*'Y2.a ModulazioneTariffaria'!$E98 -> 0.1653172134 | J193: =-J$218+$E$183*'Y2.a ModulazioneTariffaria'!$E$85*'Y2.a ModulazioneTariffaria'!$E98 -> 0.1661665154 | K193: =-K$218+$E$183*'Y2.a ModulazioneTariffaria'!$E$85*'Y2.a ModulazioneTariffaria'!$E98 -> 0.1670243105
C195: =C127 -> (tipologia di rete #2)
C196: Classe
C197: A | E197: =-E$218+$E$183*'Y2.a ModulazioneTariffaria'!$E$86*'Y2.a ModulazioneTariffaria'!$E94 -> 0.0773108425 | F197: =-F$218+$E$183*'Y2.a ModulazioneTariffaria'!$E$86*'Y2.a ModulazioneTariffaria'!$E94 -> 0.07812700508 | G197: =-G$218+$E$183*'Y2.a ModulazioneTariffaria'!$E$86*'Y2.a ModulazioneTariffaria'!$E94 -> 0.07895132929 | H197: =-H$218+$E$183*'Y2.a ModulazioneTariffaria'!$E$86*'Y2.a ModulazioneTariffaria'!$E94 -> 0.07978389674 | I197: =-I$218+$E$183*'Y2.a ModulazioneTariffaria'!$E$86*'Y2.a ModulazioneTariffaria'!$E94 -> 0.08062478986 | J197: =-J$218+$E$183*'Y2.a ModulazioneTariffaria'!$E$86*'Y2.a ModulazioneTariffaria'!$E94 -> 0.08147409192 | K197: =-K$218+$E$183*'Y2.a ModulazioneTariffaria'!$E$86*'Y2.a ModulazioneTariffaria'!$E94 -> 0.08233188699
C198: B | E198: =-E$218+$E$183*'Y2.a ModulazioneTariffaria'!$E$86*'Y2.a ModulazioneTariffaria'!$E95 -> 0.1285549571 | F198: =-F$218+$E$183*'Y2.a ModulazioneTariffaria'!$E$86*'Y2.a ModulazioneTariffaria'!$E95 -> 0.1293711197 | G198: =-G$218+$E$183*'Y2.a ModulazioneTariffaria'!$E$86*'Y2.a ModulazioneTariffaria'!$E95 -> 0.1301954439 | H198: =-H$218+$E$183*'Y2.a ModulazioneTariffaria'!$E$86*'Y2.a ModulazioneTariffaria'!$E95 -> 0.1310280114 | I198: =-I$218+$E$183*'Y2.a ModulazioneTariffaria'!$E$86*'Y2.a ModulazioneTariffaria'!$E95 -> 0.1318689045 | J198: =-J$218+$E$183*'Y2.a ModulazioneTariffaria'!$E$86*'Y2.a ModulazioneTariffaria'!$E95 -> 0.1327182065 | K198: =-K$218+$E$183*'Y2.a ModulazioneTariffaria'!$E$86*'Y2.a ModulazioneTariffaria'!$E95 -> 0.1335760016
C199: 3 | E199: =-E$218+$E$183*'Y2.a ModulazioneTariffaria'!$E$86*'Y2.a ModulazioneTariffaria'!$E96 -> 0.1346761765 | F199: =-F$218+$E$183*'Y2.a ModulazioneTariffaria'!$E$86*'Y2.a ModulazioneTariffaria'!$E96 -> 0.1354923391 | G199: =-G$218+$E$183*'Y2.a ModulazioneTariffaria'!$E$86*'Y2.a ModulazioneTariffaria'!$E96 -> 0.1363166633 | H199: =-H$218+$E$183*'Y2.a ModulazioneTariffaria'!$E$86*'Y2.a ModulazioneTariffaria'!$E96 -> 0.1371492307 | I199: =-I$218+$E$183*'Y2.a ModulazioneTariffaria'!$E$86*'Y2.a ModulazioneTariffaria'!$E96 -> 0.1379901238 | J199: =-J$218+$E$183*'Y2.a ModulazioneTariffaria'!$E$86*'Y2.a ModulazioneTariffaria'!$E96 -> 0.1388394259 | K199: =-K$218+$E$183*'Y2.a ModulazioneTariffaria'!$E$86*'Y2.a ModulazioneTariffaria'!$E96 -> 0.139697221
C200: 4 | E200: =-E$218+$E$183*'Y2.a ModulazioneTariffaria'!$E$86*'Y2.a ModulazioneTariffaria'!$E97 -> 0.1469186152 | F200: =-F$218+$E$183*'Y2.a ModulazioneTariffaria'!$E$86*'Y2.a ModulazioneTariffaria'!$E97 -> 0.1477347778 | G200: =-G$218+$E$183*'Y2.a ModulazioneTariffaria'!$E$86*'Y2.a ModulazioneTariffaria'!$E97 -> 0.148559102 | H200: =-H$218+$E$183*'Y2.a ModulazioneTariffaria'!$E$86*'Y2.a ModulazioneTariffaria'!$E97 -> 0.1493916695 | I200: =-I$218+$E$183*'Y2.a ModulazioneTariffaria'!$E$86*'Y2.a ModulazioneTariffaria'!$E97 -> 0.1502325626 | J200: =-J$218+$E$183*'Y2.a ModulazioneTariffaria'!$E$86*'Y2.a ModulazioneTariffaria'!$E97 -> 0.1510818646 | K200: =-K$218+$E$183*'Y2.a ModulazioneTariffaria'!$E$86*'Y2.a ModulazioneTariffaria'!$E97 -> 0.1519396597
C201: 5 | E201: =-E$218+$E$183*'Y2.a ModulazioneTariffaria'!$E$86*'Y2.a ModulazioneTariffaria'!$E98 -> 0.244858125 | F201: =-F$218+$E$183*'Y2.a ModulazioneTariffaria'!$E$86*'Y2.a ModulazioneTariffaria'!$E98 -> 0.2456742876 | G201: =-G$218+$E$183*'Y2.a ModulazioneTariffaria'!$E$86*'Y2.a ModulazioneTariffaria'!$E98 -> 0.2464986118 | H201: =-H$218+$E$183*'Y2.a ModulazioneTariffaria'!$E$86*'Y2.a ModulazioneTariffaria'!$E98 -> 0.2473311793 | I201: =-I$218+$E$183*'Y2.a ModulazioneTariffaria'!$E$86*'Y2.a ModulazioneTariffaria'!$E98 -> 0.2481720724 | J201: =-J$218+$E$183*'Y2.a ModulazioneTariffaria'!$E$86*'Y2.a ModulazioneTariffaria'!$E98 -> 0.2490213745 | K201: =-K$218+$E$183*'Y2.a ModulazioneTariffaria'!$E$86*'Y2.a ModulazioneTariffaria'!$E98 -> 0.2498791695
C203: =C138 -> (tipologia di rete #3)
C204: Classe
C205: A | E205: =-E$218+$E$183*'Y2.a ModulazioneTariffaria'!$E$87*'Y2.a ModulazioneTariffaria'!$E94 -> 0.05154367849 | F205: =-F$218+$E$183*'Y2.a ModulazioneTariffaria'!$E$87*'Y2.a ModulazioneTariffaria'!$E94 -> 0.05235984107 | G205: =-G$218+$E$183*'Y2.a ModulazioneTariffaria'!$E$87*'Y2.a ModulazioneTariffaria'!$E94 -> 0.05318416528 | H205: =-H$218+$E$183*'Y2.a ModulazioneTariffaria'!$E$87*'Y2.a ModulazioneTariffaria'!$E94 -> 0.05401673273 | I205: =-I$218+$E$183*'Y2.a ModulazioneTariffaria'!$E$87*'Y2.a ModulazioneTariffaria'!$E94 -> 0.05485762585 | J205: =-J$218+$E$183*'Y2.a ModulazioneTariffaria'!$E$87*'Y2.a ModulazioneTariffaria'!$E94 -> 0.05570692791 | K205: =-K$218+$E$183*'Y2.a ModulazioneTariffaria'!$E$87*'Y2.a ModulazioneTariffaria'!$E94 -> 0.05656472298
C206: B | E206: =-E$218+$E$183*'Y2.a ModulazioneTariffaria'!$E$87*'Y2.a ModulazioneTariffaria'!$E95 -> 0.08570642157 | F206: =-F$218+$E$183*'Y2.a ModulazioneTariffaria'!$E$87*'Y2.a ModulazioneTariffaria'!$E95 -> 0.08652258415 | G206: =-G$218+$E$183*'Y2.a ModulazioneTariffaria'!$E$87*'Y2.a ModulazioneTariffaria'!$E95 -> 0.08734690836 | H206: =-H$218+$E$183*'Y2.a ModulazioneTariffaria'!$E$87*'Y2.a ModulazioneTariffaria'!$E95 -> 0.08817947581 | I206: =-I$218+$E$183*'Y2.a ModulazioneTariffaria'!$E$87*'Y2.a ModulazioneTariffaria'!$E95 -> 0.08902036894 | J206: =-J$218+$E$183*'Y2.a ModulazioneTariffaria'!$E$87*'Y2.a ModulazioneTariffaria'!$E95 -> 0.08986967099 | K206: =-K$218+$E$183*'Y2.a ModulazioneTariffaria'!$E$87*'Y2.a ModulazioneTariffaria'!$E95 -> 0.09072746607
C207: 3 | E207: =-E$218+$E$183*'Y2.a ModulazioneTariffaria'!$E$87*'Y2.a ModulazioneTariffaria'!$E96 -> 0.08978723448 | F207: =-F$218+$E$183*'Y2.a ModulazioneTariffaria'!$E$87*'Y2.a ModulazioneTariffaria'!$E96 -> 0.09060339706 | G207: =-G$218+$E$183*'Y2.a ModulazioneTariffaria'!$E$87*'Y2.a ModulazioneTariffaria'!$E96 -> 0.09142772127 | H207: =-H$218+$E$183*'Y2.a ModulazioneTariffaria'!$E$87*'Y2.a ModulazioneTariffaria'!$E96 -> 0.09226028872 | I207: =-I$218+$E$183*'Y2.a ModulazioneTariffaria'!$E$87*'Y2.a ModulazioneTariffaria'!$E96 -> 0.09310118184 | J207: =-J$218+$E$183*'Y2.a ModulazioneTariffaria'!$E$87*'Y2.a ModulazioneTariffaria'!$E96 -> 0.0939504839 | K207: =-K$218+$E$183*'Y2.a ModulazioneTariffaria'!$E$87*'Y2.a ModulazioneTariffaria'!$E96 -> 0.09480827898
C208: 4 | E208: =-E$218+$E$183*'Y2.a ModulazioneTariffaria'!$E$87*'Y2.a ModulazioneTariffaria'!$E97 -> 0.0979488603 | F208: =-F$218+$E$183*'Y2.a ModulazioneTariffaria'!$E$87*'Y2.a ModulazioneTariffaria'!$E97 -> 0.09876502288 | G208: =-G$218+$E$183*'Y2.a ModulazioneTariffaria'!$E$87*'Y2.a ModulazioneTariffaria'!$E97 -> 0.09958934709 | H208: =-H$218+$E$183*'Y2.a ModulazioneTariffaria'!$E$87*'Y2.a ModulazioneTariffaria'!$E97 -> 0.1004219145 | I208: =-I$218+$E$183*'Y2.a ModulazioneTariffaria'!$E$87*'Y2.a ModulazioneTariffaria'!$E97 -> 0.1012628077 | J208: =-J$218+$E$183*'Y2.a ModulazioneTariffaria'!$E$87*'Y2.a ModulazioneTariffaria'!$E97 -> 0.1021121097 | K208: =-K$218+$E$183*'Y2.a ModulazioneTariffaria'!$E$87*'Y2.a ModulazioneTariffaria'!$E97 -> 0.1029699048
C209: 5 | E209: =-E$218+$E$183*'Y2.a ModulazioneTariffaria'!$E$87*'Y2.a ModulazioneTariffaria'!$E98 -> 0.1632418669 | F209: =-F$218+$E$183*'Y2.a ModulazioneTariffaria'!$E$87*'Y2.a ModulazioneTariffaria'!$E98 -> 0.1640580294 | G209: =-G$218+$E$183*'Y2.a ModulazioneTariffaria'!$E$87*'Y2.a ModulazioneTariffaria'!$E98 -> 0.1648823536 | H209: =-H$218+$E$183*'Y2.a ModulazioneTariffaria'!$E$87*'Y2.a ModulazioneTariffaria'!$E98 -> 0.1657149211 | I209: =-I$218+$E$183*'Y2.a ModulazioneTariffaria'!$E$87*'Y2.a ModulazioneTariffaria'!$E98 -> 0.1665558142 | J209: =-J$218+$E$183*'Y2.a ModulazioneTariffaria'!$E$87*'Y2.a ModulazioneTariffaria'!$E98 -> 0.1674051163 | K209: =-K$218+$E$183*'Y2.a ModulazioneTariffaria'!$E$87*'Y2.a ModulazioneTariffaria'!$E98 -> 0.1682629113
C211: =C149 -> (tipologia di rete #4)
C212: Classe
C213: A | E213: =-E$218+$E$183*'Y2.a ModulazioneTariffaria'!$E$88*'Y2.a ModulazioneTariffaria'!$E94 -> 0.05154367849 | F213: =-F$218+$E$183*'Y2.a ModulazioneTariffaria'!$E$88*'Y2.a ModulazioneTariffaria'!$E94 -> 0.05235984107 | G213: =-G$218+$E$183*'Y2.a ModulazioneTariffaria'!$E$88*'Y2.a ModulazioneTariffaria'!$E94 -> 0.05318416528 | H213: =-H$218+$E$183*'Y2.a ModulazioneTariffaria'!$E$88*'Y2.a ModulazioneTariffaria'!$E94 -> 0.05401673273 | I213: =-I$218+$E$183*'Y2.a ModulazioneTariffaria'!$E$88*'Y2.a ModulazioneTariffaria'!$E94 -> 0.05485762585 | J213: =-J$218+$E$183*'Y2.a ModulazioneTariffaria'!$E$88*'Y2.a ModulazioneTariffaria'!$E94 -> 0.05570692791 | K213: =-K$218+$E$183*'Y2.a ModulazioneTariffaria'!$E$88*'Y2.a ModulazioneTariffaria'!$E94 -> 0.05656472298
C214: B | E214: =-E$218+$E$183*'Y2.a ModulazioneTariffaria'!$E$88*'Y2.a ModulazioneTariffaria'!$E95 -> 0.08570642157 | F214: =-F$218+$E$183*'Y2.a ModulazioneTariffaria'!$E$88*'Y2.a ModulazioneTariffaria'!$E95 -> 0.08652258415 | G214: =-G$218+$E$183*'Y2.a ModulazioneTariffaria'!$E$88*'Y2.a ModulazioneTariffaria'!$E95 -> 0.08734690836 | H214: =-H$218+$E$183*'Y2.a ModulazioneTariffaria'!$E$88*'Y2.a ModulazioneTariffaria'!$E95 -> 0.08817947581 | I214: =-I$218+$E$183*'Y2.a ModulazioneTariffaria'!$E$88*'Y2.a ModulazioneTariffaria'!$E95 -> 0.08902036894 | J214: =-J$218+$E$183*'Y2.a ModulazioneTariffaria'!$E$88*'Y2.a ModulazioneTariffaria'!$E95 -> 0.08986967099 | K214: =-K$218+$E$183*'Y2.a ModulazioneTariffaria'!$E$88*'Y2.a ModulazioneTariffaria'!$E95 -> 0.09072746607
C215: 3 | E215: =-E$218+$E$183*'Y2.a ModulazioneTariffaria'!$E$88*'Y2.a ModulazioneTariffaria'!$E96 -> 0.08978723448 | F215: =-F$218+$E$183*'Y2.a ModulazioneTariffaria'!$E$88*'Y2.a ModulazioneTariffaria'!$E96 -> 0.09060339706 | G215: =-G$218+$E$183*'Y2.a ModulazioneTariffaria'!$E$88*'Y2.a ModulazioneTariffaria'!$E96 -> 0.09142772127 | H215: =-H$218+$E$183*'Y2.a ModulazioneTariffaria'!$E$88*'Y2.a ModulazioneTariffaria'!$E96 -> 0.09226028872 | I215: =-I$218+$E$183*'Y2.a ModulazioneTariffaria'!$E$88*'Y2.a ModulazioneTariffaria'!$E96 -> 0.09310118184 | J215: =-J$218+$E$183*'Y2.a ModulazioneTariffaria'!$E$88*'Y2.a ModulazioneTariffaria'!$E96 -> 0.0939504839 | K215: =-K$218+$E$183*'Y2.a ModulazioneTariffaria'!$E$88*'Y2.a ModulazioneTariffaria'!$E96 -> 0.09480827898
C216: 4 | E216: =-E$218+$E$183*'Y2.a ModulazioneTariffaria'!$E$88*'Y2.a ModulazioneTariffaria'!$E97 -> 0.0979488603 | F216: =-F$218+$E$183*'Y2.a ModulazioneTariffaria'!$E$88*'Y2.a ModulazioneTariffaria'!$E97 -> 0.09876502288 | G216: =-G$218+$E$183*'Y2.a ModulazioneTariffaria'!$E$88*'Y2.a ModulazioneTariffaria'!$E97 -> 0.09958934709 | H216: =-H$218+$E$183*'Y2.a ModulazioneTariffaria'!$E$88*'Y2.a ModulazioneTariffaria'!$E97 -> 0.1004219145 | I216: =-I$218+$E$183*'Y2.a ModulazioneTariffaria'!$E$88*'Y2.a ModulazioneTariffaria'!$E97 -> 0.1012628077 | J216: =-J$218+$E$183*'Y2.a ModulazioneTariffaria'!$E$88*'Y2.a ModulazioneTariffaria'!$E97 -> 0.1021121097 | K216: =-K$218+$E$183*'Y2.a ModulazioneTariffaria'!$E$88*'Y2.a ModulazioneTariffaria'!$E97 -> 0.1029699048
C217: 5 | E217: =-E$218+$E$183*'Y2.a ModulazioneTariffaria'!$E$88*'Y2.a ModulazioneTariffaria'!$E98 -> 0.1632418669 | F217: =-F$218+$E$183*'Y2.a ModulazioneTariffaria'!$E$88*'Y2.a ModulazioneTariffaria'!$E98 -> 0.1640580294 | G217: =-G$218+$E$183*'Y2.a ModulazioneTariffaria'!$E$88*'Y2.a ModulazioneTariffaria'!$E98 -> 0.1648823536 | H217: =-H$218+$E$183*'Y2.a ModulazioneTariffaria'!$E$88*'Y2.a ModulazioneTariffaria'!$E98 -> 0.1657149211 | I217: =-I$218+$E$183*'Y2.a ModulazioneTariffaria'!$E$88*'Y2.a ModulazioneTariffaria'!$E98 -> 0.1665558142 | J217: =-J$218+$E$183*'Y2.a ModulazioneTariffaria'!$E$88*'Y2.a ModulazioneTariffaria'!$E98 -> 0.1674051163 | K217: =-K$218+$E$183*'Y2.a ModulazioneTariffaria'!$E$88*'Y2.a ModulazioneTariffaria'!$E98 -> 0.1682629113
E218: -9.350471576e-06 | F218: -0.0008255130535 | G218: -0.001649837261 | H218: -0.002482404711 | I218: -0.003323297835 | J218: -0.004172599891 | K218: -0.005030394967
C219: Check tariffa unitaria media | E219: =(E189*E118+E119*E190+E120*E191+E121*E192+E122*E193 +E129*E197+E130*E198+E131*E199+E132*E200+E133*E201 +E140*E205+E141*E206+E142*E207+E143*E208+E144*E209 +E151*E213+E152*E214+E153*E215+E154*E216+E155*E217)/E169-E183 -> 0 | F219: =(F189*F118+F119*F190+F120*F191+F121*F192+F122*F193 +F129*F197+F130*F198+F131*F199+F132*F200+F133*F201 +F140*F205+F141*F206+F142*F207+F143*F208+F144*F209 +F151*F213+F152*F214+F153*F215+F154*F216+F155*F217)/F169-F183 -> 0 | G219: 0 | H219: 0 | I219: 0 | J219: 0 | K219: 0
C222: Capitale investito netto (da ultimo adeguamento tariffario annuale approvato)
C224: CIN ante (TIR)
C226: CIN ante (TIR) opere - SAL contabilizzati
C228: CIN ante (TIR) opere - bop | F228: =IF(EsistePrev,E232,0) -> 300000 | G228: 284736.8421 | H228: 269473.6842 | I228: 254210.5263 | J228: 238947.3684 | K228: 223684.2105
C229: Investimenti CIN ante | F229: 0 | G229: 0 | H229: 0 | I229: 0 | J229: 0 | K229: 0
C230: Dismissioni CIN ante | F230: 0 | G230: 0 | H230: 0 | I230: 0 | J230: 0 | K230: 0
C231: Ammortamento CIN ante (TIR) opere | F231: =(F228-F233)*F$38 -> 15263.15789 | G231: 15263.15789 | H231: 15263.15789 | I231: 15263.15789 | J231: 15263.15789 | K231: 15263.15789
C232: CIN ante (TIR) opere - eop | E232: 300000 | F232: =F228+F229-F230-F231 -> 284736.8421 | G232: =G228+G229-G230-G231 -> 269473.6842 | H232: 254210.5263 | I232: 238947.3684 | J232: 223684.2105 | K232: =K228+K229-K230-K231 -> 208421.0526
C233: Valore di subentro eventualmente pattuito | E233: 10000 | F233: =IF(EsistePrev,MIN(F228,$E233),0) -> 10000 | G233: 10000 | H233: 10000 | I233: 10000 | J233: 10000 | K233: 10000
C234: Remunerazione CIN ante (TIR) opere - escluso valore di subentro | F234: =(F228-F233)*F$16 -> 40223 | G234: =(G228-G233)*G$16 -> 38106 | H234: 35989 | I234: 33872 | J234: 31755 | K234: 29638
C235: Remunerazione CIN ante (TIR) opere - solo valore di subentro | F235: =F233*F$18 -> 1387 | G235: =G233*G$18 -> 1387 | H235: 1387 | I235: 1387 | J235: 1387 | K235: 1387
C236: check programmazione (Anno ponte) | F236: =IF(F$4=AnnoPonte,F229-SUMIF('Y1.1 ProgrammaInvest_Spesa'!$M:$M,"CIN ante",'Y1.1 ProgrammaInvest_Spesa'!$AI:$AI),"") ->  | G236: =IF(G$4=AnnoPonte,G229-SUMIF('Y1.1 ProgrammaInvest_Spesa'!$M:$M,"CIN ante",'Y1.1 ProgrammaInvest_Spesa'!$AI:$AI),"") ->  | H236: =IF(H$4=AnnoPonte,H229-SUMIF('Y1.1 ProgrammaInvest_Spesa'!$M:$M,"CIN ante",'Y1.1 ProgrammaInvest_Spesa'!$AI:$AI),"") ->  | I236: =IF(I$4=AnnoPonte,I229-SUMIF('Y1.1 ProgrammaInvest_Spesa'!$M:$M,"CIN ante",'Y1.1 ProgrammaInvest_Spesa'!$AI:$AI),"") ->  | J236: =IF(J$4=AnnoPonte,J229-SUMIF('Y1.1 ProgrammaInvest_Spesa'!$M:$M,"CIN ante",'Y1.1 ProgrammaInvest_Spesa'!$AI:$AI),"") ->  | K236: =IF(K$4=AnnoPonte,K229-SUMIF('Y1.1 ProgrammaInvest_Spesa'!$M:$M,"CIN ante",'Y1.1 ProgrammaInvest_Spesa'!$AI:$AI),"") -> 0
C238: CIN ante (TIR) contributi - bop | F238: =IF(EsistePrev,E241,0) -> 0 | G238: 0 | H238: 0 | I238: 0 | J238: 0 | K238: 0
C239: Contributi CIN ante (erogazione) | F239: 0 | G239: 0 | H239: 0 | I239: 0 | J239: 0 | K239: 0
C240: Ammortamento CIN ante (TIR) contributi | F240: =(F238)*F$38 -> 0 | G240: 0 | H240: 0 | I240: 0 | J240: 0 | K240: 0
C241: CIN ante (TIR) contributi - eop | E241: 0 | F241: =F238+F239-F240 -> 0 | G241: =G238+G239-G240 -> 0 | H241: 0 | I241: 0 | J241: 0 | K241: =K238+K239-K240 -> 0
C242: Remunerazione CIN ante (TIR) contributi | F242: =F238*F$16 -> 0 | G242: =G238*G$16 -> 0 | H242: 0 | I242: 0 | J242: 0 | K242: =K238*K$16 -> 0
C243: check programmazione (Anno ponte) | F243: =IF(F$4=AnnoPonte,F239-SUMIF('Y1.2 ProgrammaInvest_Contrib'!$M:$M,"CIN ante",'Y1.2 ProgrammaInvest_Contrib'!$AH:$AH),"") ->  | G243: =IF(G$4=AnnoPonte,G239-SUMIF('Y1.2 ProgrammaInvest_Contrib'!$M:$M,"CIN ante",'Y1.2 ProgrammaInvest_Contrib'!$AH:$AH),"") ->  | H243: =IF(H$4=AnnoPonte,H239-SUMIF('Y1.2 ProgrammaInvest_Contrib'!$M:$M,"CIN ante",'Y1.2 ProgrammaInvest_Contrib'!$AH:$AH),"") ->  | I243: =IF(I$4=AnnoPonte,I239-SUMIF('Y1.2 ProgrammaInvest_Contrib'!$M:$M,"CIN ante",'Y1.2 ProgrammaInvest_Contrib'!$AH:$AH),"") ->  | J243: =IF(J$4=AnnoPonte,J239-SUMIF('Y1.2 ProgrammaInvest_Contrib'!$M:$M,"CIN ante",'Y1.2 ProgrammaInvest_Contrib'!$AH:$AH),"") ->  | K243: =IF(K$4=AnnoPonte,K239-SUMIF('Y1.2 ProgrammaInvest_Contrib'!$M:$M,"CIN ante",'Y1.2 ProgrammaInvest_Contrib'!$AH:$AH),"") -> 0
C245: CIN ante (TIR) avviamento
C247: CIN ante (TIR) avviamento - bop | F247: =IF(EsistePrev,E249,0) -> 0 | G247: 0 | H247: 0 | I247: 0 | J247: 0 | K247: 0
C248: Ammortamento CIN ante (TIR) avviamento | F248: =(F247)*$F$38 -> 0 | G248: =(G247)*$F$38 -> 0 | H248: 0 | I248: 0 | J248: 0 | K248: 0
C249: CIN ante (TIR) avviamento - eop | E249: 0 | F249: =F247-F248 -> 0 | G249: =G247-G248 -> 0 | H249: 0 | I249: 0 | J249: 0 | K249: =K247-K248 -> 0
C250: Remunerazione CIN ante (TIR) avviamento | F250: =F247*F$16 -> 0 | G250: =G247*G$16 -> 0 | H250: 0 | I250: 0 | J250: 0 | K250: =K247*K$16 -> 0
C252: CIN ante (TIR) opere - SAL da contabilizzare
C254: CIN ante (TIR) opere - bop | F254: =IF(EsistePrev,E258,0) -> 0 | G254: =IF(EsistePrev,F258,0) -> 0 | H254: =IF(EsistePrev,G258,0) -> 0 | I254: =IF(EsistePrev,H258,0) -> 0 | J254: =IF(EsistePrev,I258,0) -> 0 | K254: =IF(EsistePrev,J258,0) -> 0
... 435 more rows

Sheet Y1.1 ProgrammaInvest_Spesa
C2: Programma degli Investimenti (1/6)
AE4: Anno | AH4: 2024 | AI4: 2025 | AJ4: 2026 | AK4: 2027 | AL4: 2028 | AM4: 2029 | AN4: 2030 | AO4: 2031 | AP4: 2032 | AQ4: 2033 | AR4: 2034 | AS4: 2035 | AT4: 2036 | AU4: 2037 | AV4: 2038
AE6: Anno base | AH6: 1 | AI6: 0 | AJ6: 0 | AK6: 0 | AL6: 1 | AM6: 0 | AN6: 0 | AO6: 0 | AP6: 0 | AQ6: 1 | AR6: 0 | AS6: 0 | AT6: 0 | AU6: 0 | AV6: 0
AE7: Anno ponte | AH7: 0 | AI7: 1 | AJ7: 0 | AK7: 0 | AL7: 0 | AM7: 1 | AN7: 0 | AO7: 0 | AP7: 0 | AQ7: 0 | AR7: 1 | AS7: 0 | AT7: 0 | AU7: 0 | AV7: 0
AE8: Periodo regolatorio | AH8: 0 | AI8: 0 | AJ8: 1 | AK8: 1 | AL8: 1 | AM8: 1 | AN8: 2 | AO8: 2 | AP8: 2 | AQ8: 2 | AR8: 2 | AS8: 3 | AT8: 3 | AU8: 3 | AV8: 3
AE9: Anno del periodo regolatorio | AH9: 0 | AI9: 0 | AJ9: 1 | AK9: 2 | AL9: 3 | AM9: 4 | AN9: 1 | AO9: 2 | AP9: 3 | AQ9: 4 | AR9: 5 | AS9: 1 | AT9: 2 | AU9: 3 | AV9: 4
AE10: Frazione di anno significativa | AJ10: 1 | AK10: 1 | AL10: 1 | AM10: 1 | AN10: 1 | AO10: 1 | AP10: 1 | AQ10: 1 | AR10: 1 | AS10: 1 | AT10: 1 | AU10: 1 | AV10: 1
AI12: Ultimo adattamento schema: 31/10/2025 17:45:08
C14: Programmazione ammissibile in tariffa: Importo della spesa annua complessiva (al lordo di eventuali contributi in c/impianti e in c/capitale)
C15: Tabella da alimentare solo con spese per beni reversibili, autorizzati e ammissibili in tariffa
S16: Importo complessivo della spesa programmata | U16: Eventuale variazione dell'importo complessivo della spesa programmata rispetto a precedente PR | AD16: Importi complessivi da inizio nuovo PR a fine concessione
C17: Atto convenzionale di riferimento | D17: Rif. macro intervento | E17: Rif. lett. art. | F17: Codice univoco intervento | G17: Descrizione intervento | H17: Codice SIVCA | I17: Tratta autostradale da convenzione | J17: Macro tipologia intervento | K17: Tipologia intervento | L17: Stato lavori | M17: Tipologia CIN | N17: Stati di avanzamento CIN ante | O17: Criterio di ammortamento | P17: Data presunta entrata in esercizio (anno) | Q17: Intervento già incluso in ultimo PEF approvato | S17: Ultimo PEF approvato | T17: Nuovo PEF | U17: Per cause di forza maggiore | V17: Per modificazioni progettuali | W17: Per imprevedibili modifiche normative e regolamentari | X17: Per cause ambientali, errori di progettazione e difformità di esecuzione | Y17: Per errata stima dei costi di costruzione | Z17: Per errata stima dei costi di esproprio | AA17: Per prevedibili modifiche normative e regolamentari | AB17: Check variazione spesa programmata complessiva | AD17: Spesa programmata totale | AE17: Contributo a fondo perduto | AF17: Eventuali dismissioni | AH17: Valore residuo spesa al 31/12/Anno base | AI17: Spesa programmata Anno ponte | AJ17: ="Spesa programmata " & AJ4 -> Spesa programmata 2026 | AK17: Spesa programmata 2027 | AL17: ="Spesa programmata " & AL4 -> Spesa programmata 2028 | AM17: Spesa programmata 2029 | AN17: Spesa programmata 2030 | AO17: Spesa programmata 2031 | AP17: Spesa programmata 2032 | AQ17: Spesa programmata 2033 | AR17: Spesa programmata 2034 | AS17: Spesa programmata 2035 | AT17: Spesa programmata 2036 | AU17: Spesa programmata 2037 | AV17: Spesa programmata 2038
B19: x | F19: 1 | G19: Intervento 1 | H19: SIVCA 1 | K19: (assoggettata ad ammortamento finanziario) | L19: in corso | M19: CIN ante | N19: SAL contabilizzati | O19: Finanziario | Q19: FALSE | AB19: =IF(Q19,T19-S19-SUM(U19:AA19),"") ->  | AD19: =SUM(OFFSET(AH19,0,2,1,ScadenzaConcessione-AnnoBase-1)) -> 0 | AE19: =SUM(OFFSET('Y1.2 ProgrammaInvest_Contrib'!AG19,0,2,1,ScadenzaConcessione-AnnoBase-1)) -> 2000 | AF19: =SUM(OFFSET('Y1.3 ProgrammaInvest_Dismiss'!AG19,0,2,1,ScadenzaConcessione-AnnoBase-1)) -> 20
B20: x | F20: 2 | G20: Intervento 2 | H20: SIVCA 2 | K20: (assoggettata ad ammortamento finanziario) | L20: in corso | M20: CIN ante | N20: SAL da contabilizzare | O20: Finanziario | Q20: FALSE | AB20: =IF(Q20,T20-S20-SUM(U20:AA20),"") ->  | AD20: 20000 | AE20: =SUM(OFFSET('Y1.2 ProgrammaInvest_Contrib'!AG20,0,2,1,ScadenzaConcessione-AnnoBase-1)) -> 1000 | AF20: =SUM(OFFSET('Y1.3 ProgrammaInvest_Dismiss'!AG20,0,2,1,ScadenzaConcessione-AnnoBase-1)) -> 20 | AJ20: 10000 | AK20: 10000
B21: x | F21: 3 | G21: Intervento 2 | H21: SIVCA 2 | K21: (assoggettata ad ammortamento finanziario) | L21: in corso | M21: CIN pre2026 | O21: Finanziario | Q21: FALSE | AB21: =IF(Q21,T21-S21-SUM(U21:AA21),"") ->  | AD21: =SUM(OFFSET(AH21,0,2,1,ScadenzaConcessione-AnnoBase-1)) -> 20000 | AE21: =SUM(OFFSET('Y1.2 ProgrammaInvest_Contrib'!AG21,0,2,1,ScadenzaConcessione-AnnoBase-1)) -> 1000 | AF21: =SUM(OFFSET('Y1.3 ProgrammaInvest_Dismiss'!AG21,0,2,1,ScadenzaConcessione-AnnoBase-1)) -> 20 | AJ21: 10000 | AK21: 10000
B22: x | F22: 4 | G22: Intervento 2 | H22: SIVCA 2 | K22: (assoggettata ad ammortamento finanziario) | L22: in corso | M22: CIN post2026 | O22: Finanziario | Q22: FALSE | AD22: 100000 | AE22: =SUM(OFFSET('Y1.2 ProgrammaInvest_Contrib'!AG22,0,2,1,ScadenzaConcessione-AnnoBase-1)) -> 1000 | AF22: =SUM(OFFSET('Y1.3 ProgrammaInvest_Dismiss'!AG22,0,2,1,ScadenzaConcessione-AnnoBase-1)) -> 20 | AJ22: 50000 | AK22: 50000
B23: x | F23: 5 | G23: Intervento 3 | H23: SIVCA 3 | K23: Viadotti/Ponti/Cavalcavia | L23: in corso | M23: CIN post2026 | O23: Vite utili 1 | P23: 2028 | Q23: FALSE | AD23: 200 | AE23: =SUM(OFFSET('Y1.2 ProgrammaInvest_Contrib'!AG23,0,2,1,ScadenzaConcessione-AnnoBase-1)) -> 20 | AF23: =SUM(OFFSET('Y1.3 ProgrammaInvest_Dismiss'!AG23,0,2,1,ScadenzaConcessione-AnnoBase-1)) -> 10 | AK23: 100 | AL23: 100
B24: x | F24: 6 | G24: Intervento 4 | H24: SIVCA 4 | K24: Gallerie | L24: in corso | M24: CIN post2026 | O24: Vite utili 1 | P24: 2029 | Q24: FALSE | AD24: 200 | AE24: =SUM(OFFSET('Y1.2 ProgrammaInvest_Contrib'!AG24,0,2,1,ScadenzaConcessione-AnnoBase-1)) -> 20 | AF24: =SUM(OFFSET('Y1.3 ProgrammaInvest_Dismiss'!AG24,0,2,1,ScadenzaConcessione-AnnoBase-1)) -> 10 | AL24: 100 | AM24: 100
B25: x | F25: 7 | G25: Intervento 5 | H25: SIVCA 5 | K25: Barriere | L25: in corso | M25: CIN post2026 | O25: Vite utili 1 | P25: 2030 | Q25: FALSE | AD25: 200 | AE25: =SUM(OFFSET('Y1.2 ProgrammaInvest_Contrib'!AG25,0,2,1,ScadenzaConcessione-AnnoBase-1)) -> 20 | AF25: =SUM(OFFSET('Y1.3 ProgrammaInvest_Dismiss'!AG25,0,2,1,ScadenzaConcessione-AnnoBase-1)) -> 10 | AM25: 100 | AN25: 100
B26: x | F26: 8 | G26: Intervento 6 | H26: SIVCA 6 | K26: Corpo autostradale, opere sul territorio | L26: in corso | M26: CIN post2026 | O26: Vite utili 1 | P26: 2031 | Q26: FALSE | AD26: 200 | AE26: =SUM(OFFSET('Y1.2 ProgrammaInvest_Contrib'!AG26,0,2,1,ScadenzaConcessione-AnnoBase-1)) -> 20 | AF26: =SUM(OFFSET('Y1.3 ProgrammaInvest_Dismiss'!AG26,0,2,1,ScadenzaConcessione-AnnoBase-1)) -> 10 | AN26: 100 | AO26: 100
B27: x | F27: 9 | G27: Intervento 7 | H27: SIVCA 7 | K27: Reti recinzione | L27: in corso | M27: CIN post2026 | O27: Vite utili 1 | P27: 2032 | Q27: FALSE | AD27: 200 | AE27: =SUM(OFFSET('Y1.2 ProgrammaInvest_Contrib'!AG27,0,2,1,ScadenzaConcessione-AnnoBase-1)) -> 20 | AF27: =SUM(OFFSET('Y1.3 ProgrammaInvest_Dismiss'!AG27,0,2,1,ScadenzaConcessione-AnnoBase-1)) -> 10 | AO27: 100 | AP27: 100
B28: x | F28: 10 | G28: Intervento 8 | H28: SIVCA 8 | K28: Portali e segnaletica | L28: in corso | M28: CIN post2026 | O28: Vite utili 1 | P28: 2033 | Q28: FALSE | AD28: 200 | AE28: =SUM(OFFSET('Y1.2 ProgrammaInvest_Contrib'!AG28,0,2,1,ScadenzaConcessione-AnnoBase-1)) -> 20 | AF28: =SUM(OFFSET('Y1.3 ProgrammaInvest_Dismiss'!AG28,0,2,1,ScadenzaConcessione-AnnoBase-1)) -> 10 | AP28: 100 | AQ28: 100
B29: x | F29: 11 | G29: Intervento 9 | H29: SIVCA 9 | K29: Pavimentazioni | L29: in corso | M29: CIN post2026 | O29: Vite utili 1 | P29: 2034 | Q29: FALSE | AD29: 200 | AE29: =SUM(OFFSET('Y1.2 ProgrammaInvest_Contrib'!AG29,0,2,1,ScadenzaConcessione-AnnoBase-1)) -> 20 | AF29: =SUM(OFFSET('Y1.3 ProgrammaInvest_Dismiss'!AG29,0,2,1,ScadenzaConcessione-AnnoBase-1)) -> 10 | AQ29: 100 | AR29: 100
B30: x | F30: 12 | G30: Intervento 10 | H30: SIVCA 10 | K30: Infrastrutture tecnologiche ed impianti | L30: in corso | M30: CIN post2026 | O30: Vite utili 1 | P30: 2035 | Q30: FALSE | AD30: 200 | AE30: =SUM(OFFSET('Y1.2 ProgrammaInvest_Contrib'!AG30,0,2,1,ScadenzaConcessione-AnnoBase-1)) -> 20 | AF30: =SUM(OFFSET('Y1.3 ProgrammaInvest_Dismiss'!AG30,0,2,1,ScadenzaConcessione-AnnoBase-1)) -> 10 | AR30: 100 | AS30: 100
B31: x | F31: 13 | G31: Intervento 11 | H31: SIVCA 11 | K31: Stazioni/Barriere di esazione, fabbricati, aree di servizio | L31: in corso | M31: CIN post2026 | O31: Vite utili 1 | P31: 2036 | Q31: FALSE | AD31: 200 | AE31: =SUM(OFFSET('Y1.2 ProgrammaInvest_Contrib'!AG31,0,2,1,ScadenzaConcessione-AnnoBase-1)) -> 20 | AF31: =SUM(OFFSET('Y1.3 ProgrammaInvest_Dismiss'!AG31,0,2,1,ScadenzaConcessione-AnnoBase-1)) -> 10 | AS31: 100 | AT31: 100
B32: x | F32: 14 | G32: Intervento 12 | H32: SIVCA 12 | K32: Altro | L32: in corso | M32: CIN post2026 | O32: Vite utili 1 | P32: 2037 | Q32: FALSE | AD32: 200 | AE32: =SUM(OFFSET('Y1.2 ProgrammaInvest_Contrib'!AG32,0,2,1,ScadenzaConcessione-AnnoBase-1)) -> 20 | AF32: =SUM(OFFSET('Y1.3 ProgrammaInvest_Dismiss'!AG32,0,2,1,ScadenzaConcessione-AnnoBase-1)) -> 10 | AT32: 100 | AU32: 100
B33: x | F33: 15 | G33: Intervento 13 | H33: SIVCA 13 | K33: Viadotti/Ponti/Cavalcavia | L33: in corso | M33: CIN post2026 | O33: Vite utili 2 | P33: 2028 | Q33: FALSE | AD33: 200 | AE33: =SUM(OFFSET('Y1.2 ProgrammaInvest_Contrib'!AG33,0,2,1,ScadenzaConcessione-AnnoBase-1)) -> 20 | AF33: =SUM(OFFSET('Y1.3 ProgrammaInvest_Dismiss'!AG33,0,2,1,ScadenzaConcessione-AnnoBase-1)) -> 10 | AK33: 100 | AL33: 100
B34: x | F34: 16 | G34: Intervento 14 | H34: SIVCA 14 | K34: Gallerie | L34: in corso | M34: CIN post2026 | O34: Vite utili 2 | P34: 2029 | Q34: FALSE | AD34: 200 | AE34: =SUM(OFFSET('Y1.2 ProgrammaInvest_Contrib'!AG34,0,2,1,ScadenzaConcessione-AnnoBase-1)) -> 20 | AF34: =SUM(OFFSET('Y1.3 ProgrammaInvest_Dismiss'!AG34,0,2,1,ScadenzaConcessione-AnnoBase-1)) -> 10 | AL34: 100 | AM34: 100
B35: x | F35: 17 | G35: Intervento 15 | H35: SIVCA 15 | K35: Barriere | L35: in corso | M35: CIN post2026 | O35: Vite utili 2 | P35: 2030 | Q35: FALSE | AD35: 200 | AE35: =SUM(OFFSET('Y1.2 ProgrammaInvest_Contrib'!AG35,0,2,1,ScadenzaConcessione-AnnoBase-1)) -> 20 | AF35: =SUM(OFFSET('Y1.3 ProgrammaInvest_Dismiss'!AG35,0,2,1,ScadenzaConcessione-AnnoBase-1)) -> 10 | AM35: 100 | AN35: 100
B36: x | F36: 18 | G36: Intervento 16 | H36: SIVCA 16 | K36: Corpo autostradale, opere sul territorio | L36: in corso | M36: CIN post2026 | O36: Vite utili 2 | P36: 2031 | Q36: FALSE | AD36: 200 | AE36: =SUM(OFFSET('Y1.2 ProgrammaInvest_Contrib'!AG36,0,2,1,ScadenzaConcessione-AnnoBase-1)) -> 20 | AF36: =SUM(OFFSET('Y1.3 ProgrammaInvest_Dismiss'!AG36,0,2,1,ScadenzaConcessione-AnnoBase-1)) -> 10 | AN36: 100 | AO36: 100
B37: x | F37: 19 | G37: Intervento 17 | H37: SIVCA 17 | K37: Reti recinzione | L37: in corso | M37: CIN post2026 | O37: Vite utili 2 | P37: 2032 | Q37: FALSE | AD37: 200 | AE37: =SUM(OFFSET('Y1.2 ProgrammaInvest_Contrib'!AG37,0,2,1,ScadenzaConcessione-AnnoBase-1)) -> 20 | AF37: =SUM(OFFSET('Y1.3 ProgrammaInvest_Dismiss'!AG37,0,2,1,ScadenzaConcessione-AnnoBase-1)) -> 10 | AO37: 100 | AP37: 100
B38: x | F38: 20 | G38: Intervento 18 | H38: SIVCA 18 | K38: Portali e segnaletica | L38: in corso | M38: CIN post2026 | O38: Vite utili 2 | P38: 2033 | Q38: FALSE | AD38: 200 | AE38: =SUM(OFFSET('Y1.2 ProgrammaInvest_Contrib'!AG38,0,2,1,ScadenzaConcessione-AnnoBase-1)) -> 20 | AF38: =SUM(OFFSET('Y1.3 ProgrammaInvest_Dismiss'!AG38,0,2,1,ScadenzaConcessione-AnnoBase-1)) -> 10 | AP38: 100 | AQ38: 100
B39: x | F39: 21 | G39: Intervento 19 | H39: SIVCA 19 | K39: Pavimentazioni | L39: in corso | M39: CIN post2026 | O39: Vite utili 2 | P39: 2034 | Q39: FALSE | AD39: 200 | AE39: =SUM(OFFSET('Y1.2 ProgrammaInvest_Contrib'!AG39,0,2,1,ScadenzaConcessione-AnnoBase-1)) -> 20 | AF39: =SUM(OFFSET('Y1.3 ProgrammaInvest_Dismiss'!AG39,0,2,1,ScadenzaConcessione-AnnoBase-1)) -> 10 | AQ39: 100 | AR39: 100
B40: x | F40: 22 | G40: Intervento 20 | H40: SIVCA 20 | K40: Infrastrutture tecnologiche ed impianti | L40: in corso | M40: CIN post2026 | O40: Vite utili 2 | P40: 2035 | Q40: FALSE | AD40: 200 | AE40: =SUM(OFFSET('Y1.2 ProgrammaInvest_Contrib'!AG40,0,2,1,ScadenzaConcessione-AnnoBase-1)) -> 20 | AF40: =SUM(OFFSET('Y1.3 ProgrammaInvest_Dismiss'!AG40,0,2,1,ScadenzaConcessione-AnnoBase-1)) -> 10 | AR40: 100 | AS40: 100
B41: x | F41: 23 | G41: Intervento 21 | H41: SIVCA 21 | K41: Stazioni/Barriere di esazione, fabbricati, aree di servizio | L41: in corso | M41: CIN post2026 | O41: Vite utili 2 | P41: 2036 | Q41: FALSE | AD41: 200 | AE41: =SUM(OFFSET('Y1.2 ProgrammaInvest_Contrib'!AG41,0,2,1,ScadenzaConcessione-AnnoBase-1)) -> 20 | AF41: =SUM(OFFSET('Y1.3 ProgrammaInvest_Dismiss'!AG41,0,2,1,ScadenzaConcessione-AnnoBase-1)) -> 10 | AS41: 100 | AT41: 100
B42: x | F42: 24 | G42: Intervento 22 | H42: SIVCA 22 | K42: Altro | L42: in corso | M42: CIN post2026 | O42: Vite utili 2 | P42: 2037 | Q42: FALSE | AD42: 200 | AE42: =SUM(OFFSET('Y1.2 ProgrammaInvest_Contrib'!AG42,0,2,1,ScadenzaConcessione-AnnoBase-1)) -> 20 | AF42: =SUM(OFFSET('Y1.3 ProgrammaInvest_Dismiss'!AG42,0,2,1,ScadenzaConcessione-AnnoBase-1)) -> 10 | AT42: 100 | AU42: 100
C50: termine foglio di lavoro

Sheet Y1.2 ProgrammaInvest_Contrib
C2: Programma degli Investimenti (2/6)
AD4: Anno | AG4: 2024 | AH4: 2025 | AI4: 2026 | AJ4: 2027 | AK4: 2028 | AL4: 2029 | AM4: 2030 | AN4: 2031 | AO4: 2032 | AP4: 2033 | AQ4: 2034 | AR4: 2035 | AS4: 2036 | AT4: 2037 | AU4: 2038
AD6: Anno base | AG6: 1 | AH6: 0 | AI6: 0 | AJ6: 0 | AK6: 1 | AL6: 0 | AM6: 0 | AN6: 0 | AO6: 0 | AP6: 1 | AQ6: 0 | AR6: 0 | AS6: 0 | AT6: 0 | AU6: 0
AD7: Anno ponte | AG7: 0 | AH7: 1 | AI7: 0 | AJ7: 0 | AK7: 0 | AL7: 1 | AM7: 0 | AN7: 0 | AO7: 0 | AP7: 0 | AQ7: 1 | AR7: 0 | AS7: 0 | AT7: 0 | AU7: 0
AD8: Periodo regolatorio | AG8: 0 | AH8: 0 | AI8: 1 | AJ8: 1 | AK8: 1 | AL8: 1 | AM8: 2 | AN8: 2 | AO8: 2 | AP8: 2 | AQ8: 2 | AR8: 3 | AS8: 3 | AT8: 3 | AU8: 3
AD9: Anno del periodo regolatorio | AG9: 0 | AH9: 0 | AI9: 1 | AJ9: 2 | AK9: 3 | AL9: 4 | AM9: 1 | AN9: 2 | AO9: 3 | AP9: 4 | AQ9: 5 | AR9: 1 | AS9: 2 | AT9: 3 | AU9: 4
AD10: Frazione di anno significativa | AI10: 1 | AJ10: 1 | AK10: 1 | AL10: 1 | AM10: 1 | AN10: 1 | AO10: 1 | AP10: 1 | AQ10: 1 | AR10: 1 | AS10: 1 | AT10: 1 | AU10: 1
AH12: Ultimo adattamento schema: 31/10/2025 17:45:09
C14: Programmazione ammissibile in tariffa: Importo annuo eventuali contributi in c/impianti o in c/capitale
C15: Tabella da alimentare solo con spese per beni reversibili, autorizzati e ammissibili in tariffa
S16: Importo complessivo della spesa programmata | U16: Eventuale variazione dell'importo complessivo della spesa programmata rispetto a precedente PR | AC16: Importi complessivi da inizio nuovo PR a fine concessione
C17: Atto convenzionale di riferimento | D17: Rif. macro intervento | E17: Rif. lett. art. | F17: Codice univoco intervento | G17: Descrizione intervento | H17: Codice SIVCA | I17: Tratta autostradale da convenzione | J17: Macro tipologia intervento | K17: Tipologia intervento | L17: Stato lavori | M17: Tipologia CIN | N17: Stati di avanzamento CIN ante | O17: Criterio di ammortamento | P17: Data presunta entrata in esercizio (anno) | Q17: Intervento già incluso in ultimo PEF approvato | S17: Ultimo PEF approvato | T17: Nuovo PEF | U17: Per cause di forza maggiore | V17: Per modificazioni progettuali | W17: Per imprevedibili modifiche normative e regolamentari | X17: Per cause ambientali, errori di progettazione e difformità di esecuzione | Y17: Per errata stima dei costi di costruzione | Z17: Per errata stima costi di esproprio | AA17: Per prevedibili modifiche normative e regolamentari | AC17: Spesa programmata totale | AD17: Contributo a fondo perduto | AE17: Eventuali dismissioni | AG17: Valore residuo contributo al 31/12/Anno base | AH17: Contributo programmato Anno ponte | AI17: ="Contributo programmato " & AI4 -> Contributo programmato 2026 | AJ17: ="Contributo programmato " & AJ4 -> Contributo programmato 2027 | AK17: Contributo programmato 2028 | AL17: Contributo programmato 2029 | AM17: Contributo programmato 2030 | AN17: Contributo programmato 2031 | AO17: Contributo programmato 2032 | AP17: Contributo programmato 2033 | AQ17: Contributo programmato 2034 | AR17: Contributo programmato 2035 | AS17: Contributo programmato 2036 | AT17: Contributo programmato 2037 | AU17: Contributo programmato 2038
B19: x | C19: =IF('Y1.1 ProgrammaInvest_Spesa'!C19="","",'Y1.1 ProgrammaInvest_Spesa'!C19) ->  | D19: =IF('Y1.1 ProgrammaInvest_Spesa'!D19="","",'Y1.1 ProgrammaInvest_Spesa'!D19) ->  | E19: =IF('Y1.1 ProgrammaInvest_Spesa'!E19="","",'Y1.1 ProgrammaInvest_Spesa'!E19) ->  | F19: =IF('Y1.1 ProgrammaInvest_Spesa'!F19="","",'Y1.1 ProgrammaInvest_Spesa'!F19) -> 1 | G19: =IF('Y1.1 ProgrammaInvest_Spesa'!G19="","",'Y1.1 ProgrammaInvest_Spesa'!G19) -> Intervento 1 | H19: =IF('Y1.1 ProgrammaInvest_Spesa'!H19="","",'Y1.1 ProgrammaInvest_Spesa'!H19) -> SIVCA 1 | I19: =IF('Y1.1 ProgrammaInvest_Spesa'!I19="","",'Y1.1 ProgrammaInvest_Spesa'!I19) ->  | J19: =IF('Y1.1 ProgrammaInvest_Spesa'!J19="","",'Y1.1 ProgrammaInvest_Spesa'!J19) ->  | K19: =IF('Y1.1 ProgrammaInvest_Spesa'!K19="","",'Y1.1 ProgrammaInvest_Spesa'!K19) -> (assoggettata ad ammortamento finanziario) | L19: =IF('Y1.1 ProgrammaInvest_Spesa'!L19="","",'Y1.1 ProgrammaInvest_Spesa'!L19) -> in corso | M19: =IF('Y1.1 ProgrammaInvest_Spesa'!M19="","",'Y1.1 ProgrammaInvest_Spesa'!M19) -> CIN ante | N19: =IF('Y1.1 ProgrammaInvest_Spesa'!N19="","",'Y1.1 ProgrammaInvest_Spesa'!N19) -> SAL contabilizzati | O19: =IF('Y1.1 ProgrammaInvest_Spesa'!O19="","",'Y1.1 ProgrammaInvest_Spesa'!O19) -> Finanziario | P19: =IF('Y1.1 ProgrammaInvest_Spesa'!P19="","",'Y1.1 ProgrammaInvest_Spesa'!P19) ->  | Q19: =IF('Y1.1 ProgrammaInvest_Spesa'!Q19="","",'Y1.1 ProgrammaInvest_Spesa'!Q19) -> FALSE | S19: =IF('Y1.1 ProgrammaInvest_Spesa'!S19="","",'Y1.1 ProgrammaInvest_Spesa'!S19) ->  | T19: =IF('Y1.1 ProgrammaInvest_Spesa'!T19="","",'Y1.1 ProgrammaInvest_Spesa'!T19) ->  | U19: =IF('Y1.1 ProgrammaInvest_Spesa'!U19="","",'Y1.1 ProgrammaInvest_Spesa'!U19) ->  | V19: =IF('Y1.1 ProgrammaInvest_Spesa'!V19="","",'Y1.1 ProgrammaInvest_Spesa'!V19) ->  | W19: =IF('Y1.1 ProgrammaInvest_Spesa'!W19="","",'Y1.1 ProgrammaInvest_Spesa'!W19) ->  | X19: =IF('Y1.1 ProgrammaInvest_Spesa'!X19="","",'Y1.1 ProgrammaInvest_Spesa'!X19) ->  | Y19: =IF('Y1.1 ProgrammaInvest_Spesa'!Y19="","",'Y1.1 ProgrammaInvest_Spesa'!Y19) ->  | AC19: =IF('Y1.1 ProgrammaInvest_Spesa'!AD19="","",'Y1.1 ProgrammaInvest_Spesa'!AD19) -> 0 | AD19: =IF('Y1.1 ProgrammaInvest_Spesa'!AE19="","",'Y1.1 ProgrammaInvest_Spesa'!AE19) -> 2000 | AE19: =IF('Y1.1 ProgrammaInvest_Spesa'!AF19="","",'Y1.1 ProgrammaInvest_Spesa'!AF19) -> 20 | AI19: 2000
B20: x | C20: =IF('Y1.1 ProgrammaInvest_Spesa'!C20="","",'Y1.1 ProgrammaInvest_Spesa'!C20) ->  | D20: =IF('Y1.1 ProgrammaInvest_Spesa'!D20="","",'Y1.1 ProgrammaInvest_Spesa'!D20) ->  | E20: =IF('Y1.1 ProgrammaInvest_Spesa'!E20="","",'Y1.1 ProgrammaInvest_Spesa'!E20) ->  | F20: =IF('Y1.1 ProgrammaInvest_Spesa'!F20="","",'Y1.1 ProgrammaInvest_Spesa'!F20) -> 2 | G20: =IF('Y1.1 ProgrammaInvest_Spesa'!G20="","",'Y1.1 ProgrammaInvest_Spesa'!G20) -> Intervento 2 | H20: =IF('Y1.1 ProgrammaInvest_Spesa'!H20="","",'Y1.1 ProgrammaInvest_Spesa'!H20) -> SIVCA 2 | I20: =IF('Y1.1 ProgrammaInvest_Spesa'!I20="","",'Y1.1 ProgrammaInvest_Spesa'!I20) ->  | J20: =IF('Y1.1 ProgrammaInvest_Spesa'!J20="","",'Y1.1 ProgrammaInvest_Spesa'!J20) ->  | K20: =IF('Y1.1 ProgrammaInvest_Spesa'!K20="","",'Y1.1 ProgrammaInvest_Spesa'!K20) -> (assoggettata ad ammortamento finanziario) | L20: =IF('Y1.1 ProgrammaInvest_Spesa'!L20="","",'Y1.1 ProgrammaInvest_Spesa'!L20) -> in corso | M20: =IF('Y1.1 ProgrammaInvest_Spesa'!M20="","",'Y1.1 ProgrammaInvest_Spesa'!M20) -> CIN ante | N20: =IF('Y1.1 ProgrammaInvest_Spesa'!N20="","",'Y1.1 ProgrammaInvest_Spesa'!N20) -> SAL da contabilizzare | O20: =IF('Y1.1 ProgrammaInvest_Spesa'!O20="","",'Y1.1 ProgrammaInvest_Spesa'!O20) -> Finanziario | P20: =IF('Y1.1 ProgrammaInvest_Spesa'!P20="","",'Y1.1 ProgrammaInvest_Spesa'!P20) ->  | Q20: =IF('Y1.1 ProgrammaInvest_Spesa'!Q20="","",'Y1.1 ProgrammaInvest_Spesa'!Q20) -> FALSE | S20: =IF('Y1.1 ProgrammaInvest_Spesa'!S20="","",'Y1.1 ProgrammaInvest_Spesa'!S20) ->  | T20: =IF('Y1.1 ProgrammaInvest_Spesa'!T20="","",'Y1.1 ProgrammaInvest_Spesa'!T20) ->  | U20: =IF('Y1.1 ProgrammaInvest_Spesa'!U20="","",'Y1.1 ProgrammaInvest_Spesa'!U20) ->  | V20: =IF('Y1.1 ProgrammaInvest_Spesa'!V20="","",'Y1.1 ProgrammaInvest_Spesa'!V20) ->  | W20: =IF('Y1.1 ProgrammaInvest_Spesa'!W20="","",'Y1.1 ProgrammaInvest_Spesa'!W20) ->  | X20: =IF('Y1.1 ProgrammaInvest_Spesa'!X20="","",'Y1.1 ProgrammaInvest_Spesa'!X20) ->  | Y20: =IF('Y1.1 ProgrammaInvest_Spesa'!Y20="","",'Y1.1 ProgrammaInvest_Spesa'!Y20) ->  | AC20: =IF('Y1.1 ProgrammaInvest_Spesa'!AD20="","",'Y1.1 ProgrammaInvest_Spesa'!AD20) -> 20000 | AD20: =IF('Y1.1 ProgrammaInvest_Spesa'!AE20="","",'Y1.1 ProgrammaInvest_Spesa'!AE20) -> 1000 | AE20: =IF('Y1.1 ProgrammaInvest_Spesa'!AF20="","",'Y1.1 ProgrammaInvest_Spesa'!AF20) -> 20 | AI20: 1000
B21: x | C21: =IF('Y1.1 ProgrammaInvest_Spesa'!C21="","",'Y1.1 ProgrammaInvest_Spesa'!C21) ->  | D21: =IF('Y1.1 ProgrammaInvest_Spesa'!D21="","",'Y1.1 ProgrammaInvest_Spesa'!D21) ->  | E21: =IF('Y1.1 ProgrammaInvest_Spesa'!E21="","",'Y1.1 ProgrammaInvest_Spesa'!E21) ->  | F21: =IF('Y1.1 ProgrammaInvest_Spesa'!F21="","",'Y1.1 ProgrammaInvest_Spesa'!F21) -> 3 | G21: =IF('Y1.1 ProgrammaInvest_Spesa'!G21="","",'Y1.1 ProgrammaInvest_Spesa'!G21) -> Intervento 2 | H21: =IF('Y1.1 ProgrammaInvest_Spesa'!H21="","",'Y1.1 ProgrammaInvest_Spesa'!H21) -> SIVCA 2 | I21: =IF('Y1.1 ProgrammaInvest_Spesa'!I21="","",'Y1.1 ProgrammaInvest_Spesa'!I21) ->  | J21: =IF('Y1.1 ProgrammaInvest_Spesa'!J21="","",'Y1.1 ProgrammaInvest_Spesa'!J21) ->  | K21: =IF('Y1.1 ProgrammaInvest_Spesa'!K21="","",'Y1.1 ProgrammaInvest_Spesa'!K21) -> (assoggettata ad ammortamento finanziario) | L21: =IF('Y1.1 ProgrammaInvest_Spesa'!L21="","",'Y1.1 ProgrammaInvest_Spesa'!L21) -> in corso | M21: =IF('Y1.1 ProgrammaInvest_Spesa'!M21="","",'Y1.1 ProgrammaInvest_Spesa'!M21) -> CIN pre2026 | N21: =IF('Y1.1 ProgrammaInvest_Spesa'!N21="","",'Y1.1 ProgrammaInvest_Spesa'!N21) ->  | O21: =IF('Y1.1 ProgrammaInvest_Spesa'!O21="","",'Y1.1 ProgrammaInvest_Spesa'!O21) -> Finanziario | P21: =IF('Y1.1 ProgrammaInvest_Spesa'!P21="","",'Y1.1 ProgrammaInvest_Spesa'!P21) ->  | Q21: =IF('Y1.1 ProgrammaInvest_Spesa'!Q21="","",'Y1.1 ProgrammaInvest_Spesa'!Q21) -> FALSE | S21: =IF('Y1.1 ProgrammaInvest_Spesa'!S21="","",'Y1.1 ProgrammaInvest_Spesa'!S21) ->  | T21: =IF('Y1.1 ProgrammaInvest_Spesa'!T21="","",'Y1.1 ProgrammaInvest_Spesa'!T21) ->  | U21: =IF('Y1.1 ProgrammaInvest_Spesa'!U21="","",'Y1.1 ProgrammaInvest_Spesa'!U21) ->  | V21: =IF('Y1.1 ProgrammaInvest_Spesa'!V21="","",'Y1.1 ProgrammaInvest_Spesa'!V21) ->  | W21: =IF('Y1.1 ProgrammaInvest_Spesa'!W21="","",'Y1.1 ProgrammaInvest_Spesa'!W21) ->  | X21: =IF('Y1.1 ProgrammaInvest_Spesa'!X21="","",'Y1.1 ProgrammaInvest_Spesa'!X21) ->  | Y21: =IF('Y1.1 ProgrammaInvest_Spesa'!Y21="","",'Y1.1 ProgrammaInvest_Spesa'!Y21) ->  | AC21: =IF('Y1.1 ProgrammaInvest_Spesa'!AD21="","",'Y1.1 ProgrammaInvest_Spesa'!AD21) -> 20000 | AD21: =IF('Y1.1 ProgrammaInvest_Spesa'!AE21="","",'Y1.1 ProgrammaInvest_Spesa'!AE21) -> 1000 | AE21: =IF('Y1.1 ProgrammaInvest_Spesa'!AF21="","",'Y1.1 ProgrammaInvest_Spesa'!AF21) -> 20 | AI21: 1000
B22: x | C22: =IF('Y1.1 ProgrammaInvest_Spesa'!C22="","",'Y1.1 ProgrammaInvest_Spesa'!C22) ->  | D22: =IF('Y1.1 ProgrammaInvest_Spesa'!D22="","",'Y1.1 ProgrammaInvest_Spesa'!D22) ->  | E22: =IF('Y1.1 ProgrammaInvest_Spesa'!E22="","",'Y1.1 ProgrammaInvest_Spesa'!E22) ->  | F22: =IF('Y1.1 ProgrammaInvest_Spesa'!F22="","",'Y1.1 ProgrammaInvest_Spesa'!F22) -> 4 | G22: =IF('Y1.1 ProgrammaInvest_Spesa'!G22="","",'Y1.1 ProgrammaInvest_Spesa'!G22) -> Intervento 2 | H22: =IF('Y1.1 ProgrammaInvest_Spesa'!H22="","",'Y1.1 ProgrammaInvest_Spesa'!H22) -> SIVCA 2 | I22: =IF('Y1.1 ProgrammaInvest_Spesa'!I22="","",'Y1.1 ProgrammaInvest_Spesa'!I22) ->  | J22: =IF('Y1.1 ProgrammaInvest_Spesa'!J22="","",'Y1.1 ProgrammaInvest_Spesa'!J22) ->  | K22: =IF('Y1.1 ProgrammaInvest_Spesa'!K22="","",'Y1.1 ProgrammaInvest_Spesa'!K22) -> (assoggettata ad ammortamento finanziario) | L22: =IF('Y1.1 ProgrammaInvest_Spesa'!L22="","",'Y1.1 ProgrammaInvest_Spesa'!L22) -> in corso | M22: =IF('Y1.1 ProgrammaInvest_Spesa'!M22="","",'Y1.1 ProgrammaInvest_Spesa'!M22) -> CIN post2026 | N22: =IF('Y1.1 ProgrammaInvest_Spesa'!N22="","",'Y1.1 ProgrammaInvest_Spesa'!N22) ->  | O22: =IF('Y1.1 ProgrammaInvest_Spesa'!O22="","",'Y1.1 ProgrammaInvest_Spesa'!O22) -> Finanziario | P22: =IF('Y1.1 ProgrammaInvest_Spesa'!P22="","",'Y1.1 ProgrammaInvest_Spesa'!P22) ->  | Q22: =IF('Y1.1 ProgrammaInvest_Spesa'!Q22="","",'Y1.1 ProgrammaInvest_Spesa'!Q22) -> FALSE | S22: =IF('Y1.1 ProgrammaInvest_Spesa'!S22="","",'Y1.1 ProgrammaInvest_Spesa'!S22) ->  | T22: =IF('Y1.1 ProgrammaInvest_Spesa'!T22="","",'Y1.1 ProgrammaInvest_Spesa'!T22) ->  | U22: =IF('Y1.1 ProgrammaInvest_Spesa'!U22="","",'Y1.1 ProgrammaInvest_Spesa'!U22) ->  | V22: =IF('Y1.1 ProgrammaInvest_Spesa'!V22="","",'Y1.1 ProgrammaInvest_Spesa'!V22) ->  | W22: =IF('Y1.1 ProgrammaInvest_Spesa'!W22="","",'Y1.1 ProgrammaInvest_Spesa'!W22) ->  | X22: =IF('Y1.1 ProgrammaInvest_Spesa'!X22="","",'Y1.1 ProgrammaInvest_Spesa'!X22) ->  | Y22: =IF('Y1.1 ProgrammaInvest_Spesa'!Y22="","",'Y1.1 ProgrammaInvest_Spesa'!Y22) ->  | AC22: =IF('Y1.1 ProgrammaInvest_Spesa'!AD22="","",'Y1.1 ProgrammaInvest_Spesa'!AD22) -> 100000 | AD22: =IF('Y1.1 ProgrammaInvest_Spesa'!AE22="","",'Y1.1 ProgrammaInvest_Spesa'!AE22) -> 1000 | AE22: =IF('Y1.1 ProgrammaInvest_Spesa'!AF22="","",'Y1.1 ProgrammaInvest_Spesa'!AF22) -> 20 | AI22: 1000
B23: x | C23: =IF('Y1.1 ProgrammaInvest_Spesa'!C23="","",'Y1.1 ProgrammaInvest_Spesa'!C23) ->  | D23: =IF('Y1.1 ProgrammaInvest_Spesa'!D23="","",'Y1.1 ProgrammaInvest_Spesa'!D23) ->  | E23: =IF('Y1.1 ProgrammaInvest_Spesa'!E23="","",'Y1.1 ProgrammaInvest_Spesa'!E23) ->  | F23: =IF('Y1.1 ProgrammaInvest_Spesa'!F23="","",'Y1.1 ProgrammaInvest_Spesa'!F23) -> 5 | G23: =IF('Y1.1 ProgrammaInvest_Spesa'!G23="","",'Y1.1 ProgrammaInvest_Spesa'!G23) -> Intervento 3 | H23: =IF('Y1.1 ProgrammaInvest_Spesa'!H23="","",'Y1.1 ProgrammaInvest_Spesa'!H23) -> SIVCA 3 | I23: =IF('Y1.1 ProgrammaInvest_Spesa'!I23="","",'Y1.1 ProgrammaInvest_Spesa'!I23) ->  | J23: =IF('Y1.1 ProgrammaInvest_Spesa'!J23="","",'Y1.1 ProgrammaInvest_Spesa'!J23) ->  | K23: =IF('Y1.1 ProgrammaInvest_Spesa'!K23="","",'Y1.1 ProgrammaInvest_Spesa'!K23) -> Viadotti/Ponti/Cavalcavia | L23: =IF('Y1.1 ProgrammaInvest_Spesa'!L23="","",'Y1.1 ProgrammaInvest_Spesa'!L23) -> in corso | M23: =IF('Y1.1 ProgrammaInvest_Spesa'!M23="","",'Y1.1 ProgrammaInvest_Spesa'!M23) -> CIN post2026 | N23: =IF('Y1.1 ProgrammaInvest_Spesa'!N23="","",'Y1.1 ProgrammaInvest_Spesa'!N23) ->  | O23: =IF('Y1.1 ProgrammaInvest_Spesa'!O23="","",'Y1.1 ProgrammaInvest_Spesa'!O23) -> Vite utili 1 | P23: =IF('Y1.1 ProgrammaInvest_Spesa'!P23="","",'Y1.1 ProgrammaInvest_Spesa'!P23) -> 2028 | Q23: =IF('Y1.1 ProgrammaInvest_Spesa'!Q23="","",'Y1.1 ProgrammaInvest_Spesa'!Q23) -> FALSE | S23: =IF('Y1.1 ProgrammaInvest_Spesa'!S23="","",'Y1.1 ProgrammaInvest_Spesa'!S23) ->  | T23: =IF('Y1.1 ProgrammaInvest_Spesa'!T23="","",'Y1.1 ProgrammaInvest_Spesa'!T23) ->  | U23: =IF('Y1.1 ProgrammaInvest_Spesa'!U23="","",'Y1.1 ProgrammaInvest_Spesa'!U23) ->  | V23: =IF('Y1.1 ProgrammaInvest_Spesa'!V23="","",'Y1.1 ProgrammaInvest_Spesa'!V23) ->  | W23: =IF('Y1.1 ProgrammaInvest_Spesa'!W23="","",'Y1.1 ProgrammaInvest_Spesa'!W23) ->  | X23: =IF('Y1.1 ProgrammaInvest_Spesa'!X23="","",'Y1.1 ProgrammaInvest_Spesa'!X23) ->  | Y23: =IF('Y1.1 ProgrammaInvest_Spesa'!Y23="","",'Y1.1 ProgrammaInvest_Spesa'!Y23) ->  | AC23: =IF('Y1.1 ProgrammaInvest_Spesa'!AD23="","",'Y1.1 ProgrammaInvest_Spesa'!AD23) -> 200 | AD23: =IF('Y1.1 ProgrammaInvest_Spesa'!AE23="","",'Y1.1 ProgrammaInvest_Spesa'!AE23) -> 20 | AE23: =IF('Y1.1 ProgrammaInvest_Spesa'!AF23="","",'Y1.1 ProgrammaInvest_Spesa'!AF23) -> 10 | AJ23: 20
B24: x | C24: =IF('Y1.1 ProgrammaInvest_Spesa'!C24="","",'Y1.1 ProgrammaInvest_Spesa'!C24) ->  | D24: =IF('Y1.1 ProgrammaInvest_Spesa'!D24="","",'Y1.1 ProgrammaInvest_Spesa'!D24) ->  | E24: =IF('Y1.1 ProgrammaInvest_Spesa'!E24="","",'Y1.1 ProgrammaInvest_Spesa'!E24) ->  | F24: =IF('Y1.1 ProgrammaInvest_Spesa'!F24="","",'Y1.1 ProgrammaInvest_Spesa'!F24) -> 6 | G24: =IF('Y1.1 ProgrammaInvest_Spesa'!G24="","",'Y1.1 ProgrammaInvest_Spesa'!G24) -> Intervento 4 | H24: =IF('Y1.1 ProgrammaInvest_Spesa'!H24="","",'Y1.1 ProgrammaInvest_Spesa'!H24) -> SIVCA 4 | I24: =IF('Y1.1 ProgrammaInvest_Spesa'!I24="","",'Y1.1 ProgrammaInvest_Spesa'!I24) ->  | J24: =IF('Y1.1 ProgrammaInvest_Spesa'!J24="","",'Y1.1 ProgrammaInvest_Spesa'!J24) ->  | K24: =IF('Y1.1 ProgrammaInvest_Spesa'!K24="","",'Y1.1 ProgrammaInvest_Spesa'!K24) -> Gallerie | L24: =IF('Y1.1 ProgrammaInvest_Spesa'!L24="","",'Y1.1 ProgrammaInvest_Spesa'!L24) -> in corso | M24: =IF('Y1.1 ProgrammaInvest_Spesa'!M24="","",'Y1.1 ProgrammaInvest_Spesa'!M24) -> CIN post2026 | N24: =IF('Y1.1 ProgrammaInvest_Spesa'!N24="","",'Y1.1 ProgrammaInvest_Spesa'!N24) ->  | O24: =IF('Y1.1 ProgrammaInvest_Spesa'!O24="","",'Y1.1 ProgrammaInvest_Spesa'!O24) -> Vite utili 1 | P24: =IF('Y1.1 ProgrammaInvest_Spesa'!P24="","",'Y1.1 ProgrammaInvest_Spesa'!P24) -> 2029 | Q24: =IF('Y1.1 ProgrammaInvest_Spesa'!Q24="","",'Y1.1 ProgrammaInvest_Spesa'!Q24) -> FALSE | S24: =IF('Y1.1 ProgrammaInvest_Spesa'!S24="","",'Y1.1 ProgrammaInvest_Spesa'!S24) ->  | T24: =IF('Y1.1 ProgrammaInvest_Spesa'!T24="","",'Y1.1 ProgrammaInvest_Spesa'!T24) ->  | U24: =IF('Y1.1 ProgrammaInvest_Spesa'!U24="","",'Y1.1 ProgrammaInvest_Spesa'!U24) ->  | V24: =IF('Y1.1 ProgrammaInvest_Spesa'!V24="","",'Y1.1 ProgrammaInvest_Spesa'!V24) ->  | W24: =IF('Y1.1 ProgrammaInvest_Spesa'!W24="","",'Y1.1 ProgrammaInvest_Spesa'!W24) ->  | X24: =IF('Y1.1 ProgrammaInvest_Spesa'!X24="","",'Y1.1 ProgrammaInvest_Spesa'!X24) ->  | Y24: =IF('Y1.1 ProgrammaInvest_Spesa'!Y24="","",'Y1.1 ProgrammaInvest_Spesa'!Y24) ->  | AC24: =IF('Y1.1 ProgrammaInvest_Spesa'!AD24="","",'Y1.1 ProgrammaInvest_Spesa'!AD24) -> 200 | AD24: =IF('Y1.1 ProgrammaInvest_Spesa'!AE24="","",'Y1.1 ProgrammaInvest_Spesa'!AE24) -> 20 | AE24: =IF('Y1.1 ProgrammaInvest_Spesa'!AF24="","",'Y1.1 ProgrammaInvest_Spesa'!AF24) -> 10 | AK24: 20
B25: x | C25: =IF('Y1.1 ProgrammaInvest_Spesa'!C25="","",'Y1.1 ProgrammaInvest_Spesa'!C25) ->  | D25: =IF('Y1.1 ProgrammaInvest_Spesa'!D25="","",'Y1.1 ProgrammaInvest_Spesa'!D25) ->  | E25: =IF('Y1.1 ProgrammaInvest_Spesa'!E25="","",'Y1.1 ProgrammaInvest_Spesa'!E25) ->  | F25: =IF('Y1.1 ProgrammaInvest_Spesa'!F25="","",'Y1.1 ProgrammaInvest_Spesa'!F25) -> 7 | G25: =IF('Y1.1 ProgrammaInvest_Spesa'!G25="","",'Y1.1 ProgrammaInvest_Spesa'!G25) -> Intervento 5 | H25: =IF('Y1.1 ProgrammaInvest_Spesa'!H25="","",'Y1.1 ProgrammaInvest_Spesa'!H25) -> SIVCA 5 | I25: =IF('Y1.1 ProgrammaInvest_Spesa'!I25="","",'Y1.1 ProgrammaInvest_Spesa'!I25) ->  | J25: =IF('Y1.1 ProgrammaInvest_Spesa'!J25="","",'Y1.1 ProgrammaInvest_Spesa'!J25) ->  | K25: =IF('Y1.1 ProgrammaInvest_Spesa'!K25="","",'Y1.1 ProgrammaInvest_Spesa'!K25) -> Barriere | L25: =IF('Y1.1 ProgrammaInvest_Spesa'!L25="","",'Y1.1 ProgrammaInvest_Spesa'!L25) -> in corso | M25: =IF('Y1.1 ProgrammaInvest_Spesa'!M25="","",'Y1.1 ProgrammaInvest_Spesa'!M25) -> CIN post2026 | N25: =IF('Y1.1 ProgrammaInvest_Spesa'!N25="","",'Y1.1 ProgrammaInvest_Spesa'!N25) ->  | O25: =IF('Y1.1 ProgrammaInvest_Spesa'!O25="","",'Y1.1 ProgrammaInvest_Spesa'!O25) -> Vite utili 1 | P25: =IF('Y1.1 ProgrammaInvest_Spesa'!P25="","",'Y1.1 ProgrammaInvest_Spesa'!P25) -> 2030 | Q25: =IF('Y1.1 ProgrammaInvest_Spesa'!Q25="","",'Y1.1 ProgrammaInvest_Spesa'!Q25) -> FALSE | S25: =IF('Y1.1 ProgrammaInvest_Spesa'!S25="","",'Y1.1 ProgrammaInvest_Spesa'!S25) ->  | T25: =IF('Y1.1 ProgrammaInvest_Spesa'!T25="","",'Y1.1 ProgrammaInvest_Spesa'!T25) ->  | U25: =IF('Y1.1 ProgrammaInvest_Spesa'!U25="","",'Y1.1 ProgrammaInvest_Spesa'!U25) ->  | V25: =IF('Y1.1 ProgrammaInvest_Spesa'!V25="","",'Y1.1 ProgrammaInvest_Spesa'!V25) ->  | W25: =IF('Y1.1 ProgrammaInvest_Spesa'!W25="","",'Y1.1 ProgrammaInvest_Spesa'!W25) ->  | X25: =IF('Y1.1 ProgrammaInvest_Spesa'!X25="","",'Y1.1 ProgrammaInvest_Spesa'!X25) ->  | Y25: =IF('Y1.1 ProgrammaInvest_Spesa'!Y25="","",'Y1.1 ProgrammaInvest_Spesa'!Y25) ->  | AC25: =IF('Y1.1 ProgrammaInvest_Spesa'!AD25="","",'Y1.1 ProgrammaInvest_Spesa'!AD25) -> 200 | AD25: =IF('Y1.1 ProgrammaInvest_Spesa'!AE25="","",'Y1.1 ProgrammaInvest_Spesa'!AE25) -> 20 | AE25: =IF('Y1.1 ProgrammaInvest_Spesa'!AF25="","",'Y1.1 ProgrammaInvest_Spesa'!AF25) -> 10 | AL25: 20
B26: x | C26: =IF('Y1.1 ProgrammaInvest_Spesa'!C26="","",'Y1.1 ProgrammaInvest_Spesa'!C26) ->  | D26: =IF('Y1.1 ProgrammaInvest_Spesa'!D26="","",'Y1.1 ProgrammaInvest_Spesa'!D26) ->  | E26: =IF('Y1.1 ProgrammaInvest_Spesa'!E26="","",'Y1.1 ProgrammaInvest_Spesa'!E26) ->  | F26: =IF('Y1.1 ProgrammaInvest_Spesa'!F26="","",'Y1.1 ProgrammaInvest_Spesa'!F26) -> 8 | G26: =IF('Y1.1 ProgrammaInvest_Spesa'!G26="","",'Y1.1 ProgrammaInvest_Spesa'!G26) -> Intervento 6 | H26: =IF('Y1.1 ProgrammaInvest_Spesa'!H26="","",'Y1.1 ProgrammaInvest_Spesa'!H26) -> SIVCA 6 | I26: =IF('Y1.1 ProgrammaInvest_Spesa'!I26="","",'Y1.1 ProgrammaInvest_Spesa'!I26) ->  | J26: =IF('Y1.1 ProgrammaInvest_Spesa'!J26="","",'Y1.1 ProgrammaInvest_Spesa'!J26) ->  | K26: =IF('Y1.1 ProgrammaInvest_Spesa'!K26="","",'Y1.1 ProgrammaInvest_Spesa'!K26) -> Corpo autostradale, opere sul territorio | L26: =IF('Y1.1 ProgrammaInvest_Spesa'!L26="","",'Y1.1 ProgrammaInvest_Spesa'!L26) -> in corso | M26: =IF('Y1.1 ProgrammaInvest_Spesa'!M26="","",'Y1.1 ProgrammaInvest_Spesa'!M26) -> CIN post2026 | N26: =IF('Y1.1 ProgrammaInvest_Spesa'!N26="","",'Y1.1 ProgrammaInvest_Spesa'!N26) ->  | O26: =IF('Y1.1 ProgrammaInvest_Spesa'!O26="","",'Y1.1 ProgrammaInvest_Spesa'!O26) -> Vite utili 1 | P26: =IF('Y1.1 ProgrammaInvest_Spesa'!P26="","",'Y1.1 ProgrammaInvest_Spesa'!P26) -> 2031 | Q26: =IF('Y1.1 ProgrammaInvest_Spesa'!Q26="","",'Y1.1 ProgrammaInvest_Spesa'!Q26) -> FALSE | S26: =IF('Y1.1 ProgrammaInvest_Spesa'!S26="","",'Y1.1 ProgrammaInvest_Spesa'!S26) ->  | T26: =IF('Y1.1 ProgrammaInvest_Spesa'!T26="","",'Y1.1 ProgrammaInvest_Spesa'!T26) ->  | U26: =IF('Y1.1 ProgrammaInvest_Spesa'!U26="","",'Y1.1 ProgrammaInvest_Spesa'!U26) ->  | V26: =IF('Y1.1 ProgrammaInvest_Spesa'!V26="","",'Y1.1 ProgrammaInvest_Spesa'!V26) ->  | W26: =IF('Y1.1 ProgrammaInvest_Spesa'!W26="","",'Y1.1 ProgrammaInvest_Spesa'!W26) ->  | X26: =IF('Y1.1 ProgrammaInvest_Spesa'!X26="","",'Y1.1 ProgrammaInvest_Spesa'!X26) ->  | Y26: =IF('Y1.1 ProgrammaInvest_Spesa'!Y26="","",'Y1.1 ProgrammaInvest_Spesa'!Y26) ->  | AC26: =IF('Y1.1 ProgrammaInvest_Spesa'!AD26="","",'Y1.1 ProgrammaInvest_Spesa'!AD26) -> 200 | AD26: =IF('Y1.1 ProgrammaInvest_Spesa'!AE26="","",'Y1.1 ProgrammaInvest_Spesa'!AE26) -> 20 | AE26: =IF('Y1.1 ProgrammaInvest_Spesa'!AF26="","",'Y1.1 ProgrammaInvest_Spesa'!AF26) -> 10 | AM26: 20
B27: x | C27: =IF('Y1.1 ProgrammaInvest_Spesa'!C27="","",'Y1.1 ProgrammaInvest_Spesa'!C27) ->  | D27: =IF('Y1.1 ProgrammaInvest_Spesa'!D27="","",'Y1.1 ProgrammaInvest_Spesa'!D27) ->  | E27: =IF('Y1.1 ProgrammaInvest_Spesa'!E27="","",'Y1.1 ProgrammaInvest_Spesa'!E27) ->  | F27: =IF('Y1.1 ProgrammaInvest_Spesa'!F27="","",'Y1.1 ProgrammaInvest_Spesa'!F27) -> 9 | G27: =IF('Y1.1 ProgrammaInvest_Spesa'!G27="","",'Y1.1 ProgrammaInvest_Spesa'!G27) -> Intervento 7 | H27: =IF('Y1.1 ProgrammaInvest_Spesa'!H27="","",'Y1.1 ProgrammaInvest_Spesa'!H27) -> SIVCA 7 | I27: =IF('Y1.1 ProgrammaInvest_Spesa'!I27="","",'Y1.1 ProgrammaInvest_Spesa'!I27) ->  | J27: =IF('Y1.1 ProgrammaInvest_Spesa'!J27="","",'Y1.1 ProgrammaInvest_Spesa'!J27) ->  | K27: =IF('Y1.1 ProgrammaInvest_Spesa'!K27="","",'Y1.1 ProgrammaInvest_Spesa'!K27) -> Reti recinzione | L27: =IF('Y1.1 ProgrammaInvest_Spesa'!L27="","",'Y1.1 ProgrammaInvest_Spesa'!L27) -> in corso | M27: =IF('Y1.1 ProgrammaInvest_Spesa'!M27="","",'Y1.1 ProgrammaInvest_Spesa'!M27) -> CIN post2026 | N27: =IF('Y1.1 ProgrammaInvest_Spesa'!N27="","",'Y1.1 ProgrammaInvest_Spesa'!N27) ->  | O27: =IF('Y1.1 ProgrammaInvest_Spesa'!O27="","",'Y1.1 ProgrammaInvest_Spesa'!O27) -> Vite utili 1 | P27: =IF('Y1.1 ProgrammaInvest_Spesa'!P27="","",'Y1.1 ProgrammaInvest_Spesa'!P27) -> 2032 | Q27: =IF('Y1.1 ProgrammaInvest_Spesa'!Q27="","",'Y1.1 ProgrammaInvest_Spesa'!Q27) -> FALSE | S27: =IF('Y1.1 ProgrammaInvest_Spesa'!S27="","",'Y1.1 ProgrammaInvest_Spesa'!S27) ->  | T27: =IF('Y1.1 ProgrammaInvest_Spesa'!T27="","",'Y1.1 ProgrammaInvest_Spesa'!T27) ->  | U27: =IF('Y1.1 ProgrammaInvest_Spesa'!U27="","",'Y1.1 ProgrammaInvest_Spesa'!U27) ->  | V27: =IF('Y1.1 ProgrammaInvest_Spesa'!V27="","",'Y1.1 ProgrammaInvest_Spesa'!V27) ->  | W27: =IF('Y1.1 ProgrammaInvest_Spesa'!W27="","",'Y1.1 ProgrammaInvest_Spesa'!W27) ->  | X27: =IF('Y1.1 ProgrammaInvest_Spesa'!X27="","",'Y1.1 ProgrammaInvest_Spesa'!X27) ->  | Y27: =IF('Y1.1 ProgrammaInvest_Spesa'!Y27="","",'Y1.1 ProgrammaInvest_Spesa'!Y27) ->  | AC27: =IF('Y1.1 ProgrammaInvest_Spesa'!AD27="","",'Y1.1 ProgrammaInvest_Spesa'!AD27) -> 200 | AD27: =IF('Y1.1 ProgrammaInvest_Spesa'!AE27="","",'Y1.1 ProgrammaInvest_Spesa'!AE27) -> 20 | AE27: =IF('Y1.1 ProgrammaInvest_Spesa'!AF27="","",'Y1.1 ProgrammaInvest_Spesa'!AF27) -> 10 | AN27: 20
B28: x | C28: =IF('Y1.1 ProgrammaInvest_Spesa'!C28="","",'Y1.1 ProgrammaInvest_Spesa'!C28) ->  | D28: =IF('Y1.1 ProgrammaInvest_Spesa'!D28="","",'Y1.1 ProgrammaInvest_Spesa'!D28) ->  | E28: =IF('Y1.1 ProgrammaInvest_Spesa'!E28="","",'Y1.1 ProgrammaInvest_Spesa'!E28) ->  | F28: =IF('Y1.1 ProgrammaInvest_Spesa'!F28="","",'Y1.1 ProgrammaInvest_Spesa'!F28) -> 10 | G28: =IF('Y1.1 ProgrammaInvest_Spesa'!G28="","",'Y1.1 ProgrammaInvest_Spesa'!G28) -> Intervento 8 | H28: =IF('Y1.1 ProgrammaInvest_Spesa'!H28="","",'Y1.1 ProgrammaInvest_Spesa'!H28) -> SIVCA 8 | I28: =IF('Y1.1 ProgrammaInvest_Spesa'!I28="","",'Y1.1 ProgrammaInvest_Spesa'!I28) ->  | J28: =IF('Y1.1 ProgrammaInvest_Spesa'!J28="","",'Y1.1 ProgrammaInvest_Spesa'!J28) ->  | K28: =IF('Y1.1 ProgrammaInvest_Spesa'!K28="","",'Y1.1 ProgrammaInvest_Spesa'!K28) -> Portali e segnaletica | L28: =IF('Y1.1 ProgrammaInvest_Spesa'!L28="","",'Y1.1 ProgrammaInvest_Spesa'!L28) -> in corso | M28: =IF('Y1.1 ProgrammaInvest_Spesa'!M28="","",'Y1.1 ProgrammaInvest_Spesa'!M28) -> CIN post2026 | N28: =IF('Y1.1 ProgrammaInvest_Spesa'!N28="","",'Y1.1 ProgrammaInvest_Spesa'!N28) ->  | O28: =IF('Y1.1 ProgrammaInvest_Spesa'!O28="","",'Y1.1 ProgrammaInvest_Spesa'!O28) -> Vite utili 1 | P28: =IF('Y1.1 ProgrammaInvest_Spesa'!P28="","",'Y1.1 ProgrammaInvest_Spesa'!P28) -> 2033 | Q28: =IF('Y1.1 ProgrammaInvest_Spesa'!Q28="","",'Y1.1 ProgrammaInvest_Spesa'!Q28) -> FALSE | S28: =IF('Y1.1 ProgrammaInvest_Spesa'!S28="","",'Y1.1 ProgrammaInvest_Spesa'!S28) ->  | T28: =IF('Y1.1 ProgrammaInvest_Spesa'!T28="","",'Y1.1 ProgrammaInvest_Spesa'!T28) ->  | U28: =IF('Y1.1 ProgrammaInvest_Spesa'!U28="","",'Y1.1 ProgrammaInvest_Spesa'!U28) ->  | V28: =IF('Y1.1 ProgrammaInvest_Spesa'!V28="","",'Y1.1 ProgrammaInvest_Spesa'!V28) ->  | W28: =IF('Y1.1 ProgrammaInvest_Spesa'!W28="","",'Y1.1 ProgrammaInvest_Spesa'!W28) ->  | X28: =IF('Y1.1 ProgrammaInvest_Spesa'!X28="","",'Y1.1 ProgrammaInvest_Spesa'!X28) ->  | Y28: =IF('Y1.1 ProgrammaInvest_Spesa'!Y28="","",'Y1.1 ProgrammaInvest_Spesa'!Y28) ->  | AC28: =IF('Y1.1 ProgrammaInvest_Spesa'!AD28="","",'Y1.1 ProgrammaInvest_Spesa'!AD28) -> 200 | AD28: =IF('Y1.1 ProgrammaInvest_Spesa'!AE28="","",'Y1.1 ProgrammaInvest_Spesa'!AE28) -> 20 | AE28: =IF('Y1.1 ProgrammaInvest_Spesa'!AF28="","",'Y1.1 ProgrammaInvest_Spesa'!AF28) -> 10 | AO28: 20
B29: x | C29: =IF('Y1.1 ProgrammaInvest_Spesa'!C29="","",'Y1.1 ProgrammaInvest_Spesa'!C29) ->  | D29: =IF('Y1.1 ProgrammaInvest_Spesa'!D29="","",'Y1.1 ProgrammaInvest_Spesa'!D29) ->  | E29: =IF('Y1.1 ProgrammaInvest_Spesa'!E29="","",'Y1.1 ProgrammaInvest_Spesa'!E29) ->  | F29: =IF('Y1.1 ProgrammaInvest_Spesa'!F29="","",'Y1.1 ProgrammaInvest_Spesa'!F29) -> 11 | G29: =IF('Y1.1 ProgrammaInvest_Spesa'!G29="","",'Y1.1 ProgrammaInvest_Spesa'!G29) -> Intervento 9 | H29: =IF('Y1.1 ProgrammaInvest_Spesa'!H29="","",'Y1.1 ProgrammaInvest_Spesa'!H29) -> SIVCA 9 | I29: =IF('Y1.1 ProgrammaInvest_Spesa'!I29="","",'Y1.1 ProgrammaInvest_Spesa'!I29) ->  | J29: =IF('Y1.1 ProgrammaInvest_Spesa'!J29="","",'Y1.1 ProgrammaInvest_Spesa'!J29) ->  | K29: =IF('Y1.1 ProgrammaInvest_Spesa'!K29="","",'Y1.1 ProgrammaInvest_Spesa'!K29) -> Pavimentazioni | L29: =IF('Y1.1 ProgrammaInvest_Spesa'!L29="","",'Y1.1 ProgrammaInvest_Spesa'!L29) -> in corso | M29: =IF('Y1.1 ProgrammaInvest_Spesa'!M29="","",'Y1.1 ProgrammaInvest_Spesa'!M29) -> CIN post2026 | N29: =IF('Y1.1 ProgrammaInvest_Spesa'!N29="","",'Y1.1 ProgrammaInvest_Spesa'!N29) ->  | O29: =IF('Y1.1 ProgrammaInvest_Spesa'!O29="","",'Y1.1 ProgrammaInvest_Spesa'!O29) -> Vite utili 1 | P29: =IF('Y1.1 ProgrammaInvest_Spesa'!P29="","",'Y1.1 ProgrammaInvest_Spesa'!P29) -> 2034 | Q29: =IF('Y1.1 ProgrammaInvest_Spesa'!Q29="","",'Y1.1 ProgrammaInvest_Spesa'!Q29) -> FALSE | S29: =IF('Y1.1 ProgrammaInvest_Spesa'!S29="","",'Y1.1 ProgrammaInvest_Spesa'!S29) ->  | T29: =IF('Y1.1 ProgrammaInvest_Spesa'!T29="","",'Y1.1 ProgrammaInvest_Spesa'!T29) ->  | U29: =IF('Y1.1 ProgrammaInvest_Spesa'!U29="","",'Y1.1 ProgrammaInvest_Spesa'!U29) ->  | V29: =IF('Y1.1 ProgrammaInvest_Spesa'!V29="","",'Y1.1 ProgrammaInvest_Spesa'!V29) ->  | W29: =IF('Y1.1 ProgrammaInvest_Spesa'!W29="","",'Y1.1 ProgrammaInvest_Spesa'!W29) ->  | X29: =IF('Y1.1 ProgrammaInvest_Spesa'!X29="","",'Y1.1 ProgrammaInvest_Spesa'!X29) ->  | Y29: =IF('Y1.1 ProgrammaInvest_Spesa'!Y29="","",'Y1.1 ProgrammaInvest_Spesa'!Y29) ->  | AC29: =IF('Y1.1 ProgrammaInvest_Spesa'!AD29="","",'Y1.1 ProgrammaInvest_Spesa'!AD29) -> 200 | AD29: =IF('Y1.1 ProgrammaInvest_Spesa'!AE29="","",'Y1.1 ProgrammaInvest_Spesa'!AE29) -> 20 | AE29: =IF('Y1.1 ProgrammaInvest_Spesa'!AF29="","",'Y1.1 ProgrammaInvest_Spesa'!AF29) -> 10 | AP29: 20
B30: x | C30: =IF('Y1.1 ProgrammaInvest_Spesa'!C30="","",'Y1.1 ProgrammaInvest_Spesa'!C30) ->  | D30: =IF('Y1.1 ProgrammaInvest_Spesa'!D30="","",'Y1.1 ProgrammaInvest_Spesa'!D30) ->  | E30: =IF('Y1.1 ProgrammaInvest_Spesa'!E30="","",'Y1.1 ProgrammaInvest_Spesa'!E30) ->  | F30: =IF('Y1.1 ProgrammaInvest_Spesa'!F30="","",'Y1.1 ProgrammaInvest_Spesa'!F30) -> 12 | G30: =IF('Y1.1 ProgrammaInvest_Spesa'!G30="","",'Y1.1 ProgrammaInvest_Spesa'!G30) -> Intervento 10 | H30: =IF('Y1.1 ProgrammaInvest_Spesa'!H30="","",'Y1.1 ProgrammaInvest_Spesa'!H30) -> SIVCA 10 | I30: =IF('Y1.1 ProgrammaInvest_Spesa'!I30="","",'Y1.1 ProgrammaInvest_Spesa'!I30) ->  | J30: =IF('Y1.1 ProgrammaInvest_Spesa'!J30="","",'Y1.1 ProgrammaInvest_Spesa'!J30) ->  | K30: =IF('Y1.1 ProgrammaInvest_Spesa'!K30="","",'Y1.1 ProgrammaInvest_Spesa'!K30) -> Infrastrutture tecnologiche ed impianti | L30: =IF('Y1.1 ProgrammaInvest_Spesa'!L30="","",'Y1.1 ProgrammaInvest_Spesa'!L30) -> in corso | M30: =IF('Y1.1 ProgrammaInvest_Spesa'!M30="","",'Y1.1 ProgrammaInvest_Spesa'!M30) -> CIN post2026 | N30: =IF('Y1.1 ProgrammaInvest_Spesa'!N30="","",'Y1.1 ProgrammaInvest_Spesa'!N30) ->  | O30: =IF('Y1.1 ProgrammaInvest_Spesa'!O30="","",'Y1.1 ProgrammaInvest_Spesa'!O30) -> Vite utili 1 | P30: =IF('Y1.1 ProgrammaInvest_Spesa'!P30="","",'Y1.1 ProgrammaInvest_Spesa'!P30) -> 2035 | Q30: =IF('Y1.1 ProgrammaInvest_Spesa'!Q30="","",'Y1.1 ProgrammaInvest_Spesa'!Q30) -> FALSE | S30: =IF('Y1.1 ProgrammaInvest_Spesa'!S30="","",'Y1.1 ProgrammaInvest_Spesa'!S30) ->  | T30: =IF('Y1.1 ProgrammaInvest_Spesa'!T30="","",'Y1.1 ProgrammaInvest_Spesa'!T30) ->  | U30: =IF('Y1.1 ProgrammaInvest_Spesa'!U30="","",'Y1.1 ProgrammaInvest_Spesa'!U30) ->  | V30: =IF('Y1.1 ProgrammaInvest_Spesa'!V30="","",'Y1.1 ProgrammaInvest_Spesa'!V30) ->  | W30: =IF('Y1.1 ProgrammaInvest_Spesa'!W30="","",'Y1.1 ProgrammaInvest_Spesa'!W30) ->  | X30: =IF('Y1.1 ProgrammaInvest_Spesa'!X30="","",'Y1.1 ProgrammaInvest_Spesa'!X30) ->  | Y30: =IF('Y1.1 ProgrammaInvest_Spesa'!Y30="","",'Y1.1 ProgrammaInvest_Spesa'!Y30) ->  | AC30: =IF('Y1.1 ProgrammaInvest_Spesa'!AD30="","",'Y1.1 ProgrammaInvest_Spesa'!AD30) -> 200 | AD30: =IF('Y1.1 ProgrammaInvest_Spesa'!AE30="","",'Y1.1 ProgrammaInvest_Spesa'!AE30) -> 20 | AE30: =IF('Y1.1 ProgrammaInvest_Spesa'!AF30="","",'Y1.1 ProgrammaInvest_Spesa'!AF30) -> 10 | AQ30: 20
B31: x | C31: =IF('Y1.1 ProgrammaInvest_Spesa'!C31="","",'Y1.1 ProgrammaInvest_Spesa'!C31) ->  | D31: =IF('Y1.1 ProgrammaInvest_Spesa'!D31="","",'Y1.1 ProgrammaInvest_Spesa'!D31) ->  | E31: =IF('Y1.1 ProgrammaInvest_Spesa'!E31="","",'Y1.1 ProgrammaInvest_Spesa'!E31) ->  | F31: =IF('Y1.1 ProgrammaInvest_Spesa'!F31="","",'Y1.1 ProgrammaInvest_Spesa'!F31) -> 13 | G31: =IF('Y1.1 ProgrammaInvest_Spesa'!G31="","",'Y1.1 ProgrammaInvest_Spesa'!G31) -> Intervento 11 | H31: =IF('Y1.1 ProgrammaInvest_Spesa'!H31="","",'Y1.1 ProgrammaInvest_Spesa'!H31) -> SIVCA 11 | I31: =IF('Y1.1 ProgrammaInvest_Spesa'!I31="","",'Y1.1 ProgrammaInvest_Spesa'!I31) ->  | J31: =IF('Y1.1 ProgrammaInvest_Spesa'!J31="","",'Y1.1 ProgrammaInvest_Spesa'!J31) ->  | K31: =IF('Y1.1 ProgrammaInvest_Spesa'!K31="","",'Y1.1 ProgrammaInvest_Spesa'!K31) -> Stazioni/Barriere di esazione, fabbricati, aree di servizio | L31: =IF('Y1.1 ProgrammaInvest_Spesa'!L31="","",'Y1.1 ProgrammaInvest_Spesa'!L31) -> in corso | M31: =IF('Y1.1 ProgrammaInvest_Spesa'!M31="","",'Y1.1 ProgrammaInvest_Spesa'!M31) -> CIN post2026 | N31: =IF('Y1.1 ProgrammaInvest_Spesa'!N31="","",'Y1.1 ProgrammaInvest_Spesa'!N31) ->  | O31: =IF('Y1.1 ProgrammaInvest_Spesa'!O31="","",'Y1.1 ProgrammaInvest_Spesa'!O31) -> Vite utili 1 | P31: =IF('Y1.1 ProgrammaInvest_Spesa'!P31="","",'Y1.1 ProgrammaInvest_Spesa'!P31) -> 2036 | Q31: =IF('Y1.1 ProgrammaInvest_Spesa'!Q31="","",'Y1.1 ProgrammaInvest_Spesa'!Q31) -> FALSE | S31: =IF('Y1.1 ProgrammaInvest_Spesa'!S31="","",'Y1.1 ProgrammaInvest_Spesa'!S31) ->  | T31: =IF('Y1.1 ProgrammaInvest_Spesa'!T31="","",'Y1.1 ProgrammaInvest_Spesa'!T31) ->  | U31: =IF('Y1.1 ProgrammaInvest_Spesa'!U31="","",'Y1.1 ProgrammaInvest_Spesa'!U31) ->  | V31: =IF('Y1.1 ProgrammaInvest_Spesa'!V31="","",'Y1.1 ProgrammaInvest_Spesa'!V31) ->  | W31: =IF('Y1.1 ProgrammaInvest_Spesa'!W31="","",'Y1.1 ProgrammaInvest_Spesa'!W31) ->  | X31: =IF('Y1.1 ProgrammaInvest_Spesa'!X31="","",'Y1.1 ProgrammaInvest_Spesa'!X31) ->  | Y31: =IF('Y1.1 ProgrammaInvest_Spesa'!Y31="","",'Y1.1 ProgrammaInvest_Spesa'!Y31) ->  | AC31: =IF('Y1.1 ProgrammaInvest_Spesa'!AD31="","",'Y1.1 ProgrammaInvest_Spesa'!AD31) -> 200 | AD31: =IF('Y1.1 ProgrammaInvest_Spesa'!AE31="","",'Y1.1 ProgrammaInvest_Spesa'!AE31) -> 20 | AE31: =IF('Y1.1 ProgrammaInvest_Spesa'!AF31="","",'Y1.1 ProgrammaInvest_Spesa'!AF31) -> 10 | AR31: 20
B32: x | C32: =IF('Y1.1 ProgrammaInvest_Spesa'!C32="","",'Y1.1 ProgrammaInvest_Spesa'!C32) ->  | D32: =IF('Y1.1 ProgrammaInvest_Spesa'!D32="","",'Y1.1 ProgrammaInvest_Spesa'!D32) ->  | E32: =IF('Y1.1 ProgrammaInvest_Spesa'!E32="","",'Y1.1 ProgrammaInvest_Spesa'!E32) ->  | F32: =IF('Y1.1 ProgrammaInvest_Spesa'!F32="","",'Y1.1 ProgrammaInvest_Spesa'!F32) -> 14 | G32: =IF('Y1.1 ProgrammaInvest_Spesa'!G32="","",'Y1.1 ProgrammaInvest_Spesa'!G32) -> Intervento 12 | H32: =IF('Y1.1 ProgrammaInvest_Spesa'!H32="","",'Y1.1 ProgrammaInvest_Spesa'!H32) -> SIVCA 12 | I32: =IF('Y1.1 ProgrammaInvest_Spesa'!I32="","",'Y1.1 ProgrammaInvest_Spesa'!I32) ->  | J32: =IF('Y1.1 ProgrammaInvest_Spesa'!J32="","",'Y1.1 ProgrammaInvest_Spesa'!J32) ->  | K32: =IF('Y1.1 ProgrammaInvest_Spesa'!K32="","",'Y1.1 ProgrammaInvest_Spesa'!K32) -> Altro | L32: =IF('Y1.1 ProgrammaInvest_Spesa'!L32="","",'Y1.1 ProgrammaInvest_Spesa'!L32) -> in corso | M32: =IF('Y1.1 ProgrammaInvest_Spesa'!M32="","",'Y1.1 ProgrammaInvest_Spesa'!M32) -> CIN post2026 | N32: =IF('Y1.1 ProgrammaInvest_Spesa'!N32="","",'Y1.1 ProgrammaInvest_Spesa'!N32) ->  | O32: =IF('Y1.1 ProgrammaInvest_Spesa'!O32="","",'Y1.1 ProgrammaInvest_Spesa'!O32) -> Vite utili 1 | P32: =IF('Y1.1 ProgrammaInvest_Spesa'!P32="","",'Y1.1 ProgrammaInvest_Spesa'!P32) -> 2037 | Q32: =IF('Y1.1 ProgrammaInvest_Spesa'!Q32="","",'Y1.1 ProgrammaInvest_Spesa'!Q32) -> FALSE | S32: =IF('Y1.1 ProgrammaInvest_Spesa'!S32="","",'Y1.1 ProgrammaInvest_Spesa'!S32) ->  | T32: =IF('Y1.1 ProgrammaInvest_Spesa'!T32="","",'Y1.1 ProgrammaInvest_Spesa'!T32) ->  | U32: =IF('Y1.1 ProgrammaInvest_Spesa'!U32="","",'Y1.1 ProgrammaInvest_Spesa'!U32) ->  | V32: =IF('Y1.1 ProgrammaInvest_Spesa'!V32="","",'Y1.1 ProgrammaInvest_Spesa'!V32) ->  | W32: =IF('Y1.1 ProgrammaInvest_Spesa'!W32="","",'Y1.1 ProgrammaInvest_Spesa'!W32) ->  | X32: =IF('Y1.1 ProgrammaInvest_Spesa'!X32="","",'Y1.1 ProgrammaInvest_Spesa'!X32) ->  | Y32: =IF('Y1.1 ProgrammaInvest_Spesa'!Y32="","",'Y1.1 ProgrammaInvest_Spesa'!Y32) ->  | AC32: =IF('Y1.1 ProgrammaInvest_Spesa'!AD32="","",'Y1.1 ProgrammaInvest_Spesa'!AD32) -> 200 | AD32: =IF('Y1.1 ProgrammaInvest_Spesa'!AE32="","",'Y1.1 ProgrammaInvest_Spesa'!AE32) -> 20 | AE32: =IF('Y1.1 ProgrammaInvest_Spesa'!AF32="","",'Y1.1 ProgrammaInvest_Spesa'!AF32) -> 10 | AS32: 20
B33: x | C33: =IF('Y1.1 ProgrammaInvest_Spesa'!C33="","",'Y1.1 ProgrammaInvest_Spesa'!C33) ->  | D33: =IF('Y1.1 ProgrammaInvest_Spesa'!D33="","",'Y1.1 ProgrammaInvest_Spesa'!D33) ->  | E33: =IF('Y1.1 ProgrammaInvest_Spesa'!E33="","",'Y1.1 ProgrammaInvest_Spesa'!E33) ->  | F33: =IF('Y1.1 ProgrammaInvest_Spesa'!F33="","",'Y1.1 ProgrammaInvest_Spesa'!F33) -> 15 | G33: =IF('Y1.1 ProgrammaInvest_Spesa'!G33="","",'Y1.1 ProgrammaInvest_Spesa'!G33) -> Intervento 13 | H33: =IF('Y1.1 ProgrammaInvest_Spesa'!H33="","",'Y1.1 ProgrammaInvest_Spesa'!H33) -> SIVCA 13 | I33: =IF('Y1.1 ProgrammaInvest_Spesa'!I33="","",'Y1.1 ProgrammaInvest_Spesa'!I33) ->  | J33: =IF('Y1.1 ProgrammaInvest_Spesa'!J33="","",'Y1.1 ProgrammaInvest_Spesa'!J33) ->  | K33: =IF('Y1.1 ProgrammaInvest_Spesa'!K33="","",'Y1.1 ProgrammaInvest_Spesa'!K33) -> Viadotti/Ponti/Cavalcavia | L33: =IF('Y1.1 ProgrammaInvest_Spesa'!L33="","",'Y1.1 ProgrammaInvest_Spesa'!L33) -> in corso | M33: =IF('Y1.1 ProgrammaInvest_Spesa'!M33="","",'Y1.1 ProgrammaInvest_Spesa'!M33) -> CIN post2026 | N33: =IF('Y1.1 ProgrammaInvest_Spesa'!N33="","",'Y1.1 ProgrammaInvest_Spesa'!N33) ->  | O33: =IF('Y1.1 ProgrammaInvest_Spesa'!O33="","",'Y1.1 ProgrammaInvest_Spesa'!O33) -> Vite utili 2 | P33: =IF('Y1.1 ProgrammaInvest_Spesa'!P33="","",'Y1.1 ProgrammaInvest_Spesa'!P33) -> 2028 | Q33: =IF('Y1.1 ProgrammaInvest_Spesa'!Q33="","",'Y1.1 ProgrammaInvest_Spesa'!Q33) -> FALSE | S33: =IF('Y1.1 ProgrammaInvest_Spesa'!S33="","",'Y1.1 ProgrammaInvest_Spesa'!S33) ->  | T33: =IF('Y1.1 ProgrammaInvest_Spesa'!T33="","",'Y1.1 ProgrammaInvest_Spesa'!T33) ->  | U33: =IF('Y1.1 ProgrammaInvest_Spesa'!U33="","",'Y1.1 ProgrammaInvest_Spesa'!U33) ->  | V33: =IF('Y1.1 ProgrammaInvest_Spesa'!V33="","",'Y1.1 ProgrammaInvest_Spesa'!V33) ->  | W33: =IF('Y1.1 ProgrammaInvest_Spesa'!W33="","",'Y1.1 ProgrammaInvest_Spesa'!W33) ->  | X33: =IF('Y1.1 ProgrammaInvest_Spesa'!X33="","",'Y1.1 ProgrammaInvest_Spesa'!X33) ->  | Y33: =IF('Y1.1 ProgrammaInvest_Spesa'!Y33="","",'Y1.1 ProgrammaInvest_Spesa'!Y33) ->  | AC33: =IF('Y1.1 ProgrammaInvest_Spesa'!AD33="","",'Y1.1 ProgrammaInvest_Spesa'!AD33) -> 200 | AD33: =IF('Y1.1 ProgrammaInvest_Spesa'!AE33="","",'Y1.1 ProgrammaInvest_Spesa'!AE33) -> 20 | AE33: =IF('Y1.1 ProgrammaInvest_Spesa'!AF33="","",'Y1.1 ProgrammaInvest_Spesa'!AF33) -> 10 | AJ33: 20
B34: x | C34: =IF('Y1.1 ProgrammaInvest_Spesa'!C34="","",'Y1.1 ProgrammaInvest_Spesa'!C34) ->  | D34: =IF('Y1.1 ProgrammaInvest_Spesa'!D34="","",'Y1.1 ProgrammaInvest_Spesa'!D34) ->  | E34: =IF('Y1.1 ProgrammaInvest_Spesa'!E34="","",'Y1.1 ProgrammaInvest_Spesa'!E34) ->  | F34: =IF('Y1.1 ProgrammaInvest_Spesa'!F34="","",'Y1.1 ProgrammaInvest_Spesa'!F34) -> 16 | G34: =IF('Y1.1 ProgrammaInvest_Spesa'!G34="","",'Y1.1 ProgrammaInvest_Spesa'!G34) -> Intervento 14 | H34: =IF('Y1.1 ProgrammaInvest_Spesa'!H34="","",'Y1.1 ProgrammaInvest_Spesa'!H34) -> SIVCA 14 | I34: =IF('Y1.1 ProgrammaInvest_Spesa'!I34="","",'Y1.1 ProgrammaInvest_Spesa'!I34) ->  | J34: =IF('Y1.1 ProgrammaInvest_Spesa'!J34="","",'Y1.1 ProgrammaInvest_Spesa'!J34) ->  | K34: =IF('Y1.1 ProgrammaInvest_Spesa'!K34="","",'Y1.1 ProgrammaInvest_Spesa'!K34) -> Gallerie | L34: =IF('Y1.1 ProgrammaInvest_Spesa'!L34="","",'Y1.1 ProgrammaInvest_Spesa'!L34) -> in corso | M34: =IF('Y1.1 ProgrammaInvest_Spesa'!M34="","",'Y1.1 ProgrammaInvest_Spesa'!M34) -> CIN post2026 | N34: =IF('Y1.1 ProgrammaInvest_Spesa'!N34="","",'Y1.1 ProgrammaInvest_Spesa'!N34) ->  | O34: =IF('Y1.1 ProgrammaInvest_Spesa'!O34="","",'Y1.1 ProgrammaInvest_Spesa'!O34) -> Vite utili 2 | P34: =IF('Y1.1 ProgrammaInvest_Spesa'!P34="","",'Y1.1 ProgrammaInvest_Spesa'!P34) -> 2029 | Q34: =IF('Y1.1 ProgrammaInvest_Spesa'!Q34="","",'Y1.1 ProgrammaInvest_Spesa'!Q34) -> FALSE | S34: =IF('Y1.1 ProgrammaInvest_Spesa'!S34="","",'Y1.1 ProgrammaInvest_Spesa'!S34) ->  | T34: =IF('Y1.1 ProgrammaInvest_Spesa'!T34="","",'Y1.1 ProgrammaInvest_Spesa'!T34) ->  | U34: =IF('Y1.1 ProgrammaInvest_Spesa'!U34="","",'Y1.1 ProgrammaInvest_Spesa'!U34) ->  | V34: =IF('Y1.1 ProgrammaInvest_Spesa'!V34="","",'Y1.1 ProgrammaInvest_Spesa'!V34) ->  | W34: =IF('Y1.1 ProgrammaInvest_Spesa'!W34="","",'Y1.1 ProgrammaInvest_Spesa'!W34) ->  | X34: =IF('Y1.1 ProgrammaInvest_Spesa'!X34="","",'Y1.1 ProgrammaInvest_Spesa'!X34) ->  | Y34: =IF('Y1.1 ProgrammaInvest_Spesa'!Y34="","",'Y1.1 ProgrammaInvest_Spesa'!Y34) ->  | AC34: =IF('Y1.1 ProgrammaInvest_Spesa'!AD34="","",'Y1.1 ProgrammaInvest_Spesa'!AD34) -> 200 | AD34: =IF('Y1.1 ProgrammaInvest_Spesa'!AE34="","",'Y1.1 ProgrammaInvest_Spesa'!AE34) -> 20 | AE34: =IF('Y1.1 ProgrammaInvest_Spesa'!AF34="","",'Y1.1 ProgrammaInvest_Spesa'!AF34) -> 10 | AK34: 20
B35: x | C35: =IF('Y1.1 ProgrammaInvest_Spesa'!C35="","",'Y1.1 ProgrammaInvest_Spesa'!C35) ->  | D35: =IF('Y1.1 ProgrammaInvest_Spesa'!D35="","",'Y1.1 ProgrammaInvest_Spesa'!D35) ->  | E35: =IF('Y1.1 ProgrammaInvest_Spesa'!E35="","",'Y1.1 ProgrammaInvest_Spesa'!E35) ->  | F35: =IF('Y1.1 ProgrammaInvest_Spesa'!F35="","",'Y1.1 ProgrammaInvest_Spesa'!F35) -> 17 | G35: =IF('Y1.1 ProgrammaInvest_Spesa'!G35="","",'Y1.1 ProgrammaInvest_Spesa'!G35) -> Intervento 15 | H35: =IF('Y1.1 ProgrammaInvest_Spesa'!H35="","",'Y1.1 ProgrammaInvest_Spesa'!H35) -> SIVCA 15 | I35: =IF('Y1.1 ProgrammaInvest_Spesa'!I35="","",'Y1.1 ProgrammaInvest_Spesa'!I35) ->  | J35: =IF('Y1.1 ProgrammaInvest_Spesa'!J35="","",'Y1.1 ProgrammaInvest_Spesa'!J35) ->  | K35: =IF('Y1.1 ProgrammaInvest_Spesa'!K35="","",'Y1.1 ProgrammaInvest_Spesa'!K35) -> Barriere | L35: =IF('Y1.1 ProgrammaInvest_Spesa'!L35="","",'Y1.1 ProgrammaInvest_Spesa'!L35) -> in corso | M35: =IF('Y1.1 ProgrammaInvest_Spesa'!M35="","",'Y1.1 ProgrammaInvest_Spesa'!M35) -> CIN post2026 | N35: =IF('Y1.1 ProgrammaInvest_Spesa'!N35="","",'Y1.1 ProgrammaInvest_Spesa'!N35) ->  | O35: =IF('Y1.1 ProgrammaInvest_Spesa'!O35="","",'Y1.1 ProgrammaInvest_Spesa'!O35) -> Vite utili 2 | P35: =IF('Y1.1 ProgrammaInvest_Spesa'!P35="","",'Y1.1 ProgrammaInvest_Spesa'!P35) -> 2030 | Q35: =IF('Y1.1 ProgrammaInvest_Spesa'!Q35="","",'Y1.1 ProgrammaInvest_Spesa'!Q35) -> FALSE | S35: =IF('Y1.1 ProgrammaInvest_Spesa'!S35="","",'Y1.1 ProgrammaInvest_Spesa'!S35) ->  | T35: =IF('Y1.1 ProgrammaInvest_Spesa'!T35="","",'Y1.1 ProgrammaInvest_Spesa'!T35) ->  | U35: =IF('Y1.1 ProgrammaInvest_Spesa'!U35="","",'Y1.1 ProgrammaInvest_Spesa'!U35) ->  | V35: =IF('Y1.1 ProgrammaInvest_Spesa'!V35="","",'Y1.1 ProgrammaInvest_Spesa'!V35) ->  | W35: =IF('Y1.1 ProgrammaInvest_Spesa'!W35="","",'Y1.1 ProgrammaInvest_Spesa'!W35) ->  | X35: =IF('Y1.1 ProgrammaInvest_Spesa'!X35="","",'Y1.1 ProgrammaInvest_Spesa'!X35) ->  | Y35: =IF('Y1.1 ProgrammaInvest_Spesa'!Y35="","",'Y1.1 ProgrammaInvest_Spesa'!Y35) ->  | AC35: =IF('Y1.1 ProgrammaInvest_Spesa'!AD35="","",'Y1.1 ProgrammaInvest_Spesa'!AD35) -> 200 | AD35: =IF('Y1.1 ProgrammaInvest_Spesa'!AE35="","",'Y1.1 ProgrammaInvest_Spesa'!AE35) -> 20 | AE35: =IF('Y1.1 ProgrammaInvest_Spesa'!AF35="","",'Y1.1 ProgrammaInvest_Spesa'!AF35) -> 10 | AL35: 20
B36: x | C36: =IF('Y1.1 ProgrammaInvest_Spesa'!C36="","",'Y1.1 ProgrammaInvest_Spesa'!C36) ->  | D36: =IF('Y1.1 ProgrammaInvest_Spesa'!D36="","",'Y1.1 ProgrammaInvest_Spesa'!D36) ->  | E36: =IF('Y1.1 ProgrammaInvest_Spesa'!E36="","",'Y1.1 ProgrammaInvest_Spesa'!E36) ->  | F36: =IF('Y1.1 ProgrammaInvest_Spesa'!F36="","",'Y1.1 ProgrammaInvest_Spesa'!F36) -> 18 | G36: =IF('Y1.1 ProgrammaInvest_Spesa'!G36="","",'Y1.1 ProgrammaInvest_Spesa'!G36) -> Intervento 16 | H36: =IF('Y1.1 ProgrammaInvest_Spesa'!H36="","",'Y1.1 ProgrammaInvest_Spesa'!H36) -> SIVCA 16 | I36: =IF('Y1.1 ProgrammaInvest_Spesa'!I36="","",'Y1.1 ProgrammaInvest_Spesa'!I36) ->  | J36: =IF('Y1.1 ProgrammaInvest_Spesa'!J36="","",'Y1.1 ProgrammaInvest_Spesa'!J36) ->  | K36: =IF('Y1.1 ProgrammaInvest_Spesa'!K36="","",'Y1.1 ProgrammaInvest_Spesa'!K36) -> Corpo autostradale, opere sul territorio | L36: =IF('Y1.1 ProgrammaInvest_Spesa'!L36="","",'Y1.1 ProgrammaInvest_Spesa'!L36) -> in corso | M36: =IF('Y1.1 ProgrammaInvest_Spesa'!M36="","",'Y1.1 ProgrammaInvest_Spesa'!M36) -> CIN post2026 | N36: =IF('Y1.1 ProgrammaInvest_Spesa'!N36="","",'Y1.1 ProgrammaInvest_Spesa'!N36) ->  | O36: =IF('Y1.1 ProgrammaInvest_Spesa'!O36="","",'Y1.1 ProgrammaInvest_Spesa'!O36) -> Vite utili 2 | P36: =IF('Y1.1 ProgrammaInvest_Spesa'!P36="","",'Y1.1 ProgrammaInvest_Spesa'!P36) -> 2031 | Q36: =IF('Y1.1 ProgrammaInvest_Spesa'!Q36="","",'Y1.1 ProgrammaInvest_Spesa'!Q36) -> FALSE | S36: =IF('Y1.1 ProgrammaInvest_Spesa'!S36="","",'Y1.1 ProgrammaInvest_Spesa'!S36) ->  | T36: =IF('Y1.1 ProgrammaInvest_Spesa'!T36="","",'Y1.1 ProgrammaInvest_Spesa'!T36) ->  | U36: =IF('Y1.1 ProgrammaInvest_Spesa'!U36="","",'Y1.1 ProgrammaInvest_Spesa'!U36) ->  | V36: =IF('Y1.1 ProgrammaInvest_Spesa'!V36="","",'Y1.1 ProgrammaInvest_Spesa'!V36) ->  | W36: =IF('Y1.1 ProgrammaInvest_Spesa'!W36="","",'Y1.1 ProgrammaInvest_Spesa'!W36) ->  | X36: =IF('Y1.1 ProgrammaInvest_Spesa'!X36="","",'Y1.1 ProgrammaInvest_Spesa'!X36) ->  | Y36: =IF('Y1.1 ProgrammaInvest_Spesa'!Y36="","",'Y1.1 ProgrammaInvest_Spesa'!Y36) ->  | AC36: =IF('Y1.1 ProgrammaInvest_Spesa'!AD36="","",'Y1.1 ProgrammaInvest_Spesa'!AD36) -> 200 | AD36: =IF('Y1.1 ProgrammaInvest_Spesa'!AE36="","",'Y1.1 ProgrammaInvest_Spesa'!AE36) -> 20 | AE36: =IF('Y1.1 ProgrammaInvest_Spesa'!AF36="","",'Y1.1 ProgrammaInvest_Spesa'!AF36) -> 10 | AM36: 20
B37: x | C37: =IF('Y1.1 ProgrammaInvest_Spesa'!C37="","",'Y1.1 ProgrammaInvest_Spesa'!C37) ->  | D37: =IF('Y1.1 ProgrammaInvest_Spesa'!D37="","",'Y1.1 ProgrammaInvest_Spesa'!D37) ->  | E37: =IF('Y1.1 ProgrammaInvest_Spesa'!E37="","",'Y1.1 ProgrammaInvest_Spesa'!E37) ->  | F37: =IF('Y1.1 ProgrammaInvest_Spesa'!F37="","",'Y1.1 ProgrammaInvest_Spesa'!F37) -> 19 | G37: =IF('Y1.1 ProgrammaInvest_Spesa'!G37="","",'Y1.1 ProgrammaInvest_Spesa'!G37) -> Intervento 17 | H37: =IF('Y1.1 ProgrammaInvest_Spesa'!H37="","",'Y1.1 ProgrammaInvest_Spesa'!H37) -> SIVCA 17 | I37: =IF('Y1.1 ProgrammaInvest_Spesa'!I37="","",'Y1.1 ProgrammaInvest_Spesa'!I37) ->  | J37: =IF('Y1.1 ProgrammaInvest_Spesa'!J37="","",'Y1.1 ProgrammaInvest_Spesa'!J37) ->  | K37: =IF('Y1.1 ProgrammaInvest_Spesa'!K37="","",'Y1.1 ProgrammaInvest_Spesa'!K37) -> Reti recinzione | L37: =IF('Y1.1 ProgrammaInvest_Spesa'!L37="","",'Y1.1 ProgrammaInvest_Spesa'!L37) -> in corso | M37: =IF('Y1.1 ProgrammaInvest_Spesa'!M37="","",'Y1.1 ProgrammaInvest_Spesa'!M37) -> CIN post2026 | N37: =IF('Y1.1 ProgrammaInvest_Spesa'!N37="","",'Y1.1 ProgrammaInvest_Spesa'!N37) ->  | O37: =IF('Y1.1 ProgrammaInvest_Spesa'!O37="","",'Y1.1 ProgrammaInvest_Spesa'!O37) -> Vite utili 2 | P37: =IF('Y1.1 ProgrammaInvest_Spesa'!P37="","",'Y1.1 ProgrammaInvest_Spesa'!P37) -> 2032 | Q37: =IF('Y1.1 ProgrammaInvest_Spesa'!Q37="","",'Y1.1 ProgrammaInvest_Spesa'!Q37) -> FALSE | S37: =IF('Y1.1 ProgrammaInvest_Spesa'!S37="","",'Y1.1 ProgrammaInvest_Spesa'!S37) ->  | T37: =IF('Y1.1 ProgrammaInvest_Spesa'!T37="","",'Y1.1 ProgrammaInvest_Spesa'!T37) ->  | U37: =IF('Y1.1 ProgrammaInvest_Spesa'!U37="","",'Y1.1 ProgrammaInvest_Spesa'!U37) ->  | V37: =IF('Y1.1 ProgrammaInvest_Spesa'!V37="","",'Y1.1 ProgrammaInvest_Spesa'!V37) ->  | W37: =IF('Y1.1 ProgrammaInvest_Spesa'!W37="","",'Y1.1 ProgrammaInvest_Spesa'!W37) ->  | X37: =IF('Y1.1 ProgrammaInvest_Spesa'!X37="","",'Y1.1 ProgrammaInvest_Spesa'!X37) ->  | Y37: =IF('Y1.1 ProgrammaInvest_Spesa'!Y37="","",'Y1.1 ProgrammaInvest_Spesa'!Y37) ->  | AC37: =IF('Y1.1 ProgrammaInvest_Spesa'!AD37="","",'Y1.1 ProgrammaInvest_Spesa'!AD37) -> 200 | AD37: =IF('Y1.1 ProgrammaInvest_Spesa'!AE37="","",'Y1.1 ProgrammaInvest_Spesa'!AE37) -> 20 | AE37: =IF('Y1.1 ProgrammaInvest_Spesa'!AF37="","",'Y1.1 ProgrammaInvest_Spesa'!AF37) -> 10 | AN37: 20
B38: x | C38: =IF('Y1.1 ProgrammaInvest_Spesa'!C38="","",'Y1.1 ProgrammaInvest_Spesa'!C38) ->  | D38: =IF('Y1.1 ProgrammaInvest_Spesa'!D38="","",'Y1.1 ProgrammaInvest_Spesa'!D38) ->  | E38: =IF('Y1.1 ProgrammaInvest_Spesa'!E38="","",'Y1.1 ProgrammaInvest_Spesa'!E38) ->  | F38: =IF('Y1.1 ProgrammaInvest_Spesa'!F38="","",'Y1.1 ProgrammaInvest_Spesa'!F38) -> 20 | G38: =IF('Y1.1 ProgrammaInvest_Spesa'!G38="","",'Y1.1 ProgrammaInvest_Spesa'!G38) -> Intervento 18 | H38: =IF('Y1.1 ProgrammaInvest_Spesa'!H38="","",'Y1.1 ProgrammaInvest_Spesa'!H38) -> SIVCA 18 | I38: =IF('Y1.1 ProgrammaInvest_Spesa'!I38="","",'Y1.1 ProgrammaInvest_Spesa'!I38) ->  | J38: =IF('Y1.1 ProgrammaInvest_Spesa'!J38="","",'Y1.1 ProgrammaInvest_Spesa'!J38) ->  | K38: =IF('Y1.1 ProgrammaInvest_Spesa'!K38="","",'Y1.1 ProgrammaInvest_Spesa'!K38) -> Portali e segnaletica | L38: =IF('Y1.1 ProgrammaInvest_Spesa'!L38="","",'Y1.1 ProgrammaInvest_Spesa'!L38) -> in corso | M38: =IF('Y1.1 ProgrammaInvest_Spesa'!M38="","",'Y1.1 ProgrammaInvest_Spesa'!M38) -> CIN post2026 | N38: =IF('Y1.1 ProgrammaInvest_Spesa'!N38="","",'Y1.1 ProgrammaInvest_Spesa'!N38) ->  | O38: =IF('Y1.1 ProgrammaInvest_Spesa'!O38="","",'Y1.1 ProgrammaInvest_Spesa'!O38) -> Vite utili 2 | P38: =IF('Y1.1 ProgrammaInvest_Spesa'!P38="","",'Y1.1 ProgrammaInvest_Spesa'!P38) -> 2033 | Q38: =IF('Y1.1 ProgrammaInvest_Spesa'!Q38="","",'Y1.1 ProgrammaInvest_Spesa'!Q38) -> FALSE | S38: =IF('Y1.1 ProgrammaInvest_Spesa'!S38="","",'Y1.1 ProgrammaInvest_Spesa'!S38) ->  | T38: =IF('Y1.1 ProgrammaInvest_Spesa'!T38="","",'Y1.1 ProgrammaInvest_Spesa'!T38) ->  | U38: =IF('Y1.1 ProgrammaInvest_Spesa'!U38="","",'Y1.1 ProgrammaInvest_Spesa'!U38) ->  | V38: =IF('Y1.1 ProgrammaInvest_Spesa'!V38="","",'Y1.1 ProgrammaInvest_Spesa'!V38) ->  | W38: =IF('Y1.1 ProgrammaInvest_Spesa'!W38="","",'Y1.1 ProgrammaInvest_Spesa'!W38) ->  | X38: =IF('Y1.1 ProgrammaInvest_Spesa'!X38="","",'Y1.1 ProgrammaInvest_Spesa'!X38) ->  | Y38: =IF('Y1.1 ProgrammaInvest_Spesa'!Y38="","",'Y1.1 ProgrammaInvest_Spesa'!Y38) ->  | AC38: =IF('Y1.1 ProgrammaInvest_Spesa'!AD38="","",'Y1.1 ProgrammaInvest_Spesa'!AD38) -> 200 | AD38: =IF('Y1.1 ProgrammaInvest_Spesa'!AE38="","",'Y1.1 ProgrammaInvest_Spesa'!AE38) -> 20 | AE38: =IF('Y1.1 ProgrammaInvest_Spesa'!AF38="","",'Y1.1 ProgrammaInvest_Spesa'!AF38) -> 10 | AO38: 20
B39: x | C39: =IF('Y1.1 ProgrammaInvest_Spesa'!C39="","",'Y1.1 ProgrammaInvest_Spesa'!C39) ->  | D39: =IF('Y1.1 ProgrammaInvest_Spesa'!D39="","",'Y1.1 ProgrammaInvest_Spesa'!D39) ->  | E39: =IF('Y1.1 ProgrammaInvest_Spesa'!E39="","",'Y1.1 ProgrammaInvest_Spesa'!E39) ->  | F39: =IF('Y1.1 ProgrammaInvest_Spesa'!F39="","",'Y1.1 ProgrammaInvest_Spesa'!F39) -> 21 | G39: =IF('Y1.1 ProgrammaInvest_Spesa'!G39="","",'Y1.1 ProgrammaInvest_Spesa'!G39) -> Intervento 19 | H39: =IF('Y1.1 ProgrammaInvest_Spesa'!H39="","",'Y1.1 ProgrammaInvest_Spesa'!H39) -> SIVCA 19 | I39: =IF('Y1.1 ProgrammaInvest_Spesa'!I39="","",'Y1.1 ProgrammaInvest_Spesa'!I39) ->  | J39: =IF('Y1.1 ProgrammaInvest_Spesa'!J39="","",'Y1.1 ProgrammaInvest_Spesa'!J39) ->  | K39: =IF('Y1.1 ProgrammaInvest_Spesa'!K39="","",'Y1.1 ProgrammaInvest_Spesa'!K39) -> Pavimentazioni | L39: =IF('Y1.1 ProgrammaInvest_Spesa'!L39="","",'Y1.1 ProgrammaInvest_Spesa'!L39) -> in corso | M39: =IF('Y1.1 ProgrammaInvest_Spesa'!M39="","",'Y1.1 ProgrammaInvest_Spesa'!M39) -> CIN post2026 | N39: =IF('Y1.1 ProgrammaInvest_Spesa'!N39="","",'Y1.1 ProgrammaInvest_Spesa'!N39) ->  | O39: =IF('Y1.1 ProgrammaInvest_Spesa'!O39="","",'Y1.1 ProgrammaInvest_Spesa'!O39) -> Vite utili 2 | P39: =IF('Y1.1 ProgrammaInvest_Spesa'!P39="","",'Y1.1 ProgrammaInvest_Spesa'!P39) -> 2034 | Q39: =IF('Y1.1 ProgrammaInvest_Spesa'!Q39="","",'Y1.1 ProgrammaInvest_Spesa'!Q39) -> FALSE | S39: =IF('Y1.1 ProgrammaInvest_Spesa'!S39="","",'Y1.1 ProgrammaInvest_Spesa'!S39) ->  | T39: =IF('Y1.1 ProgrammaInvest_Spesa'!T39="","",'Y1.1 ProgrammaInvest_Spesa'!T39) ->  | U39: =IF('Y1.1 ProgrammaInvest_Spesa'!U39="","",'Y1.1 ProgrammaInvest_Spesa'!U39) ->  | V39: =IF('Y1.1 ProgrammaInvest_Spesa'!V39="","",'Y1.1 ProgrammaInvest_Spesa'!V39) ->  | W39: =IF('Y1.1 ProgrammaInvest_Spesa'!W39="","",'Y1.1 ProgrammaInvest_Spesa'!W39) ->  | X39: =IF('Y1.1 ProgrammaInvest_Spesa'!X39="","",'Y1.1 ProgrammaInvest_Spesa'!X39) ->  | Y39: =IF('Y1.1 ProgrammaInvest_Spesa'!Y39="","",'Y1.1 ProgrammaInvest_Spesa'!Y39) ->  | AC39: =IF('Y1.1 ProgrammaInvest_Spesa'!AD39="","",'Y1.1 ProgrammaInvest_Spesa'!AD39) -> 200 | AD39: =IF('Y1.1 ProgrammaInvest_Spesa'!AE39="","",'Y1.1 ProgrammaInvest_Spesa'!AE39) -> 20 | AE39: =IF('Y1.1 ProgrammaInvest_Spesa'!AF39="","",'Y1.1 ProgrammaInvest_Spesa'!AF39) -> 10 | AP39: 20
B40: x | C40: =IF('Y1.1 ProgrammaInvest_Spesa'!C40="","",'Y1.1 ProgrammaInvest_Spesa'!C40) ->  | D40: =IF('Y1.1 ProgrammaInvest_Spesa'!D40="","",'Y1.1 ProgrammaInvest_Spesa'!D40) ->  | E40: =IF('Y1.1 ProgrammaInvest_Spesa'!E40="","",'Y1.1 ProgrammaInvest_Spesa'!E40) ->  | F40: =IF('Y1.1 ProgrammaInvest_Spesa'!F40="","",'Y1.1 ProgrammaInvest_Spesa'!F40) -> 22 | G40: =IF('Y1.1 ProgrammaInvest_Spesa'!G40="","",'Y1.1 ProgrammaInvest_Spesa'!G40) -> Intervento 20 | H40: =IF('Y1.1 ProgrammaInvest_Spesa'!H40="","",'Y1.1 ProgrammaInvest_Spesa'!H40) -> SIVCA 20 | I40: =IF('Y1.1 ProgrammaInvest_Spesa'!I40="","",'Y1.1 ProgrammaInvest_Spesa'!I40) ->  | J40: =IF('Y1.1 ProgrammaInvest_Spesa'!J40="","",'Y1.1 ProgrammaInvest_Spesa'!J40) ->  | K40: =IF('Y1.1 ProgrammaInvest_Spesa'!K40="","",'Y1.1 ProgrammaInvest_Spesa'!K40) -> Infrastrutture tecnologiche ed impianti | L40: =IF('Y1.1 ProgrammaInvest_Spesa'!L40="","",'Y1.1 ProgrammaInvest_Spesa'!L40) -> in corso | M40: =IF('Y1.1 ProgrammaInvest_Spesa'!M40="","",'Y1.1 ProgrammaInvest_Spesa'!M40) -> CIN post2026 | N40: =IF('Y1.1 ProgrammaInvest_Spesa'!N40="","",'Y1.1 ProgrammaInvest_Spesa'!N40) ->  | O40: =IF('Y1.1 ProgrammaInvest_Spesa'!O40="","",'Y1.1 ProgrammaInvest_Spesa'!O40) -> Vite utili 2 | P40: =IF('Y1.1 ProgrammaInvest_Spesa'!P40="","",'Y1.1 ProgrammaInvest_Spesa'!P40) -> 2035 | Q40: =IF('Y1.1 ProgrammaInvest_Spesa'!Q40="","",'Y1.1 ProgrammaInvest_Spesa'!Q40) -> FALSE | S40: =IF('Y1.1 ProgrammaInvest_Spesa'!S40="","",'Y1.1 ProgrammaInvest_Spesa'!S40) ->  | T40: =IF('Y1.1 ProgrammaInvest_Spesa'!T40="","",'Y1.1 ProgrammaInvest_Spesa'!T40) ->  | U40: =IF('Y1.1 ProgrammaInvest_Spesa'!U40="","",'Y1.1 ProgrammaInvest_Spesa'!U40) ->  | V40: =IF('Y1.1 ProgrammaInvest_Spesa'!V40="","",'Y1.1 ProgrammaInvest_Spesa'!V40) ->  | W40: =IF('Y1.1 ProgrammaInvest_Spesa'!W40="","",'Y1.1 ProgrammaInvest_Spesa'!W40) ->  | X40: =IF('Y1.1 ProgrammaInvest_Spesa'!X40="","",'Y1.1 ProgrammaInvest_Spesa'!X40) ->  | Y40: =IF('Y1.1 ProgrammaInvest_Spesa'!Y40="","",'Y1.1 ProgrammaInvest_Spesa'!Y40) ->  | AC40: =IF('Y1.1 ProgrammaInvest_Spesa'!AD40="","",'Y1.1 ProgrammaInvest_Spesa'!AD40) -> 200 | AD40: =IF('Y1.1 ProgrammaInvest_Spesa'!AE40="","",'Y1.1 ProgrammaInvest_Spesa'!AE40) -> 20 | AE40: =IF('Y1.1 ProgrammaInvest_Spesa'!AF40="","",'Y1.1 ProgrammaInvest_Spesa'!AF40) -> 10 | AQ40: 20
B41: x | C41: =IF('Y1.1 ProgrammaInvest_Spesa'!C41="","",'Y1.1 ProgrammaInvest_Spesa'!C41) ->  | D41: =IF('Y1.1 ProgrammaInvest_Spesa'!D41="","",'Y1.1 ProgrammaInvest_Spesa'!D41) ->  | E41: =IF('Y1.1 ProgrammaInvest_Spesa'!E41="","",'Y1.1 ProgrammaInvest_Spesa'!E41) ->  | F41: =IF('Y1.1 ProgrammaInvest_Spesa'!F41="","",'Y1.1 ProgrammaInvest_Spesa'!F41) -> 23 | G41: =IF('Y1.1 ProgrammaInvest_Spesa'!G41="","",'Y1.1 ProgrammaInvest_Spesa'!G41) -> Intervento 21 | H41: =IF('Y1.1 ProgrammaInvest_Spesa'!H41="","",'Y1.1 ProgrammaInvest_Spesa'!H41) -> SIVCA 21 | I41: =IF('Y1.1 ProgrammaInvest_Spesa'!I41="","",'Y1.1 ProgrammaInvest_Spesa'!I41) ->  | J41: =IF('Y1.1 ProgrammaInvest_Spesa'!J41="","",'Y1.1 ProgrammaInvest_Spesa'!J41) ->  | K41: =IF('Y1.1 ProgrammaInvest_Spesa'!K41="","",'Y1.1 ProgrammaInvest_Spesa'!K41) -> Stazioni/Barriere di esazione, fabbricati, aree di servizio | L41: =IF('Y1.1 ProgrammaInvest_Spesa'!L41="","",'Y1.1 ProgrammaInvest_Spesa'!L41) -> in corso | M41: =IF('Y1.1 ProgrammaInvest_Spesa'!M41="","",'Y1.1 ProgrammaInvest_Spesa'!M41) -> CIN post2026 | N41: =IF('Y1.1 ProgrammaInvest_Spesa'!N41="","",'Y1.1 ProgrammaInvest_Spesa'!N41) ->  | O41: =IF('Y1.1 ProgrammaInvest_Spesa'!O41="","",'Y1.1 ProgrammaInvest_Spesa'!O41) -> Vite utili 2 | P41: =IF('Y1.1 ProgrammaInvest_Spesa'!P41="","",'Y1.1 ProgrammaInvest_Spesa'!P41) -> 2036 | Q41: =IF('Y1.1 ProgrammaInvest_Spesa'!Q41="","",'Y1.1 ProgrammaInvest_Spesa'!Q41) -> FALSE | S41: =IF('Y1.1 ProgrammaInvest_Spesa'!S41="","",'Y1.1 ProgrammaInvest_Spesa'!S41) ->  | T41: =IF('Y1.1 ProgrammaInvest_Spesa'!T41="","",'Y1.1 ProgrammaInvest_Spesa'!T41) ->  | U41: =IF('Y1.1 ProgrammaInvest_Spesa'!U41="","",'Y1.1 ProgrammaInvest_Spesa'!U41) ->  | V41: =IF('Y1.1 ProgrammaInvest_Spesa'!V41="","",'Y1.1 ProgrammaInvest_Spesa'!V41) ->  | W41: =IF('Y1.1 ProgrammaInvest_Spesa'!W41="","",'Y1.1 ProgrammaInvest_Spesa'!W41) ->  | X41: =IF('Y1.1 ProgrammaInvest_Spesa'!X41="","",'Y1.1 ProgrammaInvest_Spesa'!X41) ->  | Y41: =IF('Y1.1 ProgrammaInvest_Spesa'!Y41="","",'Y1.1 ProgrammaInvest_Spesa'!Y41) ->  | AC41: =IF('Y1.1 ProgrammaInvest_Spesa'!AD41="","",'Y1.1 ProgrammaInvest_Spesa'!AD41) -> 200 | AD41: =IF('Y1.1 ProgrammaInvest_Spesa'!AE41="","",'Y1.1 ProgrammaInvest_Spesa'!AE41) -> 20 | AE41: =IF('Y1.1 ProgrammaInvest_Spesa'!AF41="","",'Y1.1 ProgrammaInvest_Spesa'!AF41) -> 10 | AR41: 20
B42: x | C42: =IF('Y1.1 ProgrammaInvest_Spesa'!C42="","",'Y1.1 ProgrammaInvest_Spesa'!C42) ->  | D42: =IF('Y1.1 ProgrammaInvest_Spesa'!D42="","",'Y1.1 ProgrammaInvest_Spesa'!D42) ->  | E42: =IF('Y1.1 ProgrammaInvest_Spesa'!E42="","",'Y1.1 ProgrammaInvest_Spesa'!E42) ->  | F42: =IF('Y1.1 ProgrammaInvest_Spesa'!F42="","",'Y1.1 ProgrammaInvest_Spesa'!F42) -> 24 | G42: =IF('Y1.1 ProgrammaInvest_Spesa'!G42="","",'Y1.1 ProgrammaInvest_Spesa'!G42) -> Intervento 22 | H42: =IF('Y1.1 ProgrammaInvest_Spesa'!H42="","",'Y1.1 ProgrammaInvest_Spesa'!H42) -> SIVCA 22 | I42: =IF('Y1.1 ProgrammaInvest_Spesa'!I42="","",'Y1.1 ProgrammaInvest_Spesa'!I42) ->  | J42: =IF('Y1.1 ProgrammaInvest_Spesa'!J42="","",'Y1.1 ProgrammaInvest_Spesa'!J42) ->  | K42: =IF('Y1.1 ProgrammaInvest_Spesa'!K42="","",'Y1.1 ProgrammaInvest_Spesa'!K42) -> Altro | L42: =IF('Y1.1 ProgrammaInvest_Spesa'!L42="","",'Y1.1 ProgrammaInvest_Spesa'!L42) -> in corso | M42: =IF('Y1.1 ProgrammaInvest_Spesa'!M42="","",'Y1.1 ProgrammaInvest_Spesa'!M42) -> CIN post2026 | N42: =IF('Y1.1 ProgrammaInvest_Spesa'!N42="","",'Y1.1 ProgrammaInvest_Spesa'!N42) ->  | O42: =IF('Y1.1 ProgrammaInvest_Spesa'!O42="","",'Y1.1 ProgrammaInvest_Spesa'!O42) -> Vite utili 2 | P42: =IF('Y1.1 ProgrammaInvest_Spesa'!P42="","",'Y1.1 ProgrammaInvest_Spesa'!P42) -> 2037 | Q42: =IF('Y1.1 ProgrammaInvest_Spesa'!Q42="","",'Y1.1 ProgrammaInvest_Spesa'!Q42) -> FALSE | S42: =IF('Y1.1 ProgrammaInvest_Spesa'!S42="","",'Y1.1 ProgrammaInvest_Spesa'!S42) ->  | T42: =IF('Y1.1 ProgrammaInvest_Spesa'!T42="","",'Y1.1 ProgrammaInvest_Spesa'!T42) ->  | U42: =IF('Y1.1 ProgrammaInvest_Spesa'!U42="","",'Y1.1 ProgrammaInvest_Spesa'!U42) ->  | V42: =IF('Y1.1 ProgrammaInvest_Spesa'!V42="","",'Y1.1 ProgrammaInvest_Spesa'!V42) ->  | W42: =IF('Y1.1 ProgrammaInvest_Spesa'!W42="","",'Y1.1 ProgrammaInvest_Spesa'!W42) ->  | X42: =IF('Y1.1 ProgrammaInvest_Spesa'!X42="","",'Y1.1 ProgrammaInvest_Spesa'!X42) ->  | Y42: =IF('Y1.1 ProgrammaInvest_Spesa'!Y42="","",'Y1.1 ProgrammaInvest_Spesa'!Y42) ->  | AC42: =IF('Y1.1 ProgrammaInvest_Spesa'!AD42="","",'Y1.1 ProgrammaInvest_Spesa'!AD42) -> 200 | AD42: =IF('Y1.1 ProgrammaInvest_Spesa'!AE42="","",'Y1.1 ProgrammaInvest_Spesa'!AE42) -> 20 | AE42: =IF('Y1.1 ProgrammaInvest_Spesa'!AF42="","",'Y1.1 ProgrammaInvest_Spesa'!AF42) -> 10 | AS42: 20
C50: termine foglio di lavoro

Sheet Y1.3 ProgrammaInvest_Dismiss
C2: Programma degli Investimenti (3/6)
AD4: Anno | AG4: 2024 | AH4: 2025 | AI4: 2026 | AJ4: 2027 | AK4: 2028 | AL4: 2029 | AM4: 2030 | AN4: 2031 | AO4: 2032 | AP4: 2033 | AQ4: 2034 | AR4: 2035 | AS4: 2036 | AT4: 2037 | AU4: 2038
AD6: Anno base | AG6: 1 | AH6: 0 | AI6: 0 | AJ6: 0 | AK6: 1 | AL6: 0 | AM6: 0 | AN6: 0 | AO6: 0 | AP6: 1 | AQ6: 0 | AR6: 0 | AS6: 0 | AT6: 0 | AU6: 0
AD7: Anno ponte | AG7: 0 | AH7: 1 | AI7: 0 | AJ7: 0 | AK7: 0 | AL7: 1 | AM7: 0 | AN7: 0 | AO7: 0 | AP7: 0 | AQ7: 1 | AR7: 0 | AS7: 0 | AT7: 0 | AU7: 0
AD8: Periodo regolatorio | AG8: 0 | AH8: 0 | AI8: 1 | AJ8: 1 | AK8: 1 | AL8: 1 | AM8: 2 | AN8: 2 | AO8: 2 | AP8: 2 | AQ8: 2 | AR8: 3 | AS8: 3 | AT8: 3 | AU8: 3
AD9: Anno del periodo regolatorio | AG9: 0 | AH9: 0 | AI9: 1 | AJ9: 2 | AK9: 3 | AL9: 4 | AM9: 1 | AN9: 2 | AO9: 3 | AP9: 4 | AQ9: 5 | AR9: 1 | AS9: 2 | AT9: 3 | AU9: 4
AD10: Frazione di anno significativa | AI10: 1 | AJ10: 1 | AK10: 1 | AL10: 1 | AM10: 1 | AN10: 1 | AO10: 1 | AP10: 1 | AQ10: 1 | AR10: 1 | AS10: 1 | AT10: 1 | AU10: 1
AH12: Ultimo adattamento schema: 31/10/2025 17:45:11
C14: Programmazione ammissibile in tariffa: Importo annuo eventuali dismissioni
C15: Tabella da alimentare solo con spese per beni reversibili, autorizzati e ammissibili in tariffa
S16: Importo complessivo della spesa programmata | U16: Eventuale variazione dell'importo complessivo della spesa programmata rispetto a precedente PR | AC16: Importi complessivi da inizio nuovo PR a fine concessione
C17: Atto convenzionale di riferimento | D17: Rif. macro intervento | E17: Rif. lett. art. | F17: Codice univoco intervento | G17: Descrizione intervento | H17: Codice SIVCA | I17: Tratta autostradale da convenzione | J17: Macro tipologia intervento | K17: Tipologia intervento | L17: Stato lavori | M17: Tipologia CIN | N17: Stati di avanzamento CIN ante | O17: Criterio di ammortamento | P17: Data presunta entrata in esercizio (anno) | Q17: Intervento già incluso in ultimo PEF approvato | S17: Ultimo PEF approvato | T17: Nuovo PEF | U17: Per cause di forza maggiore | V17: Per modificazioni progettuali | W17: Per imprevedibili modifiche normative e regolamentari | X17: Per cause ambientali, errori di progettazione e difformità di esecuzione | Y17: Per errata stima dei costi di costruzione | Z17: Per errata stima costi di esproprio | AA17: Per prevedibili modifiche normative e regolamentari | AC17: Spesa programmata totale | AD17: Contributo a fondo perduto | AE17: Eventuali dismissioni | AG17: Valore residuo dismissioni al 31/12/Anno base | AH17: Dismissioni Anno ponte | AI17: ="Dismissioni " & AI4 -> Dismissioni 2026 | AJ17: Dismissioni 2027 | AK17: ="Dismissioni " & AK4 -> Dismissioni 2028 | AL17: Dismissioni 2029 | AM17: Dismissioni 2030 | AN17: Dismissioni 2031 | AO17: Dismissioni 2032 | AP17: Dismissioni 2033 | AQ17: Dismissioni 2034 | AR17: Dismissioni 2035 | AS17: Dismissioni 2036 | AT17: Dismissioni 2037 | AU17: Dismissioni 2038
B19: x | C19: =IF('Y1.1 ProgrammaInvest_Spesa'!C19="","",'Y1.1 ProgrammaInvest_Spesa'!C19) ->  | D19: =IF('Y1.1 ProgrammaInvest_Spesa'!D19="","",'Y1.1 ProgrammaInvest_Spesa'!D19) ->  | E19: =IF('Y1.1 ProgrammaInvest_Spesa'!E19="","",'Y1.1 ProgrammaInvest_Spesa'!E19) ->  | F19: =IF('Y1.1 ProgrammaInvest_Spesa'!F19="","",'Y1.1 ProgrammaInvest_Spesa'!F19) -> 1 | G19: =IF('Y1.1 ProgrammaInvest_Spesa'!G19="","",'Y1.1 ProgrammaInvest_Spesa'!G19) -> Intervento 1 | H19: =IF('Y1.1 ProgrammaInvest_Spesa'!H19="","",'Y1.1 ProgrammaInvest_Spesa'!H19) -> SIVCA 1 | I19: =IF('Y1.1 ProgrammaInvest_Spesa'!I19="","",'Y1.1 ProgrammaInvest_Spesa'!I19) ->  | J19: =IF('Y1.1 ProgrammaInvest_Spesa'!J19="","",'Y1.1 ProgrammaInvest_Spesa'!J19) ->  | K19: =IF('Y1.1 ProgrammaInvest_Spesa'!K19="","",'Y1.1 ProgrammaInvest_Spesa'!K19) -> (assoggettata ad ammortamento finanziario) | L19: =IF('Y1.1 ProgrammaInvest_Spesa'!L19="","",'Y1.1 ProgrammaInvest_Spesa'!L19) -> in corso | M19: =IF('Y1.1 ProgrammaInvest_Spesa'!M19="","",'Y1.1 ProgrammaInvest_Spesa'!M19) -> CIN ante | N19: =IF('Y1.1 ProgrammaInvest_Spesa'!N19="","",'Y1.1 ProgrammaInvest_Spesa'!N19) -> SAL contabilizzati | O19: =IF('Y1.1 ProgrammaInvest_Spesa'!O19="","",'Y1.1 ProgrammaInvest_Spesa'!O19) -> Finanziario | P19: =IF('Y1.1 ProgrammaInvest_Spesa'!P19="","",'Y1.1 ProgrammaInvest_Spesa'!P19) ->  | Q19: =IF('Y1.1 ProgrammaInvest_Spesa'!Q19="","",'Y1.1 ProgrammaInvest_Spesa'!Q19) -> FALSE | S19: =IF('Y1.1 ProgrammaInvest_Spesa'!S19="","",'Y1.1 ProgrammaInvest_Spesa'!S19) ->  | T19: =IF('Y1.1 ProgrammaInvest_Spesa'!T19="","",'Y1.1 ProgrammaInvest_Spesa'!T19) ->  | U19: =IF('Y1.1 ProgrammaInvest_Spesa'!U19="","",'Y1.1 ProgrammaInvest_Spesa'!U19) ->  | V19: =IF('Y1.1 ProgrammaInvest_Spesa'!V19="","",'Y1.1 ProgrammaInvest_Spesa'!V19) ->  | W19: =IF('Y1.1 ProgrammaInvest_Spesa'!W19="","",'Y1.1 ProgrammaInvest_Spesa'!W19) ->  | X19: =IF('Y1.1 ProgrammaInvest_Spesa'!X19="","",'Y1.1 ProgrammaInvest_Spesa'!X19) ->  | Y19: =IF('Y1.1 ProgrammaInvest_Spesa'!Y19="","",'Y1.1 ProgrammaInvest_Spesa'!Y19) ->  | AC19: =IF('Y1.1 ProgrammaInvest_Spesa'!AD19="","",'Y1.1 ProgrammaInvest_Spesa'!AD19) -> 0 | AD19: =IF('Y1.1 ProgrammaInvest_Spesa'!AE19="","",'Y1.1 ProgrammaInvest_Spesa'!AE19) -> 2000 | AE19: =IF('Y1.1 ProgrammaInvest_Spesa'!AF19="","",'Y1.1 ProgrammaInvest_Spesa'!AF19) -> 20 | AT19: 20
B20: x | C20: =IF('Y1.1 ProgrammaInvest_Spesa'!C20="","",'Y1.1 ProgrammaInvest_Spesa'!C20) ->  | D20: =IF('Y1.1 ProgrammaInvest_Spesa'!D20="","",'Y1.1 ProgrammaInvest_Spesa'!D20) ->  | E20: =IF('Y1.1 ProgrammaInvest_Spesa'!E20="","",'Y1.1 ProgrammaInvest_Spesa'!E20) ->  | F20: =IF('Y1.1 ProgrammaInvest_Spesa'!F20="","",'Y1.1 ProgrammaInvest_Spesa'!F20) -> 2 | G20: =IF('Y1.1 ProgrammaInvest_Spesa'!G20="","",'Y1.1 ProgrammaInvest_Spesa'!G20) -> Intervento 2 | H20: =IF('Y1.1 ProgrammaInvest_Spesa'!H20="","",'Y1.1 ProgrammaInvest_Spesa'!H20) -> SIVCA 2 | I20: =IF('Y1.1 ProgrammaInvest_Spesa'!I20="","",'Y1.1 ProgrammaInvest_Spesa'!I20) ->  | J20: =IF('Y1.1 ProgrammaInvest_Spesa'!J20="","",'Y1.1 ProgrammaInvest_Spesa'!J20) ->  | K20: =IF('Y1.1 ProgrammaInvest_Spesa'!K20="","",'Y1.1 ProgrammaInvest_Spesa'!K20) -> (assoggettata ad ammortamento finanziario) | L20: =IF('Y1.1 ProgrammaInvest_Spesa'!L20="","",'Y1.1 ProgrammaInvest_Spesa'!L20) -> in corso | M20: =IF('Y1.1 ProgrammaInvest_Spesa'!M20="","",'Y1.1 ProgrammaInvest_Spesa'!M20) -> CIN ante | N20: =IF('Y1.1 ProgrammaInvest_Spesa'!N20="","",'Y1.1 ProgrammaInvest_Spesa'!N20) -> SAL da contabilizzare | O20: =IF('Y1.1 ProgrammaInvest_Spesa'!O20="","",'Y1.1 ProgrammaInvest_Spesa'!O20) -> Finanziario | P20: =IF('Y1.1 ProgrammaInvest_Spesa'!P20="","",'Y1.1 ProgrammaInvest_Spesa'!P20) ->  | Q20: =IF('Y1.1 ProgrammaInvest_Spesa'!Q20="","",'Y1.1 ProgrammaInvest_Spesa'!Q20) -> FALSE | S20: =IF('Y1.1 ProgrammaInvest_Spesa'!S20="","",'Y1.1 ProgrammaInvest_Spesa'!S20) ->  | T20: =IF('Y1.1 ProgrammaInvest_Spesa'!T20="","",'Y1.1 ProgrammaInvest_Spesa'!T20) ->  | U20: =IF('Y1.1 ProgrammaInvest_Spesa'!U20="","",'Y1.1 ProgrammaInvest_Spesa'!U20) ->  | V20: =IF('Y1.1 ProgrammaInvest_Spesa'!V20="","",'Y1.1 ProgrammaInvest_Spesa'!V20) ->  | W20: =IF('Y1.1 ProgrammaInvest_Spesa'!W20="","",'Y1.1 ProgrammaInvest_Spesa'!W20) ->  | X20: =IF('Y1.1 ProgrammaInvest_Spesa'!X20="","",'Y1.1 ProgrammaInvest_Spesa'!X20) ->  | Y20: =IF('Y1.1 ProgrammaInvest_Spesa'!Y20="","",'Y1.1 ProgrammaInvest_Spesa'!Y20) ->  | AC20: =IF('Y1.1 ProgrammaInvest_Spesa'!AD20="","",'Y1.1 ProgrammaInvest_Spesa'!AD20) -> 20000 | AD20: =IF('Y1.1 ProgrammaInvest_Spesa'!AE20="","",'Y1.1 ProgrammaInvest_Spesa'!AE20) -> 1000 | AE20: =IF('Y1.1 ProgrammaInvest_Spesa'!AF20="","",'Y1.1 ProgrammaInvest_Spesa'!AF20) -> 20 | AT20: 20
